Workbook

Sheet Presentación
G3: Hoja de estadisticas y calculo de apuestas de Valor Temporada 2024-2025
G10: Estadisticas de la liga
G11: Estadisticas de equipos
G12: Probabilidades reales
G13: Cuotas reales
G14: Apuestas de Valor
G17: descarga los datos aquí: | J17: European Football Results and Betting Odds (football-data.co.uk)

Sheet Mercados
H2: EPL_2024_2025
E6: Man City | L6: West Ham
G9: Mercado de cuotas:
D13: Tiempo completo | K13: Tiempo completo(General)
D14: Match ODDS | E14: local | F14: empate | G14: visitante | K14: Match ODDS | L14: local | M14: empate | N14: visitante
D15: Cuota real Poisson | E15: =1/E16 -> 2.63 | F15: 3.72 | G15: 2.85 | K15: Cuota real Poisson | L15: =1/L16 -> 1.23 | M15: 8.09 | N15: 15.57
D16: % acierto poisson | E16: =D160+G160+H160+L160+N160+P160+S160 -> 38.01% | F16: =Mercados!F160+Mercados!K160+Mercados!C160+Mercados!R160+Mercados!T160 -> 26.87% | G16: =E160+I160+J160+M160+O160+Q160+U160 -> 35.12% | K16: % acierto poisson | L16: =D173+G173+H173+L173+N173+P173+S173 -> 81.22% | M16: =T173+R173+K173+F173+C173 -> 12.36% | N16: =U173+Q173+O173+M173+J173+I173+E173 -> 6.42%
D17: Valor Poisson | E17: =(E16*(E24-1))-(1-E16) -> -46.79% | F17: -5.96% | G17: 31.43% | K17: Valor Poisson | L17: =(L16*(L24-1))-(1-L16) -> 13.70% | M17: =(M16*(M24-1))-(1-M16) -> -56.74% | N17: -89.47%
D18: Cuota real | E18: =1/E19 -> 2.57 | F18: =1/F19 -> 3.00 | G18: 3.60 | K18: Cuota real | L18: =1/L19 -> 1.53 | M18: =1/M19 -> 4.24 | N18: 9.00
D19: % acierto | E19: =D163+G163+H163+L163+N163+P163+S163 -> 38.89% | F19: =C163+F163+K163+R163+T163 -> 33.33% | G19: =E163+I163+J163+M163+O163+Q163+U163 -> 27.78% | K19: % acierto | L19: =D176+G176+H176+L176+N176+P176+S176 -> 65.28% | M19: =T176+R176+K176+F176+C176 -> 23.61% | N19: =Mercados!U176+Mercados!Q176+Mercados!O176+Mercados!M176+Mercados!J176+Mercados!I176+Mercados!E176 -> 11.11%
D20: Valor | E20: =(E19*(E24-1))-(1-E19) -> -45.56% | F20: =(F19*(F24-1))-(1-F19) -> 16.67% | G20: =(G19*(G24-1))-(1-G19) -> 3.94% | K20: Valor | L20: =(L19*(L24-1))-(1-L19) -> -8.61% | M20: =(M19*(M24-1))-(1-M19) -> -17.36% | N20: =(N19*(N24-1))-(1-N19) -> -81.78%
D21: Cuota real 2 | E21: =1/E22 -> 3.00 | F21: =1/F22 -> 6.00 | G21: =1/G22 -> 6.00 | K21: Cuota real 2 | L21: =1/L22 -> 1.71 | M21: =1/M22 -> 3.00 | N21: =1/N22 -> 12.00
D22: % acierto 2 | E22: =D166+G166+H166+L166+N166+P166+S166 -> 33.33% | F22: =C166+F166+K166+R166+T166 -> 16.67% | G22: =E166+I166+J166+M166+O166+Q166+U166 -> 16.67% | K22: % acierto 2 | L22: =('Estadisticas de Equipos'!D26+'Estadisticas de Equipos'!O26)/('Estadisticas de Equipos'!E8+'Estadisticas de Equipos'!N8) -> 58.33% | M22: =('Estadisticas de Equipos'!E26+'Estadisticas de Equipos'!N26)/('Estadisticas de Equipos'!E8+'Estadisticas de Equipos'!N8) -> 33.33% | N22: =('Estadisticas de Equipos'!M26+'Estadisticas de Equipos'!F26)/('Estadisticas de Equipos'!E8+'Estadisticas de Equipos'!N8) -> 8.33%
D23: Valor 2 | E23: =(E22*(E24-1))-(1-E22) -> -53.33% | F23: =(F22*(F24-1))-(1-F22) -> -41.67% | G23: =(G22*(G24-1))-(1-G22) -> -37.63% | K23: Valor 2 | L23: =(L22*(L24-1))-(1-L22) -> -18.33% | M23: =(M22*(M24-1))-(1-M22) -> 16.67% | N23: =(N22*(N24-1))-(1-N22) -> -86.33%
D24: Cuota de la casa de apuestas | E24: 1.4 | F24: 3.5 | G24: 3.742 | K24: Cuota de la casa de apuestas | L24: 1.4 | M24: 3.5 | N24: 1.64
D27: Primer Tiempo | K27: Primer Tiempo (General)
D28: Match ODDS | E28: local | F28: empate | G28: visitante | K28: Match ODDS | L28: local | M28: empate | N28: visitante
D29: Cuota real Poisson | E29: =1/E30 -> 1.23 | F29: 5.33 | K29: Cuota real Poisson | L29: =1/L30 -> 1.23 | M29: 7.28 | N29: 20.21
D30: % acierto poisson | E30: =F188+I188+J188+('Estadisticas de Equipos'!I177*SUM('Estadisticas de Equipos'!K174:K176)) -> 81.25% | F30: =E188+H188+M188+('Estadisticas de Equipos'!I177*'Estadisticas de Equipos'!K177) -> 18.75% | G30: =Mercados!G188+Mercados!K188+Mercados!L188+'Estadisticas de Equipos'!K177*SUM('Estadisticas de Equipos'!I174:I176) -> 0.00% | K30: % acierto poisson | L30: =F201+I201+J201+'Estadisticas de Equipos'!I186*SUM('Estadisticas de Equipos'!K183:K185) -> 81.32% | M30: =E201+H201+M201+'Estadisticas de Equipos'!I186*'Estadisticas de Equipos'!K186 -> 13.73% | N30: =G201+K201+L201+'Estadisticas de Equipos'!K186*SUM('Estadisticas de Equipos'!I183:I185) -> 4.95%
D31: Valor Poisson | E31: =(E30*(E38-1))-(1-E30) -> 111.24% | F31: =(F30*(F38-1))-(1-F30) -> -54.99% | G31: -100.00% | K31: Valor Poisson | L31: =(L30*(L38-1))-(1-L30) -> 111.43% | M31: =(M30*(M38-1))-(1-M30) -> -67.04% | N31: -81.30%
D32: Cuota real | E32: =1/E33 -> 1.80 | F32: =1/F33 -> 3.60 | G32: 6.00 | K32: Cuota real | L32: =1/L33 -> 1.80 | M32: 3.60 | N32: 6.00
D33: % acierto | E33: =F191+I191+J191+'Estadisticas de Equipos'!I126*SUM('Estadisticas de Equipos'!K123:K125) -> 55.56% | F33: =E191+H191+M191+'Estadisticas de Equipos'!I126*'Estadisticas de Equipos'!K126 -> 27.78% | G33: =G191+K191+L191+'Estadisticas de Equipos'!K126*SUM('Estadisticas de Equipos'!I123:I125) -> 16.67% | K33: % acierto | L33: =F204+I204+J204+'Estadisticas de Equipos'!I189*SUM('Estadisticas de Equipos'!K186:K188) -> 55.56% | M33: =E204+H204+M204+'Estadisticas de Equipos'!I135*'Estadisticas de Equipos'!K135 -> 27.78% | N33: =1-(L33+M33) -> 16.67%
D34: Valor | E34: =(E33*(E38-1))-(1-E33) -> 44.44% | F34: =(F33*(F38-1))-(1-F33) -> -33.33% | G34: =(G33*(G38-1))-(1-G33) -> -37.00% | K34: Valor | L34: =(L33*(L38-1))-(1-L33) -> 44.44% | M34: =(M33*(M38-1))-(1-M33) -> -33.33% | N34: =(N33*(N38-1))-(1-N33) -> -37.00%
D35: Cuota real 2 | E35: =1/E36 -> 1.50 | F35: =1/F36 -> 6.00 | G35: 6.00 | K35: Cuota real 2 | L35: =1/L36 -> 1.33 | M35: 6.00 | N35: 12.00
D36: % acierto 2 | E36: =('Estadisticas de Equipos'!D17+'Estadisticas de Equipos'!O17)/('Estadisticas de Equipos'!E9+'Estadisticas de Equipos'!E9) -> 66.67% | F36: =('Estadisticas de Equipos'!E17+'Estadisticas de Equipos'!N17)/('Estadisticas de Equipos'!E9+'Estadisticas de Equipos'!N9) -> 16.67% | G36: =('Estadisticas de Equipos'!F17+'Estadisticas de Equipos'!M17)/('Estadisticas de Equipos'!E9+'Estadisticas de Equipos'!N9) -> 16.67% | K36: % acierto 2 | L36: =('Estadisticas de Equipos'!D29+'Estadisticas de Equipos'!O29)/('Estadisticas de Equipos'!E8+'Estadisticas de Equipos'!N8) -> 75.00% | M36: =('Estadisticas de Equipos'!E29+'Estadisticas de Equipos'!N29)/('Estadisticas de Equipos'!N8+'Estadisticas de Equipos'!E8) -> 16.67% | N36: =('Estadisticas de Equipos'!F29+'Estadisticas de Equipos'!M29)/('Estadisticas de Equipos'!E8+'Estadisticas de Equipos'!N8) -> 8.33%
D37: Valor 2 | E37: =(E36*(E38-1))-(1-E36) -> 73.33% | F37: =(F36*(F38-1))-(1-F36) -> -60.00% | G37: =(G36*(G38-1))-(1-G36) -> -37.00% | K37: Valor 2 | L37: =(L36*(L38-1))-(1-L36) -> 95.00% | M37: =(M36*(M38-1))-(1-M36) -> -60.00% | N37: =(N36*(N38-1))-(1-N36) -> -68.50%
D38: Cuota de la casa de apuestas | E38: 2.6 | F38: 2.4 | G38: 3.78 | K38: Cuota de la casa de apuestas | L38: 2.6 | M38: 2.4 | N38: 3.78
D41: Segundo Tiempo | K41: Ssgundo tiempo(General)
D42: Match ODDS | E42: local | F42: empate | G42: visitante | K42: Match ODDS | L42: local | M42: empate | N42: visitante
D43: Cuota real Poisson | E43: =1/E44 ->  | F43: 1.00 | K43: Cuota real Poisson | L43: =1/L44 -> 2.45 | M43: 1.86 | N43: 18.82
D44: % acierto poisson | E44: =F218+I218+J218+'Estadisticas de Equipos'!N177*SUM('Estadisticas de Equipos'!P174:P176) -> 0.00% | F44: =E218+H218+M218+'Estadisticas de Equipos'!N177*'Estadisticas de Equipos'!P177 -> 100.00% | G44: =G218+K218+L218+'Estadisticas de Equipos'!P177*SUM('Estadisticas de Equipos'!N174:N176) -> 0.00% | K44: % acierto poisson | L44: =F231+I231+J231+'Estadisticas de Equipos'!N186*SUM('Estadisticas de Equipos'!P183:P185) -> 40.89% | M44: =E231+H231+M231+'Estadisticas de Equipos'!N186*'Estadisticas de Equipos'!P186 -> 53.80% | N44: =G231+K231+L231+'Estadisticas de Equipos'!P186*SUM('Estadisticas de Equipos'!N183:N185) -> 5.31%
D45: Valor Poisson | E45: =(E44*(E52-1))-(1-E44) -> -100.00% | F45: =(F44*(F52-1))-(1-F44) -> 300.00% | G45: -100.00% | K45: Valor Poisson | L45: =(L44*(L52-1))-(1-L44) -> -100.00% | M45: =(M44*(M52-1))-(1-M44) -> -100.00% | N45: -100.00%
D46: Cuota real | E46: =1/E47 -> 6.00 | F46: 2.25 | G46: 2.57 | K46: Cuota real | L46: =1/L47 -> 2.57 | M46: 2.36 | N46: 5.33
D47: % acierto | E47: =Mercados!F221+Mercados!I221+Mercados!J221+'Estadisticas de Equipos'!I144*SUM('Estadisticas de Equipos'!K141:K143) -> 16.67% | F47: ='Estadisticas de Equipos'!I144*'Estadisticas de Equipos'!K144+Mercados!E221+Mercados!H221+Mercados!M221 -> 44.44% | G47: =L221+K221+G221+'Estadisticas de Equipos'!K144*SUM('Estadisticas de Equipos'!I141:I143) -> 38.89% | K47: % acierto | L47: =F234+I234+J234+'Estadisticas de Equipos'!I153*SUM('Estadisticas de Equipos'!K150:K152) -> 38.89% | M47: =E234+H234+M234+'Estadisticas de Equipos'!I153*'Estadisticas de Equipos'!K153 -> 42.36% | N47: =G234+K234+L234+'Estadisticas de Equipos'!K153*SUM('Estadisticas de Equipos'!I150:I152) -> 18.75%
D48: Valor | E48: =(E47*(E52-1))-(1-E47) -> -100.00% | F48: =(F47*(F52-1))-(1-F47) -> 77.78% | G48: =(G47*(G52-1))-(1-G47) -> 16.67% | K48: Valor | L48: =(L47*(L52-1))-(1-L47) -> -100.00% | M48: =(M47*(M52-1))-(1-M47) -> -100.00% | N48: =(N47*(N52-1))-(1-N47) -> -100.00%
D49: Cuota real 2 | E49: =1/E50 -> 3.00 | F49: 6.00 | G49: 2.00 | K49: Cuota real 2 | L49: =1/L50 -> 1.71 | M49: 3.00 | N49: 12.00
D50: % acierto 2 | E50: =('Estadisticas de Equipos'!D20+'Estadisticas de Equipos'!O20)/('Estadisticas de Equipos'!E9+'Estadisticas de Equipos'!N9) -> 33.33% | F50: =('Estadisticas de Equipos'!E20+'Estadisticas de Equipos'!N20)/('Estadisticas de Equipos'!E9+'Estadisticas de Equipos'!N9) -> 16.67% | G50: =('Estadisticas de Equipos'!F20+'Estadisticas de Equipos'!M20)/('Estadisticas de Equipos'!E9+'Estadisticas de Equipos'!N9) -> 50.00% | K50: % acierto 2 | L50: =('Estadisticas de Equipos'!D26+'Estadisticas de Equipos'!O26)/('Estadisticas de Equipos'!E8+'Estadisticas de Equipos'!N8) -> 58.33% | M50: =('Estadisticas de Equipos'!E26+'Estadisticas de Equipos'!N26)/('Estadisticas de Equipos'!E8+'Estadisticas de Equipos'!N8) -> 33.33% | N50: =('Estadisticas de Equipos'!F26+'Estadisticas de Equipos'!M26)/('Estadisticas de Equipos'!E8+'Estadisticas de Equipos'!N8) -> 8.33%
D51: Valor 2 | E51: =(E50*(E52-1))-(1-E50) -> -100.00% | F51: =(F50*(F52-1))-(1-F50) -> -33.33% | G51: =(G50*(G52-1))-(1-G50) -> 50.00% | K51: Valor 2 | L51: =(L50*(L52-1))-(1-L50) -> -100.00% | M51: =(M50*(M52-1))-(1-M50) -> -100.00% | N51: =(N50*(N52-1))-(1-N50) -> -100.00%
D52: Cuota de la casa de apuestas | F52: 4 | G52: 3 | K52: Cuota de la casa de apuestas
H57: Over/Under
D61: Tiempo completo
E62: Under 0,5 | F62: over 0,5 | G62: Under 1,5 | H62: over 1,5 | I62: Under 2,5 | J62: Over 2,5 | K62: Under 3,5 | L62: over 3,5 | M62: Under 4,5 | N62: over 4,5
D63: Cuota real Poisson | E63: =1/E64 -> 12.54 | F63: 1.09 | G63: 3.55 | H63: 1.39 | I63: 1.86 | J63: 2.16 | K63: 1.33 | L63: 4.02 | M63: 1.15 | N63: 7.71
D64: % acierto poisson | E64: =C160 -> 7.97% | F64: =1-E64 -> 92.03% | G64: =C160+D160+E160 -> 28.14% | H64: =1-G64 -> 71.86% | I64: =C160+D160+E160+F160+G160+I160 -> 53.64% | J64: =1-I64 -> 46.36% | K64: =C160+D160+E160+F160+G160+H160+I160+J160+L160+M160 -> 75.14% | L64: =1-K64 -> 24.86% | M64: =C160+D160+E160+F160+G160+H160+I160+J160+K160+L160+M160+N160+O160 -> 87.02% | N64: =1-M64 -> 12.98%
D65: Valor Poisson | E65: =(E64*(E72-1))-(1-E64) -> -100.00% | F65: =(F64*(F72-1))-(1-F64) -> -100.00% | G65: =(G64*(G72-1))-(1-G64) -> -100.00% | H65: =(H64*(H72-1))-(1-H64) -> -100.00% | I65: =(I64*(I72-1))-(1-I64) -> 55.56% | J65: =(J64*(J72-1))-(1-J64) -> -32.32% | K65: =(K64*(K72-1))-(1-K64) -> 35.25% | L65: =(L64*(L72-1))-(1-L64) -> -50.28% | M65: =(M64*(M72-1))-(1-M64) -> 16.61% | N65: -57.18%
D66: Cuota real | E66: =1/E67 ->  | F66: 1.00 | G66: 9.00 | H66: 1.13 | I66: 2.57 | J66: 1.64 | K66: 1.38 | L66: 3.60 | M66: 1.20 | N66: 6.00
D67: % acierto | E67: =C163 -> 0.00% | F67: =1-E67 -> 100.00% | G67: =C163+D163+E163 -> 11.11% | H67: =1-G67 -> 88.89% | I67: =C163+D163+E163+F163+G163+I163 -> 38.89% | J67: =1-I67 -> 61.11% | K67: =C163+D163+E163+F163+G163+H163+I163+J163+L163+M163 -> 72.22% | L67: =1-K67 -> 27.78% | M67: =C163+D163+E163+F163+G163+H163+I163+J163+K163+L163+M163+N163+O163 -> 83.33% | N67: =1-M67 -> 16.67%
D68: Valor | E68: =(E67*(E72-1))-(1-E67) -> -100.00% | F68: -100.00% | G68: -100.00% | H68: -100.00% | I68: 12.78% | J68: -10.78% | K68: 30.00% | L68: -44.44% | M68: 11.67% | N68: -45.00%
D69: Cuota real 2 | E69: =1/E70 ->  | F69: 1.00 | H69: 1.00 | I69: 2.00 | J69: 2.00 | K69: 1.50 | L69: 3.00 | M69: 1.20 | N69: 6.00
D70: % acierto 2 | E70: =('Estadisticas de Equipos'!F62+'Estadisticas de Equipos'!O62)/('Estadisticas de Equipos'!E9+'Estadisticas de Equipos'!N9) -> 0.00% | F70: =1-E70 -> 100.00% | G70: =('Estadisticas de Equipos'!F63+'Estadisticas de Equipos'!O63)/('Estadisticas de Equipos'!E9+'Estadisticas de Equipos'!N9) -> 0.00% | H70: =1-G70 -> 100.00% | I70: =('Estadisticas de Equipos'!F64+'Estadisticas de Equipos'!O64)/('Estadisticas de Equipos'!E9+'Estadisticas de Equipos'!N9) -> 50.00% | J70: =1-I70 -> 50.00% | K70: =('Estadisticas de Equipos'!F65+'Estadisticas de Equipos'!O65)/('Estadisticas de Equipos'!E9+'Estadisticas de Equipos'!N9) -> 66.67% | L70: =1-K70 -> 33.33% | M70: =('Estadisticas de Equipos'!F66+'Estadisticas de Equipos'!O66)/('Estadisticas de Equipos'!E9+'Estadisticas de Equipos'!N9) -> 83.33% | N70: =1-M70 -> 16.67%
D71: Valor 2 | E71: =(E70*(E72-1))-(1-E70) -> -100.00% | F71: -100.00% | G71: -100.00% | H71: -100.00% | I71: 45.00% | J71: -27.00% | K71: 20.00% | L71: -33.33% | M71: 11.67% | N71: =(N70*(N72-1))-(1-N70) -> -45.00%
D72: Cuota de la casa de apuestas | I72: 2.9 | J72: 1.46 | K72: 1.8 | L72: 2 | M72: 1.34 | N72: 3.3
D76: Tiempo completo(General)
E77: Under 0,5 | F77: over 0,5 | G77: Under 1,5 | H77: over 1,5 | I77: Under 2,5 | J77: over 2,5 | K77: Under 3,5 | L77: over 3,5 | M77: Under 4,5 | N77: over 4,5
D78: Cuota real Poisson | E78: =1/E79 -> 34.01 | F78: 1.03 | G78: 7.51 | H78: 1.15 | I78: 3.17 | J78: 1.46 | K78: 1.88 | L78: 2.13 | M78: 1.56 | N78: 2.79
D79: % acierto poisson | E79: =C173 -> 2.94% | F79: =1-E79 -> 97.06% | G79: =D173+E173+C173 -> 13.31% | H79: =1-G79 -> 86.69% | I79: =D173+C173+E173+F173+G173+I173 -> 31.59% | J79: =1-I79 -> 68.41% | K79: =C173+D173+E173+F173+G173+H173+I173+J173+L173+M173 -> 53.09% | L79: =1-K79 -> 46.91% | M79: =O173+N173+M173+L173+K173+J173+I173+H173+G173+F173+E173+D173+C173 -> 64.12% | N79: =1-M79 -> 35.88%
D80: Valor Poisson | E80: =(E79*(E87-1))-(1-E79) -> -100.00% | F80: =(F79*(F87-1))-(1-F79) -> -100.00% | G80: =(G79*(G87-1))-(1-G79) -> -100.00% | H80: =(H79*(H87-1))-(1-H79) -> -100.00% | I80: =(I79*(I87-1))-(1-I79) -> -46.29% | J80: =(J79*(J87-1))-(1-J79) -> 7.47% | K80: =(K79*(K87-1))-(1-K79) -> -4.44% | L80: =(L79*(L87-1))-(1-L79) -> -6.17% | M80: =(M79*(M87-1))-(1-M79) -> -100.00% | N80: -100.00%
D81: Cuota real | E81: =1/E82 -> 72.00 | F81: 1.01 | G81: 9.00 | H81: 1.13 | I81: 2.88 | J81: 1.53 | K81: 1.53 | L81: 2.88 | M81: 1.14 | N81: 8.00
D82: % acierto | E82: =C176 -> 1.39% | F82: =1-E82 -> 98.61% | G82: =C176+D176+E176 -> 11.11% | H82: =1-G82 -> 88.89% | I82: =C176+D176+E176+F176+G176+I176 -> 34.72% | J82: =1-I82 -> 65.28% | K82: =C176+D176+E176+F176+G176+H176+I176+J176+L176+M176 -> 65.28% | L82: =1-K82 -> 34.72% | M82: =N176+O176+M176+L176+K176+J176+I176+H176+G176+F176+E176+D176+C176 -> 87.50% | N82: =1-M82 -> 12.50%
D83: Valor | E83: =(E82*(E87-1))-(1-E82) -> -100.00% | F83: -100.00% | G83: -100.00% | H83: -100.00% | I83: -40.97% | J83: 2.55% | K83: 17.50% | L83: -30.56% | M83: -100.00% | N83: =(N82*(N87-1))-(1-N82) -> -100.00%
D84: Cuota real 2 | E84: =1/E85 ->  | F84: 1.00 | H84: =1/H85 -> 1.00 | I84: 2.40 | J84: 1.71 | K84: 1.50 | L84: 3.00 | M84: 1.09 | N84: 12.00
D85: % acierto 2 | E85: =('Estadisticas de Equipos'!F82+'Estadisticas de Equipos'!O82)/('Estadisticas de Equipos'!E8+'Estadisticas de Equipos'!N8) -> 0.00% | F85: =1-E85 -> 100.00% | G85: =('Estadisticas de Equipos'!F83+'Estadisticas de Equipos'!O83)/('Estadisticas de Equipos'!E8+'Estadisticas de Equipos'!N8) -> 0.00% | H85: =1-G85 -> 100.00% | I85: =('Estadisticas de Equipos'!F84+'Estadisticas de Equipos'!O84)/('Estadisticas de Equipos'!E8+'Estadisticas de Equipos'!N8) -> 41.67% | J85: =1-I85 -> 58.33% | K85: =('Estadisticas de Equipos'!F85+'Estadisticas de Equipos'!O85)/('Estadisticas de Equipos'!E8+'Estadisticas de Equipos'!N8) -> 66.67% | L85: =1-K85 -> 33.33% | M85: =('Estadisticas de Equipos'!F86+'Estadisticas de Equipos'!O86)/('Estadisticas de Equipos'!E8+'Estadisticas de Equipos'!N8) -> 91.67% | N85: =1-M85 -> 8.33%
D86: Valor 2 | E86: =(E85*(E87-1))-(1-E85) -> -100.00% | F86: -100.00% | G86: -100.00% | H86: -100.00% | I86: -29.17% | J86: -8.36% | K86: 20.00% | L86: -33.33% | M86: -100.00% | N86: =(N85*(N87-1))-(1-N85) -> -100.00%
D87: Cuota de la casa de apuestas | I87: 1.7 | J87: 1.571 | K87: 1.8 | L87: 2
B91: Primer tiempo | J91: Primer tiempoGeneral)
B92: Over/Under | C92: Under 0,5 | D92: over 0,5 | E92: Under 1,5 | F92: over 1,5 | G92: Under 2,5 | H92: over 2,5 | J92: Over/Under | K92: Under 0,5 | L92: over 0,5 | M92: Under 1,5 | N92: over 1,5 | O92: Under 2,5 | P92: over 2,5
B93: Cuota real Poisson | C93: =1/C94 -> 5.33 | D93: 1.23 | E93: 1.99 | F93: 2.01 | G93: 1.31 | H93: 4.24 | J93: Cuota real Poisson | K93: =1/K94 -> 17.88 | L93: 1.06 | M93: 4.60 | N93: 1.28 | O93: 2.22 | P93: 1.82
B94: % acierto poisson | C94: =E188 -> 18.75% | D94: =1-C94 -> 81.25% | E94: =SUM(E188:G188) -> 50.14% | F94: =1-E94 -> 49.86% | G94: =E188+F188+G188+H188+I188+K188 -> 76.41% | H94: =1-G94 -> 23.59% | J94: % acierto poisson | K94: =E201 -> 5.59% | L94: =1-K94 -> 94.41% | M94: =SUM(Mercados!E201:G201) -> 21.72% | N94: =1-M94 -> 78.28% | O94: =Mercados!E201+Mercados!F201+Mercados!G201+Mercados!H201+Mercados!I201+Mercados!K201 -> 44.97% | P94: =1-O94 -> 55.03%
B95: Valor Poisson | C95: =(C94*(C102-1))-(1-C94) -> -50.30% | D95: 20.24% | E95: -12.25% | F95: -100.00% | G95: -100.00% | H95: =(H94*(H102-1))-(1-H94) -> -100.00% | J95: Valor Poisson | K95: =(K94*(K102-1))-(1-K94) -> -100.00% | L95: -100.00% | M95: -61.99% | N95: -100.00% | O95: -100.00% | P95: =(P94*(P102-1))-(1-P94) -> -100.00%
B96: Cuota real | C96: =1/C97 -> 12.00 | D96: 1.09 | E96: 2.57 | F96: 1.64 | G96: 1.50 | H96: 3.00 | J96: Cuota real | K96: =1/K97 -> 24.00 | L96: 1.04 | M96: 3.06 | N96: 1.48 | O96: 1.41 | P96: 3.43
B97: % acierto | C97: =E191 -> 8.33% | D97: =1-C97 -> 91.67% | E97: =SUM(E191:G191) -> 38.89% | F97: =1-E97 -> 61.11% | G97: =E191+F191+G191+H191+I191+K191 -> 66.67% | H97: =1-G97 -> 33.33% | J97: % acierto | K97: =E204 -> 4.17% | L97: =1-K97 -> 95.83% | M97: =SUM(Mercados!E204:G204) -> 32.64% | N97: =1-M97 -> 67.36% | O97: =Mercados!E204+Mercados!F204+Mercados!G204+Mercados!H204+Mercados!I204+Mercados!K204 -> 70.83% | P97: =1-O97 -> 29.17%
B98: Valor | C98: =(C97*(C102-1))-(1-C97) -> -77.92% | D98: =(D97*(D102-1))-(1-D97) -> 35.67% | E98: =(E97*(E102-1))-(1-E97) -> -31.94% | F98: =(F97*(F102-1))-(1-F97) -> -100.00% | G98: =(G97*(G102-1))-(1-G97) -> -100.00% | H98: =(H97*(H102-1))-(1-H97) -> -100.00% | J98: Valor | K98: =(K97*(K102-1))-(1-K97) -> -100.00% | L98: -100.00% | M98: -42.88% | N98: -100.00% | O98: -100.00% | P98: =(P97*(P102-1))-(1-P97) -> -100.00%
B99: Cuota real 2 | C99: =1/C100 -> 6.00 | D99: 1.20 | E99: 2.00 | F99: 2.00 | G99: 2.00 | H99: 2.00 | J99: Cuota real 2 | K99: =1/K100 -> 12.00 | L99: 1.09 | M99: 2.40 | N99: 1.71 | O99: 1.71 | P99: 2.40
B100: % acierto 2 | C100: =E194 -> 16.67% | D100: =1-C100 -> 83.33% | E100: =E194+F194+G194 -> 50.00% | F100: =1-E100 -> 50.00% | G100: =E194+F194+G194+H194+I194+K194 -> 50.00% | H100: =1-G100 -> 50.00% | J100: % acierto 2 | K100: =E207 -> 8.33% | L100: =1-K100 -> 91.67% | M100: =SUM(Mercados!E207:G207) -> 41.67% | N100: =1-M100 -> 58.33% | O100: =E207+F207+G207+H207+I207+K207 -> 58.33% | P100: =1-O100 -> 41.67%
B101: Valor 2 | C101: =(C100*(C102-1))-(1-C100) -> -55.83% | D101: =(D100*(D102-1))-(1-D100) -> 23.33% | E101: =(E100*(E102-1))-(1-E100) -> -12.50% | F101: =(F100*(F102-1))-(1-F100) -> -100.00% | G101: =(G100*(G102-1))-(1-G100) -> -100.00% | H101: =(H100*(H102-1))-(1-H100) -> -100.00% | J101: Valor 2 | K101: =(K100*(K102-1))-(1-K100) -> -100.00% | L101: -100.00% | M101: -27.08% | N101: -100.00% | O101: -100.00% | P101: =(P100*(P102-1))-(1-P100) -> -100.00%
B102: Cuota de la casa de apuestas | C102: 2.65 | D102: 1.48 | E102: 1.75 | J102: Cuota de la casa de apuestas | M102: 1.75
B107: Segundo tiempo | J107: Segundo tiempo (General)
B108: Over/Under | C108: Under 0,5 | D108: over 0,5 | E108: Under 1,5 | F108: over 1,5 | G108: Under 2,5 | H108: over 2,5 | J108: Over/Under | K108: Under 0,5 | L108: over 0,5 | M108: Under 1,5 | N108: over 1,5 | O108: Under 2,5 | P108: over 2,5
B109: Cuota real Poisson | C109: =1/C110 -> 1.00 | E109: 1.00 | G109: 1.00 | J109: Cuota real Poisson | K109: =1/K110 -> 1.96 | L109: 2.04 | M109: 1.17 | N109: 6.79 | O109: 1.03 | P109: 32.06
B110: % acierto poisson | C110: =Mercados!E218 -> 100.00% | D110: =1-C110 -> 0.00% | E110: =SUM(E218:G218) -> 100.00% | F110: =1-E110 -> 0.00% | G110: =E218+F218+G218+H218+I218+K218 -> 100.00% | H110: =1-G110 -> 0.00% | J110: % acierto poisson | K110: =E231 -> 50.91% | L110: =1-K110 -> 49.09% | M110: =E231+F231+G231 -> 85.28% | N110: =1-M110 -> 14.72% | O110: =Mercados!E231+Mercados!F231+Mercados!G231+Mercados!H231+Mercados!I231+Mercados!K231 -> 96.88% | P110: =1-O110 -> 3.12%
B111: Valor Poisson | C111: =(C110*(C118-1))-(1-C110) -> -100.00% | D111: -100.00% | E111: -100.00% | F111: -100.00% | G111: -100.00% | H111: -100.00% | J111: Valor Poisson | K111: =(K110*(K118-1))-(1-K110) -> -100.00% | L111: -100.00% | M111: -100.00% | N111: -100.00% | O111: -100.00% | P111: -100.00%
B112: Cuota real | C112: =1/C113 -> 3.00 | D112: 1.50 | E112: =1/E113 -> 1.38 | F112: 3.60 | G112: 1.06 | H112: 18.00 | J112: Cuota real | K112: =1/K113 -> 3.60 | L112: 1.38 | M112: 1.30 | N112: 4.36 | O112: 1.05 | P112: 20.57
B113: % acierto | C113: =Mercados!E221 -> 33.33% | D113: =1-C113 -> 66.67% | E113: =SUM(E221:G221) -> 72.22% | F113: =1-E113 -> 27.78% | G113: =E221+F221+G221+H221+I221+K221 -> 94.44% | H113: =1-G113 -> 5.56% | J113: % acierto | K113: =E234 -> 27.78% | L113: =1-K113 -> 72.22% | M113: =E234+F234+G234 -> 77.08% | N113: =1-M113 -> 22.92% | O113: =Mercados!E234+Mercados!F234+Mercados!G234+Mercados!H234+Mercados!I234+Mercados!K234 -> 95.14% | P113: =1-O113 -> 4.86%
B114: Valor | C114: =(C113*(C118-1))-(1-C113) -> -100.00% | D114: =(D113*(D118-1))-(1-D113) -> -100.00% | E114: =(E113*(E118-1))-(1-E113) -> -100.00% | F114: =(F113*(F118-1))-(1-F113) -> -100.00% | G114: =(G113*(G118-1))-(1-G113) -> -100.00% | H114: =(H113*(H118-1))-(1-H113) -> -100.00% | J114: Valor | K114: =(K113*(K118-1))-(1-K113) -> -100.00% | L114: =(L113*(L118-1))-(1-L113) -> -100.00% | M114: =(M113*(M118-1))-(1-M113) -> -100.00% | N114: =(N113*(N118-1))-(1-N113) -> -100.00% | O114: =(O113*(O118-1))-(1-O113) -> -100.00% | P114: =(P113*(P118-1))-(1-P113) -> -100.00%
B115: Cuota real 2 | C115: =1/C116 -> 6.00 | D115: 1.20 | E115: 1.20 | F115: 6.00 | G115: 1.00 | J115: Cuota real 2 | K115: =1/K116 -> 12.00 | L115: 1.09 | M115: 1.09 | N115: 12.00 | O115: 1.00
B116: % acierto 2 | C116: =Mercados!E224 -> 16.67% | D116: =1-C116 -> 83.33% | E116: =SUM(E224:G224) -> 83.33% | F116: =1-E116 -> 16.67% | G116: =E224+F224+G224+H224+I224+K224 -> 100.00% | H116: =1-G116 -> 0.00% | J116: % acierto 2 | K116: =E237 -> 8.33% | L116: =1-K116 -> 91.67% | M116: =E237+F237+G237 -> 91.67% | N116: =1-M116 -> 8.33% | O116: =Mercados!E237+Mercados!F237+Mercados!G237+Mercados!H237+Mercados!I237+Mercados!K237 -> 100.00% | P116: =1-O116 -> 0.00%
B117: Valor 2 | C117: =(C116*(C118-1))-(1-C116) -> -100.00% | D117: -100.00% | E117: -100.00% | F117: -100.00% | G117: -100.00% | H117: =(H116*(H118-1))-(1-H116) -> -100.00% | J117: Valor 2 | K117: =(K116*(K118-1))-(1-K116) -> -100.00% | L117: =(L116*(L118-1))-(1-L116) -> -100.00% | M117: =(M116*(M118-1))-(1-M116) -> -100.00% | N117: =(N116*(N118-1))-(1-N116) -> -100.00% | O117: =(O116*(O118-1))-(1-O116) -> -100.00% | P117: =(P116*(P118-1))-(1-P116) -> -100.00%
B118: Cuota de la casa de apuestas | J118: Cuota de la casa de apuestas
G122: Ambos equipos anotan
B124: Tiempo completo | G124: Primer tiempo | L124: Segundo tiempo
B125: BTTS | C125: Si | D125: No | G125: BTTS | H125: Si | I125: No | L125: BTTS | M125: Si | N125: No
B126: Cuota real Poisson | C126: =1/C127 -> 1.94 | D126: 2.06 | G126: Cuota real Poisson | H126: =1/H127 ->  | I126: 1.00 | L126: Cuota real Poisson | M126: =1/M127 ->  | N126: 1.00
B127: % acierto poisson | C127: =SUM('Estadisticas de Equipos'!D175:D178)*SUM('Estadisticas de Equipos'!F175:F178) -> 51.47% | D127: =1-C127 -> 48.53% | G127: % acierto poisson | H127: =SUM('Estadisticas de Equipos'!I175:I177*SUM('Estadisticas de Equipos'!K175:K177)) -> 0.00% | I127: =1-H127 -> 100.00% | L127: % acierto poisson | M127: =SUM('Estadisticas de Equipos'!N175:N177)*SUM('Estadisticas de Equipos'!P175:P177) -> 0.00% | N127: =1-M127 -> 100.00%
B128: Valor Poisson | C128: =(C127*(C135-1))-(1-C127) -> -19.19% | D128: -7.79% | G128: Valor Poisson | H128: =(H127*(H135-1))-(1-H127) -> -100.00% | I128: -100.00% | L128: Valor Poisson | M128: =(M127*(M135-1))-(1-M127) -> -100.00% | N128: -100.00%
B129: Cuota real | C129: =1/C130 -> 1.20 | D129: 6.00 | G129: Cuota real | H129: =1/H130 -> 2.40 | I129: 1.71 | L129: Cuota real | M129: =1/M130 -> 6.00 | N129: 1.20
B130: % acierto | C130: =SUM('Estadisticas de Equipos'!I104:I107)*SUM('Estadisticas de Equipos'!K104:K107) -> 83.33% | D130: =1-C130 -> 16.67% | G130: % acierto | H130: =SUM('Estadisticas de Equipos'!I124:I126)*SUM('Estadisticas de Equipos'!K124:K126) -> 41.67% | I130: =1-H130 -> 58.33% | L130: % acierto | M130: =SUM('Estadisticas de Equipos'!I142:I144)*SUM('Estadisticas de Equipos'!K142:K144) -> 16.67% | N130: =1-M130 -> 83.33%
B131: Valor | C131: =(C130*(C135-1))-(1-C130) -> 30.83% | D131: -68.33% | G131: Valor | H131: =(H130*(H135-1))-(1-H130) -> -100.00% | I131: -100.00% | L131: Valor | M131: =(M130*(M135-1))-(1-M130) -> -100.00% | N131: -100.00%
B132: Cuota real 2 | C132: =1/C133 -> 1.20 | D132: 6.00 | G132: Cuota real 2 | H132: =1/H133 -> 2.00 | I132: 2.00 | L132: Cuota real 2 | M132: =1/M133 ->  | N132: 1.00
B133: % acierto 2 | C133: =('Estadisticas de Equipos'!C191+'Estadisticas de Equipos'!L191)/('Estadisticas de Equipos'!E9+'Estadisticas de Equipos'!N9) -> 83.33% | D133: =1-C133 -> 16.67% | G133: % acierto 2 | H133: =('Estadisticas de Equipos'!E191+'Estadisticas de Equipos'!N191)/('Estadisticas de Equipos'!E9+'Estadisticas de Equipos'!N9) -> 50.00% | I133: =1-H133 -> 50.00% | L133: % acierto 2 | M133: =('Estadisticas de Equipos'!G191+'Estadisticas de Equipos'!P191)/('Estadisticas de Equipos'!E9+'Estadisticas de Equipos'!N9) -> 0.00% | N133: =1-M133 -> 100.00%
B134: Valor 2 | C134: =(C133*(C135-1))-(1-C133) -> 30.83% | D134: -68.33% | G134: Valor 2 | H134: =(H133*(H135-1))-(1-H133) -> -100.00% | I134: -100.00% | L134: Valor 2 | M134: =(M133*(M135-1))-(1-M133) -> -100.00% | N134: -100.00%
B135: Cuota de la casa de apuestas | C135: 1.57 | D135: 1.9 | G135: Cuota de la casa de apuestas | L135: Cuota de la casa de apuestas
B139: Tiempo completo(General) | G139: Primer tiempo(General) | L139: Segundo tiempo General(General)
B140: BTTS | C140: Si | D140: No | G140: BTTS | H140: Si | I140: No | L140: BTTS | M140: Si | N140: No
B141: Cuota real Poisson | C141: =1/C142 -> 2.12 | D141: 1.89 | G141: Cuota real Poisson | H141: =1/H142 -> 3.06 | I141: 1.49 | L141: Cuota real Poisson | M141: =1/M142 -> 24.69 | N141: 1.04
B142: % acierto poisson | C142: =SUM('Estadisticas de Equipos'!D183:D186)*SUM('Estadisticas de Equipos'!F183:F186) -> 47.10% | D142: =1-C142 -> 52.90% | G142: % acierto poisson | H142: =SUM('Estadisticas de Equipos'!I184:I186)*SUM('Estadisticas de Equipos'!K184:K186) -> 32.67% | I142: =1-H142 -> 67.33% | L142: % acierto poisson | M142: =SUM('Estadisticas de Equipos'!N184:N186)*SUM('Estadisticas de Equipos'!P184:P186) -> 4.05% | N142: =1-M142 -> 95.95%
B143: Valor Poisson | C143: =(C142*(C150-1))-(1-C142) -> -29.35% | D143: 32.24% | G143: Valor Poisson | H143: =(H142*(H150-1))-(1-H142) -> -100.00% | I143: -100.00% | L143: Valor Poisson | M143: =(M142*(M150-1))-(1-M142) -> -83.80% | N143: -100.00%
B144: Cuota real | C144: =1/C145 -> 1.31 | D144: 4.24 | G144: Cuota real | H144: =1/H145 -> 2.18 | I144: 1.85 | L144: Cuota real | M144: =1/M145 -> 5.14 | N144: 1.24
B145: % acierto | C145: =SUM('Estadisticas de Equipos'!I114:I117)*SUM('Estadisticas de Equipos'!K114:K117) -> 76.39% | D145: =1-C145 -> 23.61% | G145: % acierto | H145: =SUM('Estadisticas de Equipos'!I133:I135)*SUM('Estadisticas de Equipos'!K133:K135) -> 45.83% | I145: =1-H145 -> 54.17% | L145: % acierto | M145: =SUM('Estadisticas de Equipos'!I151:I153)*SUM('Estadisticas de Equipos'!K151:K153) -> 19.44% | N145: =1-M145 -> 80.56%
B146: Valor | C146: =(C145*(C150-1))-(1-C145) -> 14.58% | D146: -40.97% | G146: Valor | H146: =(H145*(H150-1))-(1-H145) -> -100.00% | I146: -100.00% | L146: Valor | M146: =(M145*(M150-1))-(1-M145) -> -22.22% | N146: -100.00%
B147: Cuota real 2 | C147: =1/C148 -> 1.33 | D147: 4.00 | G147: Cuota real 2 | H147: =1/H148 -> 2.00 | I147: 2.00 | L147: Cuota real 2 | M147: =1/M148 ->  | N147: 1.00
B148: % acierto 2 | C148: =('Estadisticas de Equipos'!C235+'Estadisticas de Equipos'!L235)/('Estadisticas de Equipos'!E8+'Estadisticas de Equipos'!N8) -> 75.00% | D148: =1-C148 -> 25.00% | G148: % acierto 2 | H148: =('Estadisticas de Equipos'!E235+'Estadisticas de Equipos'!N235)/('Estadisticas de Equipos'!E8+'Estadisticas de Equipos'!N8) -> 50.00% | I148: =1-H148 -> 50.00% | L148: % acierto 2 | M148: =('Estadisticas de Equipos'!P235+'Estadisticas de Equipos'!G235)/('Estadisticas de Equipos'!E8+'Estadisticas de Equipos'!N9) -> 0.00% | N148: =1-M148 -> 100.00%
B149: Valor 2 | C149: =(C148*(C150-1))-(1-C148) -> 12.50% | D149: -37.50% | G149: Valor 2 | H149: =(H148*(H150-1))-(1-H148) -> -100.00% | I149: -100.00% | L149: Valor 2 | M149: =(M148*(M150-1))-(1-M148) -> -100.00% | N149: -100.00%
B150: Cuota de la casa de apuestas | C150: 1.5 | D150: 2.5 | G150: Cuota de la casa de apuestas | L150: Cuota de la casa de apuestas | M150: 4
G154: Marcador correcto
B157: Tiempo completo
C158: 0-0 | D158: 1-0 | E158: 0-1 | F158: 1-1 | G158: 2-0 | H158: 2-1 | I158: 0-2 | J158: 1-2 | K158: 2-2 | L158: 3-0 | M158: 0-3 | N158: 3-1 | O158: 1-3 | P158: 3-2 | Q158: 2-3 | R158: 3-3 | S158: Otro local | T158: otro empate | U158: otro Visitante
B159: Cuota real Poisson | C159: =1/C160 -> 12.54 | D159: =1/D160 -> 9.68 | E159: 10.16 | F159: 7.85 | G159: 14.96 | H159: 12.12 | I159: 16.47 | J159: 12.72 | K159: 19.64 | L159: 34.65 | M159: 40.04 | N159: 28.08 | O159: 30.92 | P159: 45.51 | Q159: 47.76 | R159: 110.64 | S159: 24.38 | T159: 638.16 | U159: 28.39
B160: % acierto poisson | C160: ='Estadisticas de Equipos'!D174*'Estadisticas de Equipos'!F174 -> 7.97% | D160: ='Estadisticas de Equipos'!D175*'Estadisticas de Equipos'!F174 -> 10.33% | E160: ='Estadisticas de Equipos'!D174*'Estadisticas de Equipos'!F175 -> 9.84% | F160: ='Estadisticas de Equipos'!D175*'Estadisticas de Equipos'!F175 -> 12.74% | G160: ='Estadisticas de Equipos'!D176*'Estadisticas de Equipos'!F174 -> 6.69% | H160: ='Estadisticas de Equipos'!D176*'Estadisticas de Equipos'!F175 -> 8.25% | I160: ='Estadisticas de Equipos'!D174*'Estadisticas de Equipos'!F176 -> 6.07% | J160: ='Estadisticas de Equipos'!D175*'Estadisticas de Equipos'!F176 -> 7.86% | K160: ='Estadisticas de Equipos'!D176*'Estadisticas de Equipos'!F176 -> 5.09% | L160: ='Estadisticas de Equipos'!D177*'Estadisticas de Equipos'!F174 -> 2.89% | M160: ='Estadisticas de Equipos'!D174*'Estadisticas de Equipos'!F177 -> 2.50% | N160: ='Estadisticas de Equipos'!D177*'Estadisticas de Equipos'!F175 -> 3.56% | O160: ='Estadisticas de Equipos'!D175*'Estadisticas de Equipos'!F177 -> 3.23% | P160: ='Estadisticas de Equipos'!D177*'Estadisticas de Equipos'!F176 -> 2.20% | Q160: ='Estadisticas de Equipos'!D176*'Estadisticas de Equipos'!F177 -> 2.09% | R160: ='Estadisticas de Equipos'!D177*'Estadisticas de Equipos'!F177 -> 0.90% | S160: ='Estadisticas de Equipos'!D178*SUM('Estadisticas de Equipos'!F174:F177) -> 4.10% | T160: ='Estadisticas de Equipos'!D178*'Estadisticas de Equipos'!F178 -> 0.16% | U160: ='Estadisticas de Equipos'!F178*SUM('Estadisticas de Equipos'!D174:D177) -> 3.52%
B161: Valor Poisson | C161: =(C160*($C$168-1))-(1-C160) -> -100.00% | D161: =(D160*(D168-1))-(1-D160) -> -100.00% | E161: -100.00% | F161: -100.00% | G161: -100.00% | H161: -75.25% | I161: -100.00% | J161: -100.00% | K161: -100.00% | L161: -100.00% | M161: -100.00% | N161: -100.00% | O161: -100.00% | P161: -100.00% | Q161: -100.00% | R161: -100.00% | S161: -100.00% | T161: -100.00% | U161: -100.00%
B162: Cuota real | C162: =1/C163 ->  | E162: 9.00 | F162: 4.50 | H162: 4.50 | I162: 18.00 | J162: 9.00 | K162: 9.00 | S162: 6.00
B163: % acierto | C163: ='Estadisticas de Equipos'!I103*'Estadisticas de Equipos'!K103 -> 0.00% | D163: ='Estadisticas de Equipos'!I104*'Estadisticas de Equipos'!K103 -> 0.00% | E163: ='Estadisticas de Equipos'!I103*'Estadisticas de Equipos'!K104 -> 11.11% | F163: ='Estadisticas de Equipos'!K104*'Estadisticas de Equipos'!I104 -> 22.22% | G163: ='Estadisticas de Equipos'!I105*'Estadisticas de Equipos'!K103 -> 0.00% | H163: ='Estadisticas de Equipos'!I105*'Estadisticas de Equipos'!K104 -> 22.22% | I163: ='Estadisticas de Equipos'!I103*'Estadisticas de Equipos'!K105 -> 5.56% | J163: ='Estadisticas de Equipos'!I104*'Estadisticas de Equipos'!K105 -> 11.11% | K163: ='Estadisticas de Equipos'!I105*'Estadisticas de Equipos'!K105 -> 11.11% | L163: ='Estadisticas de Equipos'!I106*'Estadisticas de Equipos'!K103 -> 0.00% | M163: ='Estadisticas de Equipos'!I103*'Estadisticas de Equipos'!K106 -> 0.00% | N163: ='Estadisticas de Equipos'!I106*'Estadisticas de Equipos'!K104 -> 0.00% | O163: ='Estadisticas de Equipos'!I104*'Estadisticas de Equipos'!K106 -> 0.00% | P163: ='Estadisticas de Equipos'!I106*'Estadisticas de Equipos'!K105 -> 0.00% | Q163: ='Estadisticas de Equipos'!I105*'Estadisticas de Equipos'!K106 -> 0.00% | R163: ='Estadisticas de Equipos'!K106*'Estadisticas de Equipos'!I106 -> 0.00% | S163: ='Estadisticas de Equipos'!I107*(SUM('Estadisticas de Equipos'!K103:K106)) -> 16.67% | T163: ='Estadisticas de Equipos'!I107*'Estadisticas de Equipos'!K107 -> 0.00% | U163: ='Estadisticas de Equipos'!K107*SUM('Estadisticas de Equipos'!I103:I106) -> 0.00%
B164: Valor | C164: =(C163*(C168-1))-(1-C163) -> -100.00% | D164: =(D163*(D168-1))-(1-D163) -> -100.00% | E164: -100.00% | F164: -100.00% | G164: -100.00% | H164: -33.33% | I164: -100.00% | J164: -100.00% | K164: -100.00% | L164: -100.00% | M164: -100.00% | N164: -100.00% | O164: -100.00% | P164: -100.00% | Q164: -100.00% | R164: -100.00% | S164: -100.00% | T164: -100.00% | U164: -100.00%
B165: Cuota real 2 | C165: =1/C166 ->  | D165: =1/D166 ->  | E165: =1/E166 ->  | H165: 6.00 | I165: 6.00 | K165: 6.00 | S165: 6.00
B166: % acierto 2 | C166: =('Estadisticas de Equipos'!L304+'Estadisticas de Equipos'!C304)/('Estadisticas de Equipos'!E9+'Estadisticas de Equipos'!N9) -> 0.00% | D166: =('Estadisticas de Equipos'!B299+'Estadisticas de Equipos'!K309)/('Estadisticas de Equipos'!E9+'Estadisticas de Equipos'!N9) -> 0.00% | E166: =('Estadisticas de Equipos'!K299+'Estadisticas de Equipos'!B309)/('Estadisticas de Equipos'!E9+'Estadisticas de Equipos'!N9) -> 0.00% | F166: =('Estadisticas de Equipos'!K299+'Estadisticas de Equipos'!B309)/('Estadisticas de Equipos'!E9+'Estadisticas de Equipos'!N9) -> 0.00% | G166: =('Estadisticas de Equipos'!C299+'Estadisticas de Equipos'!L309)/('Estadisticas de Equipos'!E9+'Estadisticas de Equipos'!N9) -> 0.00% | H166: =('Estadisticas de Equipos'!D299+'Estadisticas de Equipos'!M309)/('Estadisticas de Equipos'!E9+'Estadisticas de Equipos'!N9) -> 16.67% | I166: =('Estadisticas de Equipos'!C309+'Estadisticas de Equipos'!L299)/('Estadisticas de Equipos'!E9+'Estadisticas de Equipos'!N9) -> 16.67% | J166: =('Estadisticas de Equipos'!D309+'Estadisticas de Equipos'!M299)/('Estadisticas de Equipos'!E9+'Estadisticas de Equipos'!N9) -> 0.00% | K166: =('Estadisticas de Equipos'!E304+'Estadisticas de Equipos'!N304)/('Estadisticas de Equipos'!E9+'Estadisticas de Equipos'!N9) -> 16.67% | L166: =('Estadisticas de Equipos'!E299+'Estadisticas de Equipos'!N309)/('Estadisticas de Equipos'!E9+'Estadisticas de Equipos'!N9) -> 0.00% | M166: =('Estadisticas de Equipos'!E309+'Estadisticas de Equipos'!N299)/('Estadisticas de Equipos'!E9+'Estadisticas de Equipos'!N9) -> 0.00% | N166: =('Estadisticas de Equipos'!F299+'Estadisticas de Equipos'!O309)/('Estadisticas de Equipos'!E9+'Estadisticas de Equipos'!N9) -> 0.00% | O166: =('Estadisticas de Equipos'!F309+'Estadisticas de Equipos'!O299)/('Estadisticas de Equipos'!E9+'Estadisticas de Equipos'!N9) -> 0.00% | P166: =('Estadisticas de Equipos'!G299+'Estadisticas de Equipos'!P309)/('Estadisticas de Equipos'!E9+'Estadisticas de Equipos'!N9) -> 0.00% | Q166: =('Estadisticas de Equipos'!G309+'Estadisticas de Equipos'!P299)/('Estadisticas de Equipos'!E9+'Estadisticas de Equipos'!N9) -> 0.00% | R166: =('Estadisticas de Equipos'!F304+'Estadisticas de Equipos'!O304)/('Estadisticas de Equipos'!E9+'Estadisticas de Equipos'!N9) -> 0.00% | S166: =('Estadisticas de Equipos'!H299+'Estadisticas de Equipos'!Q309)/('Estadisticas de Equipos'!E9+'Estadisticas de Equipos'!N9) -> 16.67% | T166: =('Estadisticas de Equipos'!G304+'Estadisticas de Equipos'!P304)/('Estadisticas de Equipos'!E9+'Estadisticas de Equipos'!N9) -> 0.00% | U166: =('Estadisticas de Equipos'!H309+'Estadisticas de Equipos'!Q299)/('Estadisticas de Equipos'!E9+'Estadisticas de Equipos'!N9) -> 0.00%
B167: Valor 2 | C167: =(C166*(C168-1))-(1-C166) -> -100.00% | D167: =(D166*(D168-1))-(1-D166) -> -100.00% | E167: -100.00% | F167: -100.00% | G167: -100.00% | H167: -50.00% | I167: -100.00% | J167: -100.00% | K167: -100.00% | L167: -100.00% | M167: -100.00% | N167: -100.00% | O167: -100.00% | P167: -100.00% | Q167: -100.00% | R167: -100.00% | S167: -100.00% | T167: -100.00% | U167: -100.00%
B168: Cuota de la casa de apuestas | H168: 3
B170: Tiempo completo(General)
C171: 0-0 | D171: 1-0 | E171: 0-1 | F171: 1-1 | G171: 2-0 | H171: 2-1 | I171: 0-2 | J171: 1-2 | K171: 2-2 | L171: 3-0 | M171: 0-3 | N171: 3-1 | O171: 1-3 | P171: 3-2 | Q171: 2-3 | R171: 3-3 | S171: Otro local | T171: otro empate | U171: otro Visitante
B172: Cuota real Poisson | C172: =1/C173 -> 34.01 | D172: =1/D173 -> 12.01 | E172: 49.00 | F172: 17.30 | G172: 8.48 | H172: 12.21 | I172: 141.19 | J172: 49.85 | K172: 35.19 | L172: 8.98 | M172: 610.25 | N172: 12.94 | O172: 215.43 | P172: 37.27 | Q172: 152.11 | R172: 161.09 | S172: 3.19 | T172: 567.50 | U172: 261.37
B173: % acierto poisson | C173: ='Estadisticas de Equipos'!D182*'Estadisticas de Equipos'!F182 -> 2.94% | D173: ='Estadisticas de Equipos'!D183*'Estadisticas de Equipos'!F182 -> 8.33% | E173: ='Estadisticas de Equipos'!D182*'Estadisticas de Equipos'!F183 -> 2.04% | F173: ='Estadisticas de Equipos'!D183*'Estadisticas de Equipos'!F183 -> 5.78% | G173: ='Estadisticas de Equipos'!D184*'Estadisticas de Equipos'!F182 -> 11.80% | H173: ='Estadisticas de Equipos'!D184*'Estadisticas de Equipos'!F183 -> 8.19% | I173: ='Estadisticas de Equipos'!D182*'Estadisticas de Equipos'!F184 -> 0.71% | J173: ='Estadisticas de Equipos'!D183*'Estadisticas de Equipos'!F184 -> 2.01% | K173: ='Estadisticas de Equipos'!D184*'Estadisticas de Equipos'!F184 -> 2.84% | L173: ='Estadisticas de Equipos'!D185*'Estadisticas de Equipos'!F182 -> 11.14% | M173: ='Estadisticas de Equipos'!D182*'Estadisticas de Equipos'!F185 -> 0.16% | N173: ='Estadisticas de Equipos'!D185*'Estadisticas de Equipos'!F183 -> 7.73% | O173: ='Estadisticas de Equipos'!D183*'Estadisticas de Equipos'!F185 -> 0.46% | P173: ='Estadisticas de Equipos'!D185*'Estadisticas de Equipos'!F184 -> 2.68% | Q173: ='Estadisticas de Equipos'!D184*'Estadisticas de Equipos'!F185 -> 0.66% | R173: ='Estadisticas de Equipos'!D185*'Estadisticas de Equipos'!F185 -> 0.62% | S173: ='Estadisticas de Equipos'!D186*SUM('Estadisticas de Equipos'!F182:F185) -> 31.36% | T173: ='Estadisticas de Equipos'!D186*'Estadisticas de Equipos'!F186 -> 0.18% | U173: ='Estadisticas de Equipos'!F186*SUM('Estadisticas de Equipos'!D182:D185) -> 0.38%
B174: Valor Poisson | C174: =(C173*($C$168-1))-(1-C173) -> -100.00% | D174: =(D173*(D181-1))-(1-D173) -> -100.00% | E174: -100.00% | F174: -100.00% | G174: -100.00% | H174: -100.00% | I174: -100.00% | J174: -100.00% | K174: -100.00% | L174: -100.00% | M174: -100.00% | N174: -100.00% | O174: -100.00% | P174: -100.00% | Q174: -100.00% | R174: -100.00% | S174: -100.00% | T174: -100.00% | U174: -100.00%
B175: Cuota real | C175: =1/C176 -> 72.00 | D175: 24.00 | E175: 18.00 | F175: 6.00 | G175: 18.00 | H175: 4.50 | I175: 72.00 | J175: 24.00 | K175: 18.00 | L175: 24.00 | N175: 6.00 | P175: 24.00 | S175: 12.00
B176: % acierto | C176: ='Estadisticas de Equipos'!I113*'Estadisticas de Equipos'!K113 -> 1.39% | D176: ='Estadisticas de Equipos'!I114*'Estadisticas de Equipos'!K113 -> 4.17% | E176: ='Estadisticas de Equipos'!I113*'Estadisticas de Equipos'!K114 -> 5.56% | F176: ='Estadisticas de Equipos'!I114*'Estadisticas de Equipos'!K114 -> 16.67% | G176: ='Estadisticas de Equipos'!I115*'Estadisticas de Equipos'!K113 -> 5.56% | H176: ='Estadisticas de Equipos'!I115*'Estadisticas de Equipos'!K114 -> 22.22% | I176: ='Estadisticas de Equipos'!I113*'Estadisticas de Equipos'!K115 -> 1.39% | J176: ='Estadisticas de Equipos'!I114*'Estadisticas de Equipos'!K115 -> 4.17% | K176: ='Estadisticas de Equipos'!I115*'Estadisticas de Equipos'!K115 -> 5.56% | L176: ='Estadisticas de Equipos'!I116*'Estadisticas de Equipos'!K113 -> 4.17% | M176: ='Estadisticas de Equipos'!I113*'Estadisticas de Equipos'!K116 -> 0.00% | N176: ='Estadisticas de Equipos'!I116*'Estadisticas de Equipos'!K114 -> 16.67% | O176: ='Estadisticas de Equipos'!I114*'Estadisticas de Equipos'!K116 -> 0.00% | P176: ='Estadisticas de Equipos'!I116*'Estadisticas de Equipos'!K115 -> 4.17% | Q176: ='Estadisticas de Equipos'!I115*'Estadisticas de Equipos'!K116 -> 0.00% | R176: ='Estadisticas de Equipos'!I116*'Estadisticas de Equipos'!K116 -> 0.00% | S176: ='Estadisticas de Equipos'!I117*SUM('Estadisticas de Equipos'!K113:K116) -> 8.33% | T176: ='Estadisticas de Equipos'!I117*'Estadisticas de Equipos'!K117 -> 0.00% | U176: ='Estadisticas de Equipos'!K117*SUM('Estadisticas de Equipos'!I113:I116) -> 0.00%
B177: Valor | C177: =(C176*(C181-1))-(1-C176) -> -100.00% | D177: =(D176*(D181-1))-(1-D176) -> -100.00% | E177: -100.00% | F177: -100.00% | G177: -100.00% | H177: -100.00% | I177: -100.00% | J177: -100.00% | K177: -100.00% | L177: -100.00% | M177: -100.00% | N177: -100.00% | O177: -100.00% | P177: -100.00% | Q177: -100.00% | R177: -100.00% | S177: -100.00% | T177: -100.00% | U177: -100.00%
B178: Cuota real 2 | C178: =1/C179 ->  | D178: =1/D179 ->  | E178: =1/E179 ->  | F178: 4.00 | G178: 12.00 | H178: 6.00 | I178: 12.00 | K178: 12.00 | L178: 12.00 | N178: 6.00 | S178: 12.00
B179: % acierto 2 | C179: =('Estadisticas de Equipos'!C321+'Estadisticas de Equipos'!L321)/('Estadisticas de Equipos'!E8+'Estadisticas de Equipos'!N8) -> 0.00% | D179: =('Estadisticas de Equipos'!B316+'Estadisticas de Equipos'!K326)/('Estadisticas de Equipos'!E8+'Estadisticas de Equipos'!N9) -> 0.00% | E179: =('Estadisticas de Equipos'!B326+'Estadisticas de Equipos'!K316)/('Estadisticas de Equipos'!E8+'Estadisticas de Equipos'!N9) -> 0.00% | F179: =('Estadisticas de Equipos'!D321+'Estadisticas de Equipos'!M321)/('Estadisticas de Equipos'!E8+'Estadisticas de Equipos'!N8) -> 25.00% | G179: =('Estadisticas de Equipos'!C316+'Estadisticas de Equipos'!L326)/('Estadisticas de Equipos'!E8+'Estadisticas de Equipos'!N8) -> 8.33% | H179: =('Estadisticas de Equipos'!D316+'Estadisticas de Equipos'!M326)/('Estadisticas de Equipos'!E8+'Estadisticas de Equipos'!N8) -> 16.67% | I179: =('Estadisticas de Equipos'!C326+'Estadisticas de Equipos'!L316)/('Estadisticas de Equipos'!E8+'Estadisticas de Equipos'!N8) -> 8.33% | J179: =('Estadisticas de Equipos'!D326+'Estadisticas de Equipos'!M316)/('Estadisticas de Equipos'!E8+'Estadisticas de Equipos'!N8) -> 0.00% | K179: =('Estadisticas de Equipos'!E321+'Estadisticas de Equipos'!N321)/('Estadisticas de Equipos'!E8+'Estadisticas de Equipos'!N8) -> 8.33% | L179: =('Estadisticas de Equipos'!E316+'Estadisticas de Equipos'!N326)/('Estadisticas de Equipos'!E8+'Estadisticas de Equipos'!N8) -> 8.33% | M179: =('Estadisticas de Equipos'!E326+'Estadisticas de Equipos'!N316)/('Estadisticas de Equipos'!E8+'Estadisticas de Equipos'!N8) -> 0.00% | N179: =('Estadisticas de Equipos'!F316+'Estadisticas de Equipos'!O326)/('Estadisticas de Equipos'!E8+'Estadisticas de Equipos'!N8) -> 16.67% | O179: =('Estadisticas de Equipos'!F326+'Estadisticas de Equipos'!O316)/('Estadisticas de Equipos'!E8+'Estadisticas de Equipos'!N8) -> 0.00% | P179: =('Estadisticas de Equipos'!G316+'Estadisticas de Equipos'!P326)/('Estadisticas de Equipos'!E8+'Estadisticas de Equipos'!N8) -> 0.00% | Q179: =('Estadisticas de Equipos'!G326+'Estadisticas de Equipos'!P316)/('Estadisticas de Equipos'!E8+'Estadisticas de Equipos'!N8) -> 0.00% | R179: =('Estadisticas de Equipos'!F321+'Estadisticas de Equipos'!O321)/('Estadisticas de Equipos'!E8+'Estadisticas de Equipos'!N8) -> 0.00% | S179: =('Estadisticas de Equipos'!H316+'Estadisticas de Equipos'!Q326)/('Estadisticas de Equipos'!E8+'Estadisticas de Equipos'!N8) -> 8.33% | T179: =('Estadisticas de Equipos'!G321+'Estadisticas de Equipos'!P321)/('Estadisticas de Equipos'!E8+'Estadisticas de Equipos'!N8) -> 0.00% | U179: =('Estadisticas de Equipos'!H326+'Estadisticas de Equipos'!Q309)/('Estadisticas de Equipos'!E8+'Estadisticas de Equipos'!N8) -> 0.00%
B180: Valor 2 | C180: =(C179*(C181-1))-(1-C179) -> -100.00% | D180: =(D179*(D181-1))-(1-D179) -> -100.00% | E180: -100.00% | F180: -100.00% | G180: -100.00% | H180: -100.00% | I180: -100.00% | J180: -100.00% | K180: -100.00% | L180: -100.00% | M180: -100.00% | N180: -100.00% | O180: -100.00% | P180: -100.00% | Q180: -100.00% | R180: -100.00% | S180: -100.00% | T180: -100.00% | U180: -100.00%
B181: Cuota de la casa de apuestas
D185: Primer tiempo
E186: 0-0 | F186: 1-0 | G186: 0-1 | H186: 1-1 | I186: 2-0 | J186: 2-1 | K186: 0-2 | L186: 1-2 | M186: 2-2 | N186: Otro
D187: Cuota real Poisson | E187: =1/E188 -> 5.33 | F187: 3.19 | I187: 3.81 | N187: 4.24
D188: % acierto poisson | E188: ='Estadisticas de Equipos'!I174*'Estadisticas de Equipos'!K174 -> 18.75% | F188: ='Estadisticas de Equipos'!I175*'Estadisticas de Equipos'!K174 -> 31.39% | G188: ='Estadisticas de Equipos'!I174*'Estadisticas de Equipos'!K175 -> 0.00% | H188: ='Estadisticas de Equipos'!I175*'Estadisticas de Equipos'!K175 -> 0.00% | I188: ='Estadisticas de Equipos'!I176*'Estadisticas de Equipos'!K174 -> 26.27% | J188: ='Estadisticas de Equipos'!I176*'Estadisticas de Equipos'!K175 -> 0.00% | K188: ='Estadisticas de Equipos'!I174*'Estadisticas de Equipos'!K176 -> 0.00% | L188: ='Estadisticas de Equipos'!I175*'Estadisticas de Equipos'!K176 -> 0.00% | M188: ='Estadisticas de Equipos'!I176*'Estadisticas de Equipos'!K176 -> 0.00% | N188: ='Estadisticas de Equipos'!I177*SUM('Estadisticas de Equipos'!K174:K176)+'Estadisticas de Equipos'!K177*SUM('Estadisticas de Equipos'!I174:I176)+'Estadisticas de Equipos'!I177*'Estadisticas de Equipos'!K177 -> 23.59%
D189: Valor Poisson | E189: =(E188*(E196-1))-(1-E188) -> -100.00% | F189: -100.00% | G189: -100.00% | H189: -100.00% | I189: -100.00% | J189: -100.00% | K189: -100.00% | L189: -100.00% | M189: -100.00% | N189: -100.00%
D190: Cuota real | E190: =1/E191 -> 12.00 | F190: 4.00 | G190: 18.00 | H190: 6.00 | I190: 12.00 | J190: 18.00 | K190: 36.00 | L190: 12.00 | M190: 36.00 | N190: 6.00
D191: % acierto | E191: ='Estadisticas de Equipos'!I123*'Estadisticas de Equipos'!K123 -> 8.33% | F191: ='Estadisticas de Equipos'!I124*'Estadisticas de Equipos'!K123 -> 25.00% | G191: ='Estadisticas de Equipos'!I123*'Estadisticas de Equipos'!K124 -> 5.56% | H191: ='Estadisticas de Equipos'!I124*'Estadisticas de Equipos'!K124 -> 16.67% | I191: ='Estadisticas de Equipos'!I125*'Estadisticas de Equipos'!K123 -> 8.33% | J191: ='Estadisticas de Equipos'!I125*'Estadisticas de Equipos'!K124 -> 5.56% | K191: ='Estadisticas de Equipos'!I123*'Estadisticas de Equipos'!K125 -> 2.78% | L191: ='Estadisticas de Equipos'!I124*'Estadisticas de Equipos'!K125 -> 8.33% | M191: ='Estadisticas de Equipos'!I125*'Estadisticas de Equipos'!K125 -> 2.78% | N191: ='Estadisticas de Equipos'!I126*SUM('Estadisticas de Equipos'!K123:K125)+'Estadisticas de Equipos'!K126*SUM('Estadisticas de Equipos'!I123:I125)+'Estadisticas de Equipos'!I126*'Estadisticas de Equipos'!K126 -> 16.67%
D192: Valor | E192: =(E191*(E196-1))-(1-E191) -> -100.00% | F192: =(F191*(F196-1))-(1-F191) -> -100.00% | G192: -100.00% | H192: -100.00% | I192: -100.00% | J192: -100.00% | K192: -100.00% | L192: -100.00% | M192: -100.00% | N192: -100.00%
D193: Cuota real 2 | E193: =1/E194 -> 6.00 | G193: 3.00 | J193: 6.00 | L193: 6.00 | N193: 6.00
D194: % acierto 2 | E194: =('Estadisticas de Equipos'!C339+'Estadisticas de Equipos'!M339)/('Estadisticas de Equipos'!E9+'Estadisticas de Equipos'!E9) -> 16.67% | F194: =('Estadisticas de Equipos'!C334+'Estadisticas de Equipos'!M344)/('Estadisticas de Equipos'!E9+'Estadisticas de Equipos'!E9) -> 0.00% | G194: =('Estadisticas de Equipos'!C344+'Estadisticas de Equipos'!M334)/('Estadisticas de Equipos'!E9+'Estadisticas de Equipos'!N9) -> 33.33% | H194: =('Estadisticas de Equipos'!D339+'Estadisticas de Equipos'!N339)/('Estadisticas de Equipos'!E9+'Estadisticas de Equipos'!N9) -> 0.00% | I194: =('Estadisticas de Equipos'!D334+'Estadisticas de Equipos'!N344)/('Estadisticas de Equipos'!E9+'Estadisticas de Equipos'!N9) -> 0.00% | J194: =('Estadisticas de Equipos'!E334+'Estadisticas de Equipos'!O344)/('Estadisticas de Equipos'!E9+'Estadisticas de Equipos'!N9) -> 16.67% | K194: =('Estadisticas de Equipos'!D344+'Estadisticas de Equipos'!N334)/('Estadisticas de Equipos'!E9+'Estadisticas de Equipos'!N9) -> 0.00% | L194: =('Estadisticas de Equipos'!E344+'Estadisticas de Equipos'!O334)/('Estadisticas de Equipos'!E9+'Estadisticas de Equipos'!N9) -> 16.67% | M194: =('Estadisticas de Equipos'!E339+'Estadisticas de Equipos'!O339)/('Estadisticas de Equipos'!E9+'Estadisticas de Equipos'!N9) -> 0.00% | N194: =('Estadisticas de Equipos'!F334+'Estadisticas de Equipos'!F339+'Estadisticas de Equipos'!F344+'Estadisticas de Equipos'!P334+'Estadisticas de Equipos'!P339+'Estadisticas de Equipos'!P344)/('Estadisticas de Equipos'!E9+'Estadisticas de Equipos'!N9) -> 16.67%
D195: Valor 2 | E195: =(E194*(E196-1))-(1-E194) -> -100.00% | F195: =(F194*(F196-1))-(1-F194) -> -100.00% | G195: -100.00% | H195: -100.00% | I195: -100.00% | J195: -100.00% | K195: -100.00% | L195: -100.00% | M195: -100.00% | N195: -100.00%
D196: Cuota de la casa de apuestas
D198: Primer tiempo(General)
E199: 0-0 | F199: 1-0 | G199: 0-1 | H199: 1-1 | I199: 2-0 | J199: 2-1 | K199: 0-2 | L199: 1-2 | M199: 2-2 | N199: Otro
D200: Cuota real Poisson | E200: =1/E201 -> 17.88 | F200: 7.33 | G200: 40.37 | H200: 16.54 | I200: 6.00 | J200: 13.55 | K200: 182.29 | L200: 74.68 | M200: 61.19 | N200: 2.24
D201: % acierto poisson | E201: ='Estadisticas de Equipos'!I183*'Estadisticas de Equipos'!K183 -> 5.59% | F201: ='Estadisticas de Equipos'!I184*'Estadisticas de Equipos'!K183 -> 13.65% | G201: ='Estadisticas de Equipos'!I183*'Estadisticas de Equipos'!K184 -> 2.48% | H201: ='Estadisticas de Equipos'!I184*'Estadisticas de Equipos'!K184 -> 6.05% | I201: ='Estadisticas de Equipos'!I185*'Estadisticas de Equipos'!K183 -> 16.66% | J201: ='Estadisticas de Equipos'!I185*'Estadisticas de Equipos'!K184 -> 7.38% | K201: ='Estadisticas de Equipos'!I183*'Estadisticas de Equipos'!K185 -> 0.55% | L201: ='Estadisticas de Equipos'!I184*'Estadisticas de Equipos'!K185 -> 1.34% | M201: ='Estadisticas de Equipos'!I185*'Estadisticas de Equipos'!K185 -> 1.63% | N201: ='Estadisticas de Equipos'!I186*SUM('Estadisticas de Equipos'!K183:K185)+'Estadisticas de Equipos'!K186*SUM('Estadisticas de Equipos'!I183:I185)+'Estadisticas de Equipos'!I186*'Estadisticas de Equipos'!K186 -> 44.68%
D202: Valor Poisson | E202: =(E201*(E209-1))-(1-E201) -> -100.00% | F202: -100.00% | G202: -100.00% | H202: -100.00% | I202: -100.00% | J202: -100.00% | K202: -100.00% | L202: -100.00% | M202: -100.00% | N202: -100.00%
D203: Cuota real | E203: =1/E204 -> 24.00 | F203: 4.00 | G203: 28.80 | H203: 4.80 | I203: 6.00 | J203: 7.20 | K203: 144.00 | L203: 24.00 | M203: 36.00 | N203: 12.00
D204: % acierto | E204: ='Estadisticas de Equipos'!I132*'Estadisticas de Equipos'!K132 -> 4.17% | F204: ='Estadisticas de Equipos'!I133*'Estadisticas de Equipos'!K132 -> 25.00% | G204: ='Estadisticas de Equipos'!I132*'Estadisticas de Equipos'!K133 -> 3.47% | H204: ='Estadisticas de Equipos'!I133*'Estadisticas de Equipos'!K133 -> 20.83% | I204: ='Estadisticas de Equipos'!I134*'Estadisticas de Equipos'!K132 -> 16.67% | J204: ='Estadisticas de Equipos'!I134*'Estadisticas de Equipos'!K133 -> 13.89% | K204: ='Estadisticas de Equipos'!I132*'Estadisticas de Equipos'!K134 -> 0.69% | L204: ='Estadisticas de Equipos'!I133*'Estadisticas de Equipos'!K134 -> 4.17% | M204: ='Estadisticas de Equipos'!I134*'Estadisticas de Equipos'!K134 -> 2.78% | N204: ='Estadisticas de Equipos'!I135*SUM('Estadisticas de Equipos'!K132:K134)+'Estadisticas de Equipos'!K135*SUM('Estadisticas de Equipos'!I132:I134)+'Estadisticas de Equipos'!I135*'Estadisticas de Equipos'!K135 -> 8.33%
D205: Valor | E205: =(E204*(E209-1))-(1-E204) -> -100.00% | F205: =(F204*(F209-1))-(1-F204) -> -100.00% | G205: =(G204*(G209-1))-(1-G204) -> -100.00% | H205: =(H204*(H209-1))-(1-H204) -> -100.00% | I205: =(I204*(I209-1))-(1-I204) -> -100.00% | J205: =(J204*(J209-1))-(1-J204) -> -100.00% | K205: =(K204*(K209-1))-(1-K204) -> -100.00% | L205: =(L204*(L209-1))-(1-L204) -> -100.00% | M205: =(M204*(M209-1))-(1-M204) -> -100.00% | N205: =(N204*(N209-1))-(1-N204) -> -100.00%
D206: Cuota real 2 | E206: =1/E207 -> 12.00 | F206: 3.00 | H206: 12.00 | I206: 12.00 | J206: 4.00 | L206: 12.00 | N206: 12.00
D207: % acierto 2 | E207: =('Estadisticas de Equipos'!C356+'Estadisticas de Equipos'!M356)/('Estadisticas de Equipos'!E8+'Estadisticas de Equipos'!N8) -> 8.33% | F207: =('Estadisticas de Equipos'!C351+'Estadisticas de Equipos'!M361)/('Estadisticas de Equipos'!E8+'Estadisticas de Equipos'!N8) -> 33.33% | G207: =('Estadisticas de Equipos'!C361+'Estadisticas de Equipos'!M351)/('Estadisticas de Equipos'!E8+'Estadisticas de Equipos'!N8) -> 0.00% | H207: =('Estadisticas de Equipos'!D356+'Estadisticas de Equipos'!N356)/('Estadisticas de Equipos'!E8+'Estadisticas de Equipos'!N8) -> 8.33% | I207: =('Estadisticas de Equipos'!D351+'Estadisticas de Equipos'!N361)/('Estadisticas de Equipos'!E8+'Estadisticas de Equipos'!N8) -> 8.33% | J207: =('Estadisticas de Equipos'!E351+'Estadisticas de Equipos'!O361)/('Estadisticas de Equipos'!E8+'Estadisticas de Equipos'!N8) -> 25.00% | K207: =('Estadisticas de Equipos'!D361+'Estadisticas de Equipos'!N351)/('Estadisticas de Equipos'!E8+'Estadisticas de Equipos'!N8) -> 0.00% | L207: =('Estadisticas de Equipos'!E361+'Estadisticas de Equipos'!O351)/('Estadisticas de Equipos'!E8+'Estadisticas de Equipos'!N8) -> 8.33% | M207: =('Estadisticas de Equipos'!E356+'Estadisticas de Equipos'!O356)/('Estadisticas de Equipos'!E8+'Estadisticas de Equipos'!N8) -> 0.00% | N207: =('Estadisticas de Equipos'!F351+'Estadisticas de Equipos'!F356+'Estadisticas de Equipos'!F361+'Estadisticas de Equipos'!P351+'Estadisticas de Equipos'!P356+'Estadisticas de Equipos'!P361)/('Estadisticas de Equipos'!E8+'Estadisticas de Equipos'!N8) -> 8.33%
D208: Valor 2 | E208: =(E207*(E209-1))-(1-E207) -> -100.00% | F208: =(F207*(F209-1))-(1-F207) -> -100.00% | G208: =(G207*(G209-1))-(1-G207) -> -100.00% | H208: =(H207*(H209-1))-(1-H207) -> -100.00% | I208: =(I207*(I209-1))-(1-I207) -> -100.00% | J208: =(J207*(J209-1))-(1-J207) -> -100.00% | K208: =(K207*(K209-1))-(1-K207) -> -100.00% | L208: =(L207*(L209-1))-(1-L207) -> -100.00% | M208: =(M207*(M209-1))-(1-M207) -> -100.00% | N208: =(N207*(N209-1))-(1-N207) -> -100.00%
D209: Cuota de la casa de apuestas
D215: Segundo tiempo
E216: 0-0 | F216: 1-0 | G216: 0-1 | H216: 1-1 | I216: 2-0 | J216: 2-1 | K216: 0-2 | L216: 1-2 | M216: 2-2 | N216: Otro
D217: Cuota real Poisson | E217: =1/E218 -> 1.00
D218: % acierto poisson | E218: ='Estadisticas de Equipos'!N174*'Estadisticas de Equipos'!P174 -> 100.00% | F218: ='Estadisticas de Equipos'!N175*'Estadisticas de Equipos'!P174 -> 0.00% | G218: ='Estadisticas de Equipos'!N174*'Estadisticas de Equipos'!P175 -> 0.00% | H218: ='Estadisticas de Equipos'!N175*'Estadisticas de Equipos'!P175 -> 0.00% | I218: ='Estadisticas de Equipos'!N176*'Estadisticas de Equipos'!P174 -> 0.00% | J218: ='Estadisticas de Equipos'!N176*'Estadisticas de Equipos'!P175 -> 0.00% | K218: ='Estadisticas de Equipos'!N174*'Estadisticas de Equipos'!P176 -> 0.00% | L218: ='Estadisticas de Equipos'!N175*'Estadisticas de Equipos'!P176 -> 0.00% | M218: ='Estadisticas de Equipos'!P176*'Estadisticas de Equipos'!N176 -> 0.00% | N218: ='Estadisticas de Equipos'!N177*SUM('Estadisticas de Equipos'!P174:P176)+'Estadisticas de Equipos'!P177*SUM('Estadisticas de Equipos'!N174:N176)+'Estadisticas de Equipos'!N177*'Estadisticas de Equipos'!P177 -> 0.00%
D219: Valor Poisson | E219: =(E218*(E226-1))-(1-E218) -> -100.00% | F219: -100.00% | G219: -100.00% | H219: -100.00% | I219: -100.00% | J219: -100.00% | K219: -100.00% | L219: -100.00% | M219: -100.00% | N219: -100.00%
D220: Cuota real | E220: =1/E221 -> 3.00 | F220: 6.00 | G220: 4.50 | H220: 9.00 | K220: 9.00 | L220: 18.00
D221: % acierto | E221: ='Estadisticas de Equipos'!I141*'Estadisticas de Equipos'!K141 -> 33.33% | F221: ='Estadisticas de Equipos'!I142*'Estadisticas de Equipos'!K141 -> 16.67% | G221: ='Estadisticas de Equipos'!I141*'Estadisticas de Equipos'!K142 -> 22.22% | H221: ='Estadisticas de Equipos'!I142*'Estadisticas de Equipos'!K142 -> 11.11% | I221: ='Estadisticas de Equipos'!I143*'Estadisticas de Equipos'!K141 -> 0.00% | J221: ='Estadisticas de Equipos'!I143*'Estadisticas de Equipos'!K142 -> 0.00% | K221: ='Estadisticas de Equipos'!I141*'Estadisticas de Equipos'!K143 -> 11.11% | L221: ='Estadisticas de Equipos'!I142*'Estadisticas de Equipos'!K143 -> 5.56% | M221: ='Estadisticas de Equipos'!I143*'Estadisticas de Equipos'!K143 -> 0.00% | N221: ='Estadisticas de Equipos'!I144*SUM('Estadisticas de Equipos'!K141:K143)+'Estadisticas de Equipos'!K144*SUM('Estadisticas de Equipos'!I141:I143)+'Estadisticas de Equipos'!I144*'Estadisticas de Equipos'!K144 -> 0.00%
D222: Valor | E222: =(E221*(E226-1))-(1-E221) -> -100.00% | F222: =(F221*(F226-1))-(1-F221) -> -100.00% | G222: =(G221*(G226-1))-(1-G221) -> -100.00% | H222: =(H221*(H226-1))-(1-H221) -> -100.00% | I222: =(I221*(I226-1))-(1-I221) -> -100.00% | J222: =(J221*(J226-1))-(1-J221) -> -100.00% | K222: =(K221*(K226-1))-(1-K221) -> -100.00% | L222: =(L221*(L226-1))-(1-L221) -> -100.00% | M222: =(M221*(M226-1))-(1-M221) -> -100.00% | N222: =(N221*(N226-1))-(1-N221) -> -100.00%
D223: Cuota real 2 | E223: =1/E224 -> 6.00 | F223: 3.00 | G223: 3.00 | K223: 6.00
D224: % acierto 2 | E224: =('Estadisticas de Equipos'!C373+'Estadisticas de Equipos'!M373)/('Estadisticas de Equipos'!E9+'Estadisticas de Equipos'!N9) -> 16.67% | F224: =('Estadisticas de Equipos'!C368+'Estadisticas de Equipos'!M378)/('Estadisticas de Equipos'!E9+'Estadisticas de Equipos'!N9) -> 33.33% | G224: =('Estadisticas de Equipos'!C378+'Estadisticas de Equipos'!M368)/('Estadisticas de Equipos'!E9+'Estadisticas de Equipos'!N9) -> 33.33% | H224: =('Estadisticas de Equipos'!D373+'Estadisticas de Equipos'!N373)/('Estadisticas de Equipos'!E9+'Estadisticas de Equipos'!N9) -> 0.00% | I224: =('Estadisticas de Equipos'!D368+'Estadisticas de Equipos'!N378)/('Estadisticas de Equipos'!E9+'Estadisticas de Equipos'!N9) -> 0.00% | J224: =('Estadisticas de Equipos'!E368+'Estadisticas de Equipos'!O378)/('Estadisticas de Equipos'!E9+'Estadisticas de Equipos'!N9) -> 0.00% | K224: =('Estadisticas de Equipos'!D378+'Estadisticas de Equipos'!N368)/('Estadisticas de Equipos'!E9+'Estadisticas de Equipos'!N9) -> 16.67% | L224: =('Estadisticas de Equipos'!E378+'Estadisticas de Equipos'!O368)/('Estadisticas de Equipos'!E9+'Estadisticas de Equipos'!N9) -> 0.00% | M224: =('Estadisticas de Equipos'!E373+'Estadisticas de Equipos'!O373)/('Estadisticas de Equipos'!E9+'Estadisticas de Equipos'!N9) -> 0.00% | N224: =('Estadisticas de Equipos'!F368+'Estadisticas de Equipos'!F373+'Estadisticas de Equipos'!F378+'Estadisticas de Equipos'!P368+'Estadisticas de Equipos'!P373+'Estadisticas de Equipos'!P378)/('Estadisticas de Equipos'!E9+'Estadisticas de Equipos'!N9) -> 0.00%
D225: Valor 2 | E225: =(E224*(E226-1))-(1-E224) -> -100.00% | F225: =(F224*(F226-1))-(1-F224) -> -100.00% | G225: =(G224*(G226-1))-(1-G224) -> -100.00% | H225: =(H224*(H226-1))-(1-H224) -> -100.00% | I225: =(I224*(I226-1))-(1-I224) -> -100.00% | J225: =(J224*(J226-1))-(1-J224) -> -100.00% | K225: =(K224*(K226-1))-(1-K224) -> -100.00% | L225: =(L224*(L226-1))-(1-L224) -> -100.00% | M225: =(M224*(M226-1))-(1-M224) -> -100.00% | N225: =(N224*(N226-1))-(1-N224) -> -100.00%
D226: Cuota de la casa de apuestas
D228: Segundo tiempo(General)
E229: 0-0 | F229: 1-0 | G229: 0-1 | H229: 1-1 | I229: 2-0 | J229: 2-1 | K229: 0-2 | L229: 1-2 | M229: 2-2 | N229: Otro
D230: Cuota real Poisson | E230: =1/E231 -> 1.96 | F230: 3.40 | G230: 20.31 | H230: 35.10 | I230: 11.74 | J230: 121.38 | K230: 419.80 | L230: 725.75 | M230: 2509.39 | N230: 47.22
D231: % acierto poisson | E231: ='Estadisticas de Equipos'!N183*'Estadisticas de Equipos'!P183 -> 50.91% | F231: ='Estadisticas de Equipos'!N184*'Estadisticas de Equipos'!P183 -> 29.45% | G231: ='Estadisticas de Equipos'!N183*'Estadisticas de Equipos'!P184 -> 4.92% | H231: ='Estadisticas de Equipos'!N184*'Estadisticas de Equipos'!P184 -> 2.85% | I231: ='Estadisticas de Equipos'!N185*'Estadisticas de Equipos'!P183 -> 8.52% | J231: ='Estadisticas de Equipos'!N185*'Estadisticas de Equipos'!P184 -> 0.82% | K231: ='Estadisticas de Equipos'!N183*'Estadisticas de Equipos'!P185 -> 0.24% | L231: ='Estadisticas de Equipos'!N184*'Estadisticas de Equipos'!P185 -> 0.14% | M231: ='Estadisticas de Equipos'!N185*'Estadisticas de Equipos'!P185 -> 0.04% | N231: ='Estadisticas de Equipos'!N186*SUM('Estadisticas de Equipos'!P183:P185)+'Estadisticas de Equipos'!P186*SUM('Estadisticas de Equipos'!N183:N185)+'Estadisticas de Equipos'!N186*'Estadisticas de Equipos'!P186 -> 2.12%
D232: Valor Poisson | E232: =(E231*(E239-1))-(1-E231) -> -100.00% | F232: 17.78% | G232: -100.00% | H232: -100.00% | I232: -100.00% | J232: -100.00% | K232: -100.00% | L232: -100.00% | M232: -100.00% | N232: -100.00%
D233: Cuota real | E233: =1/E234 -> 3.60 | F233: 2.57 | G233: 9.60 | H233: 6.86 | K233: 28.80 | L233: 20.57
D234: % acierto | E234: ='Estadisticas de Equipos'!K150*'Estadisticas de Equipos'!I150 -> 27.78% | F234: ='Estadisticas de Equipos'!I151*'Estadisticas de Equipos'!K150 -> 38.89% | G234: ='Estadisticas de Equipos'!I150*'Estadisticas de Equipos'!K151 -> 10.42% | H234: ='Estadisticas de Equipos'!I151*'Estadisticas de Equipos'!K151 -> 14.58% | I234: ='Estadisticas de Equipos'!I152*'Estadisticas de Equipos'!K150 -> 0.00% | J234: ='Estadisticas de Equipos'!I152*'Estadisticas de Equipos'!K151 -> 0.00% | K234: ='Estadisticas de Equipos'!I150*'Estadisticas de Equipos'!K152 -> 3.47% | L234: ='Estadisticas de Equipos'!I151*'Estadisticas de Equipos'!K152 -> 4.86% | M234: ='Estadisticas de Equipos'!I152*'Estadisticas de Equipos'!K152 -> 0.00% | N234: ='Estadisticas de Equipos'!I153*SUM('Estadisticas de Equipos'!K150:K152)+'Estadisticas de Equipos'!K153*SUM('Estadisticas de Equipos'!I150:I152)+'Estadisticas de Equipos'!I153*'Estadisticas de Equipos'!K153 -> 0.00%
D235: Valor | E235: =(E234*(E239-1))-(1-E234) -> -100.00% | F235: =(F234*(F239-1))-(1-F234) -> 55.56% | G235: -100.00% | H235: -100.00% | I235: -100.00% | J235: -100.00% | K235: -100.00% | L235: -100.00% | M235: -100.00% | N235: -100.00%
D236: Cuota real 2 | E236: =1/E237 -> 12.00 | F236: 1.71 | G236: 4.00 | K236: 12.00
D237: % acierto 2 | E237: =('Estadisticas de Equipos'!C390+'Estadisticas de Equipos'!M390)/('Estadisticas de Equipos'!E8+'Estadisticas de Equipos'!N8) -> 8.33% | F237: =('Estadisticas de Equipos'!C385+'Estadisticas de Equipos'!M395)/('Estadisticas de Equipos'!E8+'Estadisticas de Equipos'!N8) -> 58.33% | G237: =('Estadisticas de Equipos'!C395+'Estadisticas de Equipos'!M385)/('Estadisticas de Equipos'!E8+'Estadisticas de Equipos'!N8) -> 25.00% | H237: =('Estadisticas de Equipos'!D390+'Estadisticas de Equipos'!N390)/('Estadisticas de Equipos'!E8+'Estadisticas de Equipos'!N8) -> 0.00% | I237: =('Estadisticas de Equipos'!D385+'Estadisticas de Equipos'!N395)/('Estadisticas de Equipos'!E8+'Estadisticas de Equipos'!N8) -> 0.00% | J237: =('Estadisticas de Equipos'!E385+'Estadisticas de Equipos'!O395)/('Estadisticas de Equipos'!E8+'Estadisticas de Equipos'!N8) -> 0.00% | K237: =('Estadisticas de Equipos'!D395+'Estadisticas de Equipos'!N385)/('Estadisticas de Equipos'!E8+'Estadisticas de Equipos'!N8) -> 8.33% | L237: =('Estadisticas de Equipos'!E395+'Estadisticas de Equipos'!O385)/('Estadisticas de Equipos'!E8+'Estadisticas de Equipos'!N8) -> 0.00% | M237: =('Estadisticas de Equipos'!E390+'Estadisticas de Equipos'!O390)/('Estadisticas de Equipos'!E8+'Estadisticas de Equipos'!N8) -> 0.00% | N237: =('Estadisticas de Equipos'!F385+'Estadisticas de Equipos'!F390+'Estadisticas de Equipos'!F395+'Estadisticas de Equipos'!P385+'Estadisticas de Equipos'!P390+'Estadisticas de Equipos'!P395)/('Estadisticas de Equipos'!E8+'Estadisticas de Equipos'!N8) -> 0.00%
D238: Valor 2 | E238: =(E237*(E239-1))-(1-E237) -> -100.00% | F238: =(F237*(F239-1))-(1-F237) -> 133.33% | G238: -100.00% | H238: -100.00% | I238: -100.00% | J238: -100.00% | K238: -100.00% | L238: -100.00% | M238: -100.00% | N238: -100.00%
D239: Cuota de la casa de apuestas | F239: 4
G242: Half Time/Full Time (HT/FT)
D245: HT/FT
E246: H-H | F246: D-H | G246: A-H | H246: D-D | I246: H-D | J246: A-D | K246: A-A | L246: D-A | M246: H-A
D247: Cuota real Poisson | E247: =1/E248 -> 3.24 | F247: 14.03 | H247: 19.85 | I247: 4.58 | L247: 15.18 | M247: 3.50
D248: % acierto poisson | E248: =E16*E30 -> 30.88% | F248: =F30*E16 -> 7.13% | G248: =E16*G30 -> 0.00% | H248: =F16*F30 -> 5.04% | I248: =F16*E30 -> 21.83% | J248: =G30*F16 -> 0.00% | K248: =G16*G30 -> 0.00% | L248: =F30*G16 -> 6.59% | M248: =E30*G16 -> 28.54%
D249: Valor Poisson | E249: =(E248*(E256-1))-(1-E248) -> -100.00% | F249: -100.00% | G249: -100.00% | H249: -100.00% | I249: -100.00% | J249: -100.00% | K249: -100.00% | L249: -100.00% | M249: -100.00%
D250: Cuota real | E250: =1/E251 -> 4.63 | F250: 9.26 | G250: 15.43 | H250: 8.10 | I250: 5.40 | J250: 18.00 | K250: 21.60 | L250: 12.96 | M250: 6.48
D251: % acierto | E251: =E19*E33 -> 21.60% | F251: =E19*F33 -> 10.80% | G251: =E19*G33 -> 6.48% | H251: =F33*F47 -> 12.35% | I251: =E33*F19 -> 18.52% | J251: =G33*F19 -> 5.56% | K251: =G19*G33 -> 4.63% | L251: =F33*G19 -> 7.72% | M251: =E33*G19 -> 15.43%
D252: Valor | E252: =(E251*(E256-1))-(1-E251) -> -100.00% | F252: =(F251*(F256-1))-(1-F251) -> -100.00% | G252: =(G251*(G256-1))-(1-G251) -> -100.00% | H252: =(H251*(H256-1))-(1-H251) -> -100.00% | I252: =(I251*(I256-1))-(1-I251) -> -100.00% | J252: =(J251*(J256-1))-(1-J251) -> -100.00% | K252: =(K251*(K256-1))-(1-K251) -> -100.00% | L252: =(L251*(L256-1))-(1-L251) -> -100.00% | M252: =(M251*(M256-1))-(1-M251) -> -100.00%
D253: Cuota real 2 | E253: =1/E254 -> 3.00 | I253: 3.00 | J253: 6.00 | L253: 6.00
D254: % acierto 2 | E254: =('Estadisticas de Equipos'!C283+'Estadisticas de Equipos'!L283)/('Estadisticas de Equipos'!E9+'Estadisticas de Equipos'!N9) -> 33.33% | F254: =('Estadisticas de Equipos'!C284+'Estadisticas de Equipos'!L284)/('Estadisticas de Equipos'!E9+'Estadisticas de Equipos'!N9) -> 0.00% | G254: =('Estadisticas de Equipos'!C285+'Estadisticas de Equipos'!L285)/('Estadisticas de Equipos'!E9+'Estadisticas de Equipos'!N9) -> 0.00% | H254: =('Estadisticas de Equipos'!C287+'Estadisticas de Equipos'!L287)/('Estadisticas de Equipos'!E9+'Estadisticas de Equipos'!N9) -> 0.00% | I254: =('Estadisticas de Equipos'!C286+'Estadisticas de Equipos'!L286)/('Estadisticas de Equipos'!E9+'Estadisticas de Equipos'!N9) -> 33.33% | J254: =('Estadisticas de Equipos'!C288+'Estadisticas de Equipos'!L288)/('Estadisticas de Equipos'!E9+'Estadisticas de Equipos'!N9) -> 16.67% | K254: =('Estadisticas de Equipos'!C291+'Estadisticas de Equipos'!L291)/('Estadisticas de Equipos'!E9+'Estadisticas de Equipos'!N9) -> 0.00% | L254: =('Estadisticas de Equipos'!C290+'Estadisticas de Equipos'!L290)/('Estadisticas de Equipos'!E9+'Estadisticas de Equipos'!N9) -> 16.67% | M254: =('Estadisticas de Equipos'!L289+'Estadisticas de Equipos'!C289)/('Estadisticas de Equipos'!E9+'Estadisticas de Equipos'!N9) -> 0.00%
D255: Valor 2 | E255: =(E254*(E256-1))-(1-E254) -> -100.00% | F255: =(F254*(F256-1))-(1-F254) -> -100.00% | G255: =(G254*(G256-1))-(1-G254) -> -100.00% | H255: =(H254*(H256-1))-(1-H254) -> -100.00% | I255: =(I254*(I256-1))-(1-I254) -> -100.00% | J255: =(J254*(J256-1))-(1-J254) -> -100.00% | K255: =(K254*(K256-1))-(1-K254) -> -100.00% | L255: =(L254*(L256-1))-(1-L254) -> -100.00% | M255: =(M254*(M256-1))-(1-M254) -> -100.00%
D256: Cuota de la casa de apuestas
D259: HT/FT(General)
... 48 more rows

Sheet Handicap Asiatico
B5: Handicap Asiatico negativo local | N5: Handicap Asiatico positivo local
C6: -2.5 | D6: -2.25 | E6: -2 | F6: -1.75 | G6: -1.5 | H6: -1.25 | I6: -1 | J6: -0.75 | K6: -0.5 | L6: -0.25 | O6: 0 | P6: 0.25 | Q6: 0.5 | R6: 0.75 | S6: 1 | T6: 1.25 | U6: 1.5 | V6: 1.75 | W6: 2 | X6: 2.25 | Y6: 2.5
B7: Cuota real Poisson | C7: =1/C8 -> 14.310 | D7: 13.537 | E7: 12.843 | F7: 7.993 | G7: 5.802 | H7: 5.129 | I7: 4.597 | J7: 3.346 | K7: 2.631 | L7: 2.223 | N7: Cuota real Poisson | O7: =1/O8 -> 1.924 | P7: =1/P8 -> 1.712 | Q7: =1/Q8 -> 1.541 | R7: =1/R8 -> 1.541 | S7: =1/S8 -> 1.540 | T7: =1/T8 -> 1.337 | U7: =1/U8 -> 1.181 | V7: =1/V8 -> 1.123 | W7: =1/W8 -> 1.071 | X7: =1/X8 -> 1.068 | Y7: =1/Y8 -> 1.064
B8: % acierto poisson | C8: =Mercados!L160+Mercados!S160 -> 6.99% | D8: =(C8+E8)/2 -> 7.39% | E8: =(Mercados!L160+Mercados!S160)/(1-(Mercados!G160+Mercados!N160)) -> 7.79% | F8: =(E8+G8)/2 -> 12.51% | G8: =Mercados!G160+Mercados!L160+Mercados!N160+Mercados!S160 -> 17.24% | H8: =(I8+G8)/2 -> 19.50% | I8: =(Mercados!G160+Mercados!L160+Mercados!N160+Mercados!S160)/(1-(Mercados!D160+Mercados!H160+Mercados!P160)) -> 21.75% | J8: =(I8+K8)/2 -> 29.88% | K8: =Mercados!D160+Mercados!G160+Mercados!H160+Mercados!L160+Mercados!N160+Mercados!P160+Mercados!S160 -> 38.01% | L8: =(K8+O8)/2 -> 44.99% | N8: % acierto poisson | O8: =(Mercados!D160+Mercados!G160+Mercados!H160+Mercados!L160+Mercados!N160+Mercados!P160+Mercados!S160)/(1-(Mercados!C160+Mercados!F160+Mercados!K160+Mercados!R160+Mercados!T160)) -> 51.97% | P8: =(O8+Q8)/2 -> 58.43% | Q8: =Mercados!C160+Mercados!D160+Mercados!F160+Mercados!G160+Mercados!H160+Mercados!K160+Mercados!L160+Mercados!N160+Mercados!P160+Mercados!R160+Mercados!S160+Mercados!T160 -> 64.88% | R8: =(Q8+S8)/2 -> 64.90% | S8: =(Mercados!C160+Mercados!D160+Mercados!E160+Mercados!F160+Mercados!G160+Mercados!H160+Mercados!J160+Mercados!K160+Mercados!N160+Mercados!L160+Mercados!P160+Mercados!Q160+Mercados!R160+Mercados!S160+Mercados!T160)*(1-(Mercados!E160+Mercados!J160+Mercados!Q160+Mercados!U160)) -> 64.93% | T8: =(U8+S8)/2 -> 74.80% | U8: =Mercados!C160+Mercados!D160+Mercados!E160+Mercados!F160+Mercados!G160+Mercados!H160+Mercados!J160+Mercados!K160+Mercados!N160+Mercados!L160+Mercados!P160+Mercados!Q160+Mercados!R160+Mercados!S160+Mercados!T160 -> 84.67% | V8: =(U8+W8)/2 -> 89.02% | W8: =(Mercados!C160+Mercados!D160+Mercados!E160+Mercados!F160+Mercados!G160+Mercados!H160+Mercados!J160+Mercados!K160+Mercados!L160+Mercados!N160+Mercados!P160+Mercados!Q160+Mercados!R160+Mercados!S160+Mercados!T160)/(1-(Mercados!I160+Mercados!O160)) -> 93.36% | X8: =(W8+Y8)/2 -> 93.67% | Y8: =Mercados!C160+Mercados!D160+Mercados!E160+Mercados!F160+Mercados!G160+Mercados!H160+Mercados!I160+Mercados!J160+Mercados!K160+Mercados!L160+Mercados!N160+Mercados!O160+Mercados!P160+Mercados!Q160+Mercados!R160+Mercados!S160+Mercados!T160 -> 93.98%
B9: Valor Poisson | C9: =(C8*(C16-1))-(1-C8) -> -100.00% | D9: -100.00% | E9: -100.00% | F9: -100.00% | G9: -50.02% | H9: -71.54% | I9: -60.84% | J9: -40.24% | K9: 660.19% | L9: =(L8*(L16-1))-(1-L8) -> 349.92% | N9: Valor Poisson | O9: =(O8*(O16-1))-(1-O8) -> -100.00% | P9: -100.00% | Q9: -100.00% | R9: -100.00% | S9: 88.29% | T9: 9.21% | U9: 52.41% | V9: 78.04% | W9: 25.11% | X9: 25.52% | Y9: =(Y8*(Y16-1))-(1-Y8) -> 25.93%
B10: Cuota real | C10: =1/C11 -> 6.000 | D10: 6.000 | E10: 6.000 | F10: 6.000 | G10: 6.000 | H10: 5.250 | I10: 4.667 | J10: 3.316 | K10: 2.571 | L10: 2.057 | N10: Cuota real | O10: =1/O11 -> 1.714 | P10: 1.532 | Q10: 1.385 | R10: 1.373 | S10: 1.361 | T10: 1.191 | U10: 1.059 | V10: 1.029 | W10: 1.000 | X10: 1.000 | Y10: 1.000
B11: % acierto | C11: =Mercados!L163+Mercados!S163 -> 16.67% | D11: =(C11+E11)/2 -> 16.67% | E11: =(Mercados!L163+Mercados!S163)/(1-(Mercados!G163+Mercados!N163)) -> 16.67% | F11: =(E11+G11)/2 -> 16.67% | G11: =Mercados!G163+Mercados!L163+Mercados!N163+Mercados!S163 -> 16.67% | H11: =(I11+G11)/2 -> 19.05% | I11: =(Mercados!G163+Mercados!L163+Mercados!N163+Mercados!S163)/(1-(Mercados!D163+Mercados!H163+Mercados!P163)) -> 21.43% | J11: =(I11+K11)/2 -> 30.16% | K11: =Mercados!D163+Mercados!G163+Mercados!H163+Mercados!L163+Mercados!N163+Mercados!P163+Mercados!S163 -> 38.89% | L11: =(K11+O11)/2 -> 48.61% | N11: % acierto | O11: =(Mercados!D163+Mercados!G163+Mercados!H163+Mercados!L163+Mercados!N163+Mercados!P163+Mercados!S163)/(1-(Mercados!C163+Mercados!F163+Mercados!K163+Mercados!R163+Mercados!T163)) -> 58.33% | P11: =(O11+Q11)/2 -> 65.28% | Q11: =Mercados!C163+Mercados!D163+Mercados!F163+Mercados!G163+Mercados!H163+Mercados!K163+Mercados!L163+Mercados!N163+Mercados!P163+Mercados!R163+Mercados!S163+Mercados!T163 -> 72.22% | R11: =(Q11+S11)/2 -> 72.84% | S11: =(Mercados!C163+Mercados!D163+Mercados!E163+Mercados!F163+Mercados!G163+Mercados!H163+Mercados!J163+Mercados!K163+Mercados!N163+Mercados!L163+Mercados!P163+Mercados!Q163+Mercados!R163+Mercados!S163+Mercados!T163)*(1-(Mercados!E163+Mercados!J163+Mercados!Q163+Mercados!U163)) -> 73.46% | T11: =(U11+S11)/2 -> 83.95% | U11: =Mercados!C163+Mercados!D163+Mercados!E163+Mercados!F163+Mercados!G163+Mercados!H163+Mercados!J163+Mercados!K163+Mercados!N163+Mercados!L163+Mercados!P163+Mercados!Q163+Mercados!R163+Mercados!S163+Mercados!T163 -> 94.44% | V11: =(U11+W11)/2 -> 97.22% | W11: =(Mercados!C163+Mercados!D163+Mercados!E163+Mercados!F163+Mercados!G163+Mercados!H163+Mercados!J163+Mercados!K163+Mercados!L163+Mercados!N163+Mercados!P163+Mercados!Q163+Mercados!R163+Mercados!S163+Mercados!T163)/(1-(Mercados!I163+Mercados!O163)) -> 100.00% | X11: =(W11+Y11)/2 -> 100.00% | Y11: =Mercados!C163+Mercados!D163+Mercados!E163+Mercados!F163+Mercados!G163+Mercados!H163+Mercados!I163+Mercados!J163+Mercados!K163+Mercados!L163+Mercados!N163+Mercados!O163+Mercados!P163+Mercados!Q163+Mercados!R163+Mercados!S163+Mercados!T163 -> 100.00%
B12: Valor | C12: =(C11*(C16-1))-(1-C11) -> -100.00% | D12: -100.00% | E12: -100.00% | F12: -100.00% | G12: -51.67% | H12: -72.19% | I12: -61.43% | J12: -39.68% | K12: 677.78% | L12: =(L11*(L16-1))-(1-L11) -> 386.11% | N12: Valor | O12: =(O11*(O16-1))-(1-O11) -> -100.00% | P12: -100.00% | Q12: -100.00% | R12: -100.00% | S12: 113.02% | T12: 22.57% | U12: 70.00% | V12: 94.44% | W12: 34.00% | X12: 34.00% | Y12: =(Y11*(Y16-1))-(1-Y11) -> 34.00%
B13: Cuota real 2 | C13: =1/C14 -> 6.000 | D13: 6.000 | E13: 6.000 | F13: 6.000 | G13: 6.000 | H13: 5.455 | I13: 5.000 | J13: 3.750 | K13: 3.000 | L13: 2.727 | N13: Cuota real 2 | O13: =1/O14 -> 2.500 | P13: 2.222 | Q13: 2.000 | R13: 2.000 | S13: 2.000 | T13: 2.000 | U13: 2.000 | V13: 1.818 | W13: 1.667 | X13: 1.579 | Y13: 1.500
B14: % acierto 2 | C14: =Mercados!L166+Mercados!S166 -> 16.67% | D14: =(C14+E14)/2 -> 16.67% | E14: =(Mercados!L166+Mercados!S166)/(1-(Mercados!G166+Mercados!N166)) -> 16.67% | F14: =(E14+G14)/2 -> 16.67% | G14: =Mercados!G166+Mercados!L166+Mercados!N166+Mercados!S166 -> 16.67% | H14: =(I14+G14)/2 -> 18.33% | I14: =(Mercados!G166+Mercados!L166+Mercados!N166+Mercados!S166)/(1-(Mercados!D166+Mercados!H166+Mercados!P166)) -> 20.00% | J14: =(I14+K14)/2 -> 26.67% | K14: =Mercados!D166+Mercados!G166+Mercados!H166+Mercados!L166+Mercados!N166+Mercados!P166+Mercados!S166 -> 33.33% | L14: =(K14+O14)/2 -> 36.67% | N14: % acierto 2 | O14: =(Mercados!D166+Mercados!G166+Mercados!H166+Mercados!L166+Mercados!N166+Mercados!P166+Mercados!S166)/(1-(Mercados!C166+Mercados!F166+Mercados!K166+Mercados!R166+Mercados!T166)) -> 40.00% | P14: =(O14+Q14)/2 -> 45.00% | Q14: =Mercados!C166+Mercados!D166+Mercados!F166+Mercados!G166+Mercados!H166+Mercados!K166+Mercados!L166+Mercados!N166+Mercados!P166+Mercados!R166+Mercados!S166+Mercados!T166 -> 50.00% | R14: =(Q14+S14)/2 -> 50.00% | S14: =(Mercados!C166+Mercados!D166+Mercados!E166+Mercados!F166+Mercados!G166+Mercados!H166+Mercados!J166+Mercados!K166+Mercados!N166+Mercados!L166+Mercados!P166+Mercados!Q166+Mercados!R166+Mercados!S166+Mercados!T166)*(1-(Mercados!E166+Mercados!J166+Mercados!Q166+Mercados!U166)) -> 50.00% | T14: =(U14+S14)/2 -> 50.00% | U14: =Mercados!C166+Mercados!D166+Mercados!E166+Mercados!F166+Mercados!G166+Mercados!H166+Mercados!J166+Mercados!K166+Mercados!N166+Mercados!L166+Mercados!P166+Mercados!Q166+Mercados!R166+Mercados!S166+Mercados!T166 -> 50.00% | V14: =(U14+W14)/2 -> 55.00% | W14: =(Mercados!C166+Mercados!D166+Mercados!E166+Mercados!F166+Mercados!G166+Mercados!H166+Mercados!J166+Mercados!K166+Mercados!L166+Mercados!N166+Mercados!P166+Mercados!Q166+Mercados!R166+Mercados!S166+Mercados!T166)/(1-(Mercados!I166+Mercados!O166)) -> 60.00% | X14: =(W14+Y14)/2 -> 63.33% | Y14: =Mercados!C166+Mercados!D166+Mercados!E166+Mercados!F166+Mercados!G166+Mercados!H166+Mercados!I166+Mercados!J166+Mercados!K166+Mercados!L166+Mercados!N166+Mercados!O166+Mercados!P166+Mercados!Q166+Mercados!R166+Mercados!S166+Mercados!T166 -> 66.67%
B15: Valor 2 | C15: =(C14*(C16-1))-(1-C14) -> -100.00% | D15: -100.00% | E15: -100.00% | F15: -100.00% | G15: -51.67% | H15: -73.23% | I15: -64.00% | J15: -46.67% | K15: 566.67% | L15: =(L14*(L16-1))-(1-L14) -> 266.67% | N15: Valor 2 | O15: =(O14*(O16-1))-(1-O14) -> -100.00% | P15: -100.00% | Q15: -100.00% | R15: -100.00% | S15: 45.00% | T15: -27.00% | U15: -10.00% | V15: 10.00% | W15: -19.60% | X15: -15.13% | Y15: =(Y14*(Y16-1))-(1-Y14) -> -10.67%
B16: Cuota de la casa de apuestas | G16: 2.9 | H16: 1.46 | I16: 1.8 | J16: 2 | K16: 20 | L16: 10 | N16: Cuota de la casa de apuestas | S16: 2.9 | T16: 1.46 | U16: 1.8 | V16: 2 | W16: 1.34 | X16: 1.34 | Y16: 1.34
B20: Handicap Asiatico negativo Visitante | N20: Handicap Asiatico positivo visitante
C21: -2.5 | D21: -2.25 | E21: -2 | F21: -1.75 | G21: -1.5 | H21: -1.25 | I21: -1 | J21: -0.75 | K21: -0.5 | L21: -0.25 | O21: 0 | P21: 0.25 | Q21: 0.5 | R21: 0.75 | S21: 1 | T21: 1.25 | U21: 1.5 | V21: 1.75 | W21: 2 | X21: 2.25 | Y21: 2.5
B22: Cuota real Poisson | C22: =1/C23 -> 16.611 | D22: 15.801 | E22: 15.066 | F22: 9.106 | G22: 6.525 | H22: 5.808 | I22: 5.233 | J22: 3.688 | K22: 2.847 | L22: 2.995 | N22: Cuota real Poisson | O22: =1/O23 -> 3.158 | P22: 2.136 | Q22: 1.613 | R22: 1.426 | S22: 1.278 | T22: 1.242 | U22: 1.208 | V22: 1.143 | W22: 1.084 | X22: 1.080 | Y22: 1.075
B23: % acierto poisson | C23: =Mercados!U160+Mercados!M160 -> 6.02% | D23: =(C23+E23)/2 -> 6.33% | E23: =(Mercados!U160+Mercados!M160)/(1-(Mercados!O160+Mercados!I160)) -> 6.64% | F23: =(E23+G23)/2 -> 10.98% | G23: =Mercados!I160+Mercados!M160+Mercados!O160+Mercados!U160 -> 15.33% | H23: =(I23+G23)/2 -> 17.22% | I23: =(Mercados!I160+Mercados!M160+Mercados!O160+Mercados!U160)/(1-(Mercados!E160+Mercados!J160+Mercados!Q160)) -> 19.11% | J23: =(I23+K23)/2 -> 27.12% | K23: =Mercados!E160+Mercados!I160+Mercados!J160+Mercados!M160+Mercados!O160+Mercados!Q160+Mercados!U160 -> 35.12% | L23: =(K23+O23)/2 -> 33.39% | N23: % acierto poisson | O23: =(Mercados!E160+Mercados!I160+Mercados!J160+Mercados!M160+Mercados!O160+Mercados!Q160+Mercados!U160)/(1-Mercados!C160+Mercados!F160+Mercados!K160+Mercados!R160+Mercados!T160) -> 31.66% | P23: =(O23+Q23)/2 -> 46.83% | Q23: =Mercados!C160+Mercados!E160+Mercados!F160+Mercados!I160+Mercados!J160+Mercados!K160+Mercados!M160+Mercados!O160+Mercados!Q160+Mercados!R160+Mercados!T160+Mercados!U160 -> 61.99% | R23: =(Q23+S23)/2 -> 70.12% | S23: =(Mercados!C160+Mercados!E160+Mercados!F160+Mercados!I160+Mercados!J160+Mercados!K160+Mercados!M160+Mercados!O160+Mercados!Q160+Mercados!R160+Mercados!T160+Mercados!U160)/(1-(Mercados!D160+Mercados!H160+Mercados!P160)) -> 78.25% | T23: =(U23+S23)/2 -> 80.50% | U23: =Mercados!C160+Mercados!D160+Mercados!E160+Mercados!F160+Mercados!H160+Mercados!I160+Mercados!J160+Mercados!K160+Mercados!M160+Mercados!O160+Mercados!P160+Mercados!Q160+Mercados!R160+Mercados!T160+Mercados!U160 -> 82.76% | V23: =(U23+W23)/2 -> 87.49% | W23: =(Mercados!C160+Mercados!D160+Mercados!E160+Mercados!F160+Mercados!H160+Mercados!I160+Mercados!J160+Mercados!K160+Mercados!M160+Mercados!O160+Mercados!P160+Mercados!Q160+Mercados!R160+Mercados!T160+Mercados!U160)/(1-(Mercados!G160+Mercados!N160)) -> 92.21% | X23: =(W23+Y23)/2 -> 92.61% | Y23: =Mercados!C160+Mercados!D160+Mercados!E160+Mercados!F160+Mercados!G160+Mercados!H160+Mercados!I160+Mercados!J160+Mercados!K160+Mercados!M160+Mercados!N160+Mercados!O160+Mercados!P160+Mercados!Q160+Mercados!R160+Mercados!T160+Mercados!U160 -> 93.01%
B24: Valor Poisson | C24: =(C23*(C31-1))-(1-C23) -> -100.00% | D24: -100.00% | E24: -86.72% | F24: -100.00% | G24: -55.56% | H24: -74.86% | I24: -65.61% | J24: -45.77% | K24: -52.94% | L24: =(L23*(L31-1))-(1-L23) -> -55.25% | N24: Valor Poisson | O24: =(O23*(O31-1))-(1-O23) -> -100.00% | P24: =(P23*(P31-1))-(1-P23) -> -100.00% | Q24: -100.00% | R24: -100.00% | S24: 126.91% | T24: 17.54% | U24: 48.98% | V24: 74.98% | W24: 23.57% | X24: 24.10% | Y24: 24.64%
B25: Cuota real | C25: =1/C26 ->  | F25: 36.000 | G25: 18.000 | H25: 15.750 | I25: 14.000 | J25: 5.727 | K25: 3.600 | L25: 4.114 | N25: Cuota real | O25: =1/O26 -> 4.800 | P25: 2.441 | Q25: 1.636 | R25: 1.432 | S25: 1.273 | T25: 1.235 | U25: 1.200 | V25: 1.200 | W25: 1.200 | X25: 1.200 | Y25: 1.200
B26: % acierto | C26: =Mercados!U163+Mercados!M163 -> 0.00% | D26: =(C26+E26)/2 -> 0.00% | E26: =(Mercados!U163+Mercados!M163)/(1-(Mercados!O163+Mercados!I163)) -> 0.00% | F26: =(E26+G26)/2 -> 2.78% | G26: =Mercados!I163+Mercados!M163+Mercados!O163+Mercados!U163 -> 5.56% | H26: =(I26+G26)/2 -> 6.35% | I26: =(Mercados!I163+Mercados!M163+Mercados!O163+Mercados!U163)/(1-(Mercados!E163+Mercados!J163+Mercados!Q163)) -> 7.14% | J26: =(I26+K26)/2 -> 17.46% | K26: =Mercados!E163+Mercados!I163+Mercados!J163+Mercados!M163+Mercados!O163+Mercados!Q163+Mercados!U163 -> 27.78% | L26: =(K26+O26)/2 -> 24.31% | N26: % acierto | O26: =(Mercados!E163+Mercados!I163+Mercados!J163+Mercados!M163+Mercados!O163+Mercados!Q163+Mercados!U163)/(1-Mercados!C163+Mercados!F163+Mercados!K163+Mercados!R163+Mercados!T163) -> 20.83% | P26: =(O26+Q26)/2 -> 40.97% | Q26: =Mercados!C163+Mercados!E163+Mercados!F163+Mercados!I163+Mercados!J163+Mercados!K163+Mercados!M163+Mercados!O163+Mercados!Q163+Mercados!R163+Mercados!T163+Mercados!U163 -> 61.11% | R26: =(Q26+S26)/2 -> 69.84% | S26: =(Mercados!C163+Mercados!E163+Mercados!F163+Mercados!I163+Mercados!J163+Mercados!K163+Mercados!M163+Mercados!O163+Mercados!Q163+Mercados!R163+Mercados!T163+Mercados!U163)/(1-(Mercados!D163+Mercados!H163+Mercados!P163)) -> 78.57% | T26: =(U26+S26)/2 -> 80.95% | U26: =Mercados!C163+Mercados!D163+Mercados!E163+Mercados!F163+Mercados!H163+Mercados!I163+Mercados!J163+Mercados!K163+Mercados!M163+Mercados!O163+Mercados!P163+Mercados!Q163+Mercados!R163+Mercados!T163+Mercados!U163 -> 83.33% | V26: =(U26+W26)/2 -> 83.33% | W26: =(Mercados!C163+Mercados!D163+Mercados!E163+Mercados!F163+Mercados!H163+Mercados!I163+Mercados!J163+Mercados!K163+Mercados!M163+Mercados!O163+Mercados!P163+Mercados!Q163+Mercados!R163+Mercados!T163+Mercados!U163)/(1-(Mercados!G163+Mercados!N163)) -> 83.33% | X26: =(W26+Y26)/2 -> 83.33% | Y26: =Mercados!C163+Mercados!D163+Mercados!E163+Mercados!F163+Mercados!G163+Mercados!H163+Mercados!I163+Mercados!J163+Mercados!K163+Mercados!M163+Mercados!N163+Mercados!O163+Mercados!P163+Mercados!Q163+Mercados!R163+Mercados!T163+Mercados!U163 -> 83.33%
B27: Valor | C27: =(C26*(C31-1))-(1-C26) -> -100.00% | D27: -100.00% | E27: -100.00% | F27: -100.00% | G27: -83.89% | H27: -90.73% | I27: -87.14% | J27: -65.08% | K27: -62.78% | L27: =(L26*(L31-1))-(1-L26) -> -67.43% | N27: Valor | O27: =(O26*(O31-1))-(1-O26) -> -100.00% | P27: =(P26*(P31-1))-(1-P26) -> -100.00% | Q27: -100.00% | R27: -100.00% | S27: 127.86% | T27: 18.19% | U27: 50.00% | V27: 66.67% | W27: 11.67% | X27: 11.67% | Y27: 11.67%
B28: Cuota real 2 | C28: =1/C29 ->  | F28: 12.000 | G28: 6.000 | H28: 6.000 | I28: 6.000 | J28: 6.000 | K28: 6.000 | L28: 6.462 | N28: Cuota real 2 | O28: =1/O29 -> 7.000 | P28: 4.200 | Q28: 3.000 | R28: 2.727 | S28: 2.500 | T28: 2.222 | U28: 2.000 | V28: 2.000 | W28: 2.000 | X28: 2.000 | Y28: 2.000
B29: % acierto 2 | C29: =Mercados!U166+Mercados!M166 -> 0.00% | D29: =(C29+E29)/2 -> 0.00% | E29: =(Mercados!U166+Mercados!M166)/(1-(Mercados!O166+Mercados!I166)) -> 0.00% | F29: =(E29+G29)/2 -> 8.33% | G29: =Mercados!I166+Mercados!M166+Mercados!O166+Mercados!U166 -> 16.67% | H29: =(I29+G29)/2 -> 16.67% | I29: =(Mercados!I166+Mercados!M166+Mercados!O166+Mercados!U166)/(1-(Mercados!E166+Mercados!J166+Mercados!Q166)) -> 16.67% | J29: =(I29+K29)/2 -> 16.67% | K29: =Mercados!E166+Mercados!I166+Mercados!J166+Mercados!M166+Mercados!O166+Mercados!Q166+Mercados!U166 -> 16.67% | L29: =(K29+O29)/2 -> 15.48% | N29: % acierto 2 | O29: =(Mercados!E166+Mercados!I166+Mercados!J166+Mercados!M166+Mercados!O166+Mercados!Q166+Mercados!U166)/(1-Mercados!C166+Mercados!F166+Mercados!K166+Mercados!R166+Mercados!T166) -> 14.29% | P29: =(O29+Q29)/2 -> 23.81% | Q29: =Mercados!C166+Mercados!E166+Mercados!F166+Mercados!I166+Mercados!J166+Mercados!K166+Mercados!M166+Mercados!O166+Mercados!Q166+Mercados!R166+Mercados!T166+Mercados!U166 -> 33.33% | R29: =(Q29+S29)/2 -> 36.67% | S29: =(Mercados!C166+Mercados!E166+Mercados!F166+Mercados!I166+Mercados!J166+Mercados!K166+Mercados!M166+Mercados!O166+Mercados!Q166+Mercados!R166+Mercados!T166+Mercados!U166)/(1-(Mercados!D166+Mercados!H166+Mercados!P166)) -> 40.00% | T29: =(U29+S29)/2 -> 45.00% | U29: =Mercados!C166+Mercados!D166+Mercados!E166+Mercados!F166+Mercados!H166+Mercados!I166+Mercados!J166+Mercados!K166+Mercados!M166+Mercados!O166+Mercados!P166+Mercados!Q166+Mercados!R166+Mercados!T166+Mercados!U166 -> 50.00% | V29: =(U29+W29)/2 -> 50.00% | W29: =(Mercados!C166+Mercados!D166+Mercados!E166+Mercados!F166+Mercados!H166+Mercados!I166+Mercados!J166+Mercados!K166+Mercados!M166+Mercados!O166+Mercados!P166+Mercados!Q166+Mercados!R166+Mercados!T166+Mercados!U166)/(1-(Mercados!G166+Mercados!N166)) -> 50.00% | X29: =(W29+Y29)/2 -> 50.00% | Y29: =Mercados!C166+Mercados!D166+Mercados!E166+Mercados!F166+Mercados!G166+Mercados!H166+Mercados!I166+Mercados!J166+Mercados!K166+Mercados!M166+Mercados!N166+Mercados!O166+Mercados!P166+Mercados!Q166+Mercados!R166+Mercados!T166+Mercados!U166 -> 50.00%
B30: Valor 2 | C30: =(C29*(C31-1))-(1-C29) -> -100.00% | D30: -100.00% | E30: -100.00% | F30: -100.00% | G30: -51.67% | H30: -75.67% | I30: -70.00% | J30: -66.67% | K30: -77.67% | L30: =(L29*(L31-1))-(1-L29) -> -79.26% | N30: Valor 2 | O30: =(O29*(O31-1))-(1-O29) -> -100.00% | P30: =(P29*(P31-1))-(1-P29) -> -100.00% | Q30: -100.00% | R30: -100.00% | S30: 16.00% | T30: -34.30% | U30: -10.00% | V30: 0.00% | W30: -33.00% | X30: -33.00% | Y30: -33.00%
B31: Cuota de la casa de apuestas | E31: 2 | G31: 2.9 | H31: 1.46 | I31: 1.8 | J31: 2 | K31: 1.34 | L31: 1.34 | N31: Cuota de la casa de apuestas | S31: 2.9 | T31: 1.46 | U31: 1.8 | V31: 2 | W31: 1.34 | X31: 1.34 | Y31: 1.34

Sheet Estadisticas de Liga
H2: =Mercados!H2 -> EPL_2024_2025
H5: Partidos Jugados | J5: =SUMPRODUCT((INDIRECT("'"&Mercados!H2&"'!D2:D2000")<>"")*(INDIRECT("'"&Mercados!H2&"'!D2:D2000")<>0)) -> 59
H7: FT | I7: Local | J7: Empate | K7: Visitante
H8: % | I8: =I9/J5 -> 33.90% | J8: =J9/J5 -> 30.51% | K8: =K9/J5 -> 35.59%
H9: Nro de partidos | I9: =COUNTIF(INDIRECT("'"&Mercados!H2&"'!H:H"), "H") -> 20 | J9: =COUNTIF(INDIRECT("'"&Mercados!H2&"'!H:H"), "D") -> 18 | K9: =COUNTIF(INDIRECT("'"&Mercados!H2&"'!H:H"), "A") -> 21
H10: HT | I10: Local | J10: Empate | K10: Visitante
H11: % | I11: =I12/J5 -> 40.68% | J11: =J12/J5 -> 28.81% | K11: =K12/J5 -> 30.51%
H12: Nro de partidos | I12: =COUNTIF(INDIRECT("'"&Mercados!H2&"'!k:k"), "H") -> 24 | J12: =COUNTIF(INDIRECT("'"&Mercados!H2&"'!k:k"), "D") -> 17 | K12: =COUNTIF(INDIRECT("'"&Mercados!H2&"'!k:k"), "A") -> 18
H13: SH | I13: Local | J13: Empate | K13: Visitante
H14: % | I14: =I15/J$5 -> 28.81% | J14: =J15/J$5 -> 25.42% | K14: =K15/J$5 -> 45.76%
H15: Nro de partidos | I15: =COUNTIF('lista de equipos'!AC:AC, "H") -> 17 | J15: =J5-I15-K15 -> 15 | K15: =COUNTIF('lista de equipos'!AC:AC, "A") -> 27
H18: Goles: OVER/ UNDER
L20: Promedio de goles de la liga
E21: FT | F21: HT | G21: SH | L21: Local | N21: Visitante
C22: Total de goles | E22: =E23+E24 -> 166 | F22: =F23+F24 -> 84 | G22: =ABS(E22-F22) -> 82 | L22: =SUM(INDIRECT("'"&Mercados!H2&"'!F:F"))/COUNT(INDIRECT("'"&Mercados!H2&"'!F:F")) -> 1.373 | N22: =SUM(INDIRECT("'"&Mercados!H2&"'!G:G"))/J5 -> 1.441
C23: Local | E23: =SUM(INDIRECT("'"&Mercados!H2&"'!F:F")) -> 81 | F23: =SUM(INDIRECT("'"&Mercados!H2&"'!I:I")) -> 47 | G23: =ABS(E23-F23) -> 34 | L23: Local HT | N23: Visitante HT
C24: Visitante | E24: =SUM(INDIRECT("'"&Mercados!H2&"'!G:G")) -> 85 | F24: =SUM(INDIRECT("'"&Mercados!H2&"'!j:j")) -> 37 | G24: =ABS(E24-F24) -> 48 | L24: =SUM(INDIRECT("'"&Mercados!H2&"'!I:I"))/COUNT(INDIRECT("'"&Mercados!H2&"'!I:I")) -> 0.797 | N24: =SUM(INDIRECT("'"&Mercados!H2&"'!j:j"))/J5 -> 0.627
L25: Local SH | N25: Visitante SH
L26: =L22-L24 -> 0.576 | N26: =N22-N24 -> 0.814
I29: OVER/UNDER FT
H30: OVER | J30: Under
G31: 0.5 | H31: =J5-J31 -> 57 | I31: =H31/J5 -> 96.61% | J31: =H92 -> 2 | K31: =1-I31 -> 3.39%
G32: 1.5 | H32: =SUM(D93:D98)+SUM(H93:H96)+SUM(L93:L98) -> 50 | I32: =H32/J5 -> 84.75% | J32: =J5-H32 -> 9 | K32: =1-I32 -> 15.25%
G33: 2.5 | H33: =SUM(D94:D98)+SUM(H94:H96)+SUM(L94:L98) -> 32 | I33: =H33/J5 -> 54.24% | J33: =J5-H33 -> 27 | K33: =1-I33 -> 45.76%
G34: 3.5 | H34: =SUM(D96:D98)+SUM(H94:H96)+SUM(L96:L98) -> 16 | I34: =H34/J5 -> 27.12% | J34: =J5-H34 -> 43 | K34: =1-I34 -> 72.88%
G35: 4.5 | H35: =D97+D98+H95+H96+L97+L98 -> 7 | I35: =H35/J5 -> 11.86% | J35: =J5-H35 -> 52 | K35: =1-I35 -> 88.14%
D37: OVER/UNDER HT | L37: OVER/UNDER SH
D38: OVER | F38: Under | L38: OVER | N38: Under
C39: 0.5 | D39: =SUM(D104:D107)+SUM(H105:H107)+SUM(L104:L107) -> 47 | E39: =D39/J$5 -> 79.66% | F39: =J$5-D39 -> 12 | G39: =F39/J$5 -> 20.34% | K39: 0.5 | L39: =J5-H113 -> 51 | M39: =L39/J$5 -> 86.44% | N39: =J5-L39 -> 8 | O39: =N39/J$5 -> 13.56%
C40: 1.5 | D40: =SUM(D105:D107)+SUM(H105:H107)+SUM(L105:L107) -> 21 | E40: =D40/J$5 -> 35.59% | F40: =J$5-D40 -> 38 | G40: =F40/J$5 -> 64.41% | K40: 1.5 | L40: =SUM(D114:D116)+SUM(H114:H116)+SUM(L114:L116) -> 21 | M40: =L40/J$5 -> 35.59% | N40: =J5-L40 -> 38 | O40: =N40/J$5 -> 64.41%
C41: 2.5 | D41: =SUM(D106:D107)+SUM(H106:H107)+SUM(L106:L107) -> 10 | E41: 16.95% | F41: 49 | G41: 83.05% | K41: 2.5 | L41: =SUM(D115:D116)+SUM(H115:H116)+SUM(L115:L116) -> 6 | M41: 10.17% | N41: =J5-L41 -> 53 | O41: 89.83%
H47: Ambos equipos anotan
F51: FT | J51: HT | N51: SH
E52: Ambos equipos anotan | I52: Ambos equipos anotan | M52: Ambos equipos anotan
E53: Si | F53: =COUNTIFS(INDIRECT("'"&Mercados!H2&"'!F:F"), ">"&0, INDIRECT("'"&Mercados!H2&"'!G:G"), ">"&0) -> 37 | G53: =F53/J5 -> 62.71% | I53: Si | J53: =COUNTIFS(INDIRECT("'"&Mercados!H2&"'!I:I"), ">"&0, INDIRECT("'"&Mercados!H2&"'!J:J"), ">"&0) -> 14 | K53: =J53/J$5 -> 23.73% | M53: Si | N53: =COUNTIFS('lista de equipos'!AA:AA, ">0", 'lista de equipos'!AB:AB, ">0") -> 10 | O53: =N53/J$5 -> 16.95%
E54: No | F54: =J5-F53 -> 22 | G54: =F54/J5 -> 37.29% | I54: No | J54: =J5-J53 -> 45 | K54: =J54/J$5 -> 76.27% | M54: No | N54: =J5-N53 -> 49 | O54: =N54/J$5 -> 83.05%
E56: Equipo local marca | I56: Equipo local marca | M56: Equipo local marca
E57: Si | F57: =COUNTIF(INDIRECT("'"&Mercados!H2&"'!F:F"), ">0") -> 43 | G57: =F57/J5 -> 72.88% | I57: Si | J57: =COUNTIF(INDIRECT("'"&Mercados!H2&"'!I:I"), ">0") -> 33 | K57: =J57/J$5 -> 55.93% | M57: Si | N57: =COUNTIF('lista de equipos'!AA:AA, ">0") -> 25 | O57: =N57/J$5 -> 42.37%
E58: No | F58: =J5-F57 -> 16 | G58: =F58/J5 -> 27.12% | I58: No | J58: =J5-J57 -> 26 | K58: =J58/J$5 -> 44.07% | M58: No | N58: =J5-N57 -> 34 | O58: =N58/J$5 -> 57.63%
E60: Equipo visitante marca | I60: Equipo visitante marca | M60: Equipo visitante marca
E61: Si | F61: =COUNTIF(INDIRECT("'"&Mercados!H2&"'!G:G"), ">0") -> 51 | G61: =F61/J5 -> 86.44% | I61: Si | J61: =COUNTIF(INDIRECT("'"&Mercados!H2&"'!J:J"), ">0") -> 28 | K61: =J61/J$5 -> 47.46% | M61: Si | N61: =COUNTIF('lista de equipos'!AB:AB, ">0") -> 36 | O61: =N61/J$5 -> 61.02%
E62: No | F62: =J5-F61 -> 8 | G62: =F62/J5 -> 13.56% | I62: No | J62: =J5-J61 -> 31 | K62: =J62/J$5 -> 52.54% | M62: No | N62: =J5-N61 -> 23 | O62: =N62/J$5 -> 38.98%
E64: Ningun equipo anota | I64: Ningun equipo anota | M64: Ningun equipo anota
E65: Si | F65: =COUNTIFS(INDIRECT("'"&Mercados!H2&"'!F:F"), "="&0, INDIRECT("'"&Mercados!H2&"'!G:G"), "="&0) -> 2 | G65: =F65/J5 -> 3.39% | I65: Si | J65: =COUNTIFS(INDIRECT("'"&Mercados!H2&"'!I:I"), "="&0, INDIRECT("'"&Mercados!H2&"'!J:J"), "="&0) -> 12 | K65: =J65/J$5 -> 20.34% | M65: Si | N65: =H113 -> 8 | O65: =N65/J$5 -> 13.56%
E66: No | F66: =J5-F65 -> 57 | G66: =F66/J5 -> 96.61% | I66: No | J66: =J5-J65 -> 47 | K66: =J66/J$5 -> 79.66% | M66: No | N66: =J5-N65 -> 51 | O66: =N66/J$5 -> 86.44%
D69: Local gana sin recibir gol | E69: Si | F69: =COUNTIFS(INDIRECT("'" & Mercados!H2 & "'!G:G"), "=0", INDIRECT("'" & Mercados!H2 & "'!H:H"), "H") -> 6 | G69: =F69/J$5 -> 10.17% | J69: Visitante gana sin recibir gol | K69: Si | L69: =COUNTIFS(INDIRECT("'" & Mercados!H2 & "'!F:F"), "=0", INDIRECT("'" & Mercados!H2 & "'!H:H"), "A") -> 14 | M69: =L69/J$5 -> 23.73%
E70: No | F70: =J5-F69 -> 53 | G70: =F70/J$5 -> 89.83% | K70: No | L70: =J5-L69 -> 45 | M70: =L70/J$5 -> 76.27%
I77: HT/FT
E80: Local | G80: % | I80: Empate | K80: % | M80: Visitante | O80: %
E81: H-H | F81: =COUNTIFS(INDIRECT("'"&Mercados!H2&"'!H:H"), "H", INDIRECT("'"&Mercados!H2&"'!K:K"), "H") -> 15 | G81: =F81/$J$5 -> 25.42% | I81: H-D | J81: =COUNTIFS(INDIRECT("'"&Mercados!H2&"'!H:H"), "D", INDIRECT("'"&Mercados!H2&"'!K:K"), "H") -> 8 | K81: =J81/$J$5 -> 13.56% | M81: H-A | N81: =COUNTIFS(INDIRECT("'"&Mercados!H2&"'!H:H"), "A", INDIRECT("'"&Mercados!H2&"'!K:K"), "H") -> 1 | O81: =N81/$J$5 -> 1.69%
E82: D-H | F82: =COUNTIFS(INDIRECT("'"&Mercados!H2&"'!H:H"), "H", INDIRECT("'"&Mercados!H2&"'!K:K"), "D") -> 2 | G82: =F82/$J$5 -> 3.39% | I82: D-D | J82: =COUNTIFS(INDIRECT("'"&Mercados!H2&"'!H:H"), "D", INDIRECT("'"&Mercados!H2&"'!K:K"), "D") -> 4 | K82: =J82/$J$5 -> 6.78% | M82: D-A | N82: =COUNTIFS(INDIRECT("'"&Mercados!H2&"'!H:H"), "A", INDIRECT("'"&Mercados!H2&"'!K:K"), "D") -> 11 | O82: =N82/$J$5 -> 18.64%
E83: A-H | F83: =COUNTIFS(INDIRECT("'"&Mercados!H2&"'!H:H"), "H", INDIRECT("'"&Mercados!H2&"'!K:K"), "A") -> 3 | G83: 5.08% | I83: A-D | J83: =COUNTIFS(INDIRECT("'"&Mercados!H2&"'!H:H"), "D", INDIRECT("'"&Mercados!H2&"'!K:K"), "A") -> 6 | K83: 10.17% | M83: A-A | N83: =COUNTIFS(INDIRECT("'"&Mercados!H2&"'!H:H"), "A", INDIRECT("'"&Mercados!H2&"'!K:K"), "A") -> 9 | O83: 15.25%
I89: Marcador correcto FT
C91: Local | E91: % | G91: Empate | I91: % | K91: Visitante | M91: %
C92: 1-0 | D92: =COUNTIFS(INDIRECT("'"&Mercados!H2&"'!F:F"), "="&1, INDIRECT("'"&Mercados!H2&"'!G:G"), "="&0) -> 2 | E92: =D92/J$5 -> 3.39% | G92: 0-0 | H92: =COUNTIFS( INDIRECT("'"&Mercados!H2&"'!F:F"), "="&0, INDIRECT("'"&Mercados!H2&"'!G:G"), "="&0, INDIRECT("'"&Mercados!H2&"'!D:D"), "<>0" ) -> 2 | I92: =H92/J$5 -> 3.39% | K92: 0-1 | L92: =COUNTIFS(INDIRECT("'"&Mercados!H2&"'!F:F"), "="&0, INDIRECT("'"&Mercados!H2&"'!G:G"), "="&1) -> 5 | M92: =L92/J$5 -> 8.47%
C93: 2-0 | D93: =COUNTIFS(INDIRECT("'"&Mercados!H2&"'!F:F"), "="&2, INDIRECT("'"&Mercados!H2&"'!G:G"), "="&0) -> 2 | E93: 3.39% | G93: 1-1 | H93: =COUNTIFS(INDIRECT("'"&Mercados!H2&"'!F:F"), "="&1, INDIRECT("'"&Mercados!H2&"'!G:G"), "="&1) -> 12 | I93: =H93/J$5 -> 20.34% | K93: 0-2 | L93: =COUNTIFS(INDIRECT("'"&Mercados!H2&"'!F:F"), "="&0, INDIRECT("'"&Mercados!H2&"'!G:G"), "="&2) -> 4 | M93: 6.78%
C94: 2-1 | D94: =COUNTIFS(INDIRECT("'"&Mercados!H2&"'!F:F"), "="&2, INDIRECT("'"&Mercados!H2&"'!G:G"), "="&1) -> 6 | E94: 10.17% | G94: 2-2 | H94: =COUNTIFS(INDIRECT("'"&Mercados!H2&"'!F:F"), "="&2, INDIRECT("'"&Mercados!H2&"'!G:G"), "="&2) -> 4 | I94: =H94/J$5 -> 6.78% | K94: 1-2 | L94: =COUNTIFS(INDIRECT("'"&Mercados!H2&"'!F:F"), "="&1, INDIRECT("'"&Mercados!H2&"'!G:G"), "="&2) -> 4 | M94: 6.78%
C95: 3-0 | D95: =COUNTIFS(INDIRECT("'"&Mercados!H2&"'!F:F"), "="&3, INDIRECT("'"&Mercados!H2&"'!G:G"), "="&0) -> 1 | E95: 1.69% | G95: 3-3 | H95: =COUNTIFS(INDIRECT("'"&Mercados!H2&"'!F:F"), "="&3, INDIRECT("'"&Mercados!H2&"'!G:G"), "="&3) -> 0 | I95: =H95/J$5 -> 0.00% | K95: 0-3 | L95: =COUNTIFS(INDIRECT("'"&Mercados!H2&"'!F:F"), "="&0, INDIRECT("'"&Mercados!H2&"'!G:G"), "="&3) -> 5 | M95: 8.47%
C96: 3-1 | D96: =COUNTIFS(INDIRECT("'"&Mercados!H2&"'!F:F"), "="&3, INDIRECT("'"&Mercados!H2&"'!G:G"), "="&1) -> 4 | E96: 6.78% | G96: Otro | H96: =J5-(SUM(D92:D98) + SUM(H92:H95) + SUM(L92:L98)) -> 0 | I96: =H96/J$5 -> 0.00% | K96: 1-3 | L96: =COUNTIFS(INDIRECT("'"&Mercados!H2&"'!F:F"), "="&1, INDIRECT("'"&Mercados!H2&"'!G:G"), "="&3) -> 1 | M96: 1.69%
C97: 3-2 | D97: =COUNTIFS(INDIRECT("'"&Mercados!H2&"'!F:F"), "="&3, INDIRECT("'"&Mercados!H2&"'!G:G"), "="&2) -> 1 | E97: 1.69% | K97: 2-3 | L97: =COUNTIFS(INDIRECT("'"&Mercados!H2&"'!F:F"), "="&2, INDIRECT("'"&Mercados!H2&"'!G:G"), "="&3) -> 1 | M97: 1.69%
C98: Otro | D98: =COUNTIFS(INDIRECT("'"&Mercados!H2&"'!F:F"), ">=4",INDIRECT("'"&Mercados!H2&"'!H:H"), "H") -> 4 | E98: 6.78% | K98: Otro | L98: =COUNTIFS(INDIRECT("'"&Mercados!H2&"'!G:G"), ">=4", INDIRECT("'"&Mercados!H2&"'!H:H"), "A") -> 1 | M98: 1.69%
H101: Marcador correcto primer tiempo
C103: Local | E103: % | G103: Empate | I103: % | K103: Visitante | M103: %
C104: 1-0 | D104: =COUNTIFS(INDIRECT("'"&Mercados!H2&"'!I:I"), "="&1, INDIRECT("'"&Mercados!H2&"'!j:j"), "="&0) -> 15 | E104: =D104/J$5 -> 25.42% | G104: 0-0 | H104: =COUNTIFS( INDIRECT("'"&Mercados!H2&"'!I:I"), "="&0, INDIRECT("'"&Mercados!H2&"'!J:J"), "="&0, INDIRECT("'"&Mercados!H2&"'!D:D"), "<>0" ) -> 12 | I104: =H104/J$5 -> 20.34% | K104: 0-1 | L104: =COUNTIFS(INDIRECT("'"&Mercados!H2&"'!i:i"), "="&0, INDIRECT("'"&Mercados!H2&"'!j:j"), "="&1) -> 11 | M104: =L104/J$5 -> 18.64%
C105: 2-0 | D105: =COUNTIFS(INDIRECT("'"&Mercados!H2&"'!I:I"), "="&2, INDIRECT("'"&Mercados!H2&"'!j:j"), "="&0) -> 3 | E105: =D105/J$5 -> 5.08% | G105: 1-1 | H105: =COUNTIFS(INDIRECT("'"&Mercados!H2&"'!i:i"), "="&1, INDIRECT("'"&Mercados!H2&"'!j:j"), "="&1) -> 4 | I105: =H105/J$5 -> 6.78% | K105: 0-2 | L105: =COUNTIFS(INDIRECT("'"&Mercados!H2&"'!i:i"), "="&1, INDIRECT("'"&Mercados!H2&"'!j:j"), "="&2) -> 4 | M105: =L105/J$5 -> 6.78%
C106: 2-1 | D106: =COUNTIFS(INDIRECT("'"&Mercados!H2&"'!I:I"), "="&2, INDIRECT("'"&Mercados!H2&"'!j:j"), "="&1) -> 3 | E106: =D106/J$5 -> 5.08% | G106: 2-2 | H106: =COUNTIFS(INDIRECT("'"&Mercados!H2&"'!i:i"), "="&2, INDIRECT("'"&Mercados!H2&"'!j:j"), "="&2) -> 1 | I106: =H106/J$5 -> 1.69% | K106: 1-2 | L106: =COUNTIFS(INDIRECT("'"&Mercados!H2&"'!i:i"), "="&1, INDIRECT("'"&Mercados!H2&"'!j:j"), "="&2) -> 4 | M106: =L106/J$5 -> 6.78%
C107: Otro | D107: =COUNTIFS(INDIRECT("'"&Mercados!H2&"'!I:I"), ">=3",INDIRECT("'"&Mercados!H2&"'!K:K"), "H") -> 3 | E107: =D107/J$5 -> 5.08% | G107: Otro | H107: =J5-SUM(D104:D107)-SUM(H104:H106)-SUM(L104:L107) -> -1 | I107: =H107/J$5 -> -1.69% | K107: Otro | L107: =COUNTIFS(INDIRECT("'"&Mercados!H2&"'!j:j"), ">=3",INDIRECT("'"&Mercados!H2&"'!K:K"), "a") -> 0 | M107: =L107/J$5 -> 0.00%
G110: Marcador exacto en el segundo tiempo
C112: Local | E112: % | G112: Empate | I112: % | K112: Visitante | M112: %
C113: 1-0 | D113: =COUNTIFS('lista de equipos'!AA:AA,"1",'lista de equipos'!AB:AB,"0") -> 11 | E113: =D113/J$5 -> 18.64% | G113: 0-0 | H113: =COUNTIFS('lista de equipos'!AA:AA,"0",'lista de equipos'!AB:AB,"0",'lista de equipos'!Y:Y,"<>0") -> 8 | I113: =H113/J$5 -> 13.56% | K113: 0-1 | L113: =COUNTIFS('lista de equipos'!AA:AA,"0",'lista de equipos'!AB:AB,"1") -> 19 | M113: =L113/J$5 -> 32.20%
C114: 2-0 | D114: =COUNTIFS('lista de equipos'!AA:AA,"2",'lista de equipos'!AB:AB,"0") -> 3 | E114: =D114/J$5 -> 5.08% | G114: 1-1 | H114: =COUNTIFS('lista de equipos'!AA:AA,"1",'lista de equipos'!AB:AB,"1") -> 6 | I114: =H114/J$5 -> 10.17% | K114: 0-2 | L114: =COUNTIFS('lista de equipos'!AA:AA,"0",'lista de equipos'!AB:AB,"2") -> 6 | M114: =L114/J$5 -> 10.17%
C115: 2-1 | D115: =COUNTIFS('lista de equipos'!AA:AA,"2",'lista de equipos'!AB:AB,"1") -> 2 | E115: =D115/J$5 -> 3.39% | G115: 2-2 | H115: =COUNTIFS('lista de equipos'!AA:AA,"2",'lista de equipos'!AB:AB,"2") -> 1 | I115: =H115/J$5 -> 1.69% | K115: 1-2 | L115: =COUNTIFS('lista de equipos'!AA:AA,"1",'lista de equipos'!AB:AB,"2") -> 0 | M115: =L115/J$5 -> 0.00%
C116: Otro | D116: =COUNTIFS('lista de equipos'!AA:AA,">=3",'lista de equipos'!AB:AB,"<=2") -> 1 | E116: =D116/J$5 -> 1.69% | G116: Otro | H116: =J5-(SUM(D113:D116) + SUM(H113:H115) + SUM(L113:L116)) -> 0 | I116: =H116/J$5 -> 0.00% | K116: Otro | L116: =COUNTIFS('lista de equipos'!AA:AA,"<=2",'lista de equipos'!AB:AB,">=3") -> 2 | M116: =L116/J$5 -> 3.39%
C120: Estadisticas de Goles
H122: Tiempo completo
F123: goles Local | G123: Veces que sucedio | H123: % | I123: Goles Visitante | J123: Veces que sucedio | K123: %
F124: 0 | G124: =COUNTIFS(INDIRECT("'"&Mercados!H2&"'!F:F"), "=0", INDIRECT("'"&Mercados!H2&"'!D:D"), "<>0") -> 16 | H124: =G124/J$5 -> 27.12% | I124: 0 | J124: =COUNTIFS(INDIRECT("'"&Mercados!H2&"'!g:g"), "=0", INDIRECT("'"&Mercados!H2&"'!e:e"), "<>0") -> 8 | K124: =J124/J$5 -> 13.56%
F125: 1 | G125: =COUNTIFS(INDIRECT("'"&Mercados!H2&"'!F:F"), "="&1) -> 19 | H125: =G125/J$5 -> 32.20% | I125: 1 | J125: =COUNTIF(INDIRECT("'"&Mercados!H2&"'!G:G"), "=1") -> 28 | K125: =J125/J$5 -> 47.46%
F126: 2 | G126: =COUNTIFS(INDIRECT("'"&Mercados!H2&"'!F:F"), "="&2) -> 14 | H126: =G126/J$5 -> 23.73% | I126: 2 | J126: =COUNTIF(INDIRECT("'"&Mercados!H2&"'!G:G"), "=2") -> 15 | K126: =J126/J$5 -> 25.42%
F127: 3 | G127: =COUNTIFS(INDIRECT("'"&Mercados!H2&"'!F:F"), "="&3) -> 6 | H127: =G127/J$5 -> 10.17% | I127: 3 | J127: =COUNTIF(INDIRECT("'"&Mercados!H2&"'!G:G"), "=3") -> 7 | K127: =J127/J$5 -> 11.86%
F128: 4 o mas | G128: =COUNTIFS(INDIRECT("'"&Mercados!H2&"'!F:F"), ">="&4) -> 4 | H128: =G128/J$5 -> 6.78% | I128: 4 o mas | J128: =COUNTIF(INDIRECT("'"&Mercados!H2&"'!G:G"), ">=4") -> 1 | K128: =J128/J$5 -> 1.69%
H130: Primer tiempo
F131: goles Local | G131: Veces que sucedio | H131: % | I131: Goles Visitante | J131: Veces que sucedio | K131: %
F132: 0 | G132: =COUNTIFS(INDIRECT("'"&Mercados!H2&"'!i:i"), "=0", INDIRECT("'"&Mercados!H2&"'!D:D"), "<>0") -> 26 | H132: =G132/J$5 -> 44.07% | I132: 0 | J132: =COUNTIFS(INDIRECT("'"&Mercados!H2&"'!j:j"), "=0", INDIRECT("'"&Mercados!H2&"'!e:e"), "<>0") -> 31 | K132: =J132/J$5 -> 52.54%
F133: 1 | G133: =COUNTIF(INDIRECT("'"&Mercados!H2&"'!I:I"), "=1") -> 23 | H133: =G133/J$5 -> 38.98% | I133: 1 | J133: =COUNTIF(INDIRECT("'"&Mercados!H2&"'!J:J"), "=1") -> 19 | K133: =J133/J$5 -> 32.20%
F134: 2 | G134: =COUNTIF(INDIRECT("'"&Mercados!H2&"'!I:I"), "=2") -> 7 | H134: =G134/J$5 -> 11.86% | I134: 2 | J134: =COUNTIF(INDIRECT("'"&Mercados!H2&"'!J:J"), "=2") -> 9 | K134: =J134/J$5 -> 15.25%
F135: 3 | G135: =COUNTIF(INDIRECT("'"&Mercados!H2&"'!I:I"), "=3") -> 2 | H135: =G135/J$5 -> 3.39% | I135: 3 | J135: =COUNTIF(INDIRECT("'"&Mercados!H2&"'!J:J"), "=3") -> 0 | K135: =J135/J$5 -> 0.00%
F136: 4 o mas | G136: =COUNTIFS(INDIRECT("'"&Mercados!H2&"'!i:i"), ">="&4) -> 1 | H136: =G136/J$5 -> 1.69% | I136: 4 o mas | J136: =COUNTIF(INDIRECT("'"&Mercados!H2&"'!J:J"), ">=4") -> 0 | K136: =J136/J$5 -> 0.00%
H138: Segundo Tiempo
F139: goles Local | G139: Veces que sucedio | H139: % | I139: Goles Visitante | J139: Veces que sucedio | K139: %
F140: 0 | G140: =COUNTIFS('lista de equipos'!AA:AA, "0", 'lista de equipos'!Y:Y, "<>0") -> 34 | H140: =G140/J$5 -> 57.63% | I140: 0 | J140: =COUNTIFS('lista de equipos'!AB:AB, "0", 'lista de equipos'!Y:Y, "<>0") -> 23 | K140: =J140/J$5 -> 38.98%
F141: 1 | G141: =COUNTIF('lista de equipos'!AA:AA, "1") -> 17 | H141: =G141/J$5 -> 28.81% | I141: 1 | J141: =COUNTIF('lista de equipos'!AB:AB, "1") -> 27 | K141: =J141/J$5 -> 45.76%
F142: 2 | G142: =COUNTIF('lista de equipos'!AA:AA, "2") -> 7 | H142: =G142/J$5 -> 11.86% | I142: 2 | J142: =COUNTIF('lista de equipos'!AB:AB, "2") -> 7 | K142: =J142/J$5 -> 11.86%
F143: 3 | G143: =COUNTIF('lista de equipos'!AA:AA, "3") -> 1 | H143: =G143/J$5 -> 1.69% | I143: 3 | J143: =COUNTIF('lista de equipos'!AB:AB, "3") -> 1 | K143: =J143/J$5 -> 1.69%
F144: 4 o mas | G144: =COUNTIF('lista de equipos'!AA:AA, ">=4") -> 0 | H144: =G144/J$5 -> 0.00% | I144: 4 o mas | J144: =COUNTIF('lista de equipos'!AB:AB, ">=4") -> 1 | K144: =J144/J$5 -> 1.69%

Sheet Estadisticas de Equipos
D4: =Mercados!E6 -> Man City | M4: =Mercados!L6 -> West Ham
C8: Partidos jugados | E8: =COUNTIFS(INDIRECT("'"&Mercados!H2&"'!D:D"), D4, INDIRECT("'"&Mercados!H2&"'!F:F"), ">=0") + COUNTIFS(INDIRECT("'"&Mercados!H2&"'!E:E"), D4, INDIRECT("'"&Mercados!H2&"'!G:G"), ">=0") -> 6 | L8: Partidos jugados | N8: =COUNTIFS(INDIRECT("'"&Mercados!H2&"'!D:D"), M4, INDIRECT("'"&Mercados!H2&"'!F:F"), ">=0") + COUNTIFS(INDIRECT("'"&Mercados!H2&"'!E:E"), M4, INDIRECT("'"&Mercados!H2&"'!G:G"), ">=0") -> 6
C9: Partidos de local | E9: =COUNTIFS(INDIRECT("'"&Mercados!H2&"'!D:D"), D4, INDIRECT("'"&Mercados!H2&"'!F:F"), ">=0") -> 3 | L9: Partidos de Visitante | N9: =COUNTIFS(INDIRECT("'"&Mercados!H2&"'!E:E"), M4, INDIRECT("'"&Mercados!H2&"'!G:G"), ">=0") -> 3
D11: Local | M11: Visitante
C12: FT | D12: Victoria | E12: Empate | F12: Derrotas | L12: FT | M12: Victoria | N12: Empate | O12: Derrotas
C13: % | D13: =D14/E9 -> 66.67% | E13: =E14/E9 -> 33.33% | F13: =F14/E9 -> 0.00% | L13: % | M13: =M14/N9 -> 33.33% | N13: =N14/N9 -> 66.67% | O13: =O14/N9 -> 0.00%
C14: Nro de partidos | D14: =COUNTIFS(INDIRECT("'"&Mercados!H2&"'!D:D"), D4, INDIRECT("'"&Mercados!H2&"'!H:H"), "H") -> 2 | E14: =COUNTIFS(INDIRECT("'"&Mercados!H2&"'!D:D"), D4, INDIRECT("'"&Mercados!H2&"'!H:H"), "D") -> 1 | F14: =COUNTIFS(INDIRECT("'"&Mercados!H2&"'!D:D"), D4, INDIRECT("'"&Mercados!H2&"'!H:H"), "A") -> 0 | L14: Nro de partidos | M14: =COUNTIFS(INDIRECT("'"&Mercados!H2&"'!e:e"), M4, INDIRECT("'"&Mercados!H2&"'!H:H"), "a") -> 1 | N14: =COUNTIFS(INDIRECT("'"&Mercados!H2&"'!e:e"), M4, INDIRECT("'"&Mercados!H2&"'!H:H"), "d") -> 2 | O14: =COUNTIFS(INDIRECT("'"&Mercados!H2&"'!e:e"), M4, INDIRECT("'"&Mercados!H2&"'!H:H"), "h") -> 0
C15: HT | D15: Victoria | E15: Empate | F15: Derrotas | L15: HT | M15: Victoria | N15: Empate | O15: Derrotas
C16: % | D16: =D17/E9 -> 66.67% | E16: =E17/E9 -> 0.00% | F16: =F17/E9 -> 33.33% | L16: % | M16: =M17/N9 -> 0.00% | N16: =N17/N9 -> 33.33% | O16: =O17/N9 -> 66.67%
C17: Nro de partidos | D17: =COUNTIFS(INDIRECT("'"&Mercados!H2&"'!D:D"), D4, INDIRECT("'"&Mercados!H2&"'!k:k"), "H") -> 2 | E17: =COUNTIFS(INDIRECT("'"&Mercados!H2&"'!D:D"), D4, INDIRECT("'"&Mercados!H2&"'!K:K"), "D") -> 0 | F17: =COUNTIFS(INDIRECT("'"&Mercados!H2&"'!D:D"), D4, INDIRECT("'"&Mercados!H2&"'!k:k"), "a") -> 1 | L17: Nro de partidos | M17: =COUNTIFS(INDIRECT("'"&Mercados!H2&"'!e:e"), M4, INDIRECT("'"&Mercados!H2&"'!k:k"), "a") -> 0 | N17: =COUNTIFS(INDIRECT("'"&Mercados!H2&"'!e:e"), M4, INDIRECT("'"&Mercados!H2&"'!k:k"), "d") -> 1 | O17: =COUNTIFS(INDIRECT("'"&Mercados!H2&"'!e:e"), M4, INDIRECT("'"&Mercados!H2&"'!k:k"), "h") -> 2
C18: SH | D18: Victoria | E18: Empate | F18: Derrotas | L18: SH | M18: Victoria | N18: Empate | O18: Derrotas
C19: % | D19: =D20/$E$9 -> 66.67% | E19: =E20/$E$9 -> 33.33% | F19: 0.00% | L19: % | M19: =M20/N$9 -> 100.00% | N19: =N20/$N$9 -> 0.00% | O19: =O20/$N$9 -> 0.00%
C20: Nro de partidos | D20: =COUNTIFS('lista de equipos'!Y:Y, D4, 'lista de equipos'!AC:AC, "H") -> 2 | E20: =E9-D20-F20 -> 1 | F20: =COUNTIFS('lista de equipos'!Y:Y, D4, 'lista de equipos'!AC:AC, "a") -> 0 | L20: Nro de partidos | M20: =COUNTIFS('lista de equipos'!Z:Z, M4, 'lista de equipos'!AC:AC, "a") -> 3 | N20: =N9-M20-O20 -> 0 | O20: =COUNTIFS('lista de equipos'!Z:Z, M4, 'lista de equipos'!AC:AC, "h") -> 0
D23: Local y visitante | M23: local y visitante
C24: FT | D24: Victoria | E24: Empate | F24: Derrotas | L24: FT | M24: Victoria | N24: Empate | O24: Derrotas
C25: % | D25: =D26/$E$8 -> 66.67% | E25: =E26/$E$8 -> 33.33% | F25: 0.00% | L25: % | M25: =M26/$N$8 -> 16.67% | N25: =N26/$N$8 -> 33.33% | O25: 50.00%
C26: Nro de partidos | D26: =COUNTIFS(INDIRECT("'"&Mercados!H2&"'!D:D"), D4, INDIRECT("'"&Mercados!H2&"'!H:H"), "H")+COUNTIFS(INDIRECT("'"&Mercados!H2&"'!e:e"), D4, INDIRECT("'"&Mercados!H2&"'!H:H"), "a") -> 4 | E26: =COUNTIFS(INDIRECT("'"&Mercados!H2&"'!D:D"), D4, INDIRECT("'"&Mercados!H2&"'!H:H"), "d")+COUNTIFS(INDIRECT("'"&Mercados!H2&"'!e:e"), D4, INDIRECT("'"&Mercados!H2&"'!H:H"), "d") -> 2 | F26: =COUNTIFS(INDIRECT("'"&Mercados!H2&"'!D:D"), D4, INDIRECT("'"&Mercados!H2&"'!H:H"), "a")+COUNTIFS(INDIRECT("'"&Mercados!H2&"'!e:e"), D4, INDIRECT("'"&Mercados!H2&"'!H:H"), "h") -> 0 | L26: Nro de partidos | M26: =COUNTIFS(INDIRECT("'"&Mercados!H2&"'!D:D"), M4, INDIRECT("'"&Mercados!H2&"'!H:H"), "H")+COUNTIFS(INDIRECT("'"&Mercados!H2&"'!e:e"), M4, INDIRECT("'"&Mercados!H2&"'!H:H"), "a") -> 1 | N26: =COUNTIFS(INDIRECT("'"&Mercados!H2&"'!D:D"), M4, INDIRECT("'"&Mercados!H2&"'!H:H"), "d")+COUNTIFS(INDIRECT("'"&Mercados!H2&"'!e:e"), M4, INDIRECT("'"&Mercados!H2&"'!H:H"), "d") -> 2 | O26: =COUNTIFS(INDIRECT("'"&Mercados!H2&"'!D:D"), M4, INDIRECT("'"&Mercados!H2&"'!H:H"), "a")+COUNTIFS(INDIRECT("'"&Mercados!H2&"'!e:e"), M4, INDIRECT("'"&Mercados!H2&"'!H:H"), "h") -> 3
C27: HT | D27: Victoria | E27: Empate | F27: Derrotas | L27: HT | M27: Victoria | N27: Empate | O27: Derrotas
C28: % | D28: =D29/$E$8 -> 83.33% | E28: =E29/$E$8 -> 0.00% | F28: 16.67% | L28: % | M28: =M29/$N$8 -> 0.00% | N28: =N29/$N$8 -> 33.33% | O28: 66.67%
C29: Nro de partidos | D29: =COUNTIFS(INDIRECT("'"&Mercados!H2&"'!D:D"), D4, INDIRECT("'"&Mercados!H2&"'!k:k"), "H")+COUNTIFS(INDIRECT("'"&Mercados!H2&"'!e:e"), D4, INDIRECT("'"&Mercados!H2&"'!k:k"), "a") -> 5 | E29: =COUNTIFS(INDIRECT("'"&Mercados!H2&"'!D:D"), D4, INDIRECT("'"&Mercados!H2&"'!k:k"), "d")+COUNTIFS(INDIRECT("'"&Mercados!H2&"'!e:e"), D4, INDIRECT("'"&Mercados!H2&"'!k:k"), "d") -> 0 | F29: =COUNTIFS(INDIRECT("'"&Mercados!H2&"'!D:D"), D4, INDIRECT("'"&Mercados!H2&"'!k:k"), "a")+COUNTIFS(INDIRECT("'"&Mercados!H2&"'!e:e"), D4, INDIRECT("'"&Mercados!H2&"'!k:k"), "h") -> 1 | L29: Nro de partidos | M29: =COUNTIFS(INDIRECT("'"&Mercados!H2&"'!D:D"), M4, INDIRECT("'"&Mercados!H2&"'!k:k"), "H")+COUNTIFS(INDIRECT("'"&Mercados!H2&"'!e:e"), M4, INDIRECT("'"&Mercados!H2&"'!k:k"), "a") -> 0 | N29: =COUNTIFS(INDIRECT("'"&Mercados!H2&"'!D:D"), M4, INDIRECT("'"&Mercados!H2&"'!k:k"), "d")+COUNTIFS(INDIRECT("'"&Mercados!H2&"'!e:e"), M4, INDIRECT("'"&Mercados!H2&"'!k:k"), "d") -> 2 | O29: =COUNTIFS(INDIRECT("'"&Mercados!H2&"'!D:D"), M4, INDIRECT("'"&Mercados!H2&"'!k:k"), "a")+COUNTIFS(INDIRECT("'"&Mercados!H2&"'!e:e"), M4, INDIRECT("'"&Mercados!H2&"'!k:k"), "h") -> 4
C30: SH | D30: Victoria | E30: Empate | F30: Derrotas | L30: SH | M30: Victoria | N30: Empate | O30: Derrotas
C31: % | D31: =D32/$E$8 -> 66.67% | E31: =E32/$E$8 -> 16.67% | F31: =F32/E$8 -> 16.67% | L31: % | M31: =M32/$N$8 -> 50.00% | N31: =N32/$N$8 -> 0.00% | O31: 50.00%
C32: Nro de partidos | D32: =COUNTIFS('lista de equipos'!Y:Y, D4, 'lista de equipos'!AC:AC, "H")+COUNTIFS('lista de equipos'!Z:Z, D4, 'lista de equipos'!AC:AC, "a") -> 4 | E32: =COUNTIFS('lista de equipos'!Y:Y, D4, 'lista de equipos'!AC:AC, "d")+COUNTIFS('lista de equipos'!Z:Z, D4, 'lista de equipos'!AC:AC, "d") -> 1 | F32: =COUNTIFS('lista de equipos'!Y:Y, D4, 'lista de equipos'!AC:AC, "a")+COUNTIFS('lista de equipos'!Z:Z, D4, 'lista de equipos'!AC:AC, "h") -> 1 | L32: Nro de partidos | M32: =COUNTIFS('lista de equipos'!Y:Y, M4, 'lista de equipos'!AC:AC, "H")+COUNTIFS('lista de equipos'!Z:Z, M4, 'lista de equipos'!AC:AC, "a") -> 3 | N32: =COUNTIFS('lista de equipos'!Y:Y, M4, 'lista de equipos'!AC:AC, "d")+COUNTIFS('lista de equipos'!Z:Z, M4, 'lista de equipos'!AC:AC, "d") -> 0 | O32: =COUNTIFS('lista de equipos'!Y:Y, M4, 'lista de equipos'!AC:AC, "a")+COUNTIFS('lista de equipos'!Z:Z, M4, 'lista de equipos'!AC:AC, "h") -> 3
G35: Estadisticas de goles anotados y recibidos
D36: Goles Anotados | M36: Goles Anotados
D37: FT | E37: Ht | F37: SH | M37: FT | N37: HT | O37: SH
C38: jugando de Local | D38: =SUMIFS(INDIRECT("'"&Mercados!H2&"'!F:F"), INDIRECT("'"&Mercados!H2&"'!D:D"),D4) -> 8 | E38: =SUMIFS(INDIRECT("'"&Mercados!H2&"'!i:i"), INDIRECT("'"&Mercados!H2&"'!D:D"),D4) -> 6 | F38: =SUMIFS('lista de equipos'!AA:AA,'lista de equipos'!Y:Y, D4) -> 2 | L38: jugando de Visitante | M38: =SUMIFS(INDIRECT("'"&Mercados!H2&"'!g:g"), INDIRECT("'"&Mercados!H2&"'!e:e"),M4) -> 4 | N38: =SUMIFS(INDIRECT("'"&Mercados!H2&"'!j:j"), INDIRECT("'"&Mercados!H2&"'!e:e"),M4) -> 0 | O38: =SUMIFS('lista de equipos'!AB:AB,'lista de equipos'!Z:Z, M4) -> 4
C39: total de goles anotados | D39: =SUMIFS(INDIRECT("'"&Mercados!H2&"'!F:F"), INDIRECT("'"&Mercados!H2&"'!D:D"),D4)+SUMIFS(INDIRECT("'"&Mercados!H2&"'!g:g"), INDIRECT("'"&Mercados!H2&"'!e:e"),D4) -> 14 | E39: =SUMIFS(INDIRECT("'"&Mercados!H2&"'!i:i"), INDIRECT("'"&Mercados!H2&"'!D:D"),D4)+SUMIFS(INDIRECT("'"&Mercados!H2&"'!j:j"), INDIRECT("'"&Mercados!H2&"'!e:e"),D4) -> 10 | F39: =SUMIFS('lista de equipos'!AA:AA,'lista de equipos'!Y:Y, D4)+SUMIFS('lista de equipos'!AB:AB,'lista de equipos'!Z:Z, D4) -> 4 | L39: Total de goles anotados | M39: =SUMIFS(INDIRECT("'"&Mercados!H2&"'!F:F"), INDIRECT("'"&Mercados!H2&"'!D:D"),M4)+SUMIFS(INDIRECT("'"&Mercados!H2&"'!g:g"), INDIRECT("'"&Mercados!H2&"'!e:e"),M4) -> 6 | N39: =SUMIFS(INDIRECT("'"&Mercados!H2&"'!i:i"), INDIRECT("'"&Mercados!H2&"'!D:D"),M4)+SUMIFS(INDIRECT("'"&Mercados!H2&"'!j:j"), INDIRECT("'"&Mercados!H2&"'!e:e"),M4) -> 2 | O39: =SUMIFS('lista de equipos'!AA:AA,'lista de equipos'!Y:Y, M4)+SUMIFS('lista de equipos'!AB:AB,'lista de equipos'!Z:Z, M4) -> 4
D41: promedio de Goles Anotados | M41: Promedio de goles anotados
D42: FT | E42: Ht | F42: SH | M42: FT | N42: HT | O42: SH
C43: jugando de Local | D43: =D38/$E$9 -> 2.67 | E43: =E38/$E$9 -> 2.00 | F43: =F38/$E$9 -> 0.67 | L43: jugando de Visitante | M43: =M38/$N$9 -> 1.33 | N43: =N38/$N$9 -> 0.00 | O43: =O38/$N$9 -> 1.33
C44: Prom goles anotados | D44: =D39/$E$8 -> 2.33 | E44: =E39/$E$8 -> 1.67 | F44: =F39/$E$8 -> 0.67 | L44: Prom goles anotados | M44: =M39/$N$8 -> 1.00 | N44: =N39/$N$8 -> 0.33 | O44: =O39/$N$8 -> 0.67
D46: Goles recibidos | M46: Goles recibidos
D47: FT | E47: Ht | F47: SH | M47: FT | N47: Ht | O47: SH
C48: Jugando de Local | D48: =SUMIFS(INDIRECT("'"&Mercados!H2&"'!g:g"), INDIRECT("'"&Mercados!H2&"'!D:D"),D4) -> 4 | E48: =SUMIFS(INDIRECT("'"&Mercados!H2&"'!j:j"), INDIRECT("'"&Mercados!H2&"'!D:D"),D4) -> 4 | F48: =SUMIFS('lista de equipos'!AB:AB,'lista de equipos'!Y:Y, D4) -> 0 | L48: jugando de Visitante | M48: =SUMIFS(INDIRECT("'"&Mercados!H2&"'!f:f"), INDIRECT("'"&Mercados!H2&"'!e:e"),M4) -> 2 | N48: =SUMIFS(INDIRECT("'"&Mercados!H2&"'!i:i"), INDIRECT("'"&Mercados!H2&"'!e:e"),M4) -> 2 | O48: =SUMIFS('lista de equipos'!AA:AA,'lista de equipos'!Z:Z, M4) -> 0
C49: Total de goles Recibidos | D49: =SUMIFS(INDIRECT("'"&Mercados!H2&"'!g:g"), INDIRECT("'"&Mercados!H2&"'!D:D"),D4)+SUMIFS(INDIRECT("'"&Mercados!H2&"'!f:f"), INDIRECT("'"&Mercados!H2&"'!e:e"),D4) -> 6 | E49: =SUMIFS(INDIRECT("'"&Mercados!H2&"'!j:j"), INDIRECT("'"&Mercados!H2&"'!D:D"),D4)+SUMIFS(INDIRECT("'"&Mercados!H2&"'!i:i"), INDIRECT("'"&Mercados!H2&"'!e:e"),D4) -> 5 | F49: =SUMIFS('lista de equipos'!AB:AB,'lista de equipos'!Y:Y, D4)+SUMIFS('lista de equipos'!AA:AA,'lista de equipos'!Z:Z, D4) -> 1 | L49: total de goles Recibidos | M49: =SUMIFS(INDIRECT("'"&Mercados!H2&"'!g:g"), INDIRECT("'"&Mercados!H2&"'!D:D"),M4)+SUMIFS(INDIRECT("'"&Mercados!H2&"'!f:f"), INDIRECT("'"&Mercados!H2&"'!e:e"),M4) -> 10 | N49: =SUMIFS(INDIRECT("'"&Mercados!H2&"'!j:j"), INDIRECT("'"&Mercados!H2&"'!D:D"),M4)+SUMIFS(INDIRECT("'"&Mercados!H2&"'!i:i"), INDIRECT("'"&Mercados!H2&"'!e:e"),M4) -> 7 | O49: =SUMIFS('lista de equipos'!AB:AB,'lista de equipos'!Y:Y, M4)+SUMIFS('lista de equipos'!AA:AA,'lista de equipos'!Z:Z, M4) -> 3
D51: promedio de Goles Recibidos | M51: promedio de Goles Recibidos
D52: FT | E52: Ht | F52: SH | M52: FT | N52: Ht | O52: SH
C53: jugando de Local | D53: =D48/$E$9 -> 1.333 | E53: =E48/$E$9 -> 1.333 | F53: =F48/$E$9 -> 0.000 | L53: jugando de Visitante | M53: =M48/$N$9 -> 0.667 | N53: =N48/$N$9 -> 0.667 | O53: 0.000
C54: total de goles anotados | D54: =D49/$E$8 -> 1.000 | E54: =E49/$E$8 -> 0.833 | F54: =F49/$E$8 -> 0.167 | L54: total de goles anotados | M54: =M49/$N$8 -> 1.667 | N54: =N49/$N$8 -> 1.167 | O54: 0.500
E60: OVER/UNDER | N60: OVER/UNDER FT
D61: OVER | F61: Under | M61: OVER | O61: Under
C62: 0.5 | D62: =E9-F62 -> 3 | E62: =D62/$E$9 -> 100.00% | F62: =C304 -> 0 | G62: =F62/$E$9 -> 0.00% | L62: 0.5 | M62: =$N$9-O62 -> 3 | N62: =M62/$N$9 -> 100.00% | O62: =L304 -> 0 | P62: =O62/$N$9 -> 0.00%
C63: 1.5 | D63: =E9-F63 -> 3 | E63: =D63/$E$9 -> 100.00% | F63: =B299+C304+B309 -> 0 | G63: =F63/$E$9 -> 0.00% | L63: 1.5 | M63: =$N$9-O63 -> 3 | N63: =M63/$N$9 -> 100.00% | O63: =K299+L304+K309 -> 0 | P63: =O63/$N$9 -> 0.00%
C64: 2.5 | D64: =E9-F64 -> 3 | E64: 100.00% | F64: =SUM(B299:C299)+SUM(C304:D304)+SUM(B309:C309) -> 0 | G64: 0.00% | L64: 2.5 | M64: 0 | N64: 0.00% | O64: =SUM(K299:L299)+SUM(L304:M304)+SUM(K309:L309) -> 3 | P64: 100.00%
C65: 3.5 | D65: =E9-F65 -> 2 | E65: 66.67% | F65: =SUM(B299:E299)+SUM(C304:D304)+SUM(B309:E309) -> 1 | G65: 33.33% | L65: 3.5 | M65: 0 | N65: 0.00% | O65: =SUM(K299:M299)+SUM(L304:M304)+SUM(K309:M309) -> 3 | P65: 100.00%
C66: 4.5 | D66: =E9-F66 -> 1 | E66: =D66/$E$9 -> 33.33% | F66: =SUM(B299:F299)+SUM(C304:E304)+SUM(B309:F309) -> 2 | G66: 66.67% | L66: 4.5 | M66: 0 | N66: 0.00% | O66: =SUM(K299:O299)+SUM(L304:N304)+SUM(K309:O309) -> 3 | P66: 100.00%
D68: OVER | F68: Under | M68: OVER | O68: Under
C69: 0.5 | D69: =$E$9-F69 -> 3 | E69: =D69/$E$9 -> 100.00% | F69: =C339 -> 0 | G69: =F69/$E$9 -> 0.00% | L69: 0.5 | M69: =$N$9-O69 -> 2 | N69: =M69/$N$9 -> 66.67% | O69: =M339 -> 1 | P69: =O69/$N$9 -> 33.33%
C70: 1.5 | D70: =$E$9-F70 -> 3 | E70: =D70/$E$9 -> 100.00% | F70: =B316+C321+B326 -> 0 | G70: =F70/$E$9 -> 0.00% | L70: 1.5 | M70: =$N$9-O70 -> 0 | N70: =M70/$N$9 -> 0.00% | O70: =M339+M334+M344 -> 3 | P70: =O70/$N$9 -> 100.00%
C71: 2.5 | D71: 3 | E71: 100.00% | F71: =C334+D334+C339+D339+C344+D344 -> 0 | G71: =F71/$E$9 -> 0.00% | L71: 2.5 | M71: 0 | N71: 0.00% | O71: =M334+N334+N339+M339+M344+N344 -> 3 | P71: 100.00%
D73: OVER | F73: Under | M73: OVER | O73: Under
C74: 0.5 | D74: =$E$9-F74 -> 2 | E74: =D74/$E$9 -> 66.67% | F74: =C373 -> 1 | G74: =F74/$E$9 -> 33.33% | L74: 0.5 | M74: =$N$9-O74 -> 3 | N74: =M74/$N$9 -> 100.00% | O74: =M373 -> 0 | P74: =O74/$N$9 -> 0.00%
C75: 1.5 | D75: 0 | E75: 0.00% | F75: =C368+C373+C378 -> 3 | G75: 100.00% | L75: 1.5 | M75: 1 | N75: 33.33% | O75: =M368+M373+M378 -> 2 | P75: 66.67%
C76: 2.5 | D76: 0 | E76: 0.00% | F76: =C368+D368+C373+D373+C378+D378 -> 3 | G76: 100.00% | L76: 2.5 | M76: 0 | N76: 0.00% | O76: =N368+M368+M373+N373+M378+N378 -> 3 | P76: 100.00%
E80: OVER/UNDER FT | N80: OVER/UNDER FT
D81: OVER | F81: Under | M81: OVER | O81: Under
C82: 0.5 | D82: =$E$8-F82 -> 6 | E82: =D82/$E$8 -> 100.00% | F82: =C321 -> 0 | G82: =F82/$E$8 -> 0.00% | L82: 0.5 | M82: =$N$8-O82 -> 6 | N82: =M82/$N$8 -> 100.00% | O82: =L321 -> 0 | P82: =O82/$N$8 -> 0.00%
C83: 1.5 | D83: =$E$8-F83 -> 6 | E83: =D83/$E$8 -> 100.00% | F83: =B316+C321+B326 -> 0 | G83: =F83/$E$8 -> 0.00% | L83: 1.5 | M83: =$N$8-O83 -> 6 | N83: =M83/$N$8 -> 100.00% | O83: =K316+L321+K326 -> 0 | P83: 0.00%
C84: 2.5 | D84: 4 | E84: 66.67% | F84: =SUM(B316:C316)+SUM(C321:D321)+SUM(B326:C326) -> 2 | G84: 33.33% | L84: 2.5 | M84: 3 | N84: 50.00% | O84: =SUM(K316:L316)+SUM(L321:M321)+SUM(K326:L326) -> 3 | P84: 50.00%
C85: 3.5 | D85: 3 | E85: 50.00% | F85: =SUM(B316:E316)+SUM(C321:D321)+SUM(B326:E326) -> 3 | G85: 50.00% | L85: 3.5 | M85: =$N$8-O85 -> 1 | N85: 16.67% | O85: =SUM(K316:N316)+SUM(L321:M321)+SUM(K326:N326) -> 5 | P85: 83.33%
C86: 4.5 | D86: 1 | E86: 16.67% | F86: =SUM(B316:F316)+SUM(C321:E321)+SUM(B326:F326) -> 5 | G86: 83.33% | L86: 4.5 | M86: 0 | N86: 0.00% | O86: =SUM(K316:O316)+SUM(L321:N321)+SUM(K326:O326) -> 6 | P86: 100.00%
D88: OVER | F88: Under | M88: OVER | O88: Under
C89: 0.5 | D89: =$E$8-F89 -> 6 | E89: =D89/$E$8 -> 100.00% | F89: =C356 -> 0 | G89: =F89/$E$8 -> 0.00% | L89: 0.5 | M89: =$N$8-O89 -> 5 | N89: =M89/$N$8 -> 83.33% | O89: =M356 -> 1 | P89: =O89/$N$8 -> 16.67%
C90: 1.5 | D90: =$E$8-F90 -> 4 | E90: =D90/$E$8 -> 66.67% | F90: =C351+C356+C361 -> 2 | G90: =F90/$E$8 -> 33.33% | L90: 1.5 | M90: =$N$8-O90 -> 3 | N90: =M90/$N$8 -> 50.00% | O90: =M351+M356+M361 -> 3 | P90: 50.00%
C91: 2.5 | D91: 4 | E91: 66.67% | F91: =D351+C351+C356+D356+D361+C361 -> 2 | G91: 33.33% | L91: 2.5 | M91: 1 | N91: 16.67% | O91: =N351+N356+N361+M361+M356+M351 -> 5 | P91: 83.33%
D93: OVER | F93: Under | M93: OVER | O93: Under
C94: 0.5 | D94: =$E$8-F94 -> 5 | E94: =D94/$E$8 -> 83.33% | F94: =C390 -> 1 | G94: =F94/$E$8 -> 16.67% | L94: 0.5 | M94: =$N$8-O94 -> 6 | N94: =M94/$N$8 -> 100.00% | O94: =M390 -> 0 | P94: =O94/$N$8 -> 0.00%
C95: 1.5 | D95: =$E$8-F95 -> 0 | E95: =D95/$E$8 -> 0.00% | F95: =C385+C390+C395 -> 6 | G95: 100.00% | L95: 1.5 | M95: 1 | N95: 16.67% | O95: =M385+M390+M395 -> 5 | P95: 83.33%
C96: 2.5 | D96: =$E$8-F96 -> 0 | E96: 0.00% | F96: =C385+D385+C390+D390+C395+D395 -> 6 | G96: 100.00% | L96: 2.5 | M96: 0 | N96: 0.00% | O96: =M385+N385+M390+N390+M395+N395 -> 6 | P96: 100.00%
C101: Local | H101: Goles esperados tiempo completo | M101: Visitante
C102: goles marcado | D102: Veces que sucedio | E102: goles recibidos | F102: Veces que sucedio | H102: Local | I102: % acierto | J102: Visitante | K102: % acierto | M102: goles marcado | N102: Veces que sucedio | O102: goles recibidos | P102: Veces que sucedio
C103: 0 | D103: =COUNTIFS(INDIRECT("'"&Mercados!H2&"'!D:D"), D4, INDIRECT("'"&Mercados!H2&"'!F:F"), 0) -> 0 | E103: 0 | F103: =COUNTIFS(INDIRECT("'"&Mercados!H2&"'!d:d"), D4, INDIRECT("'"&Mercados!H2&"'!g:g"), 0) -> 0 | H103: 0 | I103: =(D103+P103)/(SUM(D103:D107)+SUM(P103:P107)) -> 16.67% | J103: 0 | K103: =(F103+N103)/(SUM(F103:F107)+SUM(N103:N107)) -> 0.00% | M103: 0 | N103: =COUNTIFS(INDIRECT("'"&Mercados!H2&"'!e:e"), M4, INDIRECT("'"&Mercados!H2&"'!g:g"), 0) -> 0 | O103: 0 | P103: =COUNTIFS(INDIRECT("'"&Mercados!H2&"'!e:e"), M4, INDIRECT("'"&Mercados!H2&"'!f:f"), 0) -> 1
C104: 1 | D104: =COUNTIFS(INDIRECT("'"&Mercados!H2&"'!D:D"), D4, INDIRECT("'"&Mercados!H2&"'!F:F"), 1) -> 0 | E104: 1 | F104: =COUNTIFS(INDIRECT("'"&Mercados!H2&"'!d:d"), D4, INDIRECT("'"&Mercados!H2&"'!g:g"), 1) -> 2 | H104: 1 | I104: =(D104+P104)/(SUM(D103:D107)+SUM(P103:P107)) -> 33.33% | J104: 1 | K104: =(F104+N104)/(SUM(F103:F107)+SUM(N103:N107)) -> 66.67% | M104: 1 | N104: =COUNTIFS(INDIRECT("'"&Mercados!H2&"'!e:e"), M4, INDIRECT("'"&Mercados!H2&"'!g:g"),1) -> 2 | O104: 1 | P104: =COUNTIFS(INDIRECT("'"&Mercados!H2&"'!e:e"), M4, INDIRECT("'"&Mercados!H2&"'!f:f"), 1) -> 2
C105: 2 | D105: =COUNTIFS(INDIRECT("'"&Mercados!H2&"'!D:D"),D4,INDIRECT("'"&Mercados!H2&"'!F:F"),2) -> 2 | E105: 2 | F105: =COUNTIFS(INDIRECT("'"&Mercados!H2&"'!d:d"), D4, INDIRECT("'"&Mercados!H2&"'!g:g"), 2) -> 1 | H105: 2 | I105: =(D105+P105)/(SUM(D103:D107)+SUM(P103:P107)) -> 33.33% | J105: 2 | K105: =(F105+N105)/(SUM(F103:F107)+SUM(N103:N107)) -> 33.33% | M105: 2 | N105: =COUNTIFS(INDIRECT("'"&Mercados!H2&"'!e:e"), M4, INDIRECT("'"&Mercados!H2&"'!g:g"), 2) -> 1 | O105: 2 | P105: =COUNTIFS(INDIRECT("'"&Mercados!H2&"'!e:e"), M4, INDIRECT("'"&Mercados!H2&"'!f:f"), 2) -> 0
C106: 3 | D106: =COUNTIFS(INDIRECT("'"&Mercados!H2&"'!D:D"), D4, INDIRECT("'"&Mercados!H2&"'!F:F"), 3) -> 0 | E106: 3 | F106: =COUNTIFS(INDIRECT("'"&Mercados!H2&"'!d:d"), D4, INDIRECT("'"&Mercados!H2&"'!g:g"), 3) -> 0 | H106: 3 | I106: =(D106+P106)/(SUM(D103:D107)+SUM(P103:P107)) -> 0.00% | J106: 3 | K106: =(F106+N106)/(SUM(F103:F107)+SUM(N103:N107)) -> 0.00% | M106: 3 | N106: =COUNTIFS(INDIRECT("'"&Mercados!H2&"'!e:e"), M4, INDIRECT("'"&Mercados!H2&"'!g:g"), 3) -> 0 | O106: 3 | P106: =COUNTIFS(INDIRECT("'"&Mercados!H2&"'!e:e"), M4, INDIRECT("'"&Mercados!H2&"'!f:f"), 3) -> 0
C107: 4 o mas | D107: =COUNTIFS(INDIRECT("'"&Mercados!H2&"'!D:D"), D4, INDIRECT("'"&Mercados!H2&"'!F:F"), ">=4") -> 1 | E107: 4 o mas | F107: =COUNTIFS(INDIRECT("'"&Mercados!H2&"'!d:d"), D4, INDIRECT("'"&Mercados!H2&"'!g:g"), ">=4") -> 0 | H107: 4 o mas | I107: =(D107+P107)/(SUM(D103:D107)+SUM(P103:P107)) -> 16.67% | J107: 4 o mas | K107: =(F107+N107)/(SUM(F103:F107)+SUM(N103:N107)) -> 0.00% | M107: 4 o mas | N107: =COUNTIFS(INDIRECT("'"&Mercados!H2&"'!e:e"), M4, INDIRECT("'"&Mercados!H2&"'!g:g"), ">=4") -> 0 | O107: 4 o mas | P107: =COUNTIFS(INDIRECT("'"&Mercados!H2&"'!e:e"), M4, INDIRECT("'"&Mercados!H2&"'!f:f"), ">=4") -> 0
C111: Local | H111: Goles esperados tiempo completo(general) | M111: Visitante
C112: goles marcado | D112: Veces que sucedio | E112: goles recibidos | F112: Veces que sucedio | H112: Local | I112: % acierto | J112: Visitante | K112: % acierto | M112: goles marcado | N112: Veces que sucedio | O112: goles recibidos | P112: Veces que sucedió
C113: 0 | D113: =COUNTIFS(INDIRECT("'"&Mercados!H2&"'!D:D"), D4, INDIRECT("'"&Mercados!H2&"'!F:F"), 0)+COUNTIFS(INDIRECT("'"&Mercados!H2&"'!E:E"), D4, INDIRECT("'"&Mercados!H2&"'!g:g"), 0) -> 0 | E113: 0 | F113: =COUNTIFS(INDIRECT("'"&Mercados!H2&"'!d:d"), D4, INDIRECT("'"&Mercados!H2&"'!g:g"), 0)+COUNTIFS(INDIRECT("'"&Mercados!H2&"'!e:e"), D4, INDIRECT("'"&Mercados!H2&"'!f:f"), 0) -> 1 | H113: 0 | I113: =(D113+P113)/(SUM(D113:D117)+SUM(P113:P117)) -> 8.33% | J113: 0 | K113: =(F113+N113)/(SUM(F113:F117)+SUM(N113:N117)) -> 16.67% | M113: 0 | N113: =COUNTIFS(INDIRECT("'"&Mercados!H2&"'!D:D"), M4, INDIRECT("'"&Mercados!H2&"'!F:F"), 0)+COUNTIFS(INDIRECT("'"&Mercados!H2&"'!E:E"), M4, INDIRECT("'"&Mercados!H2&"'!g:g"), 0) -> 1 | O113: 0 | P113: =COUNTIFS(INDIRECT("'"&Mercados!H2&"'!d:d"), M4, INDIRECT("'"&Mercados!H2&"'!g:g"), 0)+COUNTIFS(INDIRECT("'"&Mercados!H2&"'!e:e"), M4, INDIRECT("'"&Mercados!H2&"'!f:f"), 0) -> 1
C114: 1 | D114: =COUNTIFS(INDIRECT("'"&Mercados!H2&"'!D:D"), D4, INDIRECT("'"&Mercados!H2&"'!F:F"), 1)+COUNTIFS(INDIRECT("'"&Mercados!H2&"'!E:E"), D4, INDIRECT("'"&Mercados!H2&"'!g:g"), 1) -> 1 | E114: 1 | F114: =COUNTIFS(INDIRECT("'"&Mercados!H2&"'!d:d"), D4, INDIRECT("'"&Mercados!H2&"'!g:g"), 1)+COUNTIFS(INDIRECT("'"&Mercados!H2&"'!e:e"), D4, INDIRECT("'"&Mercados!H2&"'!f:f"), 1) -> 4 | H114: 1 | I114: =(D114+P114)/(SUM(D113:D117)+SUM(P113:P117)) -> 25.00% | J114: 1 | K114: =(F114+N114)/(SUM(F113:F117)+SUM(N113:N117)) -> 66.67% | M114: 1 | N114: =COUNTIFS(INDIRECT("'"&Mercados!H2&"'!D:D"), M4, INDIRECT("'"&Mercados!H2&"'!F:F"), 1)+COUNTIFS(INDIRECT("'"&Mercados!H2&"'!E:E"), M4, INDIRECT("'"&Mercados!H2&"'!g:g"), 1) -> 4 | O114: 1 | P114: =COUNTIFS(INDIRECT("'"&Mercados!H2&"'!d:d"), M4, INDIRECT("'"&Mercados!H2&"'!g:g"), 1)+COUNTIFS(INDIRECT("'"&Mercados!H2&"'!e:e"), M4, INDIRECT("'"&Mercados!H2&"'!f:f"), 1) -> 2
C115: 2 | D115: =COUNTIFS(INDIRECT("'"&Mercados!H2&"'!D:D"), D4, INDIRECT("'"&Mercados!H2&"'!F:F"), 2)+COUNTIFS(INDIRECT("'"&Mercados!H2&"'!E:E"), D4, INDIRECT("'"&Mercados!H2&"'!g:g"), 2) -> 3 | E115: 2 | F115: =COUNTIFS(INDIRECT("'"&Mercados!H2&"'!d:d"), D4, INDIRECT("'"&Mercados!H2&"'!g:g"), 2)+COUNTIFS(INDIRECT("'"&Mercados!H2&"'!e:e"), D4, INDIRECT("'"&Mercados!H2&"'!f:f"), 2) -> 1 | H115: 2 | I115: =(D115+P115)/(SUM(D113:D117)+SUM(P113:P117)) -> 33.33% | J115: 2 | K115: =(F115+N115)/(SUM(F113:F117)+SUM(N113:N117)) -> 16.67% | M115: 2 | N115: =COUNTIFS(INDIRECT("'"&Mercados!H2&"'!D:D"), M4, INDIRECT("'"&Mercados!H2&"'!F:F"), 2)+COUNTIFS(INDIRECT("'"&Mercados!H2&"'!E:E"), M4, INDIRECT("'"&Mercados!H2&"'!g:g"), 2) -> 1 | O115: 2 | P115: =COUNTIFS(INDIRECT("'"&Mercados!H2&"'!d:d"), M4, INDIRECT("'"&Mercados!H2&"'!g:g"), 2)+COUNTIFS(INDIRECT("'"&Mercados!H2&"'!e:e"), M4, INDIRECT("'"&Mercados!H2&"'!f:f"), 2) -> 1
C116: 3 | D116: =COUNTIFS(INDIRECT("'"&Mercados!H2&"'!D:D"), D4, INDIRECT("'"&Mercados!H2&"'!F:F"), 3)+COUNTIFS(INDIRECT("'"&Mercados!H2&"'!E:E"), D4, INDIRECT("'"&Mercados!H2&"'!g:g"), 3) -> 1 | E116: 3 | F116: =COUNTIFS(INDIRECT("'"&Mercados!H2&"'!d:d"), D4, INDIRECT("'"&Mercados!H2&"'!g:g"), 3)+COUNTIFS(INDIRECT("'"&Mercados!H2&"'!e:e"), D4, INDIRECT("'"&Mercados!H2&"'!f:f"), 3) -> 0 | H116: 3 | I116: =(D116+P116)/(SUM(D113:D117)+SUM(P113:P117)) -> 25.00% | J116: 3 | K116: =(F116+N116)/(SUM(F113:F117)+SUM(N113:N117)) -> 0.00% | M116: 3 | N116: =COUNTIFS(INDIRECT("'"&Mercados!H2&"'!D:D"), M4, INDIRECT("'"&Mercados!H2&"'!F:F"), 3)+COUNTIFS(INDIRECT("'"&Mercados!H2&"'!E:E"), M4, INDIRECT("'"&Mercados!H2&"'!g:g"), 3) -> 0 | O116: 3 | P116: =COUNTIFS(INDIRECT("'"&Mercados!H2&"'!d:d"), M4, INDIRECT("'"&Mercados!H2&"'!g:g"), 3)+COUNTIFS(INDIRECT("'"&Mercados!H2&"'!e:e"), M4, INDIRECT("'"&Mercados!H2&"'!f:f"), 3) -> 2
C117: 4 o mas | D117: =COUNTIFS(INDIRECT("'"&Mercados!H2&"'!D:D"), D4, INDIRECT("'"&Mercados!H2&"'!F:F"), ">=4")+COUNTIFS(INDIRECT("'"&Mercados!H2&"'!E:E"), D4, INDIRECT("'"&Mercados!H2&"'!g:g"), ">=4") -> 1 | E117: 4 o mas | F117: =COUNTIFS(INDIRECT("'"&Mercados!H2&"'!d:d"), D4, INDIRECT("'"&Mercados!H2&"'!g:g"), ">=4")+COUNTIFS(INDIRECT("'"&Mercados!H2&"'!e:e"), D4, INDIRECT("'"&Mercados!H2&"'!f:f"), ">=4") -> 0 | H117: 4 o mas | I117: =(D117+P117)/(SUM(D113:D117)+SUM(P113:P117)) -> 8.33% | J117: 4 o mas | K117: =(F117+N117)/(SUM(F113:F117)+SUM(N113:N117)) -> 0.00% | M117: 4 o mas | N117: =COUNTIFS(INDIRECT("'"&Mercados!H2&"'!D:D"), M4, INDIRECT("'"&Mercados!H2&"'!F:F"), ">=4")+COUNTIFS(INDIRECT("'"&Mercados!H2&"'!E:E"), M4, INDIRECT("'"&Mercados!H2&"'!g:g"), ">=4") -> 0 | O117: 4 o mas | P117: =COUNTIFS(INDIRECT("'"&Mercados!H2&"'!d:d"), M4, INDIRECT("'"&Mercados!H2&"'!g:g"), ">=4")+COUNTIFS(INDIRECT("'"&Mercados!H2&"'!e:e"), M4, INDIRECT("'"&Mercados!H2&"'!f:f"), ">=4") -> 0
C121: Local | H121: Goles esperados Primer Tiempo | M121: Visitante
C122: goles marcado | D122: Veces que sucedio | E122: goles recibidos | F122: Veces que sucedio | H122: Local | I122: % acierto | J122: Visitante | K122: % acierto | M122: goles marcado | N122: Veces que sucedio | O122: goles recibidos | P122: Veces que sucedio
C123: 0 | D123: =COUNTIFS(INDIRECT("'"&Mercados!H2&"'!D:D"), D4, INDIRECT("'"&Mercados!H2&"'!i:i"), 0) -> 0 | E123: 0 | F123: =COUNTIFS(INDIRECT("'"&Mercados!H2&"'!d:d"), D4, INDIRECT("'"&Mercados!H2&"'!j:j"), 0) -> 0 | H123: 0 | I123: =(D123+P123)/(SUM(F$123:F$126)+SUM(P$123:P$126)) -> 16.67% | J123: 0 | K123: =(F123+N123)/(SUM($F$123:$F$126)+SUM($N$123:$N$126)) -> 50.00% | M123: 0 | N123: =COUNTIFS(INDIRECT("'"&Mercados!H2&"'!e:e"), M4, INDIRECT("'"&Mercados!H2&"'!j:j"), 0) -> 3 | O123: 0 | P123: =COUNTIFS(INDIRECT("'"&Mercados!H2&"'!e:e"), M4, INDIRECT("'"&Mercados!H2&"'!i:i"), 0) -> 1
C124: 1 | D124: =COUNTIFS(INDIRECT("'"&Mercados!H2&"'!D:D"), D4, INDIRECT("'"&Mercados!H2&"'!i:i"), 1) -> 1 | E124: 1 | F124: =COUNTIFS(INDIRECT("'"&Mercados!H2&"'!d:d"), D4, INDIRECT("'"&Mercados!H2&"'!j:j"), 1) -> 2 | H124: 1 | I124: =(D124+P124)/(SUM(F$123:F$126)+SUM(P$123:P$126)) -> 50.00% | J124: 1 | K124: =(F124+N124)/(SUM($F$123:$F$126)+SUM($N$123:$N$126)) -> 33.33% | M124: 1 | N124: =COUNTIFS(INDIRECT("'"&Mercados!H2&"'!e:e"), M4, INDIRECT("'"&Mercados!H2&"'!j:j"), 1) -> 0 | O124: 1 | P124: =COUNTIFS(INDIRECT("'"&Mercados!H2&"'!e:e"), M4, INDIRECT("'"&Mercados!H2&"'!i:i"), 1) -> 2
C125: 2 | D125: =COUNTIFS(INDIRECT("'"&Mercados!H2&"'!D:D"), D4, INDIRECT("'"&Mercados!H2&"'!i:i"), 2) -> 1 | E125: 2 | F125: =COUNTIFS(INDIRECT("'"&Mercados!H2&"'!d:d"), D4, INDIRECT("'"&Mercados!H2&"'!j:j"), 2) -> 1 | H125: 2 | I125: 16.67% | J125: 2 | K125: =(F125+N125)/(SUM($F$123:$F$126)+SUM($N$123:$N$126)) -> 16.67% | M125: 2 | N125: =COUNTIFS(INDIRECT("'"&Mercados!H2&"'!e:e"), M4, INDIRECT("'"&Mercados!H2&"'!j:j"), 2) -> 0 | O125: 2 | P125: =COUNTIFS(INDIRECT("'"&Mercados!H2&"'!e:e"), M4, INDIRECT("'"&Mercados!H2&"'!i:i"),2) -> 0
C126: 3 o mas | D126: =COUNTIFS(INDIRECT("'"&Mercados!H2&"'!D:D"), D4, INDIRECT("'"&Mercados!H2&"'!i:i"), ">=3") -> 1 | E126: 3 o mas | F126: =COUNTIFS(INDIRECT("'"&Mercados!H2&"'!d:d"), D4, INDIRECT("'"&Mercados!H2&"'!j:j"), ">=3") -> 0 | H126: 3 o mas | I126: =(D126+P126)/(SUM(F$123:F$126)+SUM(P$123:P$126)) -> 16.67% | J126: 3 o mas | K126: 0.00% | M126: 3 o mas | N126: =COUNTIFS(INDIRECT("'"&Mercados!H2&"'!e:e"), M4, INDIRECT("'"&Mercados!H2&"'!j:j"), ">=3") -> 0 | O126: 3 o mas | P126: =COUNTIFS(INDIRECT("'"&Mercados!H2&"'!e:e"), M4, INDIRECT("'"&Mercados!H2&"'!i:i"), ">=3") -> 0
C130: Local | H130: Goles esperados Primer Tiempo(general) | M130: Visitante
C131: goles marcado | D131: Veces que sucedio | E131: goles recibidos | F131: Veces que sucedio | H131: Local | I131: % acierto | J131: Visitante | K131: % acierto | M131: goles marcado | N131: Veces que sucedio | O131: goles recibidos | P131: Veces que sucedio
C132: 0 | D132: =COUNTIFS(INDIRECT("'"&Mercados!H2&"'!e:e"), D4, INDIRECT("'"&Mercados!H2&"'!j:j"), 0)+COUNTIFS(INDIRECT("'"&Mercados!H2&"'!d:d"), D4, INDIRECT("'"&Mercados!H2&"'!i:i"), 0) -> 0 | E132: 0 | F132: =COUNTIFS(INDIRECT("'"&Mercados!H2&"'!e:e"), D4, INDIRECT("'"&Mercados!H2&"'!i:i"), 0)+COUNTIFS(INDIRECT("'"&Mercados!H2&"'!d:d"), D4, INDIRECT("'"&Mercados!H2&"'!J:J"), 0) -> 2 | H132: 0 | I132: =(D132+P132)/(SUM(F$132:F$135)+SUM(P$132:P$135)) -> 8.33% | J132: 0 | K132: =(F132+N132)/(SUM($F$132:$F$135)+SUM($N$132:$N$135)) -> 50.00% | M132: 0 | N132: =COUNTIFS(INDIRECT("'"&Mercados!H2&"'!e:e"), M4, INDIRECT("'"&Mercados!H2&"'!j:j"), 0)+COUNTIFS(INDIRECT("'"&Mercados!H2&"'!d:d"), M4, INDIRECT("'"&Mercados!H2&"'!i:i"), 0) -> 4 | O132: 0 | P132: =COUNTIFS(INDIRECT("'"&Mercados!H2&"'!e:e"), M4, INDIRECT("'"&Mercados!H2&"'!i:i"), 0)+COUNTIFS(INDIRECT("'"&Mercados!H2&"'!d:d"), M4, INDIRECT("'"&Mercados!H2&"'!J:J"), 0) -> 1
C133: 1 | D133: =COUNTIFS(INDIRECT("'"&Mercados!H2&"'!e:e"), D4, INDIRECT("'"&Mercados!H2&"'!j:j"), 1)+COUNTIFS(INDIRECT("'"&Mercados!H2&"'!d:d"), D4, INDIRECT("'"&Mercados!H2&"'!i:i"), 1) -> 3 | E133: 1 | F133: =COUNTIFS(INDIRECT("'"&Mercados!H2&"'!e:e"), D4, INDIRECT("'"&Mercados!H2&"'!i:i"), 1)+COUNTIFS(INDIRECT("'"&Mercados!H2&"'!d:d"), D4, INDIRECT("'"&Mercados!H2&"'!J:J"), 1) -> 3 | H133: 1 | I133: =(D133+P133)/(SUM(F$132:F$135)+SUM(P$132:P$135)) -> 50.00% | J133: 1 | K133: =(F133+N133)/(SUM($F$132:$F$135)+SUM($N$132:$N$135)) -> 41.67% | M133: 1 | N133: =COUNTIFS(INDIRECT("'"&Mercados!H2&"'!e:e"), M4, INDIRECT("'"&Mercados!H2&"'!j:j"), 1)+COUNTIFS(INDIRECT("'"&Mercados!H2&"'!d:d"), M4, INDIRECT("'"&Mercados!H2&"'!i:i"), 1) -> 2 | O133: 1 | P133: =COUNTIFS(INDIRECT("'"&Mercados!H2&"'!e:e"), M4, INDIRECT("'"&Mercados!H2&"'!i:i"), 1)+COUNTIFS(INDIRECT("'"&Mercados!H2&"'!d:d"), M4, INDIRECT("'"&Mercados!H2&"'!J:J"), 1) -> 3
C134: 2 | D134: =COUNTIFS(INDIRECT("'"&Mercados!H2&"'!e:e"), D4, INDIRECT("'"&Mercados!H2&"'!j:j"), 2)+COUNTIFS(INDIRECT("'"&Mercados!H2&"'!d:d"), D4, INDIRECT("'"&Mercados!H2&"'!i:i"), 2) -> 2 | E134: 2 | F134: =COUNTIFS(INDIRECT("'"&Mercados!H2&"'!e:e"), D4, INDIRECT("'"&Mercados!H2&"'!i:i"), 2)+COUNTIFS(INDIRECT("'"&Mercados!H2&"'!d:d"), D4, INDIRECT("'"&Mercados!H2&"'!J:J"), 2) -> 1 | H134: 2 | I134: 33.33% | J134: 2 | K134: 8.33% | M134: 2 | N134: =COUNTIFS(INDIRECT("'"&Mercados!H2&"'!e:e"), M4, INDIRECT("'"&Mercados!H2&"'!j:j"), 2)+COUNTIFS(INDIRECT("'"&Mercados!H2&"'!d:d"), M4, INDIRECT("'"&Mercados!H2&"'!i:i"), 2) -> 0 | O134: 2 | P134: =COUNTIFS(INDIRECT("'"&Mercados!H2&"'!e:e"), M4, INDIRECT("'"&Mercados!H2&"'!i:i"), 2)+COUNTIFS(INDIRECT("'"&Mercados!H2&"'!d:d"), M4, INDIRECT("'"&Mercados!H2&"'!J:J"), 2) -> 2
C135: 3 o mas | D135: =COUNTIFS(INDIRECT("'"&Mercados!H2&"'!e:e"), D4, INDIRECT("'"&Mercados!H2&"'!j:j"), ">=3")+COUNTIFS(INDIRECT("'"&Mercados!H2&"'!d:d"), D4, INDIRECT("'"&Mercados!H2&"'!i:i"), ">=3") -> 1 | E135: 3 o mas | F135: =COUNTIFS(INDIRECT("'"&Mercados!H2&"'!e:e"), D4, INDIRECT("'"&Mercados!H2&"'!i:i"), ">=3")+COUNTIFS(INDIRECT("'"&Mercados!H2&"'!d:d"), D4, INDIRECT("'"&Mercados!H2&"'!J:J"), ">=3") -> 0 | H135: 3 o mas | I135: 8.33% | J135: 3 o mas | K135: 0.00% | M135: 3 o mas | N135: =COUNTIFS(INDIRECT("'"&Mercados!H2&"'!e:e"), M4, INDIRECT("'"&Mercados!H2&"'!j:j"), ">=3")+COUNTIFS(INDIRECT("'"&Mercados!H2&"'!d:d"), M4, INDIRECT("'"&Mercados!H2&"'!i:i"), ">=3") -> 0 | O135: 3 o mas | P135: =COUNTIFS(INDIRECT("'"&Mercados!H2&"'!e:e"), M4, INDIRECT("'"&Mercados!H2&"'!i:i"), ">=3")+COUNTIFS(INDIRECT("'"&Mercados!H2&"'!d:d"), M4, INDIRECT("'"&Mercados!H2&"'!J:J"), ">=3") -> 0
C139: Local | H139: Goles esperados segundo Tiempo | M139: Visitante
C140: goles marcado | D140: Veces que sucedio | E140: goles recibidos | F140: Veces que sucedio | H140: Local | I140: % acierto | J140: Visitante | K140: % acierto | M140: goles marcado | N140: Veces que sucedio | O140: goles recibidos | P140: Veces que sucedio
C141: 0 | D141: =COUNTIFS('lista de equipos'!Y:Y, D4, 'lista de equipos'!AA:AA, 0) -> 1 | E141: 0 | F141: =COUNTIFS('lista de equipos'!Y:Y, D4, 'lista de equipos'!AB:AB, 0) -> 3 | H141: 0 | I141: =(D141+P141)/(SUM(F$141:F$144)+SUM(P$141:P$144)) -> 66.67% | J141: 0 | K141: =(F141+N141)/(SUM($F$141:$F$144)+SUM($N$141:$N$144)) -> 50.00% | M141: 0 | N141: =COUNTIFS('lista de equipos'!Z:Z, M4, 'lista de equipos'!AB:AB, 0) -> 0 | O141: 0 | P141: =COUNTIFS('lista de equipos'!Z:Z, M4, 'lista de equipos'!AA:AA, 0) -> 3
C142: 1 | D142: =COUNTIFS('lista de equipos'!Y:Y, D4, 'lista de equipos'!AA:AA, 1) -> 2 | E142: 1 | F142: =COUNTIFS('lista de equipos'!Y:Y, D4, 'lista de equipos'!AB:AB, 1) -> 0 | H142: 1 | I142: =(D142+P142)/(SUM(F$141:F$144)+SUM(P$141:P$144)) -> 33.33% | J142: 1 | K142: =(F142+N142)/(SUM($F$141:$F$144)+SUM($N$141:$N$144)) -> 33.33% | M142: 1 | N142: =COUNTIFS('lista de equipos'!Z:Z, M4, 'lista de equipos'!AB:AB, 1) -> 2 | O142: 1 | P142: =COUNTIFS('lista de equipos'!Z:Z, M4, 'lista de equipos'!AA:AA, 1) -> 0
C143: 2 | D143: =COUNTIFS('lista de equipos'!Y:Y, D4, 'lista de equipos'!AA:AA, 2) -> 0 | E143: 2 | F143: =COUNTIFS('lista de equipos'!Y:Y, D4, 'lista de equipos'!AB:AB, 2) -> 0 | H143: 2 | I143: 0.00% | J143: 2 | K143: 16.67% | M143: 2 | N143: =COUNTIFS('lista de equipos'!Z:Z, M4, 'lista de equipos'!AB:AB, 2) -> 1 | O143: 2 | P143: =COUNTIFS('lista de equipos'!Z:Z, M4, 'lista de equipos'!AA:AA, 2) -> 0
C144: 3 o mas | D144: =COUNTIFS('lista de equipos'!Y:Y, D4, 'lista de equipos'!AA:AA, ">=3") -> 0 | E144: 3 o mas | F144: =COUNTIFS('lista de equipos'!Y:Y, D4, 'lista de equipos'!AB:AB, ">=3") -> 0 | H144: 3 o mas | I144: =(D144+P144)/(SUM(F$141:F$144)+SUM(P$141:P$144)) -> 0.00% | J144: 3 o mas | K144: 0.00% | M144: 3 o mas | N144: =COUNTIFS('lista de equipos'!Z:Z, M4, 'lista de equipos'!AB:AB, ">=3") -> 0 | O144: 3 o mas | P144: =COUNTIFS('lista de equipos'!Z:Z, M4, 'lista de equipos'!AA:AA, ">=3") -> 0
C148: Local | H148: Goles esperados segundo Tiempo(General) | M148: Visitante
C149: goles marcado | D149: Veces que sucedio | E149: goles recibidos | F149: Veces que sucedio | H149: Local | I149: % acierto | J149: Visitante | K149: % acierto | M149: goles marcado | N149: Veces que sucedio | O149: goles recibidos | P149: Veces que sucedio
C150: 0 | D150: =COUNTIFS('lista de equipos'!Y:Y, D4, 'lista de equipos'!AA:AA, 0)+COUNTIFS('lista de equipos'!Z:Z, D4, 'lista de equipos'!AB:AB, 0) -> 2 | E150: 0 | F150: =COUNTIFS('lista de equipos'!Y:Y, D4, 'lista de equipos'!AB:AB, 0)+COUNTIFS('lista de equipos'!Z:Z, D4, 'lista de equipos'!AA:AA, 0) -> 5 | H150: 0 | I150: =(D150+P150)/(SUM(F$150:F$153)+SUM(P$150:P$153)) -> 41.67% | J150: 0 | K150: =(F150+N150)/(SUM($F$150:$F$153)+SUM($N$150:$N$153)) -> 66.67% | M150: 0 | N150: =COUNTIFS('lista de equipos'!Y:Y, M4, 'lista de equipos'!AA:AA, 0)+COUNTIFS('lista de equipos'!Z:Z, M4, 'lista de equipos'!AB:AB, 0) -> 3 | O150: 0 | P150: =COUNTIFS('lista de equipos'!Y:Y, M4, 'lista de equipos'!AB:AB, 0)+COUNTIFS('lista de equipos'!Z:Z, M4, 'lista de equipos'!AA:AA, 0) -> 3
C151: 1 | D151: =COUNTIFS('lista de equipos'!Y:Y, D4, 'lista de equipos'!AA:AA, 1)+COUNTIFS('lista de equipos'!Z:Z, D4, 'lista de equipos'!AB:AB, 1) -> 4 | E151: 1 | F151: =COUNTIFS('lista de equipos'!Y:Y, D4, 'lista de equipos'!AB:AB, 1)+COUNTIFS('lista de equipos'!Z:Z, D4, 'lista de equipos'!AA:AA, 1) -> 1 | H151: 1 | I151: =(D151+P151)/(SUM(F$150:F$153)+SUM(P$150:P$153)) -> 58.33% | J151: 1 | K151: =(F151+N151)/(SUM($F$150:$F$153)+SUM($N$150:$N$153)) -> 25.00% | M151: 1 | N151: =COUNTIFS('lista de equipos'!Y:Y, M4, 'lista de equipos'!AA:AA, 1)+COUNTIFS('lista de equipos'!Z:Z, M4, 'lista de equipos'!AB:AB, 1) -> 2 | O151: 1 | P151: =COUNTIFS('lista de equipos'!Y:Y, M4, 'lista de equipos'!AB:AB, 1)+COUNTIFS('lista de equipos'!Z:Z, M4, 'lista de equipos'!AA:AA, 1) -> 3
C152: 2 | D152: =COUNTIFS('lista de equipos'!Y:Y, D4, 'lista de equipos'!AA:AA, 2)+COUNTIFS('lista de equipos'!Z:Z, D4, 'lista de equipos'!AB:AB, 2) -> 0 | E152: 2 | F152: =COUNTIFS('lista de equipos'!Y:Y, D4, 'lista de equipos'!AB:AB, 2)+COUNTIFS('lista de equipos'!Z:Z, D4, 'lista de equipos'!AA:AA, 2) -> 0 | H152: 2 | I152: 0.00% | J152: 2 | K152: 8.33% | M152: 2 | N152: =COUNTIFS('lista de equipos'!Y:Y, M4, 'lista de equipos'!AA:AA, 2)+COUNTIFS('lista de equipos'!Z:Z, M4, 'lista de equipos'!AB:AB, 2) -> 1 | O152: 2 | P152: =COUNTIFS('lista de equipos'!Y:Y, M4, 'lista de equipos'!AB:AB, 2)+COUNTIFS('lista de equipos'!Z:Z, M4, 'lista de equipos'!AA:AA, 2) -> 0
C153: 3 o mas | D153: =COUNTIFS('lista de equipos'!Y:Y, D4, 'lista de equipos'!AA:AA, ">=3")+COUNTIFS('lista de equipos'!Z:Z, D4, 'lista de equipos'!AB:AB, ">=3") -> 0 | E153: 3 o mas | F153: =COUNTIFS('lista de equipos'!Y:Y, D4, 'lista de equipos'!AB:AB, ">=3")+COUNTIFS('lista de equipos'!Z:Z, D4, 'lista de equipos'!AA:AA, ">=3") -> 0 | H153: 3 o mas | I153: =(D153+P153)/(SUM(F$150:F$153)+SUM(P$150:P$153)) -> 0.00% | J153: 3 o mas | K153: 0.00% | M153: 3 o mas | N153: =COUNTIFS('lista de equipos'!Y:Y, M4, 'lista de equipos'!AA:AA, ">=3")+COUNTIFS('lista de equipos'!Z:Z, M4, 'lista de equipos'!AB:AB, ">=3") -> 0 | O153: 3 o mas | P153: =COUNTIFS('lista de equipos'!Y:Y, M4, 'lista de equipos'!AB:AB, ">=3")+COUNTIFS('lista de equipos'!Z:Z, M4, 'lista de equipos'!AA:AA, ">=3") -> 0
C160: Local | E160: FT | F160: HT | G160: SH | L160: Visitante | N160: FT | O160: HT | P160: SH
C161: Capacidad Ofensiva | E161: =D43/'Estadisticas de Liga'!L22 -> 1.942 | F161: =E43/'Estadisticas de Liga'!L24 -> 2.511 | G161: =F43/'Estadisticas de Liga'!L26 -> 1.157 | L161: Capacidad Ofensiva | N161: =M43/'Estadisticas de Liga'!N22 -> 0.925 | O161: =N43/'Estadisticas de Liga'!N24 -> 0.000 | P161: =O43/'Estadisticas de Liga'!N26 -> 1.639
C162: Capacidad defensiva | E162: =D53/'Estadisticas de Liga'!N22 -> 0.925 | F162: =E53/'Estadisticas de Liga'!N24 -> 2.126 | G162: =F53/'Estadisticas de Liga'!N26 -> 0.000 | L162: Capacidad defensiva | N162: =M53/'Estadisticas de Liga'!L22 -> 0.486 | O162: =N53/'Estadisticas de Liga'!L24 -> 0.837 | P162: =O53/'Estadisticas de Liga'!L26 -> 0.000
C163: Promedio de goles esperado | E163: =E161*N162*'Estadisticas de Liga'!L22 -> 1.295 | F163: =F161*O162*'Estadisticas de Liga'!L24 -> 1.674 | G163: =G161*P162*'Estadisticas de Liga'!L26 -> 0.000 | L163: Promedio de goles esperado | N163: =N161*E162*'Estadisticas de Liga'!N22 -> 1.234 | O163: =O161*F163*'Estadisticas de Liga'!N24 -> 0.000 | P163: =P161*G163*'Estadisticas de Liga'!N26 -> 0.000
C165: Local y visitante | E165: FT | F165: HT | G165: SH | L165: Visitante | N165: FT | O165: HT | P165: SH
C166: Capacidad Ofensiva | E166: =D44/'Estadisticas de Liga'!L22 -> 1.700 | F166: =E44/'Estadisticas de Liga'!L24 -> 2.092 | G166: =F44/'Estadisticas de Liga'!L26 -> 1.157 | L166: Capacidad Ofensiva | N166: =M44/'Estadisticas de Liga'!N22 -> 0.694 | O166: =N44/'Estadisticas de Liga'!N24 -> 0.532 | P166: =O44/'Estadisticas de Liga'!N26 -> 0.819
C167: Capacidad defensiva | E167: =D54/'Estadisticas de Liga'!N22 -> 0.694 | F167: =E54/'Estadisticas de Liga'!N24 -> 1.329 | G167: =F54/'Estadisticas de Liga'!N26 -> 0.205 | L167: Capacidad defensiva | N167: =M54/'Estadisticas de Liga'!L22 -> 1.214 | O167: =N54/'Estadisticas de Liga'!L24 -> 1.465 | P167: =O54/'Estadisticas de Liga'!L26 -> 0.868
C168: Promedio de goles esperado | E168: =E166*N167*'Estadisticas de Liga'!L22 -> 2.833 | F168: =F166*O167*'Estadisticas de Liga'!L24 -> 2.441 | G168: =G166*P167*'Estadisticas de Liga'!L26 -> 0.578 | L168: Promedio de goles esperado | N168: =N166*E167*'Estadisticas de Liga'!N22 -> 0.694 | O168: =O166*F167*'Estadisticas de Liga'!N24 -> 0.443 | P168: =P166*G167*'Estadisticas de Liga'!L26 -> 0.097
H170: Goles esperados mediante la ecuacion de poisson
C172: Tiempo completo | H172: Primer tiempo | M172: Segundo tiempo
C173: Local | D173: % | E173: Visitante | F173: % | H173: Local | I173: % | J173: Visitante | K173: % | M173: Local | N173: % | O173: Visitante | P173: %
C174: 0 | D174: =EXP(-E163) -> 27.39% | E174: 0 | F174: =EXP(-N163) -> 29.11% | H174: 0 | I174: =EXP(-F163) -> 18.75% | J174: 0 | K174: =EXP(-O163) -> 100.00% | M174: 0 | N174: =EXP(-G163) -> 100.00% | O174: 0 | P174: =EXP(-P163) -> 100.00%
C175: 1 | D175: =EXP(-E163) * (E163^C175) / FACT(C175) -> 35.47% | E175: 1 | F175: =EXP(-N163) * (N163^C175) / FACT(C175) -> 35.93% | H175: 1 | I175: =EXP(-$F$163) * ($F$163^H175) / FACT(H175) -> 31.39% | J175: 1 | K175: =EXP(-$O$163) * ($O$163^H175) / FACT(H175) -> 0.00% | M175: 1 | N175: =EXP(-$G$163) * ($G$163^M175) / FACT(M175) -> 0.00% | O175: 1 | P175: =EXP(-$P$163) * ($P$163^M175) / FACT(M175) -> 0.00%
C176: 2 | D176: =EXP(-E163) * (E163^C176) / FACT(C176) -> 22.97% | E176: 2 | F176: =EXP(-N163) * (N163^C176) / FACT(C176) -> 22.17% | H176: 2 | I176: =EXP(-$F$163) * ($F$163^H176) / FACT(H176) -> 26.27% | J176: 2 | K176: =EXP(-$O$163) * ($O$163^H176) / FACT(H176) -> 0.00% | M176: 2 | N176: =EXP(-$G$163) * ($G$163^M176) / FACT(M176) -> 0.00% | O176: 2 | P176: =EXP(-$P$163) * ($P$163^M176) / FACT(M176) -> 0.00%
C177: 3 | D177: =EXP(-E163) * (E163^C177) / FACT(C177) -> 9.91% | E177: 3 | F177: =EXP(-N163) * (N163^C177) / FACT(C177) -> 9.12% | H177: 3 o mas | I177: =1-SUM(I174:I176) -> 23.59% | J177: 3 o mas | K177: =1-SUM(K174:K176) -> 0.00% | M177: 3 o mas | N177: =1-SUM(N174:N176) -> 0.00% | O177: 3 | P177: =1-SUM(P174:P176) -> 0.00%
C178: 4 o mas | D178: =1-SUM(D174:D177) -> 4.26% | E178: 4 o mas | F178: =1-SUM(F174:F177) -> 3.68%
H179: Goles esperados mediante la ecuacion de poisson(General)
C180: Tiempo completo
C181: Local | D181: % | E181: Visitante | F181: % | H181: Primer tiempo | M181: Segundo tiempo
C182: 0 | D182: =EXP(-E168) -> 5.89% | E182: 0 | F182: =EXP(-N168) -> 49.95% | H182: Local | I182: % | J182: Visitante | K182: % | M182: Local | N182: % | O182: Visitante | P182: %
C183: 1 | D183: =EXP(-$E$168) *($E$168^C183) / FACT(C183) -> 16.67% | E183: 1 | F183: =EXP(-$N$168) * ($N$168^C183) / FACT(C183) -> 34.67% | H183: 0 | I183: =EXP(-F168) -> 8.71% | J183: 0 | K183: =EXP(-O168) -> 64.21% | M183: 0 | N183: =EXP(-G168) -> 56.08% | O183: 0 | P183: =EXP(-P168) -> 90.78%
C184: 2 | D184: =EXP(-$E$168) *($E$168^C184) / FACT(C184) -> 23.61% | E184: 2 | F184: =EXP(-$N$168) * ($N$168^C184) / FACT(C184) -> 12.03% | H184: 1 | I184: =EXP(-$F$168) * ($F$168^H184) / FACT(H184) -> 21.26% | J184: 1 | K184: =EXP(-$O$168) * ($O$168^H184) / FACT(H184) -> 28.44% | M184: 1 | N184: =EXP(-$G$168) * ($G$168^M184) / FACT(M184) -> 32.44% | O184: 1 | P184: =EXP(-$P$168) * ($P$168^M184) / FACT(M184) -> 8.78%
C185: 3 | D185: 22.30% | E185: 3 | F185: 2.78% | H185: 2 | I185: =EXP(-$F$168) * ($F$168^H185) / FACT(H185) -> 25.94% | J185: 2 | K185: =EXP(-$O$168) * ($O$168^H185) / FACT(H185) -> 6.30% | M185: 2 | N185: =EXP(-$G$168) * ($G$168^M185) / FACT(M185) -> 9.38% | O185: 2 | P185: =EXP(-$P$168) * ($P$168^M185) / FACT(M185) -> 0.42%
C186: 4 o mas | D186: =1-SUM(D182:D185) -> 31.53% | E186: 4 o mas | F186: =1-SUM(F182:F185) -> 0.56% | H186: 3 o mas | I186: =1-SUM(I183:I185) -> 44.09% | J186: 3 o mas | K186: =1-SUM(K183:K185) -> 1.04% | M186: 3 o mas | N186: =1-SUM(N183:N185) -> 2.10% | O186: 3 | P186: =1-SUM(P183:P185) -> 0.01%
D189: Ambos equipos anotan | M189: Ambos equipos anotan
C190: FT | E190: HT | G190: SH | L190: FT | N190: HT | P190: SH
B191: Si | C191: =COUNTIFS(INDIRECT("'"&Mercados!H2&"'!D:D"), D4, INDIRECT("'"&Mercados!H2&"'!F:F"), ">0", INDIRECT("'"&Mercados!H2&"'!G:G"), ">0") -> 3 | D191: =C191/$E$9 -> 100.00% | E191: =COUNTIFS(INDIRECT("'"&Mercados!H2&"'!D:D"), D4, INDIRECT("'"&Mercados!H2&"'!i:i"), ">0", INDIRECT("'"&Mercados!H2&"'!j:j"), ">0") -> 3 | F191: =E191/$E$9 -> 100.00% | G191: =COUNTIFS('lista de equipos'!Y:Y, D4, 'lista de equipos'!AA:AA, ">0",'lista de equipos'!AB:AB, ">0") -> 0 | H191: =G191/$E$9 -> 0.00% | K191: Si | L191: =COUNTIFS(INDIRECT("'"&Mercados!H2&"'!e:e"), M4, INDIRECT("'"&Mercados!H2&"'!g:g"), ">0", INDIRECT("'"&Mercados!H2&"'!f:f"), ">0") -> 2 | M191: =L191/$N$9 -> 66.67% | N191: =COUNTIFS(INDIRECT("'"&Mercados!H2&"'!e:e"), M4, INDIRECT("'"&Mercados!H2&"'!i:i"), ">0", INDIRECT("'"&Mercados!H2&"'!j:j"), ">0") -> 0 | O191: =N191/$N$9 -> 0.00% | P191: =COUNTIFS('lista de equipos'!Z:Z, M4, 'lista de equipos'!AB:AB, ">0",'lista de equipos'!AA:AA, ">0") -> 0 | Q191: =P191/$N$9 -> 0.00%
B192: No | C192: =$E$9-C191 -> 0 | D192: =C192/$E$9 -> 0.00% | E192: =$E$9-E191 -> 0 | F192: =E192/$E$9 -> 0.00% | G192: =$E$9-G191 -> 3 | H192: =G192/$E$9 -> 100.00% | K192: No | L192: =$N$9-L191 -> 1 | M192: =L192/$N$9 -> 33.33% | N192: =$N$9-N191 -> 3 | O192: =N192/$N$9 -> 100.00% | P192: =$N$9-P191 -> 3 | Q192: =P192/$N$9 -> 100.00%
D194: Equipo local Marca | M194: Equipo Visitante Marca
C195: Tiempo completo | E195: Primer tiempo | G195: Segundo tiempo | L195: Tiempo completo | N195: Primer tiempo | P195: Segundo tiempo
B196: Si | C196: =COUNTIFS(INDIRECT("'"&Mercados!H2&"'!D:D"), D4, INDIRECT("'"&Mercados!H2&"'!f:f"), ">=1") -> 3 | D196: =C196/$E$9 -> 100.00% | E196: =COUNTIFS(INDIRECT("'"&Mercados!H2&"'!D:D"), D4, INDIRECT("'"&Mercados!H2&"'!i:i"), ">=1") -> 3 | F196: =E196/$E$9 -> 100.00% | G196: =COUNTIFS('lista de equipos'!Y:Y, D4, 'lista de equipos'!AA:AA, ">0") -> 2 | H196: =G196/$E$9 -> 66.67% | K196: Si | L196: =COUNTIFS(INDIRECT("'"&Mercados!H2&"'!e:e"), M4, INDIRECT("'"&Mercados!H2&"'!g:g"), ">0") -> 3 | M196: =L196/$N$9 -> 100.00% | N196: =COUNTIFS(INDIRECT("'"&Mercados!H2&"'!e:e"), M4, INDIRECT("'"&Mercados!H2&"'!j:j"), ">0") -> 0 | O196: =N196/$N$9 -> 0.00% | P196: =COUNTIFS('lista de equipos'!Z:Z,M4,'lista de equipos'!AB:AB,">0") -> 3 | Q196: =P196/$N$9 -> 100.00%
B197: No | C197: =$E$9-C196 -> 0 | D197: =C197/$E$9 -> 0.00% | E197: =$E$9-E196 -> 0 | F197: =E197/$E$9 -> 0.00% | G197: =$E$9-G196 -> 1 | H197: =G197/$E$9 -> 33.33% | K197: No | L197: =$N$9-L196 -> 0 | M197: =L197/$N$9 -> 0.00% | N197: =$N$9-N196 -> 3 | O197: =N197/$N$9 -> 100.00% | P197: =$N$9-P196 -> 0 | Q197: =P197/$N$9 -> 0.00%
D201: Equipo local gana sin recibir gol | M201: Equipo visitante gana sin recibir gol
C202: Tiempo completo | E202: Primer tiempo | G202: Segundo tiempo | L202: Tiempo completo | N202: Primer tiempo | P202: Segundo tiempo
B203: Si | C203: =COUNTIFS(INDIRECT("'"&Mercados!H2&"'!D:D"), D4, INDIRECT("'"&Mercados!H2&"'!h:h"), "h", INDIRECT("'"&Mercados!H2&"'!G:G"), "0") -> 0 | D203: =C203/$E$9 -> 0.00% | E203: =COUNTIFS(INDIRECT("'"&Mercados!H2&"'!D:D"), D4, INDIRECT("'"&Mercados!H2&"'!k:k"), "h", INDIRECT("'"&Mercados!H2&"'!G:G"), "0") -> 0 | F203: =E203/$E$9 -> 0.00% | G203: =COUNTIFS('lista de equipos'!Y:Y, D4, 'lista de equipos'!AC:AC, "h",'lista de equipos'!AB:AB, "0") -> 2 | H203: =G203/$E$9 -> 66.67% | K203: Si | L203: =COUNTIFS(INDIRECT("'"&Mercados!H2&"'!e:e"), M4, INDIRECT("'"&Mercados!H2&"'!h:h"), "a", INDIRECT("'"&Mercados!H2&"'!f:f"), "0") -> 1 | M203: =L203/$N$9 -> 33.33% | N203: =COUNTIFS(INDIRECT("'"&Mercados!H2&"'!e:e"), M4, INDIRECT("'"&Mercados!H2&"'!k:k"), "a", INDIRECT("'"&Mercados!H2&"'!f:f"), "0") -> 0 | O203: =N203/$N$9 -> 0.00% | P203: =COUNTIFS('lista de equipos'!Z:Z, M4, 'lista de equipos'!AC:AC, "a",'lista de equipos'!AA:AA, "0") -> 3 | Q203: =P203/$N$9 -> 100.00%
B204: No | C204: =$E$9-C203 -> 3 | D204: 100.00% | E204: =$E$9-E203 -> 3 | F204: 100.00% | G204: =$E$9-G203 -> 1 | H204: 33.33% | K204: No | L204: =$N$9-L203 -> 2 | M204: =L204/$N$9 -> 66.67% | N204: =$N$9-N203 -> 3 | O204: =N204/$N$9 -> 100.00% | P204: =$N$9-P203 -> 0 | Q204: =P204/$N$9 -> 0.00%
D206: Equipo local gana y recibe gol | M206: Equipo visitante gana y recibe gol
C207: Tiempo completo | E207: Primer tiempo | G207: Segundo tiempo | L207: Tiempo completo | N207: Primer tiempo | P207: Segundo tiempo
B208: Si | C208: =COUNTIFS(INDIRECT("'"&Mercados!H2&"'!D:D"), D4, INDIRECT("'"&Mercados!H2&"'!h:h"), "h", INDIRECT("'"&Mercados!H2&"'!G:G"), ">=1") -> 2 | D208: =C208/$E$9 -> 66.67% | E208: =COUNTIFS(INDIRECT("'"&Mercados!H2&"'!D:D"), D4, INDIRECT("'"&Mercados!H2&"'!k:k"), "h", INDIRECT("'"&Mercados!H2&"'!G:G"), ">=1") -> 2 | F208: =E208/$E$9 -> 66.67% | G208: =COUNTIFS('lista de equipos'!Y:Y, D4, 'lista de equipos'!AC:AC, "h",'lista de equipos'!AB:AB, ">=1") -> 0 | H208: =G208/$E$9 -> 0.00% | K208: Si | L208: =COUNTIFS(INDIRECT("'"&Mercados!H2&"'!e:e"), M4, INDIRECT("'"&Mercados!H2&"'!h:h"), "a", INDIRECT("'"&Mercados!H2&"'!f:f"), ">=1") -> 0 | M208: =L208/$N$9 -> 0.00% | N208: =COUNTIFS(INDIRECT("'"&Mercados!H2&"'!E:E"), M4, INDIRECT("'"&Mercados!H2&"'!k:k"), "a", INDIRECT("'"&Mercados!H2&"'!f:f"), ">=1") -> 0 | O208: =N208/$N$9 -> 0.00% | P208: =COUNTIFS('lista de equipos'!Z:Z, M4, 'lista de equipos'!AC:AC, "a",'lista de equipos'!AA:AA, ">=1") -> 0 | Q208: =P208/$N$9 -> 0.00%
B209: No | C209: =$E$9-C208 -> 1 | D209: 33.33% | E209: =$E$9-E208 -> 1 | F209: 33.33% | G209: =$E$9-G208 -> 3 | H209: 100.00% | K209: No | L209: =$N$9-L208 -> 3 | M209: =L209/$N$9 -> 100.00% | N209: =$N$9-N208 -> 3 | O209: =N209/$N$9 -> 100.00% | P209: =$N$9-P208 -> 3 | Q209: =P209/$N$9 -> 100.00%
D211: Equipo local pierde sin marcar gol | M211: Equipo visitante pierde sin marcar gol
C212: Tiempo completo | E212: Primer tiempo | G212: Segundo tiempo | L212: Tiempo completo | N212: Primer tiempo | P212: Segundo tiempo
B213: Si | C213: =COUNTIFS(INDIRECT("'"&Mercados!H2&"'!D:D"), D4, INDIRECT("'"&Mercados!H2&"'!h:h"), "a", INDIRECT("'"&Mercados!H2&"'!f:f"), "0") -> 0 | D213: =C213/$E$9 -> 0.00% | E213: =COUNTIFS(INDIRECT("'"&Mercados!H2&"'!D:D"), D4, INDIRECT("'"&Mercados!H2&"'!k:k"), "a", INDIRECT("'"&Mercados!H2&"'!i:i"), "0") -> 0 | F213: =E213/$E$9 -> 0.00% | G213: =COUNTIFS('lista de equipos'!Y:Y, D4, 'lista de equipos'!AC:AC, "a",'lista de equipos'!AA:AA, "0") -> 0 | H213: =G213/$E$9 -> 0.00% | K213: Si | L213: =COUNTIFS(INDIRECT("'"&Mercados!H2&"'!e:e"), M4, INDIRECT("'"&Mercados!H2&"'!h:h"), "h", INDIRECT("'"&Mercados!H2&"'!g:g"), "0") -> 0 | M213: =L213/$N$9 -> 0.00% | N213: =COUNTIFS(INDIRECT("'"&Mercados!H2&"'!e:e"), M4, INDIRECT("'"&Mercados!H2&"'!k:k"), "h", INDIRECT("'"&Mercados!H2&"'!j:j"), "0") -> 2 | O213: =N213/$N$9 -> 66.67% | P213: =COUNTIFS('lista de equipos'!Z:Z, D4, 'lista de equipos'!AC:AC, "h",'lista de equipos'!AB:AB, "0") -> 1 | Q213: =P213/$N$9 -> 33.33%
B214: No | C214: =$E$9-C213 -> 3 | D214: 100.00% | E214: =$E$9-E213 -> 3 | F214: 100.00% | G214: =$E$9-G213 -> 3 | H214: 100.00% | K214: No | L214: =$N$9-L213 -> 3 | M214: =L214/$N$9 -> 100.00% | N214: =$N$9-N213 -> 1 | O214: =N214/$N$9 -> 33.33% | P214: =$N$9-P213 -> 2 | Q214: =P214/$N$9 -> 66.67%
D216: Equipo local pierde y marca gol | M216: Equipo pierde pierde y marca gol
C217: Tiempo completo | E217: Primer tiempo | G217: Segundo tiempo | L217: Tiempo completo | N217: Primer tiempo | P217: Segundo tiempo
B218: Si | C218: =COUNTIFS(INDIRECT("'"&Mercados!H2&"'!D:D"), D4, INDIRECT("'"&Mercados!H2&"'!h:h"), "a", INDIRECT("'"&Mercados!H2&"'!f:f"), ">=1") -> 0 | D218: =C218/$E$9 -> 0.00% | E218: =COUNTIFS(INDIRECT("'"&Mercados!H2&"'!D:D"), D4, INDIRECT("'"&Mercados!H2&"'!k:k"), "a", INDIRECT("'"&Mercados!H2&"'!i:i"), ">=1") -> 1 | F218: =E218/$E$9 -> 33.33% | G218: =COUNTIFS('lista de equipos'!Y:Y, D4, 'lista de equipos'!AC:AC, "a",'lista de equipos'!AA:AA, ">=1") -> 0 | H218: =G218/$E$9 -> 0.00% | K218: Si | L218: =COUNTIFS(INDIRECT("'"&Mercados!H2&"'!e:e"), M4, INDIRECT("'"&Mercados!H2&"'!h:h"), "h", INDIRECT("'"&Mercados!H2&"'!g:g"), ">=1") -> 0 | M218: =L218/$N$9 -> 0.00% | N218: =COUNTIFS(INDIRECT("'"&Mercados!H2&"'!e:e"), M4, INDIRECT("'"&Mercados!H2&"'!k:k"), "h", INDIRECT("'"&Mercados!H2&"'!j:j"), ">=1") -> 0 | O218: =N218/$N$9 -> 0.00% | P218: =COUNTIFS('lista de equipos'!Z:Z, D4, 'lista de equipos'!AC:AC, "h",'lista de equipos'!AB:AB, ">=1") -> 0 | Q218: =P218/$N$9 -> 0.00%
B219: No | C219: =$E$9-C218 -> 3 | D219: 100.00% | E219: =$E$9-E218 -> 2 | F219: 66.67% | G219: =$E$9-G218 -> 3 | H219: 100.00% | K219: No | L219: =$N$9-L218 -> 3 | M219: =L219/$N$9 -> 100.00% | N219: =$N$9-N218 -> 3 | O219: =N219/$N$9 -> 100.00% | P219: =$N$9-P218 -> 3 | Q219: =P219/$N$9 -> 100.00%
D221: Equipo local Porteria imbatida | M221: Equipo visitante porteria imbatida
C222: Tiempo completo | E222: Primer tiempo | G222: Segundo tiempo | L222: Tiempo completo | N222: Primer tiempo | P222: Segundo tiempo
B223: Si | C223: =COUNTIFS(INDIRECT("'"&Mercados!H2&"'!D:D"), D4, INDIRECT("'"&Mercados!H2&"'!g:g"), "0") -> 0 | D223: =C223/$E$9 -> 0.00% | E223: =COUNTIFS(INDIRECT("'"&Mercados!H2&"'!D:D"), D4, INDIRECT("'"&Mercados!H2&"'!j:j"), "0") -> 0 | F223: =E223/$E$9 -> 0.00% | G223: =COUNTIFS('lista de equipos'!Y:Y,D4,'lista de equipos'!AB:AB,"0") -> 3 | H223: =G223/$E$9 -> 100.00% | K223: Si | L223: =COUNTIFS(INDIRECT("'"&Mercados!H2&"'!e:e"), M4, INDIRECT("'"&Mercados!H2&"'!f:f"), "0") -> 1 | M223: =L223/$N$9 -> 33.33% | N223: =COUNTIFS(INDIRECT("'"&Mercados!H2&"'!e:e"), M4, INDIRECT("'"&Mercados!H2&"'!i:i"), "0") -> 1 | O223: =N223/$N$9 -> 33.33% | P223: =COUNTIFS('lista de equipos'!Z:Z,M4,'lista de equipos'!AA:AA,"0") -> 3 | Q223: =P223/$N$9 -> 100.00%
B224: No | C224: =$E$9-C223 -> 3 | D224: 100.00% | E224: =$E$9-E223 -> 3 | F224: 100.00% | G224: =$E$9-G223 -> 0 | H224: 0.00% | K224: No | L224: =$N$9-L223 -> 2 | M224: =L224/$N$9 -> 66.67% | N224: =$N$9-N223 -> 2 | O224: =N224/$N$9 -> 66.67% | P224: =$N$9-P223 -> 0 | Q224: =P224/$N$9 -> 0.00%
B233: Ambos equipos anotan | K233: Ambos equipos anotan
C234: FT | E234: HT | G234: SH | L234: FT | N234: HT | P234: SH
B235: Si | C235: =COUNTIFS(INDIRECT("'"&Mercados!H2&"'!D:D"),D4,INDIRECT("'"&Mercados!H2&"'!F:F"),">0",INDIRECT("'"&Mercados!H2&"'!G:G"),">0")+COUNTIFS(INDIRECT("'"&Mercados!H2&"'!e:e"),D4,INDIRECT("'"&Mercados!H2&"'!g:g"),">0",INDIRECT("'"&Mercados!H2&"'!f:f"),">0") -> 5 | D235: =C235/$E$8 -> 83.33% | E235: =COUNTIFS(INDIRECT("'"&Mercados!H2&"'!D:D"), D4, INDIRECT("'"&Mercados!H2&"'!i:i"), ">0", INDIRECT("'"&Mercados!H2&"'!j:j"), ">0")+COUNTIFS(INDIRECT("'"&Mercados!H2&"'!E:E"), D4, INDIRECT("'"&Mercados!H2&"'!i:i"), ">0", INDIRECT("'"&Mercados!H2&"'!j:j"), ">0") -> 4 | F235: =E235/$E$8 -> 66.67% | G235: =COUNTIFS('lista de equipos'!Y:Y, D4, 'lista de equipos'!AA:AA, ">0",'lista de equipos'!AB:AB, ">0")+COUNTIFS('lista de equipos'!Z:Z, D4, 'lista de equipos'!AA:AA, ">0",'lista de equipos'!AB:AB, ">0") -> 0 | H235: =G235/$E$8 -> 0.00% | K235: Si | L235: =COUNTIFS(INDIRECT("'"&Mercados!H2&"'!D:D"),M4,INDIRECT("'"&Mercados!H2&"'!F:F"),">0",INDIRECT("'"&Mercados!H2&"'!G:G"),">0")+COUNTIFS(INDIRECT("'"&Mercados!H2&"'!e:e"),M4,INDIRECT("'"&Mercados!H2&"'!g:g"),">0",INDIRECT("'"&Mercados!H2&"'!f:f"),">0") -> 4 | M235: =L235/$N$8 -> 66.67% | N235: =COUNTIFS(INDIRECT("'"&Mercados!H2&"'!D:D"), M4, INDIRECT("'"&Mercados!H2&"'!i:i"), ">0", INDIRECT("'"&Mercados!H2&"'!j:j"), ">0")+COUNTIFS(INDIRECT("'"&Mercados!H2&"'!E:E"), M4, INDIRECT("'"&Mercados!H2&"'!i:i"), ">0", INDIRECT("'"&Mercados!H2&"'!j:j"), ">0") -> 2 | O235: =N235/$N$8 -> 33.33% | P235: =COUNTIFS('lista de equipos'!Y:Y, M4, 'lista de equipos'!AA:AA, ">0",'lista de equipos'!AB:AB, ">0")+COUNTIFS('lista de equipos'!Z:Z, M4, 'lista de equipos'!AA:AA, ">0",'lista de equipos'!AB:AB, ">0") -> 0 | Q235: =P235/$N$8 -> 0.00%
B236: No | C236: =$E$8-C235 -> 1 | D236: =C236/$E$8 -> 16.67% | E236: =$E$8-E235 -> 2 | F236: =E236/$E$8 -> 33.33% | G236: =$E$8-G235 -> 6 | H236: =G236/$E$8 -> 100.00% | K236: No | L236: =$N$8-L235 -> 2 | M236: =L236/$N$8 -> 33.33% | N236: =$N$8-N235 -> 4 | O236: =N236/$N$8 -> 66.67% | P236: =$N$8-P235 -> 6 | Q236: =P236/$N$8 -> 100.00%
B238: Equipo local Marca | K238: Equipo visitante Marca
C239: Tiempo completo | E239: Primer tiempo | G239: Segundo tiempo | L239: Tiempo completo | N239: Primer tiempo | P239: Segundo tiempo
B240: Si | C240: =COUNTIFS(INDIRECT("'"&Mercados!H2&"'!D:D"),D4,INDIRECT("'"&Mercados!H2&"'!f:f"),">=1")+COUNTIFS(INDIRECT("'"&Mercados!H2&"'!e:e"),D4,INDIRECT("'"&Mercados!H2&"'!g:g"),">=1") -> 6 | D240: =C240/$E$8 -> 100.00% | E240: =COUNTIFS(INDIRECT("'"&Mercados!H2&"'!D:D"),D4,INDIRECT("'"&Mercados!H2&"'!i:i"),">=1")+COUNTIFS(INDIRECT("'"&Mercados!H2&"'!e:e"),D4,INDIRECT("'"&Mercados!H2&"'!j:j"),">=1") -> 6 | F240: =E240/$E$8 -> 100.00% | G240: =COUNTIFS('lista de equipos'!Y:Y,D4,'lista de equipos'!AA:AA,">0")+COUNTIFS('lista de equipos'!Z:Z,D4,'lista de equipos'!AB:AB,">0") -> 4 | H240: =G240/$E$8 -> 66.67% | K240: Si | L240: =COUNTIFS(INDIRECT("'"&Mercados!H2&"'!D:D"),M4,INDIRECT("'"&Mercados!H2&"'!f:f"),">=1")+COUNTIFS(INDIRECT("'"&Mercados!H2&"'!e:e"),M4,INDIRECT("'"&Mercados!H2&"'!g:g"),">=1") -> 5 | M240: =L240/$E$8 -> 83.33% | N240: =COUNTIFS(INDIRECT("'"&Mercados!H2&"'!D:D"),M4,INDIRECT("'"&Mercados!H2&"'!i:i"),">=1")+COUNTIFS(INDIRECT("'"&Mercados!H2&"'!e:e"),M4,INDIRECT("'"&Mercados!H2&"'!j:j"),">=1") -> 2 | O240: =N240/$E$8 -> 33.33% | P240: =COUNTIFS('lista de equipos'!Y:Y,M4,'lista de equipos'!AA:AA,">0")+COUNTIFS('lista de equipos'!Z:Z,M4,'lista de equipos'!AB:AB,">0") -> 3 | Q240: =P240/$N$8 -> 50.00%
B241: No | C241: =$E$8-C240 -> 0 | D241: =C241/$E$8 -> 0.00% | E241: =$E$8-E240 -> 0 | F241: =E241/$E$8 -> 0.00% | G241: =$E$8-G240 -> 2 | H241: =G241/$E$8 -> 33.33% | K241: No | L241: =$N$8-L240 -> 1 | M241: =L241/$E$8 -> 16.67% | N241: =$N$8-N240 -> 4 | O241: =N241/$E$8 -> 66.67% | P241: =$N$8-P240 -> 3 | Q241: =P241/$N$8 -> 50.00%
B244: Equipo local gana sin recibir gol | K244: Equipo visitante gana sin recibir gol
C245: Tiempo completo | E245: Primer tiempo | G245: Segundo tiempo | L245: Tiempo completo | N245: Primer tiempo | P245: Segundo tiempo
B246: Si | C246: =COUNTIFS(INDIRECT("'"&Mercados!H2&"'!e:e"),D4,INDIRECT("'"&Mercados!H2&"'!h:h"),"a",INDIRECT("'"&Mercados!H2&"'!f:f"),"0")+COUNTIFS(INDIRECT("'"&Mercados!H2&"'!D:D"),D4,INDIRECT("'"&Mercados!H2&"'!h:h"),"h",INDIRECT("'"&Mercados!H2&"'!G:G"),"0") -> 1 | D246: =C246/$E$8 -> 16.67% | E246: =COUNTIFS(INDIRECT("'"&Mercados!H2&"'!e:e"),D4,INDIRECT("'"&Mercados!H2&"'!k:k"),"a",INDIRECT("'"&Mercados!H2&"'!i:i"),"0")+COUNTIFS(INDIRECT("'"&Mercados!H2&"'!D:D"),D4,INDIRECT("'"&Mercados!H2&"'!k:k"),"h",INDIRECT("'"&Mercados!H2&"'!j:j"),"0") -> 2 | F246: =E246/$E$8 -> 33.33% | G246: =COUNTIFS('lista de equipos'!Z:Z, D4, 'lista de equipos'!AC:AC, "a",'lista de equipos'!AA:AA, "0")+COUNTIFS('lista de equipos'!Y:Y, D4, 'lista de equipos'!AC:AC, "h",'lista de equipos'!AB:AB, "0") -> 4 | H246: =G246/$E$8 -> 66.67% | K246: Si | L246: =COUNTIFS(INDIRECT("'"&Mercados!H2&"'!e:e"),M4,INDIRECT("'"&Mercados!H2&"'!h:h"),"a",INDIRECT("'"&Mercados!H2&"'!f:f"),"0")+COUNTIFS(INDIRECT("'"&Mercados!H2&"'!D:D"),M4,INDIRECT("'"&Mercados!H2&"'!h:h"),"h",INDIRECT("'"&Mercados!H2&"'!G:G"),"0") -> 1 | M246: =L246/$N$8 -> 16.67% | N246: =COUNTIFS(INDIRECT("'"&Mercados!H2&"'!e:e"),M4,INDIRECT("'"&Mercados!H2&"'!k:k"),"a",INDIRECT("'"&Mercados!H2&"'!i:i"),"0")+COUNTIFS(INDIRECT("'"&Mercados!H2&"'!D:D"),M4,INDIRECT("'"&Mercados!H2&"'!k:k"),"h",INDIRECT("'"&Mercados!H2&"'!j:j"),"0") -> 0 | O246: =N246/$N$8 -> 0.00% | P246: =COUNTIFS('lista de equipos'!Z:Z, M4, 'lista de equipos'!AC:AC, "a",'lista de equipos'!AA:AA, "0")+COUNTIFS('lista de equipos'!Y:Y, M4, 'lista de equipos'!AC:AC, "h",'lista de equipos'!AB:AB, "0") -> 3 | Q246: =P246/$N$8 -> 50.00%
B247: No | C247: =$E$8-C246 -> 5 | D247: =C247/$E$8 -> 83.33% | E247: =$E$8-E246 -> 4 | F247: =E247/$E$8 -> 66.67% | G247: =$E$8-G246 -> 2 | H247: =G247/$E$8 -> 33.33% | K247: No | L247: =$N$8-L246 -> 5 | M247: =L247/$N$8 -> 83.33% | N247: =$N$8-N246 -> 6 | O247: =N247/$N$8 -> 100.00% | P247: =$N$8-P246 -> 3 | Q247: =P247/$N$8 -> 50.00%
B249: Equipo local gana y recibe gol | K249: Equipo visitante gana y recibe gol
C250: Tiempo completo | E250: Primer tiempo | G250: Segundo tiempo | L250: Tiempo completo | N250: Primer tiempo | P250: Segundo tiempo
B251: Si | C251: =COUNTIFS(INDIRECT("'"&Mercados!H2&"'!e:e"),D4,INDIRECT("'"&Mercados!H2&"'!h:h"),"a",INDIRECT("'"&Mercados!H2&"'!f:f"),">0")+COUNTIFS(INDIRECT("'"&Mercados!H2&"'!D:D"),D4,INDIRECT("'"&Mercados!H2&"'!h:h"),"h",INDIRECT("'"&Mercados!H2&"'!G:G"),">0") -> 3 | D251: =C251/$E$8 -> 50.00% | E251: =COUNTIFS(INDIRECT("'"&Mercados!H2&"'!e:e"),D4,INDIRECT("'"&Mercados!H2&"'!k:k"),"a",INDIRECT("'"&Mercados!H2&"'!i:i"),">0")+COUNTIFS(INDIRECT("'"&Mercados!H2&"'!D:D"),D4,INDIRECT("'"&Mercados!H2&"'!k:k"),"h",INDIRECT("'"&Mercados!H2&"'!j:j"),">0") -> 3 | F251: =E251/$E$8 -> 50.00% | G251: =COUNTIFS('lista de equipos'!Z:Z, D4, 'lista de equipos'!AC:AC, "a",'lista de equipos'!AA:AA, ">0")+COUNTIFS('lista de equipos'!Y:Y, D4, 'lista de equipos'!AC:AC, "h",'lista de equipos'!AB:AB, ">0") -> 0 | H251: =G251/$E$8 -> 0.00% | K251: Si | L251: =COUNTIFS(INDIRECT("'"&Mercados!H2&"'!e:e"),M4,INDIRECT("'"&Mercados!H2&"'!h:h"),"a",INDIRECT("'"&Mercados!H2&"'!f:f"),">0")+COUNTIFS(INDIRECT("'"&Mercados!H2&"'!D:D"),M4,INDIRECT("'"&Mercados!H2&"'!h:h"),"h",INDIRECT("'"&Mercados!H2&"'!G:G"),">0") -> 0 | M251: =L251/$N$8 -> 0.00% | N251: =COUNTIFS(INDIRECT("'"&Mercados!H2&"'!e:e"),M4,INDIRECT("'"&Mercados!H2&"'!k:k"),"a",INDIRECT("'"&Mercados!H2&"'!i:i"),">0")+COUNTIFS(INDIRECT("'"&Mercados!H2&"'!D:D"),M4,INDIRECT("'"&Mercados!H2&"'!k:k"),"h",INDIRECT("'"&Mercados!H2&"'!j:j"),">0") -> 0 | O251: =N251/$N$8 -> 0.00% | P251: =COUNTIFS('lista de equipos'!Z:Z, M4, 'lista de equipos'!AC:AC, "a",'lista de equipos'!AA:AA, ">0")+COUNTIFS('lista de equipos'!Y:Y, M4, 'lista de equipos'!AC:AC, "h",'lista de equipos'!AB:AB, ">0") -> 0 | Q251: =P251/$N$8 -> 0.00%
B252: No | C252: =$E$8-C251 -> 3 | D252: =C252/$E$8 -> 50.00% | E252: =$E$8-E251 -> 3 | F252: =E252/$E$8 -> 50.00% | G252: =$E$8-G251 -> 6 | H252: =G252/$E$8 -> 100.00% | K252: No | L252: =$N$8-L251 -> 6 | M252: =L252/$N$8 -> 100.00% | N252: =$N$8-N251 -> 6 | O252: =N252/$N$8 -> 100.00% | P252: =$N$8-P251 -> 6 | Q252: =P252/$N$8 -> 100.00%
B254: Equipo local pierde sin marcar gol | K254: Equipo visitante pierde sin marcar gol
C255: Tiempo completo | E255: Primer tiempo | G255: Segundo tiempo | L255: Tiempo completo | N255: Primer tiempo | P255: Segundo tiempo
B256: Si | C256: =COUNTIFS(INDIRECT("'"&Mercados!H2&"'!e:e"),D4,INDIRECT("'"&Mercados!H2&"'!h:h"),"h",INDIRECT("'"&Mercados!H2&"'!g:g"),"0")+COUNTIFS(INDIRECT("'"&Mercados!H2&"'!D:D"),D4,INDIRECT("'"&Mercados!H2&"'!h:h"),"a",INDIRECT("'"&Mercados!H2&"'!f:f"),"0") -> 0 | D256: =C256/$E$8 -> 0.00% | E256: =COUNTIFS(INDIRECT("'"&Mercados!H2&"'!d:d"),D4,INDIRECT("'"&Mercados!H2&"'!k:k"),"a",INDIRECT("'"&Mercados!H2&"'!i:i"),"0")+COUNTIFS(INDIRECT("'"&Mercados!H2&"'!e:e"),D4,INDIRECT("'"&Mercados!H2&"'!k:k"),"h",INDIRECT("'"&Mercados!H2&"'!j:j"),"0") -> 0 | F256: =E256/$E$8 -> 0.00% | G256: =COUNTIFS('lista de equipos'!Y:Y, D4, 'lista de equipos'!AC:AC, "a",'lista de equipos'!AA:AA, "0")+COUNTIFS('lista de equipos'!Z:Z, D4, 'lista de equipos'!AC:AC, "h",'lista de equipos'!AB:AB, "0") -> 1 | H256: =G256/$E$8 -> 16.67% | K256: Si | L256: =COUNTIFS(INDIRECT("'"&Mercados!H2&"'!e:e"),M4,INDIRECT("'"&Mercados!H2&"'!h:h"),"h",INDIRECT("'"&Mercados!H2&"'!g:g"),"0")+COUNTIFS(INDIRECT("'"&Mercados!H2&"'!D:D"),M4,INDIRECT("'"&Mercados!H2&"'!h:h"),"a",INDIRECT("'"&Mercados!H2&"'!f:f"),"0") -> 1 | M256: =L256/$N$8 -> 16.67% | N256: =COUNTIFS(INDIRECT("'"&Mercados!H2&"'!d:d"),M4,INDIRECT("'"&Mercados!H2&"'!k:k"),"a",INDIRECT("'"&Mercados!H2&"'!i:i"),"0")+COUNTIFS(INDIRECT("'"&Mercados!H2&"'!e:e"),M4,INDIRECT("'"&Mercados!H2&"'!k:k"),"h",INDIRECT("'"&Mercados!H2&"'!j:j"),"0") -> 3 | O256: =N256/$N$8 -> 50.00% | P256: =COUNTIFS('lista de equipos'!Y:Y, M4, 'lista de equipos'!AC:AC, "a",'lista de equipos'!AA:AA, "0")+COUNTIFS('lista de equipos'!Z:Z, M4, 'lista de equipos'!AC:AC, "h",'lista de equipos'!AB:AB, "0") -> 3 | Q256: =P256/$N$8 -> 50.00%
B257: No | C257: =$E$8-C256 -> 6 | D257: =C257/$E$8 -> 100.00% | E257: =$E$8-E256 -> 6 | F257: =E257/$E$8 -> 100.00% | G257: =$E$8-G256 -> 5 | H257: =G257/$E$8 -> 83.33% | K257: No | L257: =$N$8-L256 -> 5 | M257: =L257/$N$8 -> 83.33% | N257: =$N$8-N256 -> 3 | O257: =N257/$N$8 -> 50.00% | P257: =$N$8-P256 -> 3 | Q257: =P257/$N$8 -> 50.00%
D259: Equipo local pierde y marca gol | M259: Equipo pierde pierde y marca gol
C260: Tiempo completo | E260: Primer tiempo | G260: Segundo tiempo | L260: Tiempo completo | N260: Primer tiempo | P260: Segundo tiempo
B261: Si | C261: =COUNTIFS(INDIRECT("'"&Mercados!H2&"'!e:e"),D4,INDIRECT("'"&Mercados!H2&"'!h:h"),"h",INDIRECT("'"&Mercados!H2&"'!g:g"),">0")+COUNTIFS(INDIRECT("'"&Mercados!H2&"'!D:D"),D4,INDIRECT("'"&Mercados!H2&"'!h:h"),"a",INDIRECT("'"&Mercados!H2&"'!f:f"),">0") -> 0 | D261: =C261/$E$8 -> 0.00% | E261: =COUNTIFS(INDIRECT("'"&Mercados!H2&"'!d:d"),D4,INDIRECT("'"&Mercados!H2&"'!k:k"),"a",INDIRECT("'"&Mercados!H2&"'!i:i"),">0")+COUNTIFS(INDIRECT("'"&Mercados!H2&"'!e:e"),D4,INDIRECT("'"&Mercados!H2&"'!k:k"),"h",INDIRECT("'"&Mercados!H2&"'!j:j"),">0") -> 1 | F261: =E261/$E$8 -> 16.67% | G261: =COUNTIFS('lista de equipos'!Y:Y, D4, 'lista de equipos'!AC:AC, "a",'lista de equipos'!AA:AA, ">0")+COUNTIFS('lista de equipos'!Z:Z, D4, 'lista de equipos'!AC:AC, "h",'lista de equipos'!AB:AB, ">0") -> 0 | H261: =G261/$E$8 -> 0.00% | K261: Si | L261: =COUNTIFS(INDIRECT("'"&Mercados!H2&"'!e:e"),M4,INDIRECT("'"&Mercados!H2&"'!h:h"),"h",INDIRECT("'"&Mercados!H2&"'!g:g"),">0")+COUNTIFS(INDIRECT("'"&Mercados!H2&"'!D:D"),M4,INDIRECT("'"&Mercados!H2&"'!h:h"),"a",INDIRECT("'"&Mercados!H2&"'!f:f"),">0") -> 2 | M261: =L261/$N$8 -> 33.33% | N261: =COUNTIFS(INDIRECT("'"&Mercados!H2&"'!d:d"),M4,INDIRECT("'"&Mercados!H2&"'!k:k"),"a",INDIRECT("'"&Mercados!H2&"'!i:i"),">0")+COUNTIFS(INDIRECT("'"&Mercados!H2&"'!e:e"),M4,INDIRECT("'"&Mercados!H2&"'!k:k"),"h",INDIRECT("'"&Mercados!H2&"'!j:j"),">0") -> 1 | O261: =N261/$N$8 -> 16.67% | P261: =COUNTIFS('lista de equipos'!Y:Y, M4, 'lista de equipos'!AC:AC, "a",'lista de equipos'!AA:AA, ">0")+COUNTIFS('lista de equipos'!Z:Z, M4, 'lista de equipos'!AC:AC, "h",'lista de equipos'!AB:AB, ">0") -> 0 | Q261: =P261/$N$8 -> 0.00%
B262: No | C262: =$E$8-C261 -> 6 | D262: =C262/$E$8 -> 100.00% | E262: =$E$8-E261 -> 5 | F262: =E262/$E$8 -> 83.33% | G262: =$E$8-G261 -> 6 | H262: =G262/$E$8 -> 100.00% | K262: No | L262: =$N$8-L261 -> 4 | M262: =L262/$N$8 -> 66.67% | N262: =$N$8-N261 -> 5 | O262: =N262/$N$8 -> 83.33% | P262: =$N$8-P261 -> 6 | Q262: =P262/$N$8 -> 100.00%
D264: Equipo local Porteria imbatida | M264: Equipo visitante porteria imbatida
C265: Tiempo completo | E265: Primer tiempo | G265: Segundo tiempo | L265: Tiempo completo | N265: Primer tiempo | P265: Segundo tiempo
B266: Si | C266: =COUNTIFS(INDIRECT("'"&Mercados!H2&"'!D:D"), D4, INDIRECT("'"&Mercados!H2&"'!g:g"), "0")+COUNTIFS(INDIRECT("'"&Mercados!H2&"'!e:e"), D4, INDIRECT("'"&Mercados!H2&"'!f:f"), "0") -> 1 | D266: =C266/$E$8 -> 16.67% | E266: =COUNTIFS(INDIRECT("'"&Mercados!H2&"'!D:D"),D4,INDIRECT("'"&Mercados!H2&"'!j:j"),"0")+COUNTIFS(INDIRECT("'"&Mercados!H2&"'!e:e"),D4,INDIRECT("'"&Mercados!H2&"'!i:i"),"0") -> 2 | F266: =E266/$E$8 -> 33.33% | G266: =COUNTIFS('lista de equipos'!Y:Y,D4,'lista de equipos'!AB:AB,"0")+COUNTIFS('lista de equipos'!Z:Z,D4,'lista de equipos'!AA:AA,"0") -> 5 | H266: =G266/$E$8 -> 83.33% | K266: Si | L266: =COUNTIFS(INDIRECT("'"&Mercados!H2&"'!D:D"), M4, INDIRECT("'"&Mercados!H2&"'!g:g"), "0")+COUNTIFS(INDIRECT("'"&Mercados!H2&"'!e:e"), M4, INDIRECT("'"&Mercados!H2&"'!f:f"), "0") -> 1 | M266: =L266/$N$8 -> 16.67% | N266: =COUNTIFS(INDIRECT("'"&Mercados!H2&"'!D:D"),M4,INDIRECT("'"&Mercados!H2&"'!j:j"),"0")+COUNTIFS(INDIRECT("'"&Mercados!H2&"'!e:e"),M4,INDIRECT("'"&Mercados!H2&"'!i:i"),"0") -> 1 | O266: =N266/$N$8 -> 16.67% | P266: =COUNTIFS('lista de equipos'!Y:Y,M4,'lista de equipos'!AB:AB,"0")+COUNTIFS('lista de equipos'!Z:Z,M4,'lista de equipos'!AA:AA,"0") -> 3 | Q266: =P266/$N$8 -> 50.00%
B267: No | C267: =$E$8-C266 -> 5 | D267: =C267/$E$8 -> 83.33% | E267: =$E$8-E266 -> 4 | F267: =E267/$E$8 -> 66.67% | G267: =$E$8-G266 -> 1 | H267: =G267/$E$8 -> 16.67% | K267: No | L267: =$N$8-L266 -> 5 | M267: =L267/$N$8 -> 83.33% | N267: =$N$8-N266 -> 5 | O267: =N267/$N$8 -> 83.33% | P267: =$N$8-P266 -> 3 | Q267: =P267/$N$8 -> 50.00%
H277: Half Time/Full Time
B282: Local | C282: HT/FT | D282: % | F282: General | G282: HT/FT | H282: % | K282: Visitante | M282: % | O282: General | P282: HT/FT | Q282: %
B283: H-H | C283: =COUNTIFS(INDIRECT("'"&Mercados!H2&"'!D:D"), D4, INDIRECT("'"&Mercados!H2&"'!H:H"), "H", INDIRECT("'"&Mercados!H2&"'!K:K"), "H") -> 2 | D283: =C283/$E$9 -> 66.67% | F283: H-H | G283: =COUNTIFS(INDIRECT("'"&Mercados!H2&"'!D:D"),D4,INDIRECT("'"&Mercados!H2&"'!H:H"),"H",INDIRECT("'"&Mercados!H2&"'!K:K"),"H")+COUNTIFS(INDIRECT("'"&Mercados!H2&"'!e:e"),D4,INDIRECT("'"&Mercados!H2&"'!H:H"),"a",INDIRECT("'"&Mercados!H2&"'!K:K"),"a") -> 4 | H283: =G283/$E$8 -> 66.67% | K283: H-H | L283: =COUNTIFS(INDIRECT("'"&Mercados!H2&"'!e:e"), M4, INDIRECT("'"&Mercados!H2&"'!H:H"), "h", INDIRECT("'"&Mercados!H2&"'!K:K"), "h") -> 0 | M283: =L283/$N$9 -> 0.00% | O283: H-H | P283: =COUNTIFS(INDIRECT("'"&Mercados!H2&"'!D:D"),M4,INDIRECT("'"&Mercados!H2&"'!H:H"),"H",INDIRECT("'"&Mercados!H2&"'!K:K"),"H")+COUNTIFS(INDIRECT("'"&Mercados!H2&"'!e:e"),M4,INDIRECT("'"&Mercados!H2&"'!H:H"),"a",INDIRECT("'"&Mercados!H2&"'!K:K"),"a") -> 0 | Q283: =P283/$N$8 -> 0.00%
B284: D-H | C284: =COUNTIFS(INDIRECT("'"&Mercados!H2&"'!D:D"), D4, INDIRECT("'"&Mercados!H2&"'!H:H"), "H", INDIRECT("'"&Mercados!H2&"'!K:K"), "d") -> 0 | D284: =C284/$E$9 -> 0.00% | F284: D-H | G284: =COUNTIFS(INDIRECT("'"&Mercados!H2&"'!D:D"),D4,INDIRECT("'"&Mercados!H2&"'!H:H"),"H",INDIRECT("'"&Mercados!H2&"'!K:K"),"d")+COUNTIFS(INDIRECT("'"&Mercados!H2&"'!e:e"),D4,INDIRECT("'"&Mercados!H2&"'!H:H"),"a",INDIRECT("'"&Mercados!H2&"'!K:K"),"d") -> 0 | H284: 0.00% | K284: D-H | L284: =COUNTIFS(INDIRECT("'"&Mercados!H2&"'!e:e"), M4, INDIRECT("'"&Mercados!H2&"'!H:H"), "h", INDIRECT("'"&Mercados!H2&"'!K:K"), "d") -> 0 | M284: =L284/$N$9 -> 0.00% | O284: D-H | P284: =COUNTIFS(INDIRECT("'"&Mercados!H2&"'!D:D"),M4,INDIRECT("'"&Mercados!H2&"'!H:H"),"H",INDIRECT("'"&Mercados!H2&"'!K:K"),"d")+COUNTIFS(INDIRECT("'"&Mercados!H2&"'!e:e"),M4,INDIRECT("'"&Mercados!H2&"'!H:H"),"a",INDIRECT("'"&Mercados!H2&"'!K:K"),"d") -> 1 | Q284: =P284/$N$8 -> 16.67%
B285: A-H | C285: =COUNTIFS(INDIRECT("'"&Mercados!H2&"'!D:D"), D4, INDIRECT("'"&Mercados!H2&"'!H:H"), "H", INDIRECT("'"&Mercados!H2&"'!K:K"), "a") -> 0 | D285: 0.00% | F285: A-H | G285: =COUNTIFS(INDIRECT("'"&Mercados!H2&"'!D:D"),D4,INDIRECT("'"&Mercados!H2&"'!H:H"),"H",INDIRECT("'"&Mercados!H2&"'!K:K"),"a")+COUNTIFS(INDIRECT("'"&Mercados!H2&"'!e:e"),D4,INDIRECT("'"&Mercados!H2&"'!H:H"),"a",INDIRECT("'"&Mercados!H2&"'!K:K"),"h") -> 0 | H285: 0.00% | K285: A-H | L285: =COUNTIFS(INDIRECT("'"&Mercados!H2&"'!e:e"), M4, INDIRECT("'"&Mercados!H2&"'!H:H"), "h", INDIRECT("'"&Mercados!H2&"'!K:K"), "a") -> 0 | M285: 0.00% | O285: A-H | P285: =COUNTIFS(INDIRECT("'"&Mercados!H2&"'!D:D"),M4,INDIRECT("'"&Mercados!H2&"'!H:H"),"H",INDIRECT("'"&Mercados!H2&"'!K:K"),"a")+COUNTIFS(INDIRECT("'"&Mercados!H2&"'!e:e"),M4,INDIRECT("'"&Mercados!H2&"'!H:H"),"a",INDIRECT("'"&Mercados!H2&"'!K:K"),"h") -> 0 | Q285: 0.00%
B286: H-D | C286: =COUNTIFS(INDIRECT("'"&Mercados!H2&"'!D:D"), D4, INDIRECT("'"&Mercados!H2&"'!H:H"), "d", INDIRECT("'"&Mercados!H2&"'!K:K"), "h") -> 0 | D286: 0.00% | F286: H-D | G286: =COUNTIFS(INDIRECT("'"&Mercados!H2&"'!D:D"),D4,INDIRECT("'"&Mercados!H2&"'!H:H"),"d",INDIRECT("'"&Mercados!H2&"'!K:K"),"h")+COUNTIFS(INDIRECT("'"&Mercados!H2&"'!e:e"),D4,INDIRECT("'"&Mercados!H2&"'!H:H"),"d",INDIRECT("'"&Mercados!H2&"'!K:K"),"a") -> 1 | H286: 16.67% | K286: H-D | L286: =COUNTIFS(INDIRECT("'"&Mercados!H2&"'!e:e"),M4,INDIRECT("'"&Mercados!H2&"'!H:H"),"d",INDIRECT("'"&Mercados!H2&"'!K:K"),"h") -> 2 | M286: 66.67% | O286: H-D | P286: =COUNTIFS(INDIRECT("'"&Mercados!H2&"'!D:D"),M4,INDIRECT("'"&Mercados!H2&"'!H:H"),"d",INDIRECT("'"&Mercados!H2&"'!K:K"),"h")+COUNTIFS(INDIRECT("'"&Mercados!H2&"'!e:e"),M4,INDIRECT("'"&Mercados!H2&"'!H:H"),"d",INDIRECT("'"&Mercados!H2&"'!K:K"),"a") -> 0 | Q286: 0.00%
B287: D-D | C287: =COUNTIFS(INDIRECT("'"&Mercados!H2&"'!D:D"), D4, INDIRECT("'"&Mercados!H2&"'!H:H"), "d", INDIRECT("'"&Mercados!H2&"'!K:K"), "d") -> 0 | D287: 0.00% | F287: D-D | G287: =COUNTIFS(INDIRECT("'"&Mercados!H2&"'!D:D"),D4,INDIRECT("'"&Mercados!H2&"'!H:H"),"d",INDIRECT("'"&Mercados!H2&"'!K:K"),"d")+COUNTIFS(INDIRECT("'"&Mercados!H2&"'!e:e"),D4,INDIRECT("'"&Mercados!H2&"'!H:H"),"d",INDIRECT("'"&Mercados!H2&"'!K:K"),"d") -> 0 | H287: 0.00% | K287: D-D | L287: =COUNTIFS(INDIRECT("'"&Mercados!H2&"'!e:e"),M4,INDIRECT("'"&Mercados!H2&"'!H:H"),"d",INDIRECT("'"&Mercados!H2&"'!K:K"),"d") -> 0 | M287: 0.00% | O287: D-D | P287: =COUNTIFS(INDIRECT("'"&Mercados!H2&"'!D:D"),M4,INDIRECT("'"&Mercados!H2&"'!H:H"),"d",INDIRECT("'"&Mercados!H2&"'!K:K"),"d")+COUNTIFS(INDIRECT("'"&Mercados!H2&"'!e:e"),M4,INDIRECT("'"&Mercados!H2&"'!H:H"),"d",INDIRECT("'"&Mercados!H2&"'!K:K"),"d") -> 0 | Q287: 0.00%
B288: A-D | C288: =COUNTIFS(INDIRECT("'"&Mercados!H2&"'!D:D"), D4, INDIRECT("'"&Mercados!H2&"'!H:H"), "d", INDIRECT("'"&Mercados!H2&"'!K:K"), "a") -> 1 | D288: 33.33% | F288: A-D | G288: =COUNTIFS(INDIRECT("'"&Mercados!H2&"'!D:D"), D4, INDIRECT("'"&Mercados!H2&"'!H:H"), "d", INDIRECT("'"&Mercados!H2&"'!K:K"), "a")+COUNTIFS(INDIRECT("'"&Mercados!H2&"'!e:e"), D4, INDIRECT("'"&Mercados!H2&"'!H:H"), "d", INDIRECT("'"&Mercados!H2&"'!K:K"), "h") -> 1 | H288: 16.67% | K288: A-D | L288: =COUNTIFS(INDIRECT("'"&Mercados!H2&"'!e:e"),M4,INDIRECT("'"&Mercados!H2&"'!H:H"),"d",INDIRECT("'"&Mercados!H2&"'!K:K"),"a") -> 0 | M288: 0.00% | O288: A-D | P288: =COUNTIFS(INDIRECT("'"&Mercados!H2&"'!D:D"), M4, INDIRECT("'"&Mercados!H2&"'!H:H"), "d", INDIRECT("'"&Mercados!H2&"'!K:K"), "a")+COUNTIFS(INDIRECT("'"&Mercados!H2&"'!e:e"), M4, INDIRECT("'"&Mercados!H2&"'!H:H"), "d", INDIRECT("'"&Mercados!H2&"'!K:K"), "h") -> 2 | Q288: 33.33%
B289: H-A | C289: =COUNTIFS(INDIRECT("'"&Mercados!H2&"'!D:D"), D4, INDIRECT("'"&Mercados!H2&"'!H:H"), "a", INDIRECT("'"&Mercados!H2&"'!K:K"), "h") -> 0 | D289: 0.00% | F289: H-A | G289: =COUNTIFS(INDIRECT("'"&Mercados!H2&"'!D:D"), D4, INDIRECT("'"&Mercados!H2&"'!H:H"), "a", INDIRECT("'"&Mercados!H2&"'!K:K"), "h")+COUNTIFS(INDIRECT("'"&Mercados!H2&"'!e:e"), D4, INDIRECT("'"&Mercados!H2&"'!H:H"), "h", INDIRECT("'"&Mercados!H2&"'!K:K"), "a") -> 0 | H289: =G289/$E$8 -> 0.00% | K289: H-A | L289: =COUNTIFS(INDIRECT("'"&Mercados!H2&"'!e:e"),M4,INDIRECT("'"&Mercados!H2&"'!H:H"),"a",INDIRECT("'"&Mercados!H2&"'!K:K"),"h") -> 0 | M289: 0.00% | O289: H-A | P289: =COUNTIFS(INDIRECT("'"&Mercados!H2&"'!D:D"), M4, INDIRECT("'"&Mercados!H2&"'!H:H"), "a", INDIRECT("'"&Mercados!H2&"'!K:K"), "h")+COUNTIFS(INDIRECT("'"&Mercados!H2&"'!e:e"), M4, INDIRECT("'"&Mercados!H2&"'!H:H"), "h", INDIRECT("'"&Mercados!H2&"'!K:K"), "a") -> 0 | Q289: 0.00%
B290: D-A | C290: =COUNTIFS(INDIRECT("'"&Mercados!H2&"'!D:D"), D4, INDIRECT("'"&Mercados!H2&"'!H:H"), "a", INDIRECT("'"&Mercados!H2&"'!K:K"), "d") -> 0 | D290: 0.00% | F290: D-A | G290: =COUNTIFS(INDIRECT("'"&Mercados!H2&"'!D:D"), D4, INDIRECT("'"&Mercados!H2&"'!H:H"), "a", INDIRECT("'"&Mercados!H2&"'!K:K"), "d")+COUNTIFS(INDIRECT("'"&Mercados!H2&"'!e:e"), D4, INDIRECT("'"&Mercados!H2&"'!H:H"), "h", INDIRECT("'"&Mercados!H2&"'!K:K"), "d") -> 0 | H290: 0.00% | K290: D-A | L290: =COUNTIFS(INDIRECT("'"&Mercados!H2&"'!e:e"),M4,INDIRECT("'"&Mercados!H2&"'!H:H"),"a",INDIRECT("'"&Mercados!H2&"'!K:K"),"d") -> 1 | M290: 33.33% | O290: D-A | P290: =COUNTIFS(INDIRECT("'"&Mercados!H2&"'!D:D"), M4, INDIRECT("'"&Mercados!H2&"'!H:H"), "a", INDIRECT("'"&Mercados!H2&"'!K:K"), "d")+COUNTIFS(INDIRECT("'"&Mercados!H2&"'!e:e"), M4, INDIRECT("'"&Mercados!H2&"'!H:H"), "h", INDIRECT("'"&Mercados!H2&"'!K:K"), "d") -> 1 | Q290: 16.67%
B291: A-A | C291: =COUNTIFS(INDIRECT("'"&Mercados!H2&"'!D:D"), D4, INDIRECT("'"&Mercados!H2&"'!H:H"), "a", INDIRECT("'"&Mercados!H2&"'!K:K"), "a") -> 0 | D291: 0.00% | F291: A-A | G291: =COUNTIFS(INDIRECT("'"&Mercados!H2&"'!D:D"), D4, INDIRECT("'"&Mercados!H2&"'!H:H"), "a", INDIRECT("'"&Mercados!H2&"'!K:K"), "a")+COUNTIFS(INDIRECT("'"&Mercados!H2&"'!e:e"), D4, INDIRECT("'"&Mercados!H2&"'!H:H"), "h", INDIRECT("'"&Mercados!H2&"'!K:K"), "h") -> 0 | H291: =G291/$E$8 -> 0.00% | K291: A-A | L291: =COUNTIFS(INDIRECT("'"&Mercados!H2&"'!e:e"),M4,INDIRECT("'"&Mercados!H2&"'!H:H"),"a",INDIRECT("'"&Mercados!H2&"'!K:K"),"a") -> 0 | M291: 0.00% | O291: A-A | P291: =COUNTIFS(INDIRECT("'"&Mercados!H2&"'!D:D"), M4, INDIRECT("'"&Mercados!H2&"'!H:H"), "a", INDIRECT("'"&Mercados!H2&"'!K:K"), "a")+COUNTIFS(INDIRECT("'"&Mercados!H2&"'!e:e"), M4, INDIRECT("'"&Mercados!H2&"'!H:H"), "h", INDIRECT("'"&Mercados!H2&"'!K:K"), "h") -> 2 | Q291: 33.33%
H295: Marcador Correcto
... 77 more rows

Sheet lista de equipos (hidden)
Y1: =INDIRECT("'" & Mercados!H2 & "'!D1") -> HomeTeam | Z1: =INDIRECT("'" & Mercados!H2 & "'!E1") -> AwayTeam | AA1: FTHG | AB1: FTAG | AC1: SHR | AF1: Corners H | AG1: Corners A | AH1: Total corners
A2: EPL_2024_2025 | B2: EPL_2023_2024 | C2: EPL_2022_2023 | D2: EPL_2021_2022 | E2: EPL_2020_2021 | F2: T_Actual_y_Anterior | G2: T_actual_y_dos_ultimas | H2: T_actual_y_tres_ultimas | I2: T_actual_y_cuatro_ultimas | Y2: =INDIRECT("'" & Mercados!$H$2 & "'!D" & ROW()) -> Man United | Z2: =INDIRECT("'" & Mercados!$H$2 & "'!E" & ROW()) -> Fulham | AA2: =IF(AND(ISNUMBER(INDIRECT("'"&Mercados!$H$2&"'!F"&ROW())), ISNUMBER(INDIRECT("'"&Mercados!$H$2&"'!I"&ROW()))), INDIRECT("'"&Mercados!$H$2&"'!F"&ROW()) - INDIRECT("'"&Mercados!$H$2&"'!I"&ROW()), "") -> 1 | AB2: =IF(AND(ISNUMBER(INDIRECT("'"&Mercados!$H$2&"'!G"&ROW())), ISNUMBER(INDIRECT("'"&Mercados!$H$2&"'!J"&ROW()))), INDIRECT("'"&Mercados!$H$2&"'!G"&ROW()) - INDIRECT("'"&Mercados!$H$2&"'!J"&ROW()), "") -> 0 | AC2: =IF(OR(ISBLANK(AA2), ISBLANK(AB2)), "", IF(AND(AA2=AB2, NOT(ISBLANK(AA2))), "D", IF(AA2>AB2, "H", "A"))) -> H | AE2: =IF(EPL_2024_2025!F2 - EPL_2024_2025!I2 > EPL_2024_2025!G2 - EPL_2024_2025!J2, "H", IF(EPL_2024_2025!F2 - EPL_2024_2025!I2 < EPL_2024_2025!G2 - EPL_2024_2025!J2, "A", "D")) -> H | AF2: =INDIRECT("'" & Mercados!$H$2 & "'!S" & ROW()) -> 7 | AG2: =INDIRECT("'" & Mercados!$H$2 & "'!t" & ROW()) -> 8 | AH2: =SUM(AF2:AG2) -> 15
A3: Arsenal | B3: Bournemouth | C3: Bournemouth | D3: Burnley | E3: Liverpool | F3: Arsenal | G3: Arsenal | H3: Arsenal | I3: Arsenal | Y3: =INDIRECT("'" & Mercados!$H$2 & "'!D" & ROW()) -> Ipswich | Z3: =INDIRECT("'" & Mercados!$H$2 & "'!E" & ROW()) -> Liverpool | AA3: =IF(AND(ISNUMBER(INDIRECT("'"&Mercados!$H$2&"'!F"&ROW())), ISNUMBER(INDIRECT("'"&Mercados!$H$2&"'!I"&ROW()))), INDIRECT("'"&Mercados!$H$2&"'!F"&ROW()) - INDIRECT("'"&Mercados!$H$2&"'!I"&ROW()), "") -> 0 | AB3: =IF(AND(ISNUMBER(INDIRECT("'"&Mercados!$H$2&"'!G"&ROW())), ISNUMBER(INDIRECT("'"&Mercados!$H$2&"'!J"&ROW()))), INDIRECT("'"&Mercados!$H$2&"'!G"&ROW()) - INDIRECT("'"&Mercados!$H$2&"'!J"&ROW()), "") -> 2 | AC3: =IF(OR(ISBLANK(AA3), ISBLANK(AB3)), "", IF(AA3>AB3, "H", IF(AA3<AB3, "A", "D"))) -> A | AE3: =IF(EPL_2024_2025!F3 - EPL_2024_2025!I3 > EPL_2024_2025!G3 - EPL_2024_2025!J3, "H", IF(EPL_2024_2025!F3 - EPL_2024_2025!I3 < EPL_2024_2025!G3 - EPL_2024_2025!J3, "A", "D")) -> A | AF3: =INDIRECT("'" & Mercados!$H$2 & "'!S" & ROW()) -> 2 | AG3: =INDIRECT("'" & Mercados!$H$2 & "'!t" & ROW()) -> 10 | AH3: =SUM(AF3:AG3) -> 12
A4: Aston Villa | B4: Aston Villa | C4: Chelsea | D4: Aston Villa | E4: Man United | F4: Aston Villa | G4: Aston Villa | H4: Aston Villa | I4: Aston Villa | Y4: =INDIRECT("'" & Mercados!$H$2 & "'!D" & ROW()) -> Arsenal | Z4: =INDIRECT("'" & Mercados!$H$2 & "'!E" & ROW()) -> Wolves | AA4: =IF(AND(ISNUMBER(INDIRECT("'"&Mercados!$H$2&"'!F"&ROW())), ISNUMBER(INDIRECT("'"&Mercados!$H$2&"'!I"&ROW()))), INDIRECT("'"&Mercados!$H$2&"'!F"&ROW()) - INDIRECT("'"&Mercados!$H$2&"'!I"&ROW()), "") -> 1 | AB4: =IF(AND(ISNUMBER(INDIRECT("'"&Mercados!$H$2&"'!G"&ROW())), ISNUMBER(INDIRECT("'"&Mercados!$H$2&"'!J"&ROW()))), INDIRECT("'"&Mercados!$H$2&"'!G"&ROW()) - INDIRECT("'"&Mercados!$H$2&"'!J"&ROW()), "") -> 0 | AC4: H | AE4: =IF(EPL_2024_2025!F4 - EPL_2024_2025!I4 > EPL_2024_2025!G4 - EPL_2024_2025!J4, "H", IF(EPL_2024_2025!F4 - EPL_2024_2025!I4 < EPL_2024_2025!G4 - EPL_2024_2025!J4, "A", "D")) -> H | AF4: =INDIRECT("'" & Mercados!$H$2 & "'!S" & ROW()) -> 8 | AG4: =INDIRECT("'" & Mercados!$H$2 & "'!t" & ROW()) -> 2 | AH4: 10
A5: Bournemouth | B5: Crystal Palace | C5: Southampton | D5: Wolves | E5: Wolves | F5: Bournemouth | G5: Bournemouth | H5: Bournemouth | I5: Bournemouth | Y5: =INDIRECT("'" & Mercados!$H$2 & "'!D" & ROW()) -> Everton | Z5: =INDIRECT("'" & Mercados!$H$2 & "'!E" & ROW()) -> Brighton | AA5: =IF(AND(ISNUMBER(INDIRECT("'"&Mercados!$H$2&"'!F"&ROW())), ISNUMBER(INDIRECT("'"&Mercados!$H$2&"'!I"&ROW()))), INDIRECT("'"&Mercados!$H$2&"'!F"&ROW()) - INDIRECT("'"&Mercados!$H$2&"'!I"&ROW()), "") -> 0 | AB5: =IF(AND(ISNUMBER(INDIRECT("'"&Mercados!$H$2&"'!G"&ROW())), ISNUMBER(INDIRECT("'"&Mercados!$H$2&"'!J"&ROW()))), INDIRECT("'"&Mercados!$H$2&"'!G"&ROW()) - INDIRECT("'"&Mercados!$H$2&"'!J"&ROW()), "") -> 2 | AC5: A | AE5: =IF(EPL_2024_2025!F5 - EPL_2024_2025!I5 > EPL_2024_2025!G5 - EPL_2024_2025!J5, "H", IF(EPL_2024_2025!F5 - EPL_2024_2025!I5 < EPL_2024_2025!G5 - EPL_2024_2025!J5, "A", "D")) -> A | AF5: =INDIRECT("'" & Mercados!$H$2 & "'!S" & ROW()) -> 1 | AG5: =INDIRECT("'" & Mercados!$H$2 & "'!t" & ROW()) -> 5 | AH5: 6
A6: Brentford | B6: Brentford | C6: Leicester | D6: Norwich | E6: Sheffield United | F6: Brentford | G6: Brentford | H6: Brentford | I6: Brentford | Y6: =INDIRECT("'" & Mercados!$H$2 & "'!D" & ROW()) -> Newcastle | Z6: =INDIRECT("'" & Mercados!$H$2 & "'!E" & ROW()) -> Southampton | AA6: =IF(AND(ISNUMBER(INDIRECT("'"&Mercados!$H$2&"'!F"&ROW())), ISNUMBER(INDIRECT("'"&Mercados!$H$2&"'!I"&ROW()))), INDIRECT("'"&Mercados!$H$2&"'!F"&ROW()) - INDIRECT("'"&Mercados!$H$2&"'!I"&ROW()), "") -> 0 | AB6: =IF(AND(ISNUMBER(INDIRECT("'"&Mercados!$H$2&"'!G"&ROW())), ISNUMBER(INDIRECT("'"&Mercados!$H$2&"'!J"&ROW()))), INDIRECT("'"&Mercados!$H$2&"'!G"&ROW()) - INDIRECT("'"&Mercados!$H$2&"'!J"&ROW()), "") -> 0 | AC6: D | AE6: =IF(EPL_2024_2025!F6 - EPL_2024_2025!I6 > EPL_2024_2025!G6 - EPL_2024_2025!J6, "H", IF(EPL_2024_2025!F6 - EPL_2024_2025!I6 < EPL_2024_2025!G6 - EPL_2024_2025!J6, "A", "D")) -> D | AF6: =INDIRECT("'" & Mercados!$H$2 & "'!S" & ROW()) -> 3 | AG6: =INDIRECT("'" & Mercados!$H$2 & "'!t" & ROW()) -> 12 | AH6: 15
A7: Brighton | B7: Luton | C7: Wolves | D7: Crystal Palace | E7: Everton | F7: Brighton | G7: Brighton | H7: Brighton | I7: Brighton | Y7: =INDIRECT("'" & Mercados!$H$2 & "'!D" & ROW()) -> Nott'm Forest | Z7: =INDIRECT("'" & Mercados!$H$2 & "'!E" & ROW()) -> Bournemouth | AA7: =IF(AND(ISNUMBER(INDIRECT("'"&Mercados!$H$2&"'!F"&ROW())), ISNUMBER(INDIRECT("'"&Mercados!$H$2&"'!I"&ROW()))), INDIRECT("'"&Mercados!$H$2&"'!F"&ROW()) - INDIRECT("'"&Mercados!$H$2&"'!I"&ROW()), "") -> 0 | AB7: =IF(AND(ISNUMBER(INDIRECT("'"&Mercados!$H$2&"'!G"&ROW())), ISNUMBER(INDIRECT("'"&Mercados!$H$2&"'!J"&ROW()))), INDIRECT("'"&Mercados!$H$2&"'!G"&ROW()) - INDIRECT("'"&Mercados!$H$2&"'!J"&ROW()), "") -> 1 | AC7: A | AE7: =IF(EPL_2024_2025!F7 - EPL_2024_2025!I7 > EPL_2024_2025!G7 - EPL_2024_2025!J7, "H", IF(EPL_2024_2025!F7 - EPL_2024_2025!I7 < EPL_2024_2025!G7 - EPL_2024_2025!J7, "A", "D")) -> A | AF7: =INDIRECT("'" & Mercados!$H$2 & "'!S" & ROW()) -> 2 | AG7: =INDIRECT("'" & Mercados!$H$2 & "'!t" & ROW()) -> 6 | AH7: 8
A8: Chelsea | B8: Chelsea | C8: Man United | D8: Newcastle | E8: Arsenal | F8: Chelsea | G8: Chelsea | H8: Chelsea | I8: Chelsea | Y8: =INDIRECT("'" & Mercados!$H$2 & "'!D" & ROW()) -> West Ham | Z8: =INDIRECT("'" & Mercados!$H$2 & "'!E" & ROW()) -> Aston Villa | AA8: =IF(AND(ISNUMBER(INDIRECT("'"&Mercados!$H$2&"'!F"&ROW())), ISNUMBER(INDIRECT("'"&Mercados!$H$2&"'!I"&ROW()))), INDIRECT("'"&Mercados!$H$2&"'!F"&ROW()) - INDIRECT("'"&Mercados!$H$2&"'!I"&ROW()), "") -> 0 | AB8: =IF(AND(ISNUMBER(INDIRECT("'"&Mercados!$H$2&"'!G"&ROW())), ISNUMBER(INDIRECT("'"&Mercados!$H$2&"'!J"&ROW()))), INDIRECT("'"&Mercados!$H$2&"'!G"&ROW()) - INDIRECT("'"&Mercados!$H$2&"'!J"&ROW()), "") -> 1 | AC8: A | AE8: =IF(EPL_2024_2025!F8 - EPL_2024_2025!I8 > EPL_2024_2025!G8 - EPL_2024_2025!J8, "H", IF(EPL_2024_2025!F8 - EPL_2024_2025!I8 < EPL_2024_2025!G8 - EPL_2024_2025!J8, "A", "D")) -> A | AF8: =INDIRECT("'" & Mercados!$H$2 & "'!S" & ROW()) -> 5 | AG8: =INDIRECT("'" & Mercados!$H$2 & "'!t" & ROW()) -> 3 | AH8: 8
A9: Crystal Palace | B9: Tottenham | C9: Brentford | D9: Liverpool | E9: Aston Villa | F9: Crystal Palace | G9: Crystal Palace | H9: Crystal Palace | I9: Crystal Palace | Y9: =INDIRECT("'" & Mercados!$H$2 & "'!D" & ROW()) -> Brentford | Z9: =INDIRECT("'" & Mercados!$H$2 & "'!E" & ROW()) -> Crystal Palace | AA9: =IF(AND(ISNUMBER(INDIRECT("'"&Mercados!$H$2&"'!F"&ROW())), ISNUMBER(INDIRECT("'"&Mercados!$H$2&"'!I"&ROW()))), INDIRECT("'"&Mercados!$H$2&"'!F"&ROW()) - INDIRECT("'"&Mercados!$H$2&"'!I"&ROW()), "") -> 1 | AB9: =IF(AND(ISNUMBER(INDIRECT("'"&Mercados!$H$2&"'!G"&ROW())), ISNUMBER(INDIRECT("'"&Mercados!$H$2&"'!J"&ROW()))), INDIRECT("'"&Mercados!$H$2&"'!G"&ROW()) - INDIRECT("'"&Mercados!$H$2&"'!J"&ROW()), "") -> 1 | AC9: D | AE9: =IF(EPL_2024_2025!F9 - EPL_2024_2025!I9 > EPL_2024_2025!G9 - EPL_2024_2025!J9, "H", IF(EPL_2024_2025!F9 - EPL_2024_2025!I9 < EPL_2024_2025!G9 - EPL_2024_2025!J9, "A", "D")) -> D | AF9: =INDIRECT("'" & Mercados!$H$2 & "'!S" & ROW()) -> 4 | AG9: =INDIRECT("'" & Mercados!$H$2 & "'!t" & ROW()) -> 7 | AH9: 11
A10: Everton | B10: Brighton | C10: Leeds | D10: Chelsea | E10: West Ham | F10: Everton | G10: Everton | H10: Everton | I10: Everton | Y10: =INDIRECT("'" & Mercados!$H$2 & "'!D" & ROW()) -> Chelsea | Z10: =INDIRECT("'" & Mercados!$H$2 & "'!E" & ROW()) -> Man City | AA10: =IF(AND(ISNUMBER(INDIRECT("'"&Mercados!$H$2&"'!F"&ROW())), ISNUMBER(INDIRECT("'"&Mercados!$H$2&"'!I"&ROW()))), INDIRECT("'"&Mercados!$H$2&"'!F"&ROW()) - INDIRECT("'"&Mercados!$H$2&"'!I"&ROW()), "") -> 0 | AB10: =IF(AND(ISNUMBER(INDIRECT("'"&Mercados!$H$2&"'!G"&ROW())), ISNUMBER(INDIRECT("'"&Mercados!$H$2&"'!J"&ROW()))), INDIRECT("'"&Mercados!$H$2&"'!G"&ROW()) - INDIRECT("'"&Mercados!$H$2&"'!J"&ROW()), "") -> 1 | AC10: A | AE10: =IF(EPL_2024_2025!F10 - EPL_2024_2025!I10 > EPL_2024_2025!G10 - EPL_2024_2025!J10, "H", IF(EPL_2024_2025!F10 - EPL_2024_2025!I10 < EPL_2024_2025!G10 - EPL_2024_2025!J10, "A", "D")) -> A | AF10: =INDIRECT("'" & Mercados!$H$2 & "'!S" & ROW()) -> 4 | AG10: =INDIRECT("'" & Mercados!$H$2 & "'!t" & ROW()) -> 3 | AH10: 7
A11: Fulham | B11: Man City | C11: Arsenal | D11: Arsenal | E11: Leeds | F11: Fulham | G11: Fulham | H11: Fulham | I11: Fulham | Y11: =INDIRECT("'" & Mercados!$H$2 & "'!D" & ROW()) -> Leicester | Z11: =INDIRECT("'" & Mercados!$H$2 & "'!E" & ROW()) -> Tottenham | AA11: =IF(AND(ISNUMBER(INDIRECT("'"&Mercados!$H$2&"'!F"&ROW())), ISNUMBER(INDIRECT("'"&Mercados!$H$2&"'!I"&ROW()))), INDIRECT("'"&Mercados!$H$2&"'!F"&ROW()) - INDIRECT("'"&Mercados!$H$2&"'!I"&ROW()), "") -> 1 | AB11: =IF(AND(ISNUMBER(INDIRECT("'"&Mercados!$H$2&"'!G"&ROW())), ISNUMBER(INDIRECT("'"&Mercados!$H$2&"'!J"&ROW()))), INDIRECT("'"&Mercados!$H$2&"'!G"&ROW()) - INDIRECT("'"&Mercados!$H$2&"'!J"&ROW()), "") -> 0 | AC11: H | AE11: =IF(EPL_2024_2025!F11 - EPL_2024_2025!I11 > EPL_2024_2025!G11 - EPL_2024_2025!J11, "H", IF(EPL_2024_2025!F11 - EPL_2024_2025!I11 < EPL_2024_2025!G11 - EPL_2024_2025!J11, "A", "D")) -> H | AF11: =INDIRECT("'" & Mercados!$H$2 & "'!S" & ROW()) -> 2 | AG11: =INDIRECT("'" & Mercados!$H$2 & "'!t" & ROW()) -> 13 | AH11: 15
A12: Ipswich | B12: Arsenal | C12: Fulham | D12: Man United | E12: Crystal Palace | F12: Ipswich | G12: Ipswich | H12: Ipswich | I12: Ipswich | Y12: =INDIRECT("'" & Mercados!$H$2 & "'!D" & ROW()) -> Brighton | Z12: =INDIRECT("'" & Mercados!$H$2 & "'!E" & ROW()) -> Man United | AA12: =IF(AND(ISNUMBER(INDIRECT("'"&Mercados!$H$2&"'!F"&ROW())), ISNUMBER(INDIRECT("'"&Mercados!$H$2&"'!I"&ROW()))), INDIRECT("'"&Mercados!$H$2&"'!F"&ROW()) - INDIRECT("'"&Mercados!$H$2&"'!I"&ROW()), "") -> 1 | AB12: =IF(AND(ISNUMBER(INDIRECT("'"&Mercados!$H$2&"'!G"&ROW())), ISNUMBER(INDIRECT("'"&Mercados!$H$2&"'!J"&ROW()))), INDIRECT("'"&Mercados!$H$2&"'!G"&ROW()) - INDIRECT("'"&Mercados!$H$2&"'!J"&ROW()), "") -> 1 | AC12: D | AE12: =IF(EPL_2024_2025!F12 - EPL_2024_2025!I12 > EPL_2024_2025!G12 - EPL_2024_2025!J12, "H", IF(EPL_2024_2025!F12 - EPL_2024_2025!I12 < EPL_2024_2025!G12 - EPL_2024_2025!J12, "A", "D")) -> D | AF12: =INDIRECT("'" & Mercados!$H$2 & "'!S" & ROW()) -> 4 | AG12: =INDIRECT("'" & Mercados!$H$2 & "'!t" & ROW()) -> 4 | AH12: 8
A13: Leicester | B13: Man United | C13: West Ham | D13: Tottenham | E13: Southampton | F13: Leicester | G13: Leicester | H13: Leicester | I13: Leicester | Y13: =INDIRECT("'" & Mercados!$H$2 & "'!D" & ROW()) -> Crystal Palace | Z13: =INDIRECT("'" & Mercados!$H$2 & "'!E" & ROW()) -> West Ham | AA13: =IF(AND(ISNUMBER(INDIRECT("'"&Mercados!$H$2&"'!F"&ROW())), ISNUMBER(INDIRECT("'"&Mercados!$H$2&"'!I"&ROW()))), INDIRECT("'"&Mercados!$H$2&"'!F"&ROW()) - INDIRECT("'"&Mercados!$H$2&"'!I"&ROW()), "") -> 0 | AB13: =IF(AND(ISNUMBER(INDIRECT("'"&Mercados!$H$2&"'!G"&ROW())), ISNUMBER(INDIRECT("'"&Mercados!$H$2&"'!J"&ROW()))), INDIRECT("'"&Mercados!$H$2&"'!G"&ROW()) - INDIRECT("'"&Mercados!$H$2&"'!J"&ROW()), "") -> 2 | AC13: A | AF13: =INDIRECT("'" & Mercados!$H$2 & "'!S" & ROW()) -> 3 | AG13: =INDIRECT("'" & Mercados!$H$2 & "'!t" & ROW()) -> 3 | AH13: 6
A14: Liverpool | B14: Nott'm Forest | C14: Liverpool | D14: Leeds | E14: Newcastle | F14: Liverpool | G14: Liverpool | H14: Liverpool | I14: Liverpool | Y14: =INDIRECT("'" & Mercados!$H$2 & "'!D" & ROW()) -> Fulham | Z14: =INDIRECT("'" & Mercados!$H$2 & "'!E" & ROW()) -> Leicester | AA14: =IF(AND(ISNUMBER(INDIRECT("'"&Mercados!$H$2&"'!F"&ROW())), ISNUMBER(INDIRECT("'"&Mercados!$H$2&"'!I"&ROW()))), INDIRECT("'"&Mercados!$H$2&"'!F"&ROW()) - INDIRECT("'"&Mercados!$H$2&"'!I"&ROW()), "") -> 1 | AB14: =IF(AND(ISNUMBER(INDIRECT("'"&Mercados!$H$2&"'!G"&ROW())), ISNUMBER(INDIRECT("'"&Mercados!$H$2&"'!J"&ROW()))), INDIRECT("'"&Mercados!$H$2&"'!G"&ROW()) - INDIRECT("'"&Mercados!$H$2&"'!J"&ROW()), "") -> 0 | AC14: H | AF14: =INDIRECT("'" & Mercados!$H$2 & "'!S" & ROW()) -> 7 | AG14: =INDIRECT("'" & Mercados!$H$2 & "'!t" & ROW()) -> 5 | AH14: 12
A15: Man City | B15: Liverpool | C15: Brighton | D15: West Ham | E15: Wolves | F15: Man City | G15: Man City | H15: Man City | I15: Man City | Y15: =INDIRECT("'" & Mercados!$H$2 & "'!D" & ROW()) -> Man City | Z15: =INDIRECT("'" & Mercados!$H$2 & "'!E" & ROW()) -> Ipswich | AA15: =IF(AND(ISNUMBER(INDIRECT("'"&Mercados!$H$2&"'!F"&ROW())), ISNUMBER(INDIRECT("'"&Mercados!$H$2&"'!I"&ROW()))), INDIRECT("'"&Mercados!$H$2&"'!F"&ROW()) - INDIRECT("'"&Mercados!$H$2&"'!I"&ROW()), "") -> 1 | AB15: =IF(AND(ISNUMBER(INDIRECT("'"&Mercados!$H$2&"'!G"&ROW())), ISNUMBER(INDIRECT("'"&Mercados!$H$2&"'!J"&ROW()))), INDIRECT("'"&Mercados!$H$2&"'!G"&ROW()) - INDIRECT("'"&Mercados!$H$2&"'!J"&ROW()), "") -> 0 | AC15: H | AF15: =INDIRECT("'" & Mercados!$H$2 & "'!S" & ROW()) -> 10 | AG15: =INDIRECT("'" & Mercados!$H$2 & "'!t" & ROW()) -> 1 | AH15: 11
A16: Man United | B16: Burnley | C16: Crystal Palace | D16: Brentford | E16: Fulham | F16: Man United | G16: Man United | H16: Man United | I16: Man United | Y16: =INDIRECT("'" & Mercados!$H$2 & "'!D" & ROW()) -> Southampton | Z16: =INDIRECT("'" & Mercados!$H$2 & "'!E" & ROW()) -> Nott'm Forest | AA16: =IF(AND(ISNUMBER(INDIRECT("'"&Mercados!$H$2&"'!F"&ROW())), ISNUMBER(INDIRECT("'"&Mercados!$H$2&"'!I"&ROW()))), INDIRECT("'"&Mercados!$H$2&"'!F"&ROW()) - INDIRECT("'"&Mercados!$H$2&"'!I"&ROW()), "") -> 0 | AB16: =IF(AND(ISNUMBER(INDIRECT("'"&Mercados!$H$2&"'!G"&ROW())), ISNUMBER(INDIRECT("'"&Mercados!$H$2&"'!J"&ROW()))), INDIRECT("'"&Mercados!$H$2&"'!G"&ROW()) - INDIRECT("'"&Mercados!$H$2&"'!J"&ROW()), "") -> 1 | AC16: A | AF16: =INDIRECT("'" & Mercados!$H$2 & "'!S" & ROW()) -> 4 | AG16: =INDIRECT("'" & Mercados!$H$2 & "'!t" & ROW()) -> 10 | AH16: 14
A17: Newcastle | B17: Everton | C17: Newcastle | D17: Everton | E17: West Brom | F17: Newcastle | G17: Newcastle | H17: Newcastle | I17: Newcastle | Y17: =INDIRECT("'" & Mercados!$H$2 & "'!D" & ROW()) -> Tottenham | Z17: =INDIRECT("'" & Mercados!$H$2 & "'!E" & ROW()) -> Everton | AA17: =IF(AND(ISNUMBER(INDIRECT("'"&Mercados!$H$2&"'!F"&ROW())), ISNUMBER(INDIRECT("'"&Mercados!$H$2&"'!I"&ROW()))), INDIRECT("'"&Mercados!$H$2&"'!F"&ROW()) - INDIRECT("'"&Mercados!$H$2&"'!I"&ROW()), "") -> 2 | AB17: =IF(AND(ISNUMBER(INDIRECT("'"&Mercados!$H$2&"'!G"&ROW())), ISNUMBER(INDIRECT("'"&Mercados!$H$2&"'!J"&ROW()))), INDIRECT("'"&Mercados!$H$2&"'!G"&ROW()) - INDIRECT("'"&Mercados!$H$2&"'!J"&ROW()), "") -> 0 | AC17: H | AF17: =INDIRECT("'" & Mercados!$H$2 & "'!S" & ROW()) -> 12 | AG17: =INDIRECT("'" & Mercados!$H$2 & "'!t" & ROW()) -> 5 | AH17: 17
A18: Nott'm Forest | B18: Sheffield United | C18: Tottenham | D18: Leicester | E18: Tottenham | F18: Nott'm Forest | G18: Nott'm Forest | H18: Nott'm Forest | I18: Nott'm Forest | Y18: =INDIRECT("'" & Mercados!$H$2 & "'!D" & ROW()) -> Aston Villa | Z18: =INDIRECT("'" & Mercados!$H$2 & "'!E" & ROW()) -> Arsenal | AA18: =IF(AND(ISNUMBER(INDIRECT("'"&Mercados!$H$2&"'!F"&ROW())), ISNUMBER(INDIRECT("'"&Mercados!$H$2&"'!I"&ROW()))), INDIRECT("'"&Mercados!$H$2&"'!F"&ROW()) - INDIRECT("'"&Mercados!$H$2&"'!I"&ROW()), "") -> 0 | AB18: =IF(AND(ISNUMBER(INDIRECT("'"&Mercados!$H$2&"'!G"&ROW())), ISNUMBER(INDIRECT("'"&Mercados!$H$2&"'!J"&ROW()))), INDIRECT("'"&Mercados!$H$2&"'!G"&ROW()) - INDIRECT("'"&Mercados!$H$2&"'!J"&ROW()), "") -> 2 | AC18: A | AF18: =INDIRECT("'" & Mercados!$H$2 & "'!S" & ROW()) -> 4 | AG18: =INDIRECT("'" & Mercados!$H$2 & "'!t" & ROW()) -> 1 | AH18: 5
A19: Southampton | B19: Fulham | C19: Nott'm Forest | D19: Southampton | E19: Chelsea | F19: Southampton | G19: Southampton | H19: Southampton | I19: Southampton | Y19: =INDIRECT("'" & Mercados!$H$2 & "'!D" & ROW()) -> Bournemouth | Z19: =INDIRECT("'" & Mercados!$H$2 & "'!E" & ROW()) -> Newcastle | AA19: =IF(AND(ISNUMBER(INDIRECT("'"&Mercados!$H$2&"'!F"&ROW())), ISNUMBER(INDIRECT("'"&Mercados!$H$2&"'!I"&ROW()))), INDIRECT("'"&Mercados!$H$2&"'!F"&ROW()) - INDIRECT("'"&Mercados!$H$2&"'!I"&ROW()), "") -> 0 | AB19: =IF(AND(ISNUMBER(INDIRECT("'"&Mercados!$H$2&"'!G"&ROW())), ISNUMBER(INDIRECT("'"&Mercados!$H$2&"'!J"&ROW()))), INDIRECT("'"&Mercados!$H$2&"'!G"&ROW()) - INDIRECT("'"&Mercados!$H$2&"'!J"&ROW()), "") -> 1 | AC19: A | AF19: =INDIRECT("'" & Mercados!$H$2 & "'!S" & ROW()) -> 8 | AG19: =INDIRECT("'" & Mercados!$H$2 & "'!t" & ROW()) -> 9 | AH19: 17
A20: Tottenham | B20: Wolves | C20: Man City | D20: Man City | E20: Man City | F20: Tottenham | G20: Tottenham | H20: Tottenham | I20: Tottenham | Y20: =INDIRECT("'" & Mercados!$H$2 & "'!D" & ROW()) -> Wolves | Z20: =INDIRECT("'" & Mercados!$H$2 & "'!E" & ROW()) -> Chelsea | AA20: =IF(AND(ISNUMBER(INDIRECT("'"&Mercados!$H$2&"'!F"&ROW())), ISNUMBER(INDIRECT("'"&Mercados!$H$2&"'!I"&ROW()))), INDIRECT("'"&Mercados!$H$2&"'!F"&ROW()) - INDIRECT("'"&Mercados!$H$2&"'!I"&ROW()), "") -> 0 | AB20: =IF(AND(ISNUMBER(INDIRECT("'"&Mercados!$H$2&"'!G"&ROW())), ISNUMBER(INDIRECT("'"&Mercados!$H$2&"'!J"&ROW()))), INDIRECT("'"&Mercados!$H$2&"'!G"&ROW()) - INDIRECT("'"&Mercados!$H$2&"'!J"&ROW()), "") -> 4 | AC20: A | AF20: =INDIRECT("'" & Mercados!$H$2 & "'!S" & ROW()) -> 5 | AG20: =INDIRECT("'" & Mercados!$H$2 & "'!t" & ROW()) -> 5 | AH20: 10
A21: West Ham | B21: Newcastle | C21: Everton | D21: Watford | E21: Brighton | F21: West Ham | G21: West Ham | H21: West Ham | I21: West Ham | Y21: =INDIRECT("'" & Mercados!$H$2 & "'!D" & ROW()) -> Liverpool | Z21: =INDIRECT("'" & Mercados!$H$2 & "'!E" & ROW()) -> Brentford | AA21: =IF(AND(ISNUMBER(INDIRECT("'"&Mercados!$H$2&"'!F"&ROW())), ISNUMBER(INDIRECT("'"&Mercados!$H$2&"'!I"&ROW()))), INDIRECT("'"&Mercados!$H$2&"'!F"&ROW()) - INDIRECT("'"&Mercados!$H$2&"'!I"&ROW()), "") -> 1 | AB21: =IF(AND(ISNUMBER(INDIRECT("'"&Mercados!$H$2&"'!G"&ROW())), ISNUMBER(INDIRECT("'"&Mercados!$H$2&"'!J"&ROW()))), INDIRECT("'"&Mercados!$H$2&"'!G"&ROW()) - INDIRECT("'"&Mercados!$H$2&"'!J"&ROW()), "") -> 0 | AC21: H | AF21: =INDIRECT("'" & Mercados!$H$2 & "'!S" & ROW()) -> 9 | AG21: =INDIRECT("'" & Mercados!$H$2 & "'!t" & ROW()) -> 4 | AH21: 13
A22: Wolves | B22: West Ham | C22: Aston Villa | D22: Brighton | E22: Leicester | F22: Wolves | G22: Wolves | H22: Wolves | I22: Wolves | Y22: =INDIRECT("'" & Mercados!$H$2 & "'!D" & ROW()) -> Arsenal | Z22: =INDIRECT("'" & Mercados!$H$2 & "'!E" & ROW()) -> Brighton | AA22: =IF(AND(ISNUMBER(INDIRECT("'"&Mercados!$H$2&"'!F"&ROW())), ISNUMBER(INDIRECT("'"&Mercados!$H$2&"'!I"&ROW()))), INDIRECT("'"&Mercados!$H$2&"'!F"&ROW()) - INDIRECT("'"&Mercados!$H$2&"'!I"&ROW()), "") -> 0 | AB22: =IF(AND(ISNUMBER(INDIRECT("'"&Mercados!$H$2&"'!G"&ROW())), ISNUMBER(INDIRECT("'"&Mercados!$H$2&"'!J"&ROW()))), INDIRECT("'"&Mercados!$H$2&"'!G"&ROW()) - INDIRECT("'"&Mercados!$H$2&"'!J"&ROW()), "") -> 1 | AC22: A | AF22: =INDIRECT("'" & Mercados!$H$2 & "'!S" & ROW()) -> 3 | AG22: =INDIRECT("'" & Mercados!$H$2 & "'!t" & ROW()) -> 7 | AH22: 10
F23: Sheffield United | G23: Sheffield United | H23: Sheffield United | I23: Sheffield United | Y23: =INDIRECT("'" & Mercados!$H$2 & "'!D" & ROW()) -> Brentford | Z23: =INDIRECT("'" & Mercados!$H$2 & "'!E" & ROW()) -> Southampton | AA23: =IF(AND(ISNUMBER(INDIRECT("'"&Mercados!$H$2&"'!F"&ROW())), ISNUMBER(INDIRECT("'"&Mercados!$H$2&"'!I"&ROW()))), INDIRECT("'"&Mercados!$H$2&"'!F"&ROW()) - INDIRECT("'"&Mercados!$H$2&"'!I"&ROW()), "") -> 2 | AB23: =IF(AND(ISNUMBER(INDIRECT("'"&Mercados!$H$2&"'!G"&ROW())), ISNUMBER(INDIRECT("'"&Mercados!$H$2&"'!J"&ROW()))), INDIRECT("'"&Mercados!$H$2&"'!G"&ROW()) - INDIRECT("'"&Mercados!$H$2&"'!J"&ROW()), "") -> 1 | AC23: H | AF23: =INDIRECT("'" & Mercados!$H$2 & "'!S" & ROW()) -> 2 | AG23: =INDIRECT("'" & Mercados!$H$2 & "'!t" & ROW()) -> 8 | AH23: 10
F24: Burnley | G24: Burnley | H24: Burnley | I24: Burnley | Y24: =INDIRECT("'" & Mercados!$H$2 & "'!D" & ROW()) -> Everton | Z24: =INDIRECT("'" & Mercados!$H$2 & "'!E" & ROW()) -> Bournemouth | AA24: =IF(AND(ISNUMBER(INDIRECT("'"&Mercados!$H$2&"'!F"&ROW())), ISNUMBER(INDIRECT("'"&Mercados!$H$2&"'!I"&ROW()))), INDIRECT("'"&Mercados!$H$2&"'!F"&ROW()) - INDIRECT("'"&Mercados!$H$2&"'!I"&ROW()), "") -> 2 | AB24: =IF(AND(ISNUMBER(INDIRECT("'"&Mercados!$H$2&"'!G"&ROW())), ISNUMBER(INDIRECT("'"&Mercados!$H$2&"'!J"&ROW()))), INDIRECT("'"&Mercados!$H$2&"'!G"&ROW()) - INDIRECT("'"&Mercados!$H$2&"'!J"&ROW()), "") -> 3 | AC24: A | AF24: =INDIRECT("'" & Mercados!$H$2 & "'!S" & ROW()) -> 8 | AG24: =INDIRECT("'" & Mercados!$H$2 & "'!t" & ROW()) -> 4 | AH24: 12
F25: Luton | G25: Luton | H25: Luton | I25: Luton | Y25: =INDIRECT("'" & Mercados!$H$2 & "'!D" & ROW()) -> Ipswich | Z25: =INDIRECT("'" & Mercados!$H$2 & "'!E" & ROW()) -> Fulham | AA25: =IF(AND(ISNUMBER(INDIRECT("'"&Mercados!$H$2&"'!F"&ROW())), ISNUMBER(INDIRECT("'"&Mercados!$H$2&"'!I"&ROW()))), INDIRECT("'"&Mercados!$H$2&"'!F"&ROW()) - INDIRECT("'"&Mercados!$H$2&"'!I"&ROW()), "") -> 0 | AB25: =IF(AND(ISNUMBER(INDIRECT("'"&Mercados!$H$2&"'!G"&ROW())), ISNUMBER(INDIRECT("'"&Mercados!$H$2&"'!J"&ROW()))), INDIRECT("'"&Mercados!$H$2&"'!G"&ROW()) - INDIRECT("'"&Mercados!$H$2&"'!J"&ROW()), "") -> 0 | AC25: D | AF25: =INDIRECT("'" & Mercados!$H$2 & "'!S" & ROW()) -> 8 | AG25: =INDIRECT("'" & Mercados!$H$2 & "'!t" & ROW()) -> 6 | AH25: 14
G26: Leeds | H26: Leeds | I26: Leeds | Y26: =INDIRECT("'" & Mercados!$H$2 & "'!D" & ROW()) -> Leicester | Z26: =INDIRECT("'" & Mercados!$H$2 & "'!E" & ROW()) -> Aston Villa | AA26: =IF(AND(ISNUMBER(INDIRECT("'"&Mercados!$H$2&"'!F"&ROW())), ISNUMBER(INDIRECT("'"&Mercados!$H$2&"'!I"&ROW()))), INDIRECT("'"&Mercados!$H$2&"'!F"&ROW()) - INDIRECT("'"&Mercados!$H$2&"'!I"&ROW()), "") -> 1 | AB26: =IF(AND(ISNUMBER(INDIRECT("'"&Mercados!$H$2&"'!G"&ROW())), ISNUMBER(INDIRECT("'"&Mercados!$H$2&"'!J"&ROW()))), INDIRECT("'"&Mercados!$H$2&"'!G"&ROW()) - INDIRECT("'"&Mercados!$H$2&"'!J"&ROW()), "") -> 1 | AC26: D | AF26: =INDIRECT("'" & Mercados!$H$2 & "'!S" & ROW()) -> 1 | AG26: =INDIRECT("'" & Mercados!$H$2 & "'!t" & ROW()) -> 4 | AH26: 5
H27: Norwich | I27: Norwich | Y27: =INDIRECT("'" & Mercados!$H$2 & "'!D" & ROW()) -> Nott'm Forest | Z27: =INDIRECT("'" & Mercados!$H$2 & "'!E" & ROW()) -> Wolves | AA27: =IF(AND(ISNUMBER(INDIRECT("'"&Mercados!$H$2&"'!F"&ROW())), ISNUMBER(INDIRECT("'"&Mercados!$H$2&"'!I"&ROW()))), INDIRECT("'"&Mercados!$H$2&"'!F"&ROW()) - INDIRECT("'"&Mercados!$H$2&"'!I"&ROW()), "") -> 0 | AB27: =IF(AND(ISNUMBER(INDIRECT("'"&Mercados!$H$2&"'!G"&ROW())), ISNUMBER(INDIRECT("'"&Mercados!$H$2&"'!J"&ROW()))), INDIRECT("'"&Mercados!$H$2&"'!G"&ROW()) - INDIRECT("'"&Mercados!$H$2&"'!J"&ROW()), "") -> 0 | AC27: D | AF27: =INDIRECT("'" & Mercados!$H$2 & "'!S" & ROW()) -> 7 | AG27: =INDIRECT("'" & Mercados!$H$2 & "'!t" & ROW()) -> 3 | AH27: 10
H28: Watford | I28: Watford | Y28: =INDIRECT("'" & Mercados!$H$2 & "'!D" & ROW()) -> West Ham | Z28: =INDIRECT("'" & Mercados!$H$2 & "'!E" & ROW()) -> Man City | AA28: =IF(AND(ISNUMBER(INDIRECT("'"&Mercados!$H$2&"'!F"&ROW())), ISNUMBER(INDIRECT("'"&Mercados!$H$2&"'!I"&ROW()))), INDIRECT("'"&Mercados!$H$2&"'!F"&ROW()) - INDIRECT("'"&Mercados!$H$2&"'!I"&ROW()), "") -> 0 | AB28: =IF(AND(ISNUMBER(INDIRECT("'"&Mercados!$H$2&"'!G"&ROW())), ISNUMBER(INDIRECT("'"&Mercados!$H$2&"'!J"&ROW()))), INDIRECT("'"&Mercados!$H$2&"'!G"&ROW()) - INDIRECT("'"&Mercados!$H$2&"'!J"&ROW()), "") -> 1 | AC28: A | AF28: =INDIRECT("'" & Mercados!$H$2 & "'!S" & ROW()) -> 3 | AG28: =INDIRECT("'" & Mercados!$H$2 & "'!t" & ROW()) -> 11 | AH28: 14
Y29: =INDIRECT("'" & Mercados!$H$2 & "'!D" & ROW()) -> Chelsea | Z29: =INDIRECT("'" & Mercados!$H$2 & "'!E" & ROW()) -> Crystal Palace | AA29: =IF(AND(ISNUMBER(INDIRECT("'"&Mercados!$H$2&"'!F"&ROW())), ISNUMBER(INDIRECT("'"&Mercados!$H$2&"'!I"&ROW()))), INDIRECT("'"&Mercados!$H$2&"'!F"&ROW()) - INDIRECT("'"&Mercados!$H$2&"'!I"&ROW()), "") -> 0 | AB29: =IF(AND(ISNUMBER(INDIRECT("'"&Mercados!$H$2&"'!G"&ROW())), ISNUMBER(INDIRECT("'"&Mercados!$H$2&"'!J"&ROW()))), INDIRECT("'"&Mercados!$H$2&"'!G"&ROW()) - INDIRECT("'"&Mercados!$H$2&"'!J"&ROW()), "") -> 1 | AC29: A | AF29: =INDIRECT("'" & Mercados!$H$2 & "'!S" & ROW()) -> 4 | AG29: =INDIRECT("'" & Mercados!$H$2 & "'!t" & ROW()) -> 5 | AH29: 9
Y30: =INDIRECT("'" & Mercados!$H$2 & "'!D" & ROW()) -> Newcastle | Z30: =INDIRECT("'" & Mercados!$H$2 & "'!E" & ROW()) -> Tottenham | AA30: =IF(AND(ISNUMBER(INDIRECT("'"&Mercados!$H$2&"'!F"&ROW())), ISNUMBER(INDIRECT("'"&Mercados!$H$2&"'!I"&ROW()))), INDIRECT("'"&Mercados!$H$2&"'!F"&ROW()) - INDIRECT("'"&Mercados!$H$2&"'!I"&ROW()), "") -> 1 | AB30: =IF(AND(ISNUMBER(INDIRECT("'"&Mercados!$H$2&"'!G"&ROW())), ISNUMBER(INDIRECT("'"&Mercados!$H$2&"'!J"&ROW()))), INDIRECT("'"&Mercados!$H$2&"'!G"&ROW()) - INDIRECT("'"&Mercados!$H$2&"'!J"&ROW()), "") -> 1 | AC30: D | AF30: =INDIRECT("'" & Mercados!$H$2 & "'!S" & ROW()) -> 7 | AG30: =INDIRECT("'" & Mercados!$H$2 & "'!t" & ROW()) -> 12 | AH30: 19
Y31: =INDIRECT("'" & Mercados!$H$2 & "'!D" & ROW()) -> Man United | Z31: =INDIRECT("'" & Mercados!$H$2 & "'!E" & ROW()) -> Liverpool | AA31: =IF(AND(ISNUMBER(INDIRECT("'"&Mercados!$H$2&"'!F"&ROW())), ISNUMBER(INDIRECT("'"&Mercados!$H$2&"'!I"&ROW()))), INDIRECT("'"&Mercados!$H$2&"'!F"&ROW()) - INDIRECT("'"&Mercados!$H$2&"'!I"&ROW()), "") -> 0 | AB31: =IF(AND(ISNUMBER(INDIRECT("'"&Mercados!$H$2&"'!G"&ROW())), ISNUMBER(INDIRECT("'"&Mercados!$H$2&"'!J"&ROW()))), INDIRECT("'"&Mercados!$H$2&"'!G"&ROW()) - INDIRECT("'"&Mercados!$H$2&"'!J"&ROW()), "") -> 1 | AC31: A | AF31: =INDIRECT("'" & Mercados!$H$2 & "'!S" & ROW()) -> 5 | AG31: =INDIRECT("'" & Mercados!$H$2 & "'!t" & ROW()) -> 2 | AH31: 7
Y32: =INDIRECT("'" & Mercados!$H$2 & "'!D" & ROW()) -> Southampton | Z32: =INDIRECT("'" & Mercados!$H$2 & "'!E" & ROW()) -> Man United | AA32: =IF(AND(ISNUMBER(INDIRECT("'"&Mercados!$H$2&"'!F"&ROW())), ISNUMBER(INDIRECT("'"&Mercados!$H$2&"'!I"&ROW()))), INDIRECT("'"&Mercados!$H$2&"'!F"&ROW()) - INDIRECT("'"&Mercados!$H$2&"'!I"&ROW()), "") -> 0 | AB32: =IF(AND(ISNUMBER(INDIRECT("'"&Mercados!$H$2&"'!G"&ROW())), ISNUMBER(INDIRECT("'"&Mercados!$H$2&"'!J"&ROW()))), INDIRECT("'"&Mercados!$H$2&"'!G"&ROW()) - INDIRECT("'"&Mercados!$H$2&"'!J"&ROW()), "") -> 1 | AC32: A | AF32: =INDIRECT("'" & Mercados!$H$2 & "'!S" & ROW()) -> 0 | AG32: =INDIRECT("'" & Mercados!$H$2 & "'!t" & ROW()) -> 7 | AH32: 7
Y33: =INDIRECT("'" & Mercados!$H$2 & "'!D" & ROW()) -> Brighton | Z33: =INDIRECT("'" & Mercados!$H$2 & "'!E" & ROW()) -> Ipswich | AA33: =IF(AND(ISNUMBER(INDIRECT("'"&Mercados!$H$2&"'!F"&ROW())), ISNUMBER(INDIRECT("'"&Mercados!$H$2&"'!I"&ROW()))), INDIRECT("'"&Mercados!$H$2&"'!F"&ROW()) - INDIRECT("'"&Mercados!$H$2&"'!I"&ROW()), "") -> 0 | AB33: =IF(AND(ISNUMBER(INDIRECT("'"&Mercados!$H$2&"'!G"&ROW())), ISNUMBER(INDIRECT("'"&Mercados!$H$2&"'!J"&ROW()))), INDIRECT("'"&Mercados!$H$2&"'!G"&ROW()) - INDIRECT("'"&Mercados!$H$2&"'!J"&ROW()), "") -> 0 | AC33: D | AF33: =INDIRECT("'" & Mercados!$H$2 & "'!S" & ROW()) -> 9 | AG33: =INDIRECT("'" & Mercados!$H$2 & "'!t" & ROW()) -> 2 | AH33: 11
Y34: =INDIRECT("'" & Mercados!$H$2 & "'!D" & ROW()) -> Crystal Palace | Z34: =INDIRECT("'" & Mercados!$H$2 & "'!E" & ROW()) -> Leicester | AA34: =IF(AND(ISNUMBER(INDIRECT("'"&Mercados!$H$2&"'!F"&ROW())), ISNUMBER(INDIRECT("'"&Mercados!$H$2&"'!I"&ROW()))), INDIRECT("'"&Mercados!$H$2&"'!F"&ROW()) - INDIRECT("'"&Mercados!$H$2&"'!I"&ROW()), "") -> 2 | AB34: =IF(AND(ISNUMBER(INDIRECT("'"&Mercados!$H$2&"'!G"&ROW())), ISNUMBER(INDIRECT("'"&Mercados!$H$2&"'!J"&ROW()))), INDIRECT("'"&Mercados!$H$2&"'!G"&ROW()) - INDIRECT("'"&Mercados!$H$2&"'!J"&ROW()), "") -> 1 | AC34: H | AF34: =INDIRECT("'" & Mercados!$H$2 & "'!S" & ROW()) -> 5 | AG34: =INDIRECT("'" & Mercados!$H$2 & "'!t" & ROW()) -> 2 | AH34: 7
Y35: =INDIRECT("'" & Mercados!$H$2 & "'!D" & ROW()) -> Fulham | Z35: =INDIRECT("'" & Mercados!$H$2 & "'!E" & ROW()) -> West Ham | AA35: =IF(AND(ISNUMBER(INDIRECT("'"&Mercados!$H$2&"'!F"&ROW())), ISNUMBER(INDIRECT("'"&Mercados!$H$2&"'!I"&ROW()))), INDIRECT("'"&Mercados!$H$2&"'!F"&ROW()) - INDIRECT("'"&Mercados!$H$2&"'!I"&ROW()), "") -> 0 | AB35: =IF(AND(ISNUMBER(INDIRECT("'"&Mercados!$H$2&"'!G"&ROW())), ISNUMBER(INDIRECT("'"&Mercados!$H$2&"'!J"&ROW()))), INDIRECT("'"&Mercados!$H$2&"'!G"&ROW()) - INDIRECT("'"&Mercados!$H$2&"'!J"&ROW()), "") -> 1 | AC35: A | AF35: =INDIRECT("'" & Mercados!$H$2 & "'!S" & ROW()) -> 3 | AG35: =INDIRECT("'" & Mercados!$H$2 & "'!t" & ROW()) -> 2 | AH35: 5
Y36: =INDIRECT("'" & Mercados!$H$2 & "'!D" & ROW()) -> Liverpool | Z36: =INDIRECT("'" & Mercados!$H$2 & "'!E" & ROW()) -> Nott'm Forest | AA36: =IF(AND(ISNUMBER(INDIRECT("'"&Mercados!$H$2&"'!F"&ROW())), ISNUMBER(INDIRECT("'"&Mercados!$H$2&"'!I"&ROW()))), INDIRECT("'"&Mercados!$H$2&"'!F"&ROW()) - INDIRECT("'"&Mercados!$H$2&"'!I"&ROW()), "") -> 0 | AB36: =IF(AND(ISNUMBER(INDIRECT("'"&Mercados!$H$2&"'!G"&ROW())), ISNUMBER(INDIRECT("'"&Mercados!$H$2&"'!J"&ROW()))), INDIRECT("'"&Mercados!$H$2&"'!G"&ROW()) - INDIRECT("'"&Mercados!$H$2&"'!J"&ROW()), "") -> 1 | AC36: A | AF36: =INDIRECT("'" & Mercados!$H$2 & "'!S" & ROW()) -> 7 | AG36: =INDIRECT("'" & Mercados!$H$2 & "'!t" & ROW()) -> 2 | AH36: 9
Y37: =INDIRECT("'" & Mercados!$H$2 & "'!D" & ROW()) -> Man City | Z37: =INDIRECT("'" & Mercados!$H$2 & "'!E" & ROW()) -> Brentford | AA37: =IF(AND(ISNUMBER(INDIRECT("'"&Mercados!$H$2&"'!F"&ROW())), ISNUMBER(INDIRECT("'"&Mercados!$H$2&"'!I"&ROW()))), INDIRECT("'"&Mercados!$H$2&"'!F"&ROW()) - INDIRECT("'"&Mercados!$H$2&"'!I"&ROW()), "") -> 0 | AB37: =IF(AND(ISNUMBER(INDIRECT("'"&Mercados!$H$2&"'!G"&ROW())), ISNUMBER(INDIRECT("'"&Mercados!$H$2&"'!J"&ROW()))), INDIRECT("'"&Mercados!$H$2&"'!G"&ROW()) - INDIRECT("'"&Mercados!$H$2&"'!J"&ROW()), "") -> 0 | AC37: D | AF37: =INDIRECT("'" & Mercados!$H$2 & "'!S" & ROW()) -> 12 | AG37: =INDIRECT("'" & Mercados!$H$2 & "'!t" & ROW()) -> 3 | AH37: 15
Y38: =INDIRECT("'" & Mercados!$H$2 & "'!D" & ROW()) -> Aston Villa | Z38: =INDIRECT("'" & Mercados!$H$2 & "'!E" & ROW()) -> Everton | AA38: =IF(AND(ISNUMBER(INDIRECT("'"&Mercados!$H$2&"'!F"&ROW())), ISNUMBER(INDIRECT("'"&Mercados!$H$2&"'!I"&ROW()))), INDIRECT("'"&Mercados!$H$2&"'!F"&ROW()) - INDIRECT("'"&Mercados!$H$2&"'!I"&ROW()), "") -> 2 | AB38: =IF(AND(ISNUMBER(INDIRECT("'"&Mercados!$H$2&"'!G"&ROW())), ISNUMBER(INDIRECT("'"&Mercados!$H$2&"'!J"&ROW()))), INDIRECT("'"&Mercados!$H$2&"'!G"&ROW()) - INDIRECT("'"&Mercados!$H$2&"'!J"&ROW()), "") -> 0 | AC38: H | AF38: =INDIRECT("'" & Mercados!$H$2 & "'!S" & ROW()) -> 6 | AG38: =INDIRECT("'" & Mercados!$H$2 & "'!t" & ROW()) -> 2 | AH38: 8
Y39: =INDIRECT("'" & Mercados!$H$2 & "'!D" & ROW()) -> Bournemouth | Z39: =INDIRECT("'" & Mercados!$H$2 & "'!E" & ROW()) -> Chelsea | AA39: =IF(AND(ISNUMBER(INDIRECT("'"&Mercados!$H$2&"'!F"&ROW())), ISNUMBER(INDIRECT("'"&Mercados!$H$2&"'!I"&ROW()))), INDIRECT("'"&Mercados!$H$2&"'!F"&ROW()) - INDIRECT("'"&Mercados!$H$2&"'!I"&ROW()), "") -> 0 | AB39: =IF(AND(ISNUMBER(INDIRECT("'"&Mercados!$H$2&"'!G"&ROW())), ISNUMBER(INDIRECT("'"&Mercados!$H$2&"'!J"&ROW()))), INDIRECT("'"&Mercados!$H$2&"'!G"&ROW()) - INDIRECT("'"&Mercados!$H$2&"'!J"&ROW()), "") -> 1 | AC39: A | AF39: =INDIRECT("'" & Mercados!$H$2 & "'!S" & ROW()) -> 6 | AG39: =INDIRECT("'" & Mercados!$H$2 & "'!t" & ROW()) -> 3 | AH39: 9
Y40: =INDIRECT("'" & Mercados!$H$2 & "'!D" & ROW()) -> Tottenham | Z40: =INDIRECT("'" & Mercados!$H$2 & "'!E" & ROW()) -> Arsenal | AA40: =IF(AND(ISNUMBER(INDIRECT("'"&Mercados!$H$2&"'!F"&ROW())), ISNUMBER(INDIRECT("'"&Mercados!$H$2&"'!I"&ROW()))), INDIRECT("'"&Mercados!$H$2&"'!F"&ROW()) - INDIRECT("'"&Mercados!$H$2&"'!I"&ROW()), "") -> 0 | AB40: =IF(AND(ISNUMBER(INDIRECT("'"&Mercados!$H$2&"'!G"&ROW())), ISNUMBER(INDIRECT("'"&Mercados!$H$2&"'!J"&ROW()))), INDIRECT("'"&Mercados!$H$2&"'!G"&ROW()) - INDIRECT("'"&Mercados!$H$2&"'!J"&ROW()), "") -> 1 | AC40: A | AF40: =INDIRECT("'" & Mercados!$H$2 & "'!S" & ROW()) -> 7 | AG40: =INDIRECT("'" & Mercados!$H$2 & "'!t" & ROW()) -> 6 | AH40: 13
Y41: =INDIRECT("'" & Mercados!$H$2 & "'!D" & ROW()) -> Wolves | Z41: =INDIRECT("'" & Mercados!$H$2 & "'!E" & ROW()) -> Newcastle | AA41: =IF(AND(ISNUMBER(INDIRECT("'"&Mercados!$H$2&"'!F"&ROW())), ISNUMBER(INDIRECT("'"&Mercados!$H$2&"'!I"&ROW()))), INDIRECT("'"&Mercados!$H$2&"'!F"&ROW()) - INDIRECT("'"&Mercados!$H$2&"'!I"&ROW()), "") -> 0 | AB41: =IF(AND(ISNUMBER(INDIRECT("'"&Mercados!$H$2&"'!G"&ROW())), ISNUMBER(INDIRECT("'"&Mercados!$H$2&"'!J"&ROW()))), INDIRECT("'"&Mercados!$H$2&"'!G"&ROW()) - INDIRECT("'"&Mercados!$H$2&"'!J"&ROW()), "") -> 2 | AC41: A | AF41: =INDIRECT("'" & Mercados!$H$2 & "'!S" & ROW()) -> 4 | AG41: =INDIRECT("'" & Mercados!$H$2 & "'!t" & ROW()) -> 7 | AH41: 11
Y42: =INDIRECT("'" & Mercados!$H$2 & "'!D" & ROW()) -> West Ham | Z42: =INDIRECT("'" & Mercados!$H$2 & "'!E" & ROW()) -> Chelsea | AA42: =IF(AND(ISNUMBER(INDIRECT("'"&Mercados!$H$2&"'!F"&ROW())), ISNUMBER(INDIRECT("'"&Mercados!$H$2&"'!I"&ROW()))), INDIRECT("'"&Mercados!$H$2&"'!F"&ROW()) - INDIRECT("'"&Mercados!$H$2&"'!I"&ROW()), "") -> 0 | AB42: =IF(AND(ISNUMBER(INDIRECT("'"&Mercados!$H$2&"'!G"&ROW())), ISNUMBER(INDIRECT("'"&Mercados!$H$2&"'!J"&ROW()))), INDIRECT("'"&Mercados!$H$2&"'!G"&ROW()) - INDIRECT("'"&Mercados!$H$2&"'!J"&ROW()), "") -> 1 | AC42: A | AF42: =INDIRECT("'" & Mercados!$H$2 & "'!S" & ROW()) -> 6 | AG42: =INDIRECT("'" & Mercados!$H$2 & "'!t" & ROW()) -> 5 | AH42: 11
Y43: =INDIRECT("'" & Mercados!$H$2 & "'!D" & ROW()) -> Aston Villa | Z43: =INDIRECT("'" & Mercados!$H$2 & "'!E" & ROW()) -> Wolves | AA43: =IF(AND(ISNUMBER(INDIRECT("'"&Mercados!$H$2&"'!F"&ROW())), ISNUMBER(INDIRECT("'"&Mercados!$H$2&"'!I"&ROW()))), INDIRECT("'"&Mercados!$H$2&"'!F"&ROW()) - INDIRECT("'"&Mercados!$H$2&"'!I"&ROW()), "") -> 3 | AB43: =IF(AND(ISNUMBER(INDIRECT("'"&Mercados!$H$2&"'!G"&ROW())), ISNUMBER(INDIRECT("'"&Mercados!$H$2&"'!J"&ROW()))), INDIRECT("'"&Mercados!$H$2&"'!G"&ROW()) - INDIRECT("'"&Mercados!$H$2&"'!J"&ROW()), "") -> 0 | AC43: H | AF43: =INDIRECT("'" & Mercados!$H$2 & "'!S" & ROW()) -> 6 | AG43: =INDIRECT("'" & Mercados!$H$2 & "'!t" & ROW()) -> 5 | AH43: 11
Y44: =INDIRECT("'" & Mercados!$H$2 & "'!D" & ROW()) -> Fulham | Z44: =INDIRECT("'" & Mercados!$H$2 & "'!E" & ROW()) -> Newcastle | AA44: =IF(AND(ISNUMBER(INDIRECT("'"&Mercados!$H$2&"'!F"&ROW())), ISNUMBER(INDIRECT("'"&Mercados!$H$2&"'!I"&ROW()))), INDIRECT("'"&Mercados!$H$2&"'!F"&ROW()) - INDIRECT("'"&Mercados!$H$2&"'!I"&ROW()), "") -> 1 | AB44: =IF(AND(ISNUMBER(INDIRECT("'"&Mercados!$H$2&"'!G"&ROW())), ISNUMBER(INDIRECT("'"&Mercados!$H$2&"'!J"&ROW()))), INDIRECT("'"&Mercados!$H$2&"'!G"&ROW()) - INDIRECT("'"&Mercados!$H$2&"'!J"&ROW()), "") -> 1 | AC44: D | AF44: =INDIRECT("'" & Mercados!$H$2 & "'!S" & ROW()) -> 6 | AG44: =INDIRECT("'" & Mercados!$H$2 & "'!t" & ROW()) -> 0 | AH44: 6
Y45: =INDIRECT("'" & Mercados!$H$2 & "'!D" & ROW()) -> Leicester | Z45: =INDIRECT("'" & Mercados!$H$2 & "'!E" & ROW()) -> Everton | AA45: =IF(AND(ISNUMBER(INDIRECT("'"&Mercados!$H$2&"'!F"&ROW())), ISNUMBER(INDIRECT("'"&Mercados!$H$2&"'!I"&ROW()))), INDIRECT("'"&Mercados!$H$2&"'!F"&ROW()) - INDIRECT("'"&Mercados!$H$2&"'!I"&ROW()), "") -> 1 | AB45: =IF(AND(ISNUMBER(INDIRECT("'"&Mercados!$H$2&"'!G"&ROW())), ISNUMBER(INDIRECT("'"&Mercados!$H$2&"'!J"&ROW()))), INDIRECT("'"&Mercados!$H$2&"'!G"&ROW()) - INDIRECT("'"&Mercados!$H$2&"'!J"&ROW()), "") -> 0 | AC45: H | AF45: =INDIRECT("'" & Mercados!$H$2 & "'!S" & ROW()) -> 6 | AG45: =INDIRECT("'" & Mercados!$H$2 & "'!t" & ROW()) -> 1 | AH45: 7
Y46: =INDIRECT("'" & Mercados!$H$2 & "'!D" & ROW()) -> Liverpool | Z46: =INDIRECT("'" & Mercados!$H$2 & "'!E" & ROW()) -> Bournemouth | AA46: =IF(AND(ISNUMBER(INDIRECT("'"&Mercados!$H$2&"'!F"&ROW())), ISNUMBER(INDIRECT("'"&Mercados!$H$2&"'!I"&ROW()))), INDIRECT("'"&Mercados!$H$2&"'!F"&ROW()) - INDIRECT("'"&Mercados!$H$2&"'!I"&ROW()), "") -> 0 | AB46: =IF(AND(ISNUMBER(INDIRECT("'"&Mercados!$H$2&"'!G"&ROW())), ISNUMBER(INDIRECT("'"&Mercados!$H$2&"'!J"&ROW()))), INDIRECT("'"&Mercados!$H$2&"'!G"&ROW()) - INDIRECT("'"&Mercados!$H$2&"'!J"&ROW()), "") -> 0 | AC46: D | AF46: =INDIRECT("'" & Mercados!$H$2 & "'!S" & ROW()) -> 3 | AG46: =INDIRECT("'" & Mercados!$H$2 & "'!t" & ROW()) -> 9 | AH46: 12
Y47: =INDIRECT("'" & Mercados!$H$2 & "'!D" & ROW()) -> Southampton | Z47: =INDIRECT("'" & Mercados!$H$2 & "'!E" & ROW()) -> Ipswich | AA47: =IF(AND(ISNUMBER(INDIRECT("'"&Mercados!$H$2&"'!F"&ROW())), ISNUMBER(INDIRECT("'"&Mercados!$H$2&"'!I"&ROW()))), INDIRECT("'"&Mercados!$H$2&"'!F"&ROW()) - INDIRECT("'"&Mercados!$H$2&"'!I"&ROW()), "") -> 0 | AB47: =IF(AND(ISNUMBER(INDIRECT("'"&Mercados!$H$2&"'!G"&ROW())), ISNUMBER(INDIRECT("'"&Mercados!$H$2&"'!J"&ROW()))), INDIRECT("'"&Mercados!$H$2&"'!G"&ROW()) - INDIRECT("'"&Mercados!$H$2&"'!J"&ROW()), "") -> 1 | AC47: A | AF47: =INDIRECT("'" & Mercados!$H$2 & "'!S" & ROW()) -> 2 | AG47: =INDIRECT("'" & Mercados!$H$2 & "'!t" & ROW()) -> 10 | AH47: 12
Y48: =INDIRECT("'" & Mercados!$H$2 & "'!D" & ROW()) -> Tottenham | Z48: =INDIRECT("'" & Mercados!$H$2 & "'!E" & ROW()) -> Brentford | AA48: =IF(AND(ISNUMBER(INDIRECT("'"&Mercados!$H$2&"'!F"&ROW())), ISNUMBER(INDIRECT("'"&Mercados!$H$2&"'!I"&ROW()))), INDIRECT("'"&Mercados!$H$2&"'!F"&ROW()) - INDIRECT("'"&Mercados!$H$2&"'!I"&ROW()), "") -> 1 | AB48: =IF(AND(ISNUMBER(INDIRECT("'"&Mercados!$H$2&"'!G"&ROW())), ISNUMBER(INDIRECT("'"&Mercados!$H$2&"'!J"&ROW()))), INDIRECT("'"&Mercados!$H$2&"'!G"&ROW()) - INDIRECT("'"&Mercados!$H$2&"'!J"&ROW()), "") -> 0 | AC48: H | AF48: =INDIRECT("'" & Mercados!$H$2 & "'!S" & ROW()) -> 9 | AG48: =INDIRECT("'" & Mercados!$H$2 & "'!t" & ROW()) -> 4 | AH48: 13
Y49: =INDIRECT("'" & Mercados!$H$2 & "'!D" & ROW()) -> Crystal Palace | Z49: =INDIRECT("'" & Mercados!$H$2 & "'!E" & ROW()) -> Man United | AA49: =IF(AND(ISNUMBER(INDIRECT("'"&Mercados!$H$2&"'!F"&ROW())), ISNUMBER(INDIRECT("'"&Mercados!$H$2&"'!I"&ROW()))), INDIRECT("'"&Mercados!$H$2&"'!F"&ROW()) - INDIRECT("'"&Mercados!$H$2&"'!I"&ROW()), "") -> 0 | AB49: =IF(AND(ISNUMBER(INDIRECT("'"&Mercados!$H$2&"'!G"&ROW())), ISNUMBER(INDIRECT("'"&Mercados!$H$2&"'!J"&ROW()))), INDIRECT("'"&Mercados!$H$2&"'!G"&ROW()) - INDIRECT("'"&Mercados!$H$2&"'!J"&ROW()), "") -> 0 | AC49: D | AF49: =INDIRECT("'" & Mercados!$H$2 & "'!S" & ROW()) -> 4 | AG49: =INDIRECT("'" & Mercados!$H$2 & "'!t" & ROW()) -> 11 | AH49: 15
Y50: =INDIRECT("'" & Mercados!$H$2 & "'!D" & ROW()) -> Brighton | Z50: =INDIRECT("'" & Mercados!$H$2 & "'!E" & ROW()) -> Nott'm Forest | AA50: =IF(AND(ISNUMBER(INDIRECT("'"&Mercados!$H$2&"'!F"&ROW())), ISNUMBER(INDIRECT("'"&Mercados!$H$2&"'!I"&ROW()))), INDIRECT("'"&Mercados!$H$2&"'!F"&ROW()) - INDIRECT("'"&Mercados!$H$2&"'!I"&ROW()), "") -> 0 | AB50: =IF(AND(ISNUMBER(INDIRECT("'"&Mercados!$H$2&"'!G"&ROW())), ISNUMBER(INDIRECT("'"&Mercados!$H$2&"'!J"&ROW()))), INDIRECT("'"&Mercados!$H$2&"'!G"&ROW()) - INDIRECT("'"&Mercados!$H$2&"'!J"&ROW()), "") -> 1 | AC50: A | AF50: =INDIRECT("'" & Mercados!$H$2 & "'!S" & ROW()) -> 9 | AG50: =INDIRECT("'" & Mercados!$H$2 & "'!t" & ROW()) -> 1 | AH50: 10
Y51: =INDIRECT("'" & Mercados!$H$2 & "'!D" & ROW()) -> Man City | Z51: =INDIRECT("'" & Mercados!$H$2 & "'!E" & ROW()) -> Arsenal | AA51: =IF(AND(ISNUMBER(INDIRECT("'"&Mercados!$H$2&"'!F"&ROW())), ISNUMBER(INDIRECT("'"&Mercados!$H$2&"'!I"&ROW()))), INDIRECT("'"&Mercados!$H$2&"'!F"&ROW()) - INDIRECT("'"&Mercados!$H$2&"'!I"&ROW()), "") -> 1 | AB51: =IF(AND(ISNUMBER(INDIRECT("'"&Mercados!$H$2&"'!G"&ROW())), ISNUMBER(INDIRECT("'"&Mercados!$H$2&"'!J"&ROW()))), INDIRECT("'"&Mercados!$H$2&"'!G"&ROW()) - INDIRECT("'"&Mercados!$H$2&"'!J"&ROW()), "") -> 0 | AC51: H | AF51: =INDIRECT("'" & Mercados!$H$2 & "'!S" & ROW()) -> 8 | AG51: =INDIRECT("'" & Mercados!$H$2 & "'!t" & ROW()) -> 2 | AH51: 10
Y52: =INDIRECT("'" & Mercados!$H$2 & "'!D" & ROW()) -> Newcastle | Z52: =INDIRECT("'" & Mercados!$H$2 & "'!E" & ROW()) -> Man City | AA52: =IF(AND(ISNUMBER(INDIRECT("'"&Mercados!$H$2&"'!F"&ROW())), ISNUMBER(INDIRECT("'"&Mercados!$H$2&"'!I"&ROW()))), INDIRECT("'"&Mercados!$H$2&"'!F"&ROW()) - INDIRECT("'"&Mercados!$H$2&"'!I"&ROW()), "") -> 1 | AB52: =IF(AND(ISNUMBER(INDIRECT("'"&Mercados!$H$2&"'!G"&ROW())), ISNUMBER(INDIRECT("'"&Mercados!$H$2&"'!J"&ROW()))), INDIRECT("'"&Mercados!$H$2&"'!G"&ROW()) - INDIRECT("'"&Mercados!$H$2&"'!J"&ROW()), "") -> 0 | AC52: H | AF52: =INDIRECT("'" & Mercados!$H$2 & "'!S" & ROW()) -> 5 | AG52: =INDIRECT("'" & Mercados!$H$2 & "'!t" & ROW()) -> 6 | AH52: 11
Y53: =INDIRECT("'" & Mercados!$H$2 & "'!D" & ROW()) -> Arsenal | Z53: =INDIRECT("'" & Mercados!$H$2 & "'!E" & ROW()) -> Leicester | AA53: =IF(AND(ISNUMBER(INDIRECT("'"&Mercados!$H$2&"'!F"&ROW())), ISNUMBER(INDIRECT("'"&Mercados!$H$2&"'!I"&ROW()))), INDIRECT("'"&Mercados!$H$2&"'!F"&ROW()) - INDIRECT("'"&Mercados!$H$2&"'!I"&ROW()), "") -> 2 | AB53: =IF(AND(ISNUMBER(INDIRECT("'"&Mercados!$H$2&"'!G"&ROW())), ISNUMBER(INDIRECT("'"&Mercados!$H$2&"'!J"&ROW()))), INDIRECT("'"&Mercados!$H$2&"'!G"&ROW()) - INDIRECT("'"&Mercados!$H$2&"'!J"&ROW()), "") -> 2 | AC53: D | AF53: =INDIRECT("'" & Mercados!$H$2 & "'!S" & ROW()) -> 17 | AG53: =INDIRECT("'" & Mercados!$H$2 & "'!t" & ROW()) -> 0 | AH53: 17
Y54: =INDIRECT("'" & Mercados!$H$2 & "'!D" & ROW()) -> Brentford | Z54: =INDIRECT("'" & Mercados!$H$2 & "'!E" & ROW()) -> West Ham | AA54: =IF(AND(ISNUMBER(INDIRECT("'"&Mercados!$H$2&"'!F"&ROW())), ISNUMBER(INDIRECT("'"&Mercados!$H$2&"'!I"&ROW()))), INDIRECT("'"&Mercados!$H$2&"'!F"&ROW()) - INDIRECT("'"&Mercados!$H$2&"'!I"&ROW()), "") -> 0 | AB54: =IF(AND(ISNUMBER(INDIRECT("'"&Mercados!$H$2&"'!G"&ROW())), ISNUMBER(INDIRECT("'"&Mercados!$H$2&"'!J"&ROW()))), INDIRECT("'"&Mercados!$H$2&"'!G"&ROW()) - INDIRECT("'"&Mercados!$H$2&"'!J"&ROW()), "") -> 1 | AC54: A | AF54: =INDIRECT("'" & Mercados!$H$2 & "'!S" & ROW()) -> 7 | AG54: =INDIRECT("'" & Mercados!$H$2 & "'!t" & ROW()) -> 7 | AH54: 14
Y55: =INDIRECT("'" & Mercados!$H$2 & "'!D" & ROW()) -> Chelsea | Z55: =INDIRECT("'" & Mercados!$H$2 & "'!E" & ROW()) -> Brighton | AA55: =IF(AND(ISNUMBER(INDIRECT("'"&Mercados!$H$2&"'!F"&ROW())), ISNUMBER(INDIRECT("'"&Mercados!$H$2&"'!I"&ROW()))), INDIRECT("'"&Mercados!$H$2&"'!F"&ROW()) - INDIRECT("'"&Mercados!$H$2&"'!I"&ROW()), "") -> 0 | AB55: =IF(AND(ISNUMBER(INDIRECT("'"&Mercados!$H$2&"'!G"&ROW())), ISNUMBER(INDIRECT("'"&Mercados!$H$2&"'!J"&ROW()))), INDIRECT("'"&Mercados!$H$2&"'!G"&ROW()) - INDIRECT("'"&Mercados!$H$2&"'!J"&ROW()), "") -> 0 | AC55: D | AF55: =INDIRECT("'" & Mercados!$H$2 & "'!S" & ROW()) -> 8 | AG55: =INDIRECT("'" & Mercados!$H$2 & "'!t" & ROW()) -> 2 | AH55: 10
Y56: =INDIRECT("'" & Mercados!$H$2 & "'!D" & ROW()) -> Everton | Z56: =INDIRECT("'" & Mercados!$H$2 & "'!E" & ROW()) -> Crystal Palace | AA56: =IF(AND(ISNUMBER(INDIRECT("'"&Mercados!$H$2&"'!F"&ROW())), ISNUMBER(INDIRECT("'"&Mercados!$H$2&"'!I"&ROW()))), INDIRECT("'"&Mercados!$H$2&"'!F"&ROW()) - INDIRECT("'"&Mercados!$H$2&"'!I"&ROW()), "") -> 2 | AB56: =IF(AND(ISNUMBER(INDIRECT("'"&Mercados!$H$2&"'!G"&ROW())), ISNUMBER(INDIRECT("'"&Mercados!$H$2&"'!J"&ROW()))), INDIRECT("'"&Mercados!$H$2&"'!G"&ROW()) - INDIRECT("'"&Mercados!$H$2&"'!J"&ROW()), "") -> 0 | AC56: H | AF56: =INDIRECT("'" & Mercados!$H$2 & "'!S" & ROW()) -> 5 | AG56: =INDIRECT("'" & Mercados!$H$2 & "'!t" & ROW()) -> 8 | AH56: 13
Y57: =INDIRECT("'" & Mercados!$H$2 & "'!D" & ROW()) -> Nott'm Forest | Z57: =INDIRECT("'" & Mercados!$H$2 & "'!E" & ROW()) -> Fulham | AA57: =IF(AND(ISNUMBER(INDIRECT("'"&Mercados!$H$2&"'!F"&ROW())), ISNUMBER(INDIRECT("'"&Mercados!$H$2&"'!I"&ROW()))), INDIRECT("'"&Mercados!$H$2&"'!F"&ROW()) - INDIRECT("'"&Mercados!$H$2&"'!I"&ROW()), "") -> 0 | AB57: =IF(AND(ISNUMBER(INDIRECT("'"&Mercados!$H$2&"'!G"&ROW())), ISNUMBER(INDIRECT("'"&Mercados!$H$2&"'!J"&ROW()))), INDIRECT("'"&Mercados!$H$2&"'!G"&ROW()) - INDIRECT("'"&Mercados!$H$2&"'!J"&ROW()), "") -> 1 | AC57: A | AF57: =INDIRECT("'" & Mercados!$H$2 & "'!S" & ROW()) -> 6 | AG57: =INDIRECT("'" & Mercados!$H$2 & "'!t" & ROW()) -> 5 | AH57: 11
Y58: =INDIRECT("'" & Mercados!$H$2 & "'!D" & ROW()) -> Wolves | Z58: =INDIRECT("'" & Mercados!$H$2 & "'!E" & ROW()) -> Liverpool | AA58: =IF(AND(ISNUMBER(INDIRECT("'"&Mercados!$H$2&"'!F"&ROW())), ISNUMBER(INDIRECT("'"&Mercados!$H$2&"'!I"&ROW()))), INDIRECT("'"&Mercados!$H$2&"'!F"&ROW()) - INDIRECT("'"&Mercados!$H$2&"'!I"&ROW()), "") -> 1 | AB58: =IF(AND(ISNUMBER(INDIRECT("'"&Mercados!$H$2&"'!G"&ROW())), ISNUMBER(INDIRECT("'"&Mercados!$H$2&"'!J"&ROW()))), INDIRECT("'"&Mercados!$H$2&"'!G"&ROW()) - INDIRECT("'"&Mercados!$H$2&"'!J"&ROW()), "") -> 1 | AC58: D | AF58: =INDIRECT("'" & Mercados!$H$2 & "'!S" & ROW()) -> 2 | AG58: =INDIRECT("'" & Mercados!$H$2 & "'!t" & ROW()) -> 10 | AH58: 12
Y59: =INDIRECT("'" & Mercados!$H$2 & "'!D" & ROW()) -> Ipswich | Z59: =INDIRECT("'" & Mercados!$H$2 & "'!E" & ROW()) -> Aston Villa | AA59: =IF(AND(ISNUMBER(INDIRECT("'"&Mercados!$H$2&"'!F"&ROW())), ISNUMBER(INDIRECT("'"&Mercados!$H$2&"'!I"&ROW()))), INDIRECT("'"&Mercados!$H$2&"'!F"&ROW()) - INDIRECT("'"&Mercados!$H$2&"'!I"&ROW()), "") -> 1 | AB59: =IF(AND(ISNUMBER(INDIRECT("'"&Mercados!$H$2&"'!G"&ROW())), ISNUMBER(INDIRECT("'"&Mercados!$H$2&"'!J"&ROW()))), INDIRECT("'"&Mercados!$H$2&"'!G"&ROW()) - INDIRECT("'"&Mercados!$H$2&"'!J"&ROW()), "") -> 0 | AC59: H | AF59: =INDIRECT("'" & Mercados!$H$2 & "'!S" & ROW()) -> 10 | AG59: =INDIRECT("'" & Mercados!$H$2 & "'!t" & ROW()) -> 0 | AH59: 10
Y60: =INDIRECT("'" & Mercados!$H$2 & "'!D" & ROW()) -> Man United | Z60: =INDIRECT("'" & Mercados!$H$2 & "'!E" & ROW()) -> Tottenham | AA60: =IF(AND(ISNUMBER(INDIRECT("'"&Mercados!$H$2&"'!F"&ROW())), ISNUMBER(INDIRECT("'"&Mercados!$H$2&"'!I"&ROW()))), INDIRECT("'"&Mercados!$H$2&"'!F"&ROW()) - INDIRECT("'"&Mercados!$H$2&"'!I"&ROW()), "") -> 0 | AB60: =IF(AND(ISNUMBER(INDIRECT("'"&Mercados!$H$2&"'!G"&ROW())), ISNUMBER(INDIRECT("'"&Mercados!$H$2&"'!J"&ROW()))), INDIRECT("'"&Mercados!$H$2&"'!G"&ROW()) - INDIRECT("'"&Mercados!$H$2&"'!J"&ROW()), "") -> 2 | AC60: A | AF60: =INDIRECT("'" & Mercados!$H$2 & "'!S" & ROW()) -> 5 | AG60: =INDIRECT("'" & Mercados!$H$2 & "'!t" & ROW()) -> 3 | AH60: 8
Y61: =INDIRECT("'" & Mercados!$H$2 & "'!D" & ROW()) -> 0 | Z61: =INDIRECT("'" & Mercados!$H$2 & "'!E" & ROW()) -> 0 | AA61: =IF(AND(ISNUMBER(INDIRECT("'"&Mercados!$H$2&"'!F"&ROW())), ISNUMBER(INDIRECT("'"&Mercados!$H$2&"'!I"&ROW()))), INDIRECT("'"&Mercados!$H$2&"'!F"&ROW()) - INDIRECT("'"&Mercados!$H$2&"'!I"&ROW()), "") ->  | AB61: =IF(AND(ISNUMBER(INDIRECT("'"&Mercados!$H$2&"'!G"&ROW())), ISNUMBER(INDIRECT("'"&Mercados!$H$2&"'!J"&ROW()))), INDIRECT("'"&Mercados!$H$2&"'!G"&ROW()) - INDIRECT("'"&Mercados!$H$2&"'!J"&ROW()), "") ->  | AC61: D | AF61: =INDIRECT("'" & Mercados!$H$2 & "'!S" & ROW()) -> 0 | AG61: =INDIRECT("'" & Mercados!$H$2 & "'!t" & ROW()) -> 0 | AH61: 0
Y62: =INDIRECT("'" & Mercados!$H$2 & "'!D" & ROW()) -> 0 | Z62: =INDIRECT("'" & Mercados!$H$2 & "'!E" & ROW()) -> 0 | AA62: =IF(AND(ISNUMBER(INDIRECT("'"&Mercados!$H$2&"'!F"&ROW())), ISNUMBER(INDIRECT("'"&Mercados!$H$2&"'!I"&ROW()))), INDIRECT("'"&Mercados!$H$2&"'!F"&ROW()) - INDIRECT("'"&Mercados!$H$2&"'!I"&ROW()), "") ->  | AB62: =IF(AND(ISNUMBER(INDIRECT("'"&Mercados!$H$2&"'!G"&ROW())), ISNUMBER(INDIRECT("'"&Mercados!$H$2&"'!J"&ROW()))), INDIRECT("'"&Mercados!$H$2&"'!G"&ROW()) - INDIRECT("'"&Mercados!$H$2&"'!J"&ROW()), "") ->  | AC62: D | AF62: =INDIRECT("'" & Mercados!$H$2 & "'!S" & ROW()) -> 0 | AG62: =INDIRECT("'" & Mercados!$H$2 & "'!t" & ROW()) -> 0 | AH62: 0
Y63: =INDIRECT("'" & Mercados!$H$2 & "'!D" & ROW()) -> 0 | Z63: =INDIRECT("'" & Mercados!$H$2 & "'!E" & ROW()) -> 0 | AA63: =IF(AND(ISNUMBER(INDIRECT("'"&Mercados!$H$2&"'!F"&ROW())), ISNUMBER(INDIRECT("'"&Mercados!$H$2&"'!I"&ROW()))), INDIRECT("'"&Mercados!$H$2&"'!F"&ROW()) - INDIRECT("'"&Mercados!$H$2&"'!I"&ROW()), "") ->  | AB63: =IF(AND(ISNUMBER(INDIRECT("'"&Mercados!$H$2&"'!G"&ROW())), ISNUMBER(INDIRECT("'"&Mercados!$H$2&"'!J"&ROW()))), INDIRECT("'"&Mercados!$H$2&"'!G"&ROW()) - INDIRECT("'"&Mercados!$H$2&"'!J"&ROW()), "") ->  | AC63: D | AF63: =INDIRECT("'" & Mercados!$H$2 & "'!S" & ROW()) -> 0 | AG63: =INDIRECT("'" & Mercados!$H$2 & "'!t" & ROW()) -> 0 | AH63: 0
Y64: =INDIRECT("'" & Mercados!$H$2 & "'!D" & ROW()) -> 0 | Z64: =INDIRECT("'" & Mercados!$H$2 & "'!E" & ROW()) -> 0 | AA64: =IF(AND(ISNUMBER(INDIRECT("'"&Mercados!$H$2&"'!F"&ROW())), ISNUMBER(INDIRECT("'"&Mercados!$H$2&"'!I"&ROW()))), INDIRECT("'"&Mercados!$H$2&"'!F"&ROW()) - INDIRECT("'"&Mercados!$H$2&"'!I"&ROW()), "") ->  | AB64: =IF(AND(ISNUMBER(INDIRECT("'"&Mercados!$H$2&"'!G"&ROW())), ISNUMBER(INDIRECT("'"&Mercados!$H$2&"'!J"&ROW()))), INDIRECT("'"&Mercados!$H$2&"'!G"&ROW()) - INDIRECT("'"&Mercados!$H$2&"'!J"&ROW()), "") ->  | AC64: D | AF64: =INDIRECT("'" & Mercados!$H$2 & "'!S" & ROW()) -> 0 | AG64: =INDIRECT("'" & Mercados!$H$2 & "'!t" & ROW()) -> 0 | AH64: 0
Y65: =INDIRECT("'" & Mercados!$H$2 & "'!D" & ROW()) -> 0 | Z65: =INDIRECT("'" & Mercados!$H$2 & "'!E" & ROW()) -> 0 | AA65: =IF(AND(ISNUMBER(INDIRECT("'"&Mercados!$H$2&"'!F"&ROW())), ISNUMBER(INDIRECT("'"&Mercados!$H$2&"'!I"&ROW()))), INDIRECT("'"&Mercados!$H$2&"'!F"&ROW()) - INDIRECT("'"&Mercados!$H$2&"'!I"&ROW()), "") ->  | AB65: =IF(AND(ISNUMBER(INDIRECT("'"&Mercados!$H$2&"'!G"&ROW())), ISNUMBER(INDIRECT("'"&Mercados!$H$2&"'!J"&ROW()))), INDIRECT("'"&Mercados!$H$2&"'!G"&ROW()) - INDIRECT("'"&Mercados!$H$2&"'!J"&ROW()), "") ->  | AC65: D | AF65: =INDIRECT("'" & Mercados!$H$2 & "'!S" & ROW()) -> 0 | AG65: =INDIRECT("'" & Mercados!$H$2 & "'!t" & ROW()) -> 0 | AH65: 0
Y66: =INDIRECT("'" & Mercados!$H$2 & "'!D" & ROW()) -> 0 | Z66: =INDIRECT("'" & Mercados!$H$2 & "'!E" & ROW()) -> 0 | AA66: =IF(AND(ISNUMBER(INDIRECT("'"&Mercados!$H$2&"'!F"&ROW())), ISNUMBER(INDIRECT("'"&Mercados!$H$2&"'!I"&ROW()))), INDIRECT("'"&Mercados!$H$2&"'!F"&ROW()) - INDIRECT("'"&Mercados!$H$2&"'!I"&ROW()), "") ->  | AB66: =IF(AND(ISNUMBER(INDIRECT("'"&Mercados!$H$2&"'!G"&ROW())), ISNUMBER(INDIRECT("'"&Mercados!$H$2&"'!J"&ROW()))), INDIRECT("'"&Mercados!$H$2&"'!G"&ROW()) - INDIRECT("'"&Mercados!$H$2&"'!J"&ROW()), "") ->  | AC66: D | AF66: =INDIRECT("'" & Mercados!$H$2 & "'!S" & ROW()) -> 0 | AG66: =INDIRECT("'" & Mercados!$H$2 & "'!t" & ROW()) -> 0 | AH66: 0
Y67: =INDIRECT("'" & Mercados!$H$2 & "'!D" & ROW()) -> 0 | Z67: =INDIRECT("'" & Mercados!$H$2 & "'!E" & ROW()) -> 0 | AA67: =IF(AND(ISNUMBER(INDIRECT("'"&Mercados!$H$2&"'!F"&ROW())), ISNUMBER(INDIRECT("'"&Mercados!$H$2&"'!I"&ROW()))), INDIRECT("'"&Mercados!$H$2&"'!F"&ROW()) - INDIRECT("'"&Mercados!$H$2&"'!I"&ROW()), "") ->  | AB67: =IF(AND(ISNUMBER(INDIRECT("'"&Mercados!$H$2&"'!G"&ROW())), ISNUMBER(INDIRECT("'"&Mercados!$H$2&"'!J"&ROW()))), INDIRECT("'"&Mercados!$H$2&"'!G"&ROW()) - INDIRECT("'"&Mercados!$H$2&"'!J"&ROW()), "") ->  | AC67: =IF(OR(ISBLANK(AA67), ISBLANK(AB67)), "", IF(AA67>AB67, "H", IF(AA67<AB67, "A", "D"))) -> D | AF67: =INDIRECT("'" & Mercados!$H$2 & "'!S" & ROW()) -> 0 | AG67: =INDIRECT("'" & Mercados!$H$2 & "'!t" & ROW()) -> 0 | AH67: =SUM(AF67:AG67) -> 0
Y68: =INDIRECT("'" & Mercados!$H$2 & "'!D" & ROW()) -> 0 | Z68: =INDIRECT("'" & Mercados!$H$2 & "'!E" & ROW()) -> 0 | AA68: =IF(AND(ISNUMBER(INDIRECT("'"&Mercados!$H$2&"'!F"&ROW())), ISNUMBER(INDIRECT("'"&Mercados!$H$2&"'!I"&ROW()))), INDIRECT("'"&Mercados!$H$2&"'!F"&ROW()) - INDIRECT("'"&Mercados!$H$2&"'!I"&ROW()), "") ->  | AB68: =IF(AND(ISNUMBER(INDIRECT("'"&Mercados!$H$2&"'!G"&ROW())), ISNUMBER(INDIRECT("'"&Mercados!$H$2&"'!J"&ROW()))), INDIRECT("'"&Mercados!$H$2&"'!G"&ROW()) - INDIRECT("'"&Mercados!$H$2&"'!J"&ROW()), "") ->  | AC68: D | AF68: =INDIRECT("'" & Mercados!$H$2 & "'!S" & ROW()) -> 0 | AG68: =INDIRECT("'" & Mercados!$H$2 & "'!t" & ROW()) -> 0 | AH68: 0
Y69: =INDIRECT("'" & Mercados!$H$2 & "'!D" & ROW()) -> 0 | Z69: =INDIRECT("'" & Mercados!$H$2 & "'!E" & ROW()) -> 0 | AA69: =IF(AND(ISNUMBER(INDIRECT("'"&Mercados!$H$2&"'!F"&ROW())), ISNUMBER(INDIRECT("'"&Mercados!$H$2&"'!I"&ROW()))), INDIRECT("'"&Mercados!$H$2&"'!F"&ROW()) - INDIRECT("'"&Mercados!$H$2&"'!I"&ROW()), "") ->  | AB69: =IF(AND(ISNUMBER(INDIRECT("'"&Mercados!$H$2&"'!G"&ROW())), ISNUMBER(INDIRECT("'"&Mercados!$H$2&"'!J"&ROW()))), INDIRECT("'"&Mercados!$H$2&"'!G"&ROW()) - INDIRECT("'"&Mercados!$H$2&"'!J"&ROW()), "") ->  | AC69: D | AF69: =INDIRECT("'" & Mercados!$H$2 & "'!S" & ROW()) -> 0 | AG69: =INDIRECT("'" & Mercados!$H$2 & "'!t" & ROW()) -> 0 | AH69: 0
Y70: =INDIRECT("'" & Mercados!$H$2 & "'!D" & ROW()) -> 0 | Z70: =INDIRECT("'" & Mercados!$H$2 & "'!E" & ROW()) -> 0 | AA70: =IF(AND(ISNUMBER(INDIRECT("'"&Mercados!$H$2&"'!F"&ROW())), ISNUMBER(INDIRECT("'"&Mercados!$H$2&"'!I"&ROW()))), INDIRECT("'"&Mercados!$H$2&"'!F"&ROW()) - INDIRECT("'"&Mercados!$H$2&"'!I"&ROW()), "") ->  | AB70: =IF(AND(ISNUMBER(INDIRECT("'"&Mercados!$H$2&"'!G"&ROW())), ISNUMBER(INDIRECT("'"&Mercados!$H$2&"'!J"&ROW()))), INDIRECT("'"&Mercados!$H$2&"'!G"&ROW()) - INDIRECT("'"&Mercados!$H$2&"'!J"&ROW()), "") ->  | AC70: D | AF70: =INDIRECT("'" & Mercados!$H$2 & "'!S" & ROW()) -> 0 | AG70: =INDIRECT("'" & Mercados!$H$2 & "'!t" & ROW()) -> 0 | AH70: 0
Y71: =INDIRECT("'" & Mercados!$H$2 & "'!D" & ROW()) -> 0 | Z71: =INDIRECT("'" & Mercados!$H$2 & "'!E" & ROW()) -> 0 | AA71: =IF(AND(ISNUMBER(INDIRECT("'"&Mercados!$H$2&"'!F"&ROW())), ISNUMBER(INDIRECT("'"&Mercados!$H$2&"'!I"&ROW()))), INDIRECT("'"&Mercados!$H$2&"'!F"&ROW()) - INDIRECT("'"&Mercados!$H$2&"'!I"&ROW()), "") ->  | AB71: =IF(AND(ISNUMBER(INDIRECT("'"&Mercados!$H$2&"'!G"&ROW())), ISNUMBER(INDIRECT("'"&Mercados!$H$2&"'!J"&ROW()))), INDIRECT("'"&Mercados!$H$2&"'!G"&ROW()) - INDIRECT("'"&Mercados!$H$2&"'!J"&ROW()), "") ->  | AC71: D | AF71: =INDIRECT("'" & Mercados!$H$2 & "'!S" & ROW()) -> 0 | AG71: =INDIRECT("'" & Mercados!$H$2 & "'!t" & ROW()) -> 0 | AH71: 0
Y72: =INDIRECT("'" & Mercados!$H$2 & "'!D" & ROW()) -> 0 | Z72: =INDIRECT("'" & Mercados!$H$2 & "'!E" & ROW()) -> 0 | AA72: =IF(AND(ISNUMBER(INDIRECT("'"&Mercados!$H$2&"'!F"&ROW())), ISNUMBER(INDIRECT("'"&Mercados!$H$2&"'!I"&ROW()))), INDIRECT("'"&Mercados!$H$2&"'!F"&ROW()) - INDIRECT("'"&Mercados!$H$2&"'!I"&ROW()), "") ->  | AB72: =IF(AND(ISNUMBER(INDIRECT("'"&Mercados!$H$2&"'!G"&ROW())), ISNUMBER(INDIRECT("'"&Mercados!$H$2&"'!J"&ROW()))), INDIRECT("'"&Mercados!$H$2&"'!G"&ROW()) - INDIRECT("'"&Mercados!$H$2&"'!J"&ROW()), "") ->  | AC72: D | AF72: =INDIRECT("'" & Mercados!$H$2 & "'!S" & ROW()) -> 0 | AG72: =INDIRECT("'" & Mercados!$H$2 & "'!t" & ROW()) -> 0 | AH72: 0
Y73: =INDIRECT("'" & Mercados!$H$2 & "'!D" & ROW()) -> 0 | Z73: =INDIRECT("'" & Mercados!$H$2 & "'!E" & ROW()) -> 0 | AA73: =IF(AND(ISNUMBER(INDIRECT("'"&Mercados!$H$2&"'!F"&ROW())), ISNUMBER(INDIRECT("'"&Mercados!$H$2&"'!I"&ROW()))), INDIRECT("'"&Mercados!$H$2&"'!F"&ROW()) - INDIRECT("'"&Mercados!$H$2&"'!I"&ROW()), "") ->  | AB73: =IF(AND(ISNUMBER(INDIRECT("'"&Mercados!$H$2&"'!G"&ROW())), ISNUMBER(INDIRECT("'"&Mercados!$H$2&"'!J"&ROW()))), INDIRECT("'"&Mercados!$H$2&"'!G"&ROW()) - INDIRECT("'"&Mercados!$H$2&"'!J"&ROW()), "") ->  | AC73: D | AF73: =INDIRECT("'" & Mercados!$H$2 & "'!S" & ROW()) -> 0 | AG73: =INDIRECT("'" & Mercados!$H$2 & "'!t" & ROW()) -> 0 | AH73: 0
Y74: =INDIRECT("'" & Mercados!$H$2 & "'!D" & ROW()) -> 0 | Z74: =INDIRECT("'" & Mercados!$H$2 & "'!E" & ROW()) -> 0 | AA74: =IF(AND(ISNUMBER(INDIRECT("'"&Mercados!$H$2&"'!F"&ROW())), ISNUMBER(INDIRECT("'"&Mercados!$H$2&"'!I"&ROW()))), INDIRECT("'"&Mercados!$H$2&"'!F"&ROW()) - INDIRECT("'"&Mercados!$H$2&"'!I"&ROW()), "") ->  | AB74: =IF(AND(ISNUMBER(INDIRECT("'"&Mercados!$H$2&"'!G"&ROW())), ISNUMBER(INDIRECT("'"&Mercados!$H$2&"'!J"&ROW()))), INDIRECT("'"&Mercados!$H$2&"'!G"&ROW()) - INDIRECT("'"&Mercados!$H$2&"'!J"&ROW()), "") ->  | AC74: D | AF74: =INDIRECT("'" & Mercados!$H$2 & "'!S" & ROW()) -> 0 | AG74: =INDIRECT("'" & Mercados!$H$2 & "'!t" & ROW()) -> 0 | AH74: 0
Y75: =INDIRECT("'" & Mercados!$H$2 & "'!D" & ROW()) -> 0 | Z75: =INDIRECT("'" & Mercados!$H$2 & "'!E" & ROW()) -> 0 | AA75: =IF(AND(ISNUMBER(INDIRECT("'"&Mercados!$H$2&"'!F"&ROW())), ISNUMBER(INDIRECT("'"&Mercados!$H$2&"'!I"&ROW()))), INDIRECT("'"&Mercados!$H$2&"'!F"&ROW()) - INDIRECT("'"&Mercados!$H$2&"'!I"&ROW()), "") ->  | AB75: =IF(AND(ISNUMBER(INDIRECT("'"&Mercados!$H$2&"'!G"&ROW())), ISNUMBER(INDIRECT("'"&Mercados!$H$2&"'!J"&ROW()))), INDIRECT("'"&Mercados!$H$2&"'!G"&ROW()) - INDIRECT("'"&Mercados!$H$2&"'!J"&ROW()), "") ->  | AC75: D | AF75: =INDIRECT("'" & Mercados!$H$2 & "'!S" & ROW()) -> 0 | AG75: =INDIRECT("'" & Mercados!$H$2 & "'!t" & ROW()) -> 0 | AH75: 0
Y76: =INDIRECT("'" & Mercados!$H$2 & "'!D" & ROW()) -> 0 | Z76: =INDIRECT("'" & Mercados!$H$2 & "'!E" & ROW()) -> 0 | AA76: =IF(AND(ISNUMBER(INDIRECT("'"&Mercados!$H$2&"'!F"&ROW())), ISNUMBER(INDIRECT("'"&Mercados!$H$2&"'!I"&ROW()))), INDIRECT("'"&Mercados!$H$2&"'!F"&ROW()) - INDIRECT("'"&Mercados!$H$2&"'!I"&ROW()), "") ->  | AB76: =IF(AND(ISNUMBER(INDIRECT("'"&Mercados!$H$2&"'!G"&ROW())), ISNUMBER(INDIRECT("'"&Mercados!$H$2&"'!J"&ROW()))), INDIRECT("'"&Mercados!$H$2&"'!G"&ROW()) - INDIRECT("'"&Mercados!$H$2&"'!J"&ROW()), "") ->  | AC76: D | AF76: =INDIRECT("'" & Mercados!$H$2 & "'!S" & ROW()) -> 0 | AG76: =INDIRECT("'" & Mercados!$H$2 & "'!t" & ROW()) -> 0 | AH76: 0
Y77: =INDIRECT("'" & Mercados!$H$2 & "'!D" & ROW()) -> 0 | Z77: =INDIRECT("'" & Mercados!$H$2 & "'!E" & ROW()) -> 0 | AA77: =IF(AND(ISNUMBER(INDIRECT("'"&Mercados!$H$2&"'!F"&ROW())), ISNUMBER(INDIRECT("'"&Mercados!$H$2&"'!I"&ROW()))), INDIRECT("'"&Mercados!$H$2&"'!F"&ROW()) - INDIRECT("'"&Mercados!$H$2&"'!I"&ROW()), "") ->  | AB77: =IF(AND(ISNUMBER(INDIRECT("'"&Mercados!$H$2&"'!G"&ROW())), ISNUMBER(INDIRECT("'"&Mercados!$H$2&"'!J"&ROW()))), INDIRECT("'"&Mercados!$H$2&"'!G"&ROW()) - INDIRECT("'"&Mercados!$H$2&"'!J"&ROW()), "") ->  | AC77: D | AF77: =INDIRECT("'" & Mercados!$H$2 & "'!S" & ROW()) -> 0 | AG77: =INDIRECT("'" & Mercados!$H$2 & "'!t" & ROW()) -> 0 | AH77: 0
Y78: =INDIRECT("'" & Mercados!$H$2 & "'!D" & ROW()) -> 0 | Z78: =INDIRECT("'" & Mercados!$H$2 & "'!E" & ROW()) -> 0 | AA78: =IF(AND(ISNUMBER(INDIRECT("'"&Mercados!$H$2&"'!F"&ROW())), ISNUMBER(INDIRECT("'"&Mercados!$H$2&"'!I"&ROW()))), INDIRECT("'"&Mercados!$H$2&"'!F"&ROW()) - INDIRECT("'"&Mercados!$H$2&"'!I"&ROW()), "") ->  | AB78: =IF(AND(ISNUMBER(INDIRECT("'"&Mercados!$H$2&"'!G"&ROW())), ISNUMBER(INDIRECT("'"&Mercados!$H$2&"'!J"&ROW()))), INDIRECT("'"&Mercados!$H$2&"'!G"&ROW()) - INDIRECT("'"&Mercados!$H$2&"'!J"&ROW()), "") ->  | AC78: D | AF78: =INDIRECT("'" & Mercados!$H$2 & "'!S" & ROW()) -> 0 | AG78: =INDIRECT("'" & Mercados!$H$2 & "'!t" & ROW()) -> 0 | AH78: 0
Y79: =INDIRECT("'" & Mercados!$H$2 & "'!D" & ROW()) -> 0 | Z79: =INDIRECT("'" & Mercados!$H$2 & "'!E" & ROW()) -> 0 | AA79: =IF(AND(ISNUMBER(INDIRECT("'"&Mercados!$H$2&"'!F"&ROW())), ISNUMBER(INDIRECT("'"&Mercados!$H$2&"'!I"&ROW()))), INDIRECT("'"&Mercados!$H$2&"'!F"&ROW()) - INDIRECT("'"&Mercados!$H$2&"'!I"&ROW()), "") ->  | AB79: =IF(AND(ISNUMBER(INDIRECT("'"&Mercados!$H$2&"'!G"&ROW())), ISNUMBER(INDIRECT("'"&Mercados!$H$2&"'!J"&ROW()))), INDIRECT("'"&Mercados!$H$2&"'!G"&ROW()) - INDIRECT("'"&Mercados!$H$2&"'!J"&ROW()), "") ->  | AC79: D | AF79: =INDIRECT("'" & Mercados!$H$2 & "'!S" & ROW()) -> 0 | AG79: =INDIRECT("'" & Mercados!$H$2 & "'!t" & ROW()) -> 0 | AH79: 0
Y80: =INDIRECT("'" & Mercados!$H$2 & "'!D" & ROW()) -> 0 | Z80: =INDIRECT("'" & Mercados!$H$2 & "'!E" & ROW()) -> 0 | AA80: =IF(AND(ISNUMBER(INDIRECT("'"&Mercados!$H$2&"'!F"&ROW())), ISNUMBER(INDIRECT("'"&Mercados!$H$2&"'!I"&ROW()))), INDIRECT("'"&Mercados!$H$2&"'!F"&ROW()) - INDIRECT("'"&Mercados!$H$2&"'!I"&ROW()), "") ->  | AB80: =IF(AND(ISNUMBER(INDIRECT("'"&Mercados!$H$2&"'!G"&ROW())), ISNUMBER(INDIRECT("'"&Mercados!$H$2&"'!J"&ROW()))), INDIRECT("'"&Mercados!$H$2&"'!G"&ROW()) - INDIRECT("'"&Mercados!$H$2&"'!J"&ROW()), "") ->  | AC80: D | AF80: =INDIRECT("'" & Mercados!$H$2 & "'!S" & ROW()) -> 0 | AG80: =INDIRECT("'" & Mercados!$H$2 & "'!t" & ROW()) -> 0 | AH80: 0
Y81: =INDIRECT("'" & Mercados!$H$2 & "'!D" & ROW()) -> 0 | Z81: =INDIRECT("'" & Mercados!$H$2 & "'!E" & ROW()) -> 0 | AA81: =IF(AND(ISNUMBER(INDIRECT("'"&Mercados!$H$2&"'!F"&ROW())), ISNUMBER(INDIRECT("'"&Mercados!$H$2&"'!I"&ROW()))), INDIRECT("'"&Mercados!$H$2&"'!F"&ROW()) - INDIRECT("'"&Mercados!$H$2&"'!I"&ROW()), "") ->  | AB81: =IF(AND(ISNUMBER(INDIRECT("'"&Mercados!$H$2&"'!G"&ROW())), ISNUMBER(INDIRECT("'"&Mercados!$H$2&"'!J"&ROW()))), INDIRECT("'"&Mercados!$H$2&"'!G"&ROW()) - INDIRECT("'"&Mercados!$H$2&"'!J"&ROW()), "") ->  | AC81: D | AF81: =INDIRECT("'" & Mercados!$H$2 & "'!S" & ROW()) -> 0 | AG81: =INDIRECT("'" & Mercados!$H$2 & "'!t" & ROW()) -> 0 | AH81: 0
Y82: =INDIRECT("'" & Mercados!$H$2 & "'!D" & ROW()) -> 0 | Z82: =INDIRECT("'" & Mercados!$H$2 & "'!E" & ROW()) -> 0 | AA82: =IF(AND(ISNUMBER(INDIRECT("'"&Mercados!$H$2&"'!F"&ROW())), ISNUMBER(INDIRECT("'"&Mercados!$H$2&"'!I"&ROW()))), INDIRECT("'"&Mercados!$H$2&"'!F"&ROW()) - INDIRECT("'"&Mercados!$H$2&"'!I"&ROW()), "") ->  | AB82: =IF(AND(ISNUMBER(INDIRECT("'"&Mercados!$H$2&"'!G"&ROW())), ISNUMBER(INDIRECT("'"&Mercados!$H$2&"'!J"&ROW()))), INDIRECT("'"&Mercados!$H$2&"'!G"&ROW()) - INDIRECT("'"&Mercados!$H$2&"'!J"&ROW()), "") ->  | AC82: D | AF82: =INDIRECT("'" & Mercados!$H$2 & "'!S" & ROW()) -> 0 | AG82: =INDIRECT("'" & Mercados!$H$2 & "'!t" & ROW()) -> 0 | AH82: 0
Y83: =INDIRECT("'" & Mercados!$H$2 & "'!D" & ROW()) -> 0 | Z83: =INDIRECT("'" & Mercados!$H$2 & "'!E" & ROW()) -> 0 | AA83: =IF(AND(ISNUMBER(INDIRECT("'"&Mercados!$H$2&"'!F"&ROW())), ISNUMBER(INDIRECT("'"&Mercados!$H$2&"'!I"&ROW()))), INDIRECT("'"&Mercados!$H$2&"'!F"&ROW()) - INDIRECT("'"&Mercados!$H$2&"'!I"&ROW()), "") ->  | AB83: =IF(AND(ISNUMBER(INDIRECT("'"&Mercados!$H$2&"'!G"&ROW())), ISNUMBER(INDIRECT("'"&Mercados!$H$2&"'!J"&ROW()))), INDIRECT("'"&Mercados!$H$2&"'!G"&ROW()) - INDIRECT("'"&Mercados!$H$2&"'!J"&ROW()), "") ->  | AC83: D | AF83: =INDIRECT("'" & Mercados!$H$2 & "'!S" & ROW()) -> 0 | AG83: =INDIRECT("'" & Mercados!$H$2 & "'!t" & ROW()) -> 0 | AH83: 0
Y84: =INDIRECT("'" & Mercados!$H$2 & "'!D" & ROW()) -> 0 | Z84: =INDIRECT("'" & Mercados!$H$2 & "'!E" & ROW()) -> 0 | AA84: =IF(AND(ISNUMBER(INDIRECT("'"&Mercados!$H$2&"'!F"&ROW())), ISNUMBER(INDIRECT("'"&Mercados!$H$2&"'!I"&ROW()))), INDIRECT("'"&Mercados!$H$2&"'!F"&ROW()) - INDIRECT("'"&Mercados!$H$2&"'!I"&ROW()), "") ->  | AB84: =IF(AND(ISNUMBER(INDIRECT("'"&Mercados!$H$2&"'!G"&ROW())), ISNUMBER(INDIRECT("'"&Mercados!$H$2&"'!J"&ROW()))), INDIRECT("'"&Mercados!$H$2&"'!G"&ROW()) - INDIRECT("'"&Mercados!$H$2&"'!J"&ROW()), "") ->  | AC84: D | AF84: =INDIRECT("'" & Mercados!$H$2 & "'!S" & ROW()) -> 0 | AG84: =INDIRECT("'" & Mercados!$H$2 & "'!t" & ROW()) -> 0 | AH84: 0
Y85: =INDIRECT("'" & Mercados!$H$2 & "'!D" & ROW()) -> 0 | Z85: =INDIRECT("'" & Mercados!$H$2 & "'!E" & ROW()) -> 0 | AA85: =IF(AND(ISNUMBER(INDIRECT("'"&Mercados!$H$2&"'!F"&ROW())), ISNUMBER(INDIRECT("'"&Mercados!$H$2&"'!I"&ROW()))), INDIRECT("'"&Mercados!$H$2&"'!F"&ROW()) - INDIRECT("'"&Mercados!$H$2&"'!I"&ROW()), "") ->  | AB85: =IF(AND(ISNUMBER(INDIRECT("'"&Mercados!$H$2&"'!G"&ROW())), ISNUMBER(INDIRECT("'"&Mercados!$H$2&"'!J"&ROW()))), INDIRECT("'"&Mercados!$H$2&"'!G"&ROW()) - INDIRECT("'"&Mercados!$H$2&"'!J"&ROW()), "") ->  | AC85: D | AF85: =INDIRECT("'" & Mercados!$H$2 & "'!S" & ROW()) -> 0 | AG85: =INDIRECT("'" & Mercados!$H$2 & "'!t" & ROW()) -> 0 | AH85: 0
Y86: =INDIRECT("'" & Mercados!$H$2 & "'!D" & ROW()) -> 0 | Z86: =INDIRECT("'" & Mercados!$H$2 & "'!E" & ROW()) -> 0 | AA86: =IF(AND(ISNUMBER(INDIRECT("'"&Mercados!$H$2&"'!F"&ROW())), ISNUMBER(INDIRECT("'"&Mercados!$H$2&"'!I"&ROW()))), INDIRECT("'"&Mercados!$H$2&"'!F"&ROW()) - INDIRECT("'"&Mercados!$H$2&"'!I"&ROW()), "") ->  | AB86: =IF(AND(ISNUMBER(INDIRECT("'"&Mercados!$H$2&"'!G"&ROW())), ISNUMBER(INDIRECT("'"&Mercados!$H$2&"'!J"&ROW()))), INDIRECT("'"&Mercados!$H$2&"'!G"&ROW()) - INDIRECT("'"&Mercados!$H$2&"'!J"&ROW()), "") ->  | AC86: D | AF86: =INDIRECT("'" & Mercados!$H$2 & "'!S" & ROW()) -> 0 | AG86: =INDIRECT("'" & Mercados!$H$2 & "'!t" & ROW()) -> 0 | AH86: 0
Y87: =INDIRECT("'" & Mercados!$H$2 & "'!D" & ROW()) -> 0 | Z87: =INDIRECT("'" & Mercados!$H$2 & "'!E" & ROW()) -> 0 | AA87: =IF(AND(ISNUMBER(INDIRECT("'"&Mercados!$H$2&"'!F"&ROW())), ISNUMBER(INDIRECT("'"&Mercados!$H$2&"'!I"&ROW()))), INDIRECT("'"&Mercados!$H$2&"'!F"&ROW()) - INDIRECT("'"&Mercados!$H$2&"'!I"&ROW()), "") ->  | AB87: =IF(AND(ISNUMBER(INDIRECT("'"&Mercados!$H$2&"'!G"&ROW())), ISNUMBER(INDIRECT("'"&Mercados!$H$2&"'!J"&ROW()))), INDIRECT("'"&Mercados!$H$2&"'!G"&ROW()) - INDIRECT("'"&Mercados!$H$2&"'!J"&ROW()), "") ->  | AC87: D | AF87: =INDIRECT("'" & Mercados!$H$2 & "'!S" & ROW()) -> 0 | AG87: =INDIRECT("'" & Mercados!$H$2 & "'!t" & ROW()) -> 0 | AH87: 0
Y88: =INDIRECT("'" & Mercados!$H$2 & "'!D" & ROW()) -> 0 | Z88: =INDIRECT("'" & Mercados!$H$2 & "'!E" & ROW()) -> 0 | AA88: =IF(AND(ISNUMBER(INDIRECT("'"&Mercados!$H$2&"'!F"&ROW())), ISNUMBER(INDIRECT("'"&Mercados!$H$2&"'!I"&ROW()))), INDIRECT("'"&Mercados!$H$2&"'!F"&ROW()) - INDIRECT("'"&Mercados!$H$2&"'!I"&ROW()), "") ->  | AB88: =IF(AND(ISNUMBER(INDIRECT("'"&Mercados!$H$2&"'!G"&ROW())), ISNUMBER(INDIRECT("'"&Mercados!$H$2&"'!J"&ROW()))), INDIRECT("'"&Mercados!$H$2&"'!G"&ROW()) - INDIRECT("'"&Mercados!$H$2&"'!J"&ROW()), "") ->  | AC88: D | AF88: =INDIRECT("'" & Mercados!$H$2 & "'!S" & ROW()) -> 0 | AG88: =INDIRECT("'" & Mercados!$H$2 & "'!t" & ROW()) -> 0 | AH88: 0
Y89: =INDIRECT("'" & Mercados!$H$2 & "'!D" & ROW()) -> 0 | Z89: =INDIRECT("'" & Mercados!$H$2 & "'!E" & ROW()) -> 0 | AA89: =IF(AND(ISNUMBER(INDIRECT("'"&Mercados!$H$2&"'!F"&ROW())), ISNUMBER(INDIRECT("'"&Mercados!$H$2&"'!I"&ROW()))), INDIRECT("'"&Mercados!$H$2&"'!F"&ROW()) - INDIRECT("'"&Mercados!$H$2&"'!I"&ROW()), "") ->  | AB89: =IF(AND(ISNUMBER(INDIRECT("'"&Mercados!$H$2&"'!G"&ROW())), ISNUMBER(INDIRECT("'"&Mercados!$H$2&"'!J"&ROW()))), INDIRECT("'"&Mercados!$H$2&"'!G"&ROW()) - INDIRECT("'"&Mercados!$H$2&"'!J"&ROW()), "") ->  | AC89: D | AF89: =INDIRECT("'" & Mercados!$H$2 & "'!S" & ROW()) -> 0 | AG89: =INDIRECT("'" & Mercados!$H$2 & "'!t" & ROW()) -> 0 | AH89: 0
Y90: =INDIRECT("'" & Mercados!$H$2 & "'!D" & ROW()) -> 0 | Z90: =INDIRECT("'" & Mercados!$H$2 & "'!E" & ROW()) -> 0 | AA90: =IF(AND(ISNUMBER(INDIRECT("'"&Mercados!$H$2&"'!F"&ROW())), ISNUMBER(INDIRECT("'"&Mercados!$H$2&"'!I"&ROW()))), INDIRECT("'"&Mercados!$H$2&"'!F"&ROW()) - INDIRECT("'"&Mercados!$H$2&"'!I"&ROW()), "") ->  | AB90: =IF(AND(ISNUMBER(INDIRECT("'"&Mercados!$H$2&"'!G"&ROW())), ISNUMBER(INDIRECT("'"&Mercados!$H$2&"'!J"&ROW()))), INDIRECT("'"&Mercados!$H$2&"'!G"&ROW()) - INDIRECT("'"&Mercados!$H$2&"'!J"&ROW()), "") ->  | AC90: D | AF90: =INDIRECT("'" & Mercados!$H$2 & "'!S" & ROW()) -> 0 | AG90: =INDIRECT("'" & Mercados!$H$2 & "'!t" & ROW()) -> 0 | AH90: 0
Y91: =INDIRECT("'" & Mercados!$H$2 & "'!D" & ROW()) -> 0 | Z91: =INDIRECT("'" & Mercados!$H$2 & "'!E" & ROW()) -> 0 | AA91: =IF(AND(ISNUMBER(INDIRECT("'"&Mercados!$H$2&"'!F"&ROW())), ISNUMBER(INDIRECT("'"&Mercados!$H$2&"'!I"&ROW()))), INDIRECT("'"&Mercados!$H$2&"'!F"&ROW()) - INDIRECT("'"&Mercados!$H$2&"'!I"&ROW()), "") ->  | AB91: =IF(AND(ISNUMBER(INDIRECT("'"&Mercados!$H$2&"'!G"&ROW())), ISNUMBER(INDIRECT("'"&Mercados!$H$2&"'!J"&ROW()))), INDIRECT("'"&Mercados!$H$2&"'!G"&ROW()) - INDIRECT("'"&Mercados!$H$2&"'!J"&ROW()), "") ->  | AC91: D | AF91: =INDIRECT("'" & Mercados!$H$2 & "'!S" & ROW()) -> 0 | AG91: =INDIRECT("'" & Mercados!$H$2 & "'!t" & ROW()) -> 0 | AH91: 0
Y92: =INDIRECT("'" & Mercados!$H$2 & "'!D" & ROW()) -> 0 | Z92: =INDIRECT("'" & Mercados!$H$2 & "'!E" & ROW()) -> 0 | AA92: =IF(AND(ISNUMBER(INDIRECT("'"&Mercados!$H$2&"'!F"&ROW())), ISNUMBER(INDIRECT("'"&Mercados!$H$2&"'!I"&ROW()))), INDIRECT("'"&Mercados!$H$2&"'!F"&ROW()) - INDIRECT("'"&Mercados!$H$2&"'!I"&ROW()), "") ->  | AB92: =IF(AND(ISNUMBER(INDIRECT("'"&Mercados!$H$2&"'!G"&ROW())), ISNUMBER(INDIRECT("'"&Mercados!$H$2&"'!J"&ROW()))), INDIRECT("'"&Mercados!$H$2&"'!G"&ROW()) - INDIRECT("'"&Mercados!$H$2&"'!J"&ROW()), "") ->  | AC92: D | AF92: =INDIRECT("'" & Mercados!$H$2 & "'!S" & ROW()) -> 0 | AG92: =INDIRECT("'" & Mercados!$H$2 & "'!t" & ROW()) -> 0 | AH92: 0
Y93: =INDIRECT("'" & Mercados!$H$2 & "'!D" & ROW()) -> 0 | Z93: =INDIRECT("'" & Mercados!$H$2 & "'!E" & ROW()) -> 0 | AA93: =IF(AND(ISNUMBER(INDIRECT("'"&Mercados!$H$2&"'!F"&ROW())), ISNUMBER(INDIRECT("'"&Mercados!$H$2&"'!I"&ROW()))), INDIRECT("'"&Mercados!$H$2&"'!F"&ROW()) - INDIRECT("'"&Mercados!$H$2&"'!I"&ROW()), "") ->  | AB93: =IF(AND(ISNUMBER(INDIRECT("'"&Mercados!$H$2&"'!G"&ROW())), ISNUMBER(INDIRECT("'"&Mercados!$H$2&"'!J"&ROW()))), INDIRECT("'"&Mercados!$H$2&"'!G"&ROW()) - INDIRECT("'"&Mercados!$H$2&"'!J"&ROW()), "") ->  | AC93: D | AF93: =INDIRECT("'" & Mercados!$H$2 & "'!S" & ROW()) -> 0 | AG93: =INDIRECT("'" & Mercados!$H$2 & "'!t" & ROW()) -> 0 | AH93: 0
Y94: =INDIRECT("'" & Mercados!$H$2 & "'!D" & ROW()) -> 0 | Z94: =INDIRECT("'" & Mercados!$H$2 & "'!E" & ROW()) -> 0 | AA94: =IF(AND(ISNUMBER(INDIRECT("'"&Mercados!$H$2&"'!F"&ROW())), ISNUMBER(INDIRECT("'"&Mercados!$H$2&"'!I"&ROW()))), INDIRECT("'"&Mercados!$H$2&"'!F"&ROW()) - INDIRECT("'"&Mercados!$H$2&"'!I"&ROW()), "") ->  | AB94: =IF(AND(ISNUMBER(INDIRECT("'"&Mercados!$H$2&"'!G"&ROW())), ISNUMBER(INDIRECT("'"&Mercados!$H$2&"'!J"&ROW()))), INDIRECT("'"&Mercados!$H$2&"'!G"&ROW()) - INDIRECT("'"&Mercados!$H$2&"'!J"&ROW()), "") ->  | AC94: D | AF94: =INDIRECT("'" & Mercados!$H$2 & "'!S" & ROW()) -> 0 | AG94: =INDIRECT("'" & Mercados!$H$2 & "'!t" & ROW()) -> 0 | AH94: 0
Y95: =INDIRECT("'" & Mercados!$H$2 & "'!D" & ROW()) -> 0 | Z95: =INDIRECT("'" & Mercados!$H$2 & "'!E" & ROW()) -> 0 | AA95: =IF(AND(ISNUMBER(INDIRECT("'"&Mercados!$H$2&"'!F"&ROW())), ISNUMBER(INDIRECT("'"&Mercados!$H$2&"'!I"&ROW()))), INDIRECT("'"&Mercados!$H$2&"'!F"&ROW()) - INDIRECT("'"&Mercados!$H$2&"'!I"&ROW()), "") ->  | AB95: =IF(AND(ISNUMBER(INDIRECT("'"&Mercados!$H$2&"'!G"&ROW())), ISNUMBER(INDIRECT("'"&Mercados!$H$2&"'!J"&ROW()))), INDIRECT("'"&Mercados!$H$2&"'!G"&ROW()) - INDIRECT("'"&Mercados!$H$2&"'!J"&ROW()), "") ->  | AC95: D | AF95: =INDIRECT("'" & Mercados!$H$2 & "'!S" & ROW()) -> 0 | AG95: =INDIRECT("'" & Mercados!$H$2 & "'!t" & ROW()) -> 0 | AH95: 0
Y96: =INDIRECT("'" & Mercados!$H$2 & "'!D" & ROW()) -> 0 | Z96: =INDIRECT("'" & Mercados!$H$2 & "'!E" & ROW()) -> 0 | AA96: =IF(AND(ISNUMBER(INDIRECT("'"&Mercados!$H$2&"'!F"&ROW())), ISNUMBER(INDIRECT("'"&Mercados!$H$2&"'!I"&ROW()))), INDIRECT("'"&Mercados!$H$2&"'!F"&ROW()) - INDIRECT("'"&Mercados!$H$2&"'!I"&ROW()), "") ->  | AB96: =IF(AND(ISNUMBER(INDIRECT("'"&Mercados!$H$2&"'!G"&ROW())), ISNUMBER(INDIRECT("'"&Mercados!$H$2&"'!J"&ROW()))), INDIRECT("'"&Mercados!$H$2&"'!G"&ROW()) - INDIRECT("'"&Mercados!$H$2&"'!J"&ROW()), "") ->  | AC96: D | AF96: =INDIRECT("'" & Mercados!$H$2 & "'!S" & ROW()) -> 0 | AG96: =INDIRECT("'" & Mercados!$H$2 & "'!t" & ROW()) -> 0 | AH96: 0
Y97: =INDIRECT("'" & Mercados!$H$2 & "'!D" & ROW()) -> 0 | Z97: =INDIRECT("'" & Mercados!$H$2 & "'!E" & ROW()) -> 0 | AA97: =IF(AND(ISNUMBER(INDIRECT("'"&Mercados!$H$2&"'!F"&ROW())), ISNUMBER(INDIRECT("'"&Mercados!$H$2&"'!I"&ROW()))), INDIRECT("'"&Mercados!$H$2&"'!F"&ROW()) - INDIRECT("'"&Mercados!$H$2&"'!I"&ROW()), "") ->  | AB97: =IF(AND(ISNUMBER(INDIRECT("'"&Mercados!$H$2&"'!G"&ROW())), ISNUMBER(INDIRECT("'"&Mercados!$H$2&"'!J"&ROW()))), INDIRECT("'"&Mercados!$H$2&"'!G"&ROW()) - INDIRECT("'"&Mercados!$H$2&"'!J"&ROW()), "") ->  | AC97: D | AF97: =INDIRECT("'" & Mercados!$H$2 & "'!S" & ROW()) -> 0 | AG97: =INDIRECT("'" & Mercados!$H$2 & "'!t" & ROW()) -> 0 | AH97: 0
Y98: =INDIRECT("'" & Mercados!$H$2 & "'!D" & ROW()) -> 0 | Z98: =INDIRECT("'" & Mercados!$H$2 & "'!E" & ROW()) -> 0 | AA98: =IF(AND(ISNUMBER(INDIRECT("'"&Mercados!$H$2&"'!F"&ROW())), ISNUMBER(INDIRECT("'"&Mercados!$H$2&"'!I"&ROW()))), INDIRECT("'"&Mercados!$H$2&"'!F"&ROW()) - INDIRECT("'"&Mercados!$H$2&"'!I"&ROW()), "") ->  | AB98: =IF(AND(ISNUMBER(INDIRECT("'"&Mercados!$H$2&"'!G"&ROW())), ISNUMBER(INDIRECT("'"&Mercados!$H$2&"'!J"&ROW()))), INDIRECT("'"&Mercados!$H$2&"'!G"&ROW()) - INDIRECT("'"&Mercados!$H$2&"'!J"&ROW()), "") ->  | AC98: D | AF98: =INDIRECT("'" & Mercados!$H$2 & "'!S" & ROW()) -> 0 | AG98: =INDIRECT("'" & Mercados!$H$2 & "'!t" & ROW()) -> 0 | AH98: 0
Y99: =INDIRECT("'" & Mercados!$H$2 & "'!D" & ROW()) -> 0 | Z99: =INDIRECT("'" & Mercados!$H$2 & "'!E" & ROW()) -> 0 | AA99: =IF(AND(ISNUMBER(INDIRECT("'"&Mercados!$H$2&"'!F"&ROW())), ISNUMBER(INDIRECT("'"&Mercados!$H$2&"'!I"&ROW()))), INDIRECT("'"&Mercados!$H$2&"'!F"&ROW()) - INDIRECT("'"&Mercados!$H$2&"'!I"&ROW()), "") ->  | AB99: =IF(AND(ISNUMBER(INDIRECT("'"&Mercados!$H$2&"'!G"&ROW())), ISNUMBER(INDIRECT("'"&Mercados!$H$2&"'!J"&ROW()))), INDIRECT("'"&Mercados!$H$2&"'!G"&ROW()) - INDIRECT("'"&Mercados!$H$2&"'!J"&ROW()), "") ->  | AC99: D | AF99: =INDIRECT("'" & Mercados!$H$2 & "'!S" & ROW()) -> 0 | AG99: =INDIRECT("'" & Mercados!$H$2 & "'!t" & ROW()) -> 0 | AH99: 0
Y100: =INDIRECT("'" & Mercados!$H$2 & "'!D" & ROW()) -> 0 | Z100: =INDIRECT("'" & Mercados!$H$2 & "'!E" & ROW()) -> 0 | AA100: =IF(AND(ISNUMBER(INDIRECT("'"&Mercados!$H$2&"'!F"&ROW())), ISNUMBER(INDIRECT("'"&Mercados!$H$2&"'!I"&ROW()))), INDIRECT("'"&Mercados!$H$2&"'!F"&ROW()) - INDIRECT("'"&Mercados!$H$2&"'!I"&ROW()), "") ->  | AB100: =IF(AND(ISNUMBER(INDIRECT("'"&Mercados!$H$2&"'!G"&ROW())), ISNUMBER(INDIRECT("'"&Mercados!$H$2&"'!J"&ROW()))), INDIRECT("'"&Mercados!$H$2&"'!G"&ROW()) - INDIRECT("'"&Mercados!$H$2&"'!J"&ROW()), "") ->  | AC100: D | AF100: =INDIRECT("'" & Mercados!$H$2 & "'!S" & ROW()) -> 0 | AG100: =INDIRECT("'" & Mercados!$H$2 & "'!t" & ROW()) -> 0 | AH100: 0
Y101: =INDIRECT("'" & Mercados!$H$2 & "'!D" & ROW()) -> 0 | Z101: =INDIRECT("'" & Mercados!$H$2 & "'!E" & ROW()) -> 0 | AA101: =IF(AND(ISNUMBER(INDIRECT("'"&Mercados!$H$2&"'!F"&ROW())), ISNUMBER(INDIRECT("'"&Mercados!$H$2&"'!I"&ROW()))), INDIRECT("'"&Mercados!$H$2&"'!F"&ROW()) - INDIRECT("'"&Mercados!$H$2&"'!I"&ROW()), "") ->  | AB101: =IF(AND(ISNUMBER(INDIRECT("'"&Mercados!$H$2&"'!G"&ROW())), ISNUMBER(INDIRECT("'"&Mercados!$H$2&"'!J"&ROW()))), INDIRECT("'"&Mercados!$H$2&"'!G"&ROW()) - INDIRECT("'"&Mercados!$H$2&"'!J"&ROW()), "") ->  | AC101: D | AF101: =INDIRECT("'" & Mercados!$H$2 & "'!S" & ROW()) -> 0 | AG101: =INDIRECT("'" & Mercados!$H$2 & "'!t" & ROW()) -> 0 | AH101: 0
Y102: =INDIRECT("'" & Mercados!$H$2 & "'!D" & ROW()) -> 0 | Z102: =INDIRECT("'" & Mercados!$H$2 & "'!E" & ROW()) -> 0 | AA102: =IF(AND(ISNUMBER(INDIRECT("'"&Mercados!$H$2&"'!F"&ROW())), ISNUMBER(INDIRECT("'"&Mercados!$H$2&"'!I"&ROW()))), INDIRECT("'"&Mercados!$H$2&"'!F"&ROW()) - INDIRECT("'"&Mercados!$H$2&"'!I"&ROW()), "") ->  | AB102: =IF(AND(ISNUMBER(INDIRECT("'"&Mercados!$H$2&"'!G"&ROW())), ISNUMBER(INDIRECT("'"&Mercados!$H$2&"'!J"&ROW()))), INDIRECT("'"&Mercados!$H$2&"'!G"&ROW()) - INDIRECT("'"&Mercados!$H$2&"'!J"&ROW()), "") ->  | AC102: D | AF102: =INDIRECT("'" & Mercados!$H$2 & "'!S" & ROW()) -> 0 | AG102: =INDIRECT("'" & Mercados!$H$2 & "'!t" & ROW()) -> 0 | AH102: 0
Y103: =INDIRECT("'" & Mercados!$H$2 & "'!D" & ROW()) -> 0 | Z103: =INDIRECT("'" & Mercados!$H$2 & "'!E" & ROW()) -> 0 | AA103: =IF(AND(ISNUMBER(INDIRECT("'"&Mercados!$H$2&"'!F"&ROW())), ISNUMBER(INDIRECT("'"&Mercados!$H$2&"'!I"&ROW()))), INDIRECT("'"&Mercados!$H$2&"'!F"&ROW()) - INDIRECT("'"&Mercados!$H$2&"'!I"&ROW()), "") ->  | AB103: =IF(AND(ISNUMBER(INDIRECT("'"&Mercados!$H$2&"'!G"&ROW())), ISNUMBER(INDIRECT("'"&Mercados!$H$2&"'!J"&ROW()))), INDIRECT("'"&Mercados!$H$2&"'!G"&ROW()) - INDIRECT("'"&Mercados!$H$2&"'!J"&ROW()), "") ->  | AC103: D | AF103: =INDIRECT("'" & Mercados!$H$2 & "'!S" & ROW()) -> 0 | AG103: =INDIRECT("'" & Mercados!$H$2 & "'!t" & ROW()) -> 0 | AH103: 0
Y104: =INDIRECT("'" & Mercados!$H$2 & "'!D" & ROW()) -> 0 | Z104: =INDIRECT("'" & Mercados!$H$2 & "'!E" & ROW()) -> 0 | AA104: =IF(AND(ISNUMBER(INDIRECT("'"&Mercados!$H$2&"'!F"&ROW())), ISNUMBER(INDIRECT("'"&Mercados!$H$2&"'!I"&ROW()))), INDIRECT("'"&Mercados!$H$2&"'!F"&ROW()) - INDIRECT("'"&Mercados!$H$2&"'!I"&ROW()), "") ->  | AB104: =IF(AND(ISNUMBER(INDIRECT("'"&Mercados!$H$2&"'!G"&ROW())), ISNUMBER(INDIRECT("'"&Mercados!$H$2&"'!J"&ROW()))), INDIRECT("'"&Mercados!$H$2&"'!G"&ROW()) - INDIRECT("'"&Mercados!$H$2&"'!J"&ROW()), "") ->  | AC104: D | AF104: =INDIRECT("'" & Mercados!$H$2 & "'!S" & ROW()) -> 0 | AG104: =INDIRECT("'" & Mercados!$H$2 & "'!t" & ROW()) -> 0 | AH104: 0
Y105: =INDIRECT("'" & Mercados!$H$2 & "'!D" & ROW()) -> 0 | Z105: =INDIRECT("'" & Mercados!$H$2 & "'!E" & ROW()) -> 0 | AA105: =IF(AND(ISNUMBER(INDIRECT("'"&Mercados!$H$2&"'!F"&ROW())), ISNUMBER(INDIRECT("'"&Mercados!$H$2&"'!I"&ROW()))), INDIRECT("'"&Mercados!$H$2&"'!F"&ROW()) - INDIRECT("'"&Mercados!$H$2&"'!I"&ROW()), "") ->  | AB105: =IF(AND(ISNUMBER(INDIRECT("'"&Mercados!$H$2&"'!G"&ROW())), ISNUMBER(INDIRECT("'"&Mercados!$H$2&"'!J"&ROW()))), INDIRECT("'"&Mercados!$H$2&"'!G"&ROW()) - INDIRECT("'"&Mercados!$H$2&"'!J"&ROW()), "") ->  | AC105: D | AF105: =INDIRECT("'" & Mercados!$H$2 & "'!S" & ROW()) -> 0 | AG105: =INDIRECT("'" & Mercados!$H$2 & "'!t" & ROW()) -> 0 | AH105: 0
Y106: =INDIRECT("'" & Mercados!$H$2 & "'!D" & ROW()) -> 0 | Z106: =INDIRECT("'" & Mercados!$H$2 & "'!E" & ROW()) -> 0 | AA106: =IF(AND(ISNUMBER(INDIRECT("'"&Mercados!$H$2&"'!F"&ROW())), ISNUMBER(INDIRECT("'"&Mercados!$H$2&"'!I"&ROW()))), INDIRECT("'"&Mercados!$H$2&"'!F"&ROW()) - INDIRECT("'"&Mercados!$H$2&"'!I"&ROW()), "") ->  | AB106: =IF(AND(ISNUMBER(INDIRECT("'"&Mercados!$H$2&"'!G"&ROW())), ISNUMBER(INDIRECT("'"&Mercados!$H$2&"'!J"&ROW()))), INDIRECT("'"&Mercados!$H$2&"'!G"&ROW()) - INDIRECT("'"&Mercados!$H$2&"'!J"&ROW()), "") ->  | AC106: D | AF106: =INDIRECT("'" & Mercados!$H$2 & "'!S" & ROW()) -> 0 | AG106: =INDIRECT("'" & Mercados!$H$2 & "'!t" & ROW()) -> 0 | AH106: 0
Y107: =INDIRECT("'" & Mercados!$H$2 & "'!D" & ROW()) -> 0 | Z107: =INDIRECT("'" & Mercados!$H$2 & "'!E" & ROW()) -> 0 | AA107: =IF(AND(ISNUMBER(INDIRECT("'"&Mercados!$H$2&"'!F"&ROW())), ISNUMBER(INDIRECT("'"&Mercados!$H$2&"'!I"&ROW()))), INDIRECT("'"&Mercados!$H$2&"'!F"&ROW()) - INDIRECT("'"&Mercados!$H$2&"'!I"&ROW()), "") ->  | AB107: =IF(AND(ISNUMBER(INDIRECT("'"&Mercados!$H$2&"'!G"&ROW())), ISNUMBER(INDIRECT("'"&Mercados!$H$2&"'!J"&ROW()))), INDIRECT("'"&Mercados!$H$2&"'!G"&ROW()) - INDIRECT("'"&Mercados!$H$2&"'!J"&ROW()), "") ->  | AC107: D | AF107: =INDIRECT("'" & Mercados!$H$2 & "'!S" & ROW()) -> 0 | AG107: =INDIRECT("'" & Mercados!$H$2 & "'!t" & ROW()) -> 0 | AH107: 0
Y108: =INDIRECT("'" & Mercados!$H$2 & "'!D" & ROW()) -> 0 | Z108: =INDIRECT("'" & Mercados!$H$2 & "'!E" & ROW()) -> 0 | AA108: =IF(AND(ISNUMBER(INDIRECT("'"&Mercados!$H$2&"'!F"&ROW())), ISNUMBER(INDIRECT("'"&Mercados!$H$2&"'!I"&ROW()))), INDIRECT("'"&Mercados!$H$2&"'!F"&ROW()) - INDIRECT("'"&Mercados!$H$2&"'!I"&ROW()), "") ->  | AB108: =IF(AND(ISNUMBER(INDIRECT("'"&Mercados!$H$2&"'!G"&ROW())), ISNUMBER(INDIRECT("'"&Mercados!$H$2&"'!J"&ROW()))), INDIRECT("'"&Mercados!$H$2&"'!G"&ROW()) - INDIRECT("'"&Mercados!$H$2&"'!J"&ROW()), "") ->  | AC108: D | AF108: =INDIRECT("'" & Mercados!$H$2 & "'!S" & ROW()) -> 0 | AG108: =INDIRECT("'" & Mercados!$H$2 & "'!t" & ROW()) -> 0 | AH108: 0
Y109: =INDIRECT("'" & Mercados!$H$2 & "'!D" & ROW()) -> 0 | Z109: =INDIRECT("'" & Mercados!$H$2 & "'!E" & ROW()) -> 0 | AA109: =IF(AND(ISNUMBER(INDIRECT("'"&Mercados!$H$2&"'!F"&ROW())), ISNUMBER(INDIRECT("'"&Mercados!$H$2&"'!I"&ROW()))), INDIRECT("'"&Mercados!$H$2&"'!F"&ROW()) - INDIRECT("'"&Mercados!$H$2&"'!I"&ROW()), "") ->  | AB109: =IF(AND(ISNUMBER(INDIRECT("'"&Mercados!$H$2&"'!G"&ROW())), ISNUMBER(INDIRECT("'"&Mercados!$H$2&"'!J"&ROW()))), INDIRECT("'"&Mercados!$H$2&"'!G"&ROW()) - INDIRECT("'"&Mercados!$H$2&"'!J"&ROW()), "") ->  | AC109: D | AF109: =INDIRECT("'" & Mercados!$H$2 & "'!S" & ROW()) -> 0 | AG109: =INDIRECT("'" & Mercados!$H$2 & "'!t" & ROW()) -> 0 | AH109: 0
Y110: =INDIRECT("'" & Mercados!$H$2 & "'!D" & ROW()) -> 0 | Z110: =INDIRECT("'" & Mercados!$H$2 & "'!E" & ROW()) -> 0 | AA110: =IF(AND(ISNUMBER(INDIRECT("'"&Mercados!$H$2&"'!F"&ROW())), ISNUMBER(INDIRECT("'"&Mercados!$H$2&"'!I"&ROW()))), INDIRECT("'"&Mercados!$H$2&"'!F"&ROW()) - INDIRECT("'"&Mercados!$H$2&"'!I"&ROW()), "") ->  | AB110: =IF(AND(ISNUMBER(INDIRECT("'"&Mercados!$H$2&"'!G"&ROW())), ISNUMBER(INDIRECT("'"&Mercados!$H$2&"'!J"&ROW()))), INDIRECT("'"&Mercados!$H$2&"'!G"&ROW()) - INDIRECT("'"&Mercados!$H$2&"'!J"&ROW()), "") ->  | AC110: D | AF110: =INDIRECT("'" & Mercados!$H$2 & "'!S" & ROW()) -> 0 | AG110: =INDIRECT("'" & Mercados!$H$2 & "'!t" & ROW()) -> 0 | AH110: 0
Y111: =INDIRECT("'" & Mercados!$H$2 & "'!D" & ROW()) -> 0 | Z111: =INDIRECT("'" & Mercados!$H$2 & "'!E" & ROW()) -> 0 | AA111: =IF(AND(ISNUMBER(INDIRECT("'"&Mercados!$H$2&"'!F"&ROW())), ISNUMBER(INDIRECT("'"&Mercados!$H$2&"'!I"&ROW()))), INDIRECT("'"&Mercados!$H$2&"'!F"&ROW()) - INDIRECT("'"&Mercados!$H$2&"'!I"&ROW()), "") ->  | AB111: =IF(AND(ISNUMBER(INDIRECT("'"&Mercados!$H$2&"'!G"&ROW())), ISNUMBER(INDIRECT("'"&Mercados!$H$2&"'!J"&ROW()))), INDIRECT("'"&Mercados!$H$2&"'!G"&ROW()) - INDIRECT("'"&Mercados!$H$2&"'!J"&ROW()), "") ->  | AC111: D | AF111: =INDIRECT("'" & Mercados!$H$2 & "'!S" & ROW()) -> 0 | AG111: =INDIRECT("'" & Mercados!$H$2 & "'!t" & ROW()) -> 0 | AH111: 0
Y112: =INDIRECT("'" & Mercados!$H$2 & "'!D" & ROW()) -> 0 | Z112: =INDIRECT("'" & Mercados!$H$2 & "'!E" & ROW()) -> 0 | AA112: =IF(AND(ISNUMBER(INDIRECT("'"&Mercados!$H$2&"'!F"&ROW())), ISNUMBER(INDIRECT("'"&Mercados!$H$2&"'!I"&ROW()))), INDIRECT("'"&Mercados!$H$2&"'!F"&ROW()) - INDIRECT("'"&Mercados!$H$2&"'!I"&ROW()), "") ->  | AB112: =IF(AND(ISNUMBER(INDIRECT("'"&Mercados!$H$2&"'!G"&ROW())), ISNUMBER(INDIRECT("'"&Mercados!$H$2&"'!J"&ROW()))), INDIRECT("'"&Mercados!$H$2&"'!G"&ROW()) - INDIRECT("'"&Mercados!$H$2&"'!J"&ROW()), "") ->  | AC112: D | AF112: =INDIRECT("'" & Mercados!$H$2 & "'!S" & ROW()) -> 0 | AG112: =INDIRECT("'" & Mercados!$H$2 & "'!t" & ROW()) -> 0 | AH112: 0
Y113: =INDIRECT("'" & Mercados!$H$2 & "'!D" & ROW()) -> 0 | Z113: =INDIRECT("'" & Mercados!$H$2 & "'!E" & ROW()) -> 0 | AA113: =IF(AND(ISNUMBER(INDIRECT("'"&Mercados!$H$2&"'!F"&ROW())), ISNUMBER(INDIRECT("'"&Mercados!$H$2&"'!I"&ROW()))), INDIRECT("'"&Mercados!$H$2&"'!F"&ROW()) - INDIRECT("'"&Mercados!$H$2&"'!I"&ROW()), "") ->  | AB113: =IF(AND(ISNUMBER(INDIRECT("'"&Mercados!$H$2&"'!G"&ROW())), ISNUMBER(INDIRECT("'"&Mercados!$H$2&"'!J"&ROW()))), INDIRECT("'"&Mercados!$H$2&"'!G"&ROW()) - INDIRECT("'"&Mercados!$H$2&"'!J"&ROW()), "") ->  | AC113: D | AF113: =INDIRECT("'" & Mercados!$H$2 & "'!S" & ROW()) -> 0 | AG113: =INDIRECT("'" & Mercados!$H$2 & "'!t" & ROW()) -> 0 | AH113: 0
Y114: =INDIRECT("'" & Mercados!$H$2 & "'!D" & ROW()) -> 0 | Z114: =INDIRECT("'" & Mercados!$H$2 & "'!E" & ROW()) -> 0 | AA114: =IF(AND(ISNUMBER(INDIRECT("'"&Mercados!$H$2&"'!F"&ROW())), ISNUMBER(INDIRECT("'"&Mercados!$H$2&"'!I"&ROW()))), INDIRECT("'"&Mercados!$H$2&"'!F"&ROW()) - INDIRECT("'"&Mercados!$H$2&"'!I"&ROW()), "") ->  | AB114: =IF(AND(ISNUMBER(INDIRECT("'"&Mercados!$H$2&"'!G"&ROW())), ISNUMBER(INDIRECT("'"&Mercados!$H$2&"'!J"&ROW()))), INDIRECT("'"&Mercados!$H$2&"'!G"&ROW()) - INDIRECT("'"&Mercados!$H$2&"'!J"&ROW()), "") ->  | AC114: D | AF114: =INDIRECT("'" & Mercados!$H$2 & "'!S" & ROW()) -> 0 | AG114: =INDIRECT("'" & Mercados!$H$2 & "'!t" & ROW()) -> 0 | AH114: 0
Y115: =INDIRECT("'" & Mercados!$H$2 & "'!D" & ROW()) -> 0 | Z115: =INDIRECT("'" & Mercados!$H$2 & "'!E" & ROW()) -> 0 | AA115: =IF(AND(ISNUMBER(INDIRECT("'"&Mercados!$H$2&"'!F"&ROW())), ISNUMBER(INDIRECT("'"&Mercados!$H$2&"'!I"&ROW()))), INDIRECT("'"&Mercados!$H$2&"'!F"&ROW()) - INDIRECT("'"&Mercados!$H$2&"'!I"&ROW()), "") ->  | AB115: =IF(AND(ISNUMBER(INDIRECT("'"&Mercados!$H$2&"'!G"&ROW())), ISNUMBER(INDIRECT("'"&Mercados!$H$2&"'!J"&ROW()))), INDIRECT("'"&Mercados!$H$2&"'!G"&ROW()) - INDIRECT("'"&Mercados!$H$2&"'!J"&ROW()), "") ->  | AC115: D | AF115: =INDIRECT("'" & Mercados!$H$2 & "'!S" & ROW()) -> 0 | AG115: =INDIRECT("'" & Mercados!$H$2 & "'!t" & ROW()) -> 0 | AH115: 0
Y116: =INDIRECT("'" & Mercados!$H$2 & "'!D" & ROW()) -> 0 | Z116: =INDIRECT("'" & Mercados!$H$2 & "'!E" & ROW()) -> 0 | AA116: =IF(AND(ISNUMBER(INDIRECT("'"&Mercados!$H$2&"'!F"&ROW())), ISNUMBER(INDIRECT("'"&Mercados!$H$2&"'!I"&ROW()))), INDIRECT("'"&Mercados!$H$2&"'!F"&ROW()) - INDIRECT("'"&Mercados!$H$2&"'!I"&ROW()), "") ->  | AB116: =IF(AND(ISNUMBER(INDIRECT("'"&Mercados!$H$2&"'!G"&ROW())), ISNUMBER(INDIRECT("'"&Mercados!$H$2&"'!J"&ROW()))), INDIRECT("'"&Mercados!$H$2&"'!G"&ROW()) - INDIRECT("'"&Mercados!$H$2&"'!J"&ROW()), "") ->  | AC116: D | AF116: =INDIRECT("'" & Mercados!$H$2 & "'!S" & ROW()) -> 0 | AG116: =INDIRECT("'" & Mercados!$H$2 & "'!t" & ROW()) -> 0 | AH116: 0
Y117: =INDIRECT("'" & Mercados!$H$2 & "'!D" & ROW()) -> 0 | Z117: =INDIRECT("'" & Mercados!$H$2 & "'!E" & ROW()) -> 0 | AA117: =IF(AND(ISNUMBER(INDIRECT("'"&Mercados!$H$2&"'!F"&ROW())), ISNUMBER(INDIRECT("'"&Mercados!$H$2&"'!I"&ROW()))), INDIRECT("'"&Mercados!$H$2&"'!F"&ROW()) - INDIRECT("'"&Mercados!$H$2&"'!I"&ROW()), "") ->  | AB117: =IF(AND(ISNUMBER(INDIRECT("'"&Mercados!$H$2&"'!G"&ROW())), ISNUMBER(INDIRECT("'"&Mercados!$H$2&"'!J"&ROW()))), INDIRECT("'"&Mercados!$H$2&"'!G"&ROW()) - INDIRECT("'"&Mercados!$H$2&"'!J"&ROW()), "") ->  | AC117: D | AF117: =INDIRECT("'" & Mercados!$H$2 & "'!S" & ROW()) -> 0 | AG117: =INDIRECT("'" & Mercados!$H$2 & "'!t" & ROW()) -> 0 | AH117: 0
Y118: =INDIRECT("'" & Mercados!$H$2 & "'!D" & ROW()) -> 0 | Z118: =INDIRECT("'" & Mercados!$H$2 & "'!E" & ROW()) -> 0 | AA118: =IF(AND(ISNUMBER(INDIRECT("'"&Mercados!$H$2&"'!F"&ROW())), ISNUMBER(INDIRECT("'"&Mercados!$H$2&"'!I"&ROW()))), INDIRECT("'"&Mercados!$H$2&"'!F"&ROW()) - INDIRECT("'"&Mercados!$H$2&"'!I"&ROW()), "") ->  | AB118: =IF(AND(ISNUMBER(INDIRECT("'"&Mercados!$H$2&"'!G"&ROW())), ISNUMBER(INDIRECT("'"&Mercados!$H$2&"'!J"&ROW()))), INDIRECT("'"&Mercados!$H$2&"'!G"&ROW()) - INDIRECT("'"&Mercados!$H$2&"'!J"&ROW()), "") ->  | AC118: D | AF118: =INDIRECT("'" & Mercados!$H$2 & "'!S" & ROW()) -> 0 | AG118: =INDIRECT("'" & Mercados!$H$2 & "'!t" & ROW()) -> 0 | AH118: 0
Y119: =INDIRECT("'" & Mercados!$H$2 & "'!D" & ROW()) -> 0 | Z119: =INDIRECT("'" & Mercados!$H$2 & "'!E" & ROW()) -> 0 | AA119: =IF(AND(ISNUMBER(INDIRECT("'"&Mercados!$H$2&"'!F"&ROW())), ISNUMBER(INDIRECT("'"&Mercados!$H$2&"'!I"&ROW()))), INDIRECT("'"&Mercados!$H$2&"'!F"&ROW()) - INDIRECT("'"&Mercados!$H$2&"'!I"&ROW()), "") ->  | AB119: =IF(AND(ISNUMBER(INDIRECT("'"&Mercados!$H$2&"'!G"&ROW())), ISNUMBER(INDIRECT("'"&Mercados!$H$2&"'!J"&ROW()))), INDIRECT("'"&Mercados!$H$2&"'!G"&ROW()) - INDIRECT("'"&Mercados!$H$2&"'!J"&ROW()), "") ->  | AC119: D | AF119: =INDIRECT("'" & Mercados!$H$2 & "'!S" & ROW()) -> 0 | AG119: =INDIRECT("'" & Mercados!$H$2 & "'!t" & ROW()) -> 0 | AH119: 0
Y120: =INDIRECT("'" & Mercados!$H$2 & "'!D" & ROW()) -> 0 | Z120: =INDIRECT("'" & Mercados!$H$2 & "'!E" & ROW()) -> 0 | AA120: =IF(AND(ISNUMBER(INDIRECT("'"&Mercados!$H$2&"'!F"&ROW())), ISNUMBER(INDIRECT("'"&Mercados!$H$2&"'!I"&ROW()))), INDIRECT("'"&Mercados!$H$2&"'!F"&ROW()) - INDIRECT("'"&Mercados!$H$2&"'!I"&ROW()), "") ->  | AB120: =IF(AND(ISNUMBER(INDIRECT("'"&Mercados!$H$2&"'!G"&ROW())), ISNUMBER(INDIRECT("'"&Mercados!$H$2&"'!J"&ROW()))), INDIRECT("'"&Mercados!$H$2&"'!G"&ROW()) - INDIRECT("'"&Mercados!$H$2&"'!J"&ROW()), "") ->  | AC120: D | AF120: =INDIRECT("'" & Mercados!$H$2 & "'!S" & ROW()) -> 0 | AG120: =INDIRECT("'" & Mercados!$H$2 & "'!t" & ROW()) -> 0 | AH120: 0
Y121: =INDIRECT("'" & Mercados!$H$2 & "'!D" & ROW()) -> 0 | Z121: =INDIRECT("'" & Mercados!$H$2 & "'!E" & ROW()) -> 0 | AA121: =IF(AND(ISNUMBER(INDIRECT("'"&Mercados!$H$2&"'!F"&ROW())), ISNUMBER(INDIRECT("'"&Mercados!$H$2&"'!I"&ROW()))), INDIRECT("'"&Mercados!$H$2&"'!F"&ROW()) - INDIRECT("'"&Mercados!$H$2&"'!I"&ROW()), "") ->  | AB121: =IF(AND(ISNUMBER(INDIRECT("'"&Mercados!$H$2&"'!G"&ROW())), ISNUMBER(INDIRECT("'"&Mercados!$H$2&"'!J"&ROW()))), INDIRECT("'"&Mercados!$H$2&"'!G"&ROW()) - INDIRECT("'"&Mercados!$H$2&"'!J"&ROW()), "") ->  | AC121: D | AF121: =INDIRECT("'" & Mercados!$H$2 & "'!S" & ROW()) -> 0 | AG121: =INDIRECT("'" & Mercados!$H$2 & "'!t" & ROW()) -> 0 | AH121: 0
Y122: =INDIRECT("'" & Mercados!$H$2 & "'!D" & ROW()) -> 0 | Z122: =INDIRECT("'" & Mercados!$H$2 & "'!E" & ROW()) -> 0 | AA122: =IF(AND(ISNUMBER(INDIRECT("'"&Mercados!$H$2&"'!F"&ROW())), ISNUMBER(INDIRECT("'"&Mercados!$H$2&"'!I"&ROW()))), INDIRECT("'"&Mercados!$H$2&"'!F"&ROW()) - INDIRECT("'"&Mercados!$H$2&"'!I"&ROW()), "") ->  | AB122: =IF(AND(ISNUMBER(INDIRECT("'"&Mercados!$H$2&"'!G"&ROW())), ISNUMBER(INDIRECT("'"&Mercados!$H$2&"'!J"&ROW()))), INDIRECT("'"&Mercados!$H$2&"'!G"&ROW()) - INDIRECT("'"&Mercados!$H$2&"'!J"&ROW()), "") ->  | AC122: D | AF122: =INDIRECT("'" & Mercados!$H$2 & "'!S" & ROW()) -> 0 | AG122: =INDIRECT("'" & Mercados!$H$2 & "'!t" & ROW()) -> 0 | AH122: 0
Y123: =INDIRECT("'" & Mercados!$H$2 & "'!D" & ROW()) -> 0 | Z123: =INDIRECT("'" & Mercados!$H$2 & "'!E" & ROW()) -> 0 | AA123: =IF(AND(ISNUMBER(INDIRECT("'"&Mercados!$H$2&"'!F"&ROW())), ISNUMBER(INDIRECT("'"&Mercados!$H$2&"'!I"&ROW()))), INDIRECT("'"&Mercados!$H$2&"'!F"&ROW()) - INDIRECT("'"&Mercados!$H$2&"'!I"&ROW()), "") ->  | AB123: =IF(AND(ISNUMBER(INDIRECT("'"&Mercados!$H$2&"'!G"&ROW())), ISNUMBER(INDIRECT("'"&Mercados!$H$2&"'!J"&ROW()))), INDIRECT("'"&Mercados!$H$2&"'!G"&ROW()) - INDIRECT("'"&Mercados!$H$2&"'!J"&ROW()), "") ->  | AC123: D | AF123: =INDIRECT("'" & Mercados!$H$2 & "'!S" & ROW()) -> 0 | AG123: =INDIRECT("'" & Mercados!$H$2 & "'!t" & ROW()) -> 0 | AH123: 0
Y124: =INDIRECT("'" & Mercados!$H$2 & "'!D" & ROW()) -> 0 | Z124: =INDIRECT("'" & Mercados!$H$2 & "'!E" & ROW()) -> 0 | AA124: =IF(AND(ISNUMBER(INDIRECT("'"&Mercados!$H$2&"'!F"&ROW())), ISNUMBER(INDIRECT("'"&Mercados!$H$2&"'!I"&ROW()))), INDIRECT("'"&Mercados!$H$2&"'!F"&ROW()) - INDIRECT("'"&Mercados!$H$2&"'!I"&ROW()), "") ->  | AB124: =IF(AND(ISNUMBER(INDIRECT("'"&Mercados!$H$2&"'!G"&ROW())), ISNUMBER(INDIRECT("'"&Mercados!$H$2&"'!J"&ROW()))), INDIRECT("'"&Mercados!$H$2&"'!G"&ROW()) - INDIRECT("'"&Mercados!$H$2&"'!J"&ROW()), "") ->  | AC124: D | AF124: =INDIRECT("'" & Mercados!$H$2 & "'!S" & ROW()) -> 0 | AG124: =INDIRECT("'" & Mercados!$H$2 & "'!t" & ROW()) -> 0 | AH124: 0
Y125: =INDIRECT("'" & Mercados!$H$2 & "'!D" & ROW()) -> 0 | Z125: =INDIRECT("'" & Mercados!$H$2 & "'!E" & ROW()) -> 0 | AA125: =IF(AND(ISNUMBER(INDIRECT("'"&Mercados!$H$2&"'!F"&ROW())), ISNUMBER(INDIRECT("'"&Mercados!$H$2&"'!I"&ROW()))), INDIRECT("'"&Mercados!$H$2&"'!F"&ROW()) - INDIRECT("'"&Mercados!$H$2&"'!I"&ROW()), "") ->  | AB125: =IF(AND(ISNUMBER(INDIRECT("'"&Mercados!$H$2&"'!G"&ROW())), ISNUMBER(INDIRECT("'"&Mercados!$H$2&"'!J"&ROW()))), INDIRECT("'"&Mercados!$H$2&"'!G"&ROW()) - INDIRECT("'"&Mercados!$H$2&"'!J"&ROW()), "") ->  | AC125: D | AF125: =INDIRECT("'" & Mercados!$H$2 & "'!S" & ROW()) -> 0 | AG125: =INDIRECT("'" & Mercados!$H$2 & "'!t" & ROW()) -> 0 | AH125: 0
Y126: =INDIRECT("'" & Mercados!$H$2 & "'!D" & ROW()) -> 0 | Z126: =INDIRECT("'" & Mercados!$H$2 & "'!E" & ROW()) -> 0 | AA126: =IF(AND(ISNUMBER(INDIRECT("'"&Mercados!$H$2&"'!F"&ROW())), ISNUMBER(INDIRECT("'"&Mercados!$H$2&"'!I"&ROW()))), INDIRECT("'"&Mercados!$H$2&"'!F"&ROW()) - INDIRECT("'"&Mercados!$H$2&"'!I"&ROW()), "") ->  | AB126: =IF(AND(ISNUMBER(INDIRECT("'"&Mercados!$H$2&"'!G"&ROW())), ISNUMBER(INDIRECT("'"&Mercados!$H$2&"'!J"&ROW()))), INDIRECT("'"&Mercados!$H$2&"'!G"&ROW()) - INDIRECT("'"&Mercados!$H$2&"'!J"&ROW()), "") ->  | AC126: D | AF126: =INDIRECT("'" & Mercados!$H$2 & "'!S" & ROW()) -> 0 | AG126: =INDIRECT("'" & Mercados!$H$2 & "'!t" & ROW()) -> 0 | AH126: 0
Y127: =INDIRECT("'" & Mercados!$H$2 & "'!D" & ROW()) -> 0 | Z127: =INDIRECT("'" & Mercados!$H$2 & "'!E" & ROW()) -> 0 | AA127: =IF(AND(ISNUMBER(INDIRECT("'"&Mercados!$H$2&"'!F"&ROW())), ISNUMBER(INDIRECT("'"&Mercados!$H$2&"'!I"&ROW()))), INDIRECT("'"&Mercados!$H$2&"'!F"&ROW()) - INDIRECT("'"&Mercados!$H$2&"'!I"&ROW()), "") ->  | AB127: =IF(AND(ISNUMBER(INDIRECT("'"&Mercados!$H$2&"'!G"&ROW())), ISNUMBER(INDIRECT("'"&Mercados!$H$2&"'!J"&ROW()))), INDIRECT("'"&Mercados!$H$2&"'!G"&ROW()) - INDIRECT("'"&Mercados!$H$2&"'!J"&ROW()), "") ->  | AC127: D | AF127: =INDIRECT("'" & Mercados!$H$2 & "'!S" & ROW()) -> 0 | AG127: =INDIRECT("'" & Mercados!$H$2 & "'!t" & ROW()) -> 0 | AH127: 0
Y128: =INDIRECT("'" & Mercados!$H$2 & "'!D" & ROW()) -> 0 | Z128: =INDIRECT("'" & Mercados!$H$2 & "'!E" & ROW()) -> 0 | AA128: =IF(AND(ISNUMBER(INDIRECT("'"&Mercados!$H$2&"'!F"&ROW())), ISNUMBER(INDIRECT("'"&Mercados!$H$2&"'!I"&ROW()))), INDIRECT("'"&Mercados!$H$2&"'!F"&ROW()) - INDIRECT("'"&Mercados!$H$2&"'!I"&ROW()), "") ->  | AB128: =IF(AND(ISNUMBER(INDIRECT("'"&Mercados!$H$2&"'!G"&ROW())), ISNUMBER(INDIRECT("'"&Mercados!$H$2&"'!J"&ROW()))), INDIRECT("'"&Mercados!$H$2&"'!G"&ROW()) - INDIRECT("'"&Mercados!$H$2&"'!J"&ROW()), "") ->  | AC128: D | AF128: =INDIRECT("'" & Mercados!$H$2 & "'!S" & ROW()) -> 0 | AG128: =INDIRECT("'" & Mercados!$H$2 & "'!t" & ROW()) -> 0 | AH128: 0
Y129: =INDIRECT("'" & Mercados!$H$2 & "'!D" & ROW()) -> 0 | Z129: =INDIRECT("'" & Mercados!$H$2 & "'!E" & ROW()) -> 0 | AA129: =IF(AND(ISNUMBER(INDIRECT("'"&Mercados!$H$2&"'!F"&ROW())), ISNUMBER(INDIRECT("'"&Mercados!$H$2&"'!I"&ROW()))), INDIRECT("'"&Mercados!$H$2&"'!F"&ROW()) - INDIRECT("'"&Mercados!$H$2&"'!I"&ROW()), "") ->  | AB129: =IF(AND(ISNUMBER(INDIRECT("'"&Mercados!$H$2&"'!G"&ROW())), ISNUMBER(INDIRECT("'"&Mercados!$H$2&"'!J"&ROW()))), INDIRECT("'"&Mercados!$H$2&"'!G"&ROW()) - INDIRECT("'"&Mercados!$H$2&"'!J"&ROW()), "") ->  | AC129: D | AF129: =INDIRECT("'" & Mercados!$H$2 & "'!S" & ROW()) -> 0 | AG129: =INDIRECT("'" & Mercados!$H$2 & "'!t" & ROW()) -> 0 | AH129: 0
Y130: =INDIRECT("'" & Mercados!$H$2 & "'!D" & ROW()) -> 0 | Z130: =INDIRECT("'" & Mercados!$H$2 & "'!E" & ROW()) -> 0 | AA130: =IF(AND(ISNUMBER(INDIRECT("'"&Mercados!$H$2&"'!F"&ROW())), ISNUMBER(INDIRECT("'"&Mercados!$H$2&"'!I"&ROW()))), INDIRECT("'"&Mercados!$H$2&"'!F"&ROW()) - INDIRECT("'"&Mercados!$H$2&"'!I"&ROW()), "") ->  | AB130: =IF(AND(ISNUMBER(INDIRECT("'"&Mercados!$H$2&"'!G"&ROW())), ISNUMBER(INDIRECT("'"&Mercados!$H$2&"'!J"&ROW()))), INDIRECT("'"&Mercados!$H$2&"'!G"&ROW()) - INDIRECT("'"&Mercados!$H$2&"'!J"&ROW()), "") ->  | AC130: D | AF130: =INDIRECT("'" & Mercados!$H$2 & "'!S" & ROW()) -> 0 | AG130: =INDIRECT("'" & Mercados!$H$2 & "'!t" & ROW()) -> 0 | AH130: 0
Y131: =INDIRECT("'" & Mercados!$H$2 & "'!D" & ROW()) -> 0 | Z131: =INDIRECT("'" & Mercados!$H$2 & "'!E" & ROW()) -> 0 | AA131: =IF(AND(ISNUMBER(INDIRECT("'"&Mercados!$H$2&"'!F"&ROW())), ISNUMBER(INDIRECT("'"&Mercados!$H$2&"'!I"&ROW()))), INDIRECT("'"&Mercados!$H$2&"'!F"&ROW()) - INDIRECT("'"&Mercados!$H$2&"'!I"&ROW()), "") ->  | AB131: =IF(AND(ISNUMBER(INDIRECT("'"&Mercados!$H$2&"'!G"&ROW())), ISNUMBER(INDIRECT("'"&Mercados!$H$2&"'!J"&ROW()))), INDIRECT("'"&Mercados!$H$2&"'!G"&ROW()) - INDIRECT("'"&Mercados!$H$2&"'!J"&ROW()), "") ->  | AC131: =IF(OR(ISBLANK(AA131), ISBLANK(AB131)), "", IF(AA131>AB131, "H", IF(AA131<AB131, "A", "D"))) -> D | AF131: =INDIRECT("'" & Mercados!$H$2 & "'!S" & ROW()) -> 0 | AG131: =INDIRECT("'" & Mercados!$H$2 & "'!t" & ROW()) -> 0 | AH131: =SUM(AF131:AG131) -> 0
Y132: =INDIRECT("'" & Mercados!$H$2 & "'!D" & ROW()) -> 0 | Z132: =INDIRECT("'" & Mercados!$H$2 & "'!E" & ROW()) -> 0 | AA132: =IF(AND(ISNUMBER(INDIRECT("'"&Mercados!$H$2&"'!F"&ROW())), ISNUMBER(INDIRECT("'"&Mercados!$H$2&"'!I"&ROW()))), INDIRECT("'"&Mercados!$H$2&"'!F"&ROW()) - INDIRECT("'"&Mercados!$H$2&"'!I"&ROW()), "") ->  | AB132: =IF(AND(ISNUMBER(INDIRECT("'"&Mercados!$H$2&"'!G"&ROW())), ISNUMBER(INDIRECT("'"&Mercados!$H$2&"'!J"&ROW()))), INDIRECT("'"&Mercados!$H$2&"'!G"&ROW()) - INDIRECT("'"&Mercados!$H$2&"'!J"&ROW()), "") ->  | AC132: D | AF132: =INDIRECT("'" & Mercados!$H$2 & "'!S" & ROW()) -> 0 | AG132: =INDIRECT("'" & Mercados!$H$2 & "'!t" & ROW()) -> 0 | AH132: 0
Y133: =INDIRECT("'" & Mercados!$H$2 & "'!D" & ROW()) -> 0 | Z133: =INDIRECT("'" & Mercados!$H$2 & "'!E" & ROW()) -> 0 | AA133: =IF(AND(ISNUMBER(INDIRECT("'"&Mercados!$H$2&"'!F"&ROW())), ISNUMBER(INDIRECT("'"&Mercados!$H$2&"'!I"&ROW()))), INDIRECT("'"&Mercados!$H$2&"'!F"&ROW()) - INDIRECT("'"&Mercados!$H$2&"'!I"&ROW()), "") ->  | AB133: =IF(AND(ISNUMBER(INDIRECT("'"&Mercados!$H$2&"'!G"&ROW())), ISNUMBER(INDIRECT("'"&Mercados!$H$2&"'!J"&ROW()))), INDIRECT("'"&Mercados!$H$2&"'!G"&ROW()) - INDIRECT("'"&Mercados!$H$2&"'!J"&ROW()), "") ->  | AC133: D | AF133: =INDIRECT("'" & Mercados!$H$2 & "'!S" & ROW()) -> 0 | AG133: =INDIRECT("'" & Mercados!$H$2 & "'!t" & ROW()) -> 0 | AH133: 0
Y134: =INDIRECT("'" & Mercados!$H$2 & "'!D" & ROW()) -> 0 | Z134: =INDIRECT("'" & Mercados!$H$2 & "'!E" & ROW()) -> 0 | AA134: =IF(AND(ISNUMBER(INDIRECT("'"&Mercados!$H$2&"'!F"&ROW())), ISNUMBER(INDIRECT("'"&Mercados!$H$2&"'!I"&ROW()))), INDIRECT("'"&Mercados!$H$2&"'!F"&ROW()) - INDIRECT("'"&Mercados!$H$2&"'!I"&ROW()), "") ->  | AB134: =IF(AND(ISNUMBER(INDIRECT("'"&Mercados!$H$2&"'!G"&ROW())), ISNUMBER(INDIRECT("'"&Mercados!$H$2&"'!J"&ROW()))), INDIRECT("'"&Mercados!$H$2&"'!G"&ROW()) - INDIRECT("'"&Mercados!$H$2&"'!J"&ROW()), "") ->  | AC134: D | AF134: =INDIRECT("'" & Mercados!$H$2 & "'!S" & ROW()) -> 0 | AG134: =INDIRECT("'" & Mercados!$H$2 & "'!t" & ROW()) -> 0 | AH134: 0
Y135: =INDIRECT("'" & Mercados!$H$2 & "'!D" & ROW()) -> 0 | Z135: =INDIRECT("'" & Mercados!$H$2 & "'!E" & ROW()) -> 0 | AA135: =IF(AND(ISNUMBER(INDIRECT("'"&Mercados!$H$2&"'!F"&ROW())), ISNUMBER(INDIRECT("'"&Mercados!$H$2&"'!I"&ROW()))), INDIRECT("'"&Mercados!$H$2&"'!F"&ROW()) - INDIRECT("'"&Mercados!$H$2&"'!I"&ROW()), "") ->  | AB135: =IF(AND(ISNUMBER(INDIRECT("'"&Mercados!$H$2&"'!G"&ROW())), ISNUMBER(INDIRECT("'"&Mercados!$H$2&"'!J"&ROW()))), INDIRECT("'"&Mercados!$H$2&"'!G"&ROW()) - INDIRECT("'"&Mercados!$H$2&"'!J"&ROW()), "") ->  | AC135: D | AF135: =INDIRECT("'" & Mercados!$H$2 & "'!S" & ROW()) -> 0 | AG135: =INDIRECT("'" & Mercados!$H$2 & "'!t" & ROW()) -> 0 | AH135: 0
Y136: =INDIRECT("'" & Mercados!$H$2 & "'!D" & ROW()) -> 0 | Z136: =INDIRECT("'" & Mercados!$H$2 & "'!E" & ROW()) -> 0 | AA136: =IF(AND(ISNUMBER(INDIRECT("'"&Mercados!$H$2&"'!F"&ROW())), ISNUMBER(INDIRECT("'"&Mercados!$H$2&"'!I"&ROW()))), INDIRECT("'"&Mercados!$H$2&"'!F"&ROW()) - INDIRECT("'"&Mercados!$H$2&"'!I"&ROW()), "") ->  | AB136: =IF(AND(ISNUMBER(INDIRECT("'"&Mercados!$H$2&"'!G"&ROW())), ISNUMBER(INDIRECT("'"&Mercados!$H$2&"'!J"&ROW()))), INDIRECT("'"&Mercados!$H$2&"'!G"&ROW()) - INDIRECT("'"&Mercados!$H$2&"'!J"&ROW()), "") ->  | AC136: D | AF136: =INDIRECT("'" & Mercados!$H$2 & "'!S" & ROW()) -> 0 | AG136: =INDIRECT("'" & Mercados!$H$2 & "'!t" & ROW()) -> 0 | AH136: 0
Y137: =INDIRECT("'" & Mercados!$H$2 & "'!D" & ROW()) -> 0 | Z137: =INDIRECT("'" & Mercados!$H$2 & "'!E" & ROW()) -> 0 | AA137: =IF(AND(ISNUMBER(INDIRECT("'"&Mercados!$H$2&"'!F"&ROW())), ISNUMBER(INDIRECT("'"&Mercados!$H$2&"'!I"&ROW()))), INDIRECT("'"&Mercados!$H$2&"'!F"&ROW()) - INDIRECT("'"&Mercados!$H$2&"'!I"&ROW()), "") ->  | AB137: =IF(AND(ISNUMBER(INDIRECT("'"&Mercados!$H$2&"'!G"&ROW())), ISNUMBER(INDIRECT("'"&Mercados!$H$2&"'!J"&ROW()))), INDIRECT("'"&Mercados!$H$2&"'!G"&ROW()) - INDIRECT("'"&Mercados!$H$2&"'!J"&ROW()), "") ->  | AC137: D | AF137: =INDIRECT("'" & Mercados!$H$2 & "'!S" & ROW()) -> 0 | AG137: =INDIRECT("'" & Mercados!$H$2 & "'!t" & ROW()) -> 0 | AH137: 0
Y138: =INDIRECT("'" & Mercados!$H$2 & "'!D" & ROW()) -> 0 | Z138: =INDIRECT("'" & Mercados!$H$2 & "'!E" & ROW()) -> 0 | AA138: =IF(AND(ISNUMBER(INDIRECT("'"&Mercados!$H$2&"'!F"&ROW())), ISNUMBER(INDIRECT("'"&Mercados!$H$2&"'!I"&ROW()))), INDIRECT("'"&Mercados!$H$2&"'!F"&ROW()) - INDIRECT("'"&Mercados!$H$2&"'!I"&ROW()), "") ->  | AB138: =IF(AND(ISNUMBER(INDIRECT("'"&Mercados!$H$2&"'!G"&ROW())), ISNUMBER(INDIRECT("'"&Mercados!$H$2&"'!J"&ROW()))), INDIRECT("'"&Mercados!$H$2&"'!G"&ROW()) - INDIRECT("'"&Mercados!$H$2&"'!J"&ROW()), "") ->  | AC138: D | AF138: =INDIRECT("'" & Mercados!$H$2 & "'!S" & ROW()) -> 0 | AG138: =INDIRECT("'" & Mercados!$H$2 & "'!t" & ROW()) -> 0 | AH138: 0
Y139: =INDIRECT("'" & Mercados!$H$2 & "'!D" & ROW()) -> 0 | Z139: =INDIRECT("'" & Mercados!$H$2 & "'!E" & ROW()) -> 0 | AA139: =IF(AND(ISNUMBER(INDIRECT("'"&Mercados!$H$2&"'!F"&ROW())), ISNUMBER(INDIRECT("'"&Mercados!$H$2&"'!I"&ROW()))), INDIRECT("'"&Mercados!$H$2&"'!F"&ROW()) - INDIRECT("'"&Mercados!$H$2&"'!I"&ROW()), "") ->  | AB139: =IF(AND(ISNUMBER(INDIRECT("'"&Mercados!$H$2&"'!G"&ROW())), ISNUMBER(INDIRECT("'"&Mercados!$H$2&"'!J"&ROW()))), INDIRECT("'"&Mercados!$H$2&"'!G"&ROW()) - INDIRECT("'"&Mercados!$H$2&"'!J"&ROW()), "") ->  | AC139: D | AF139: =INDIRECT("'" & Mercados!$H$2 & "'!S" & ROW()) -> 0 | AG139: =INDIRECT("'" & Mercados!$H$2 & "'!t" & ROW()) -> 0 | AH139: 0
Y140: =INDIRECT("'" & Mercados!$H$2 & "'!D" & ROW()) -> 0 | Z140: =INDIRECT("'" & Mercados!$H$2 & "'!E" & ROW()) -> 0 | AA140: =IF(AND(ISNUMBER(INDIRECT("'"&Mercados!$H$2&"'!F"&ROW())), ISNUMBER(INDIRECT("'"&Mercados!$H$2&"'!I"&ROW()))), INDIRECT("'"&Mercados!$H$2&"'!F"&ROW()) - INDIRECT("'"&Mercados!$H$2&"'!I"&ROW()), "") ->  | AB140: =IF(AND(ISNUMBER(INDIRECT("'"&Mercados!$H$2&"'!G"&ROW())), ISNUMBER(INDIRECT("'"&Mercados!$H$2&"'!J"&ROW()))), INDIRECT("'"&Mercados!$H$2&"'!G"&ROW()) - INDIRECT("'"&Mercados!$H$2&"'!J"&ROW()), "") ->  | AC140: D | AF140: =INDIRECT("'" & Mercados!$H$2 & "'!S" & ROW()) -> 0 | AG140: =INDIRECT("'" & Mercados!$H$2 & "'!t" & ROW()) -> 0 | AH140: 0
Y141: =INDIRECT("'" & Mercados!$H$2 & "'!D" & ROW()) -> 0 | Z141: =INDIRECT("'" & Mercados!$H$2 & "'!E" & ROW()) -> 0 | AA141: =IF(AND(ISNUMBER(INDIRECT("'"&Mercados!$H$2&"'!F"&ROW())), ISNUMBER(INDIRECT("'"&Mercados!$H$2&"'!I"&ROW()))), INDIRECT("'"&Mercados!$H$2&"'!F"&ROW()) - INDIRECT("'"&Mercados!$H$2&"'!I"&ROW()), "") ->  | AB141: =IF(AND(ISNUMBER(INDIRECT("'"&Mercados!$H$2&"'!G"&ROW())), ISNUMBER(INDIRECT("'"&Mercados!$H$2&"'!J"&ROW()))), INDIRECT("'"&Mercados!$H$2&"'!G"&ROW()) - INDIRECT("'"&Mercados!$H$2&"'!J"&ROW()), "") ->  | AC141: D | AF141: =INDIRECT("'" & Mercados!$H$2 & "'!S" & ROW()) -> 0 | AG141: =INDIRECT("'" & Mercados!$H$2 & "'!t" & ROW()) -> 0 | AH141: 0
Y142: =INDIRECT("'" & Mercados!$H$2 & "'!D" & ROW()) -> 0 | Z142: =INDIRECT("'" & Mercados!$H$2 & "'!E" & ROW()) -> 0 | AA142: =IF(AND(ISNUMBER(INDIRECT("'"&Mercados!$H$2&"'!F"&ROW())), ISNUMBER(INDIRECT("'"&Mercados!$H$2&"'!I"&ROW()))), INDIRECT("'"&Mercados!$H$2&"'!F"&ROW()) - INDIRECT("'"&Mercados!$H$2&"'!I"&ROW()), "") ->  | AB142: =IF(AND(ISNUMBER(INDIRECT("'"&Mercados!$H$2&"'!G"&ROW())), ISNUMBER(INDIRECT("'"&Mercados!$H$2&"'!J"&ROW()))), INDIRECT("'"&Mercados!$H$2&"'!G"&ROW()) - INDIRECT("'"&Mercados!$H$2&"'!J"&ROW()), "") ->  | AC142: D | AF142: =INDIRECT("'" & Mercados!$H$2 & "'!S" & ROW()) -> 0 | AG142: =INDIRECT("'" & Mercados!$H$2 & "'!t" & ROW()) -> 0 | AH142: 0
Y143: =INDIRECT("'" & Mercados!$H$2 & "'!D" & ROW()) -> 0 | Z143: =INDIRECT("'" & Mercados!$H$2 & "'!E" & ROW()) -> 0 | AA143: =IF(AND(ISNUMBER(INDIRECT("'"&Mercados!$H$2&"'!F"&ROW())), ISNUMBER(INDIRECT("'"&Mercados!$H$2&"'!I"&ROW()))), INDIRECT("'"&Mercados!$H$2&"'!F"&ROW()) - INDIRECT("'"&Mercados!$H$2&"'!I"&ROW()), "") ->  | AB143: =IF(AND(ISNUMBER(INDIRECT("'"&Mercados!$H$2&"'!G"&ROW())), ISNUMBER(INDIRECT("'"&Mercados!$H$2&"'!J"&ROW()))), INDIRECT("'"&Mercados!$H$2&"'!G"&ROW()) - INDIRECT("'"&Mercados!$H$2&"'!J"&ROW()), "") ->  | AC143: D | AF143: =INDIRECT("'" & Mercados!$H$2 & "'!S" & ROW()) -> 0 | AG143: =INDIRECT("'" & Mercados!$H$2 & "'!t" & ROW()) -> 0 | AH143: 0
Y144: =INDIRECT("'" & Mercados!$H$2 & "'!D" & ROW()) -> 0 | Z144: =INDIRECT("'" & Mercados!$H$2 & "'!E" & ROW()) -> 0 | AA144: =IF(AND(ISNUMBER(INDIRECT("'"&Mercados!$H$2&"'!F"&ROW())), ISNUMBER(INDIRECT("'"&Mercados!$H$2&"'!I"&ROW()))), INDIRECT("'"&Mercados!$H$2&"'!F"&ROW()) - INDIRECT("'"&Mercados!$H$2&"'!I"&ROW()), "") ->  | AB144: =IF(AND(ISNUMBER(INDIRECT("'"&Mercados!$H$2&"'!G"&ROW())), ISNUMBER(INDIRECT("'"&Mercados!$H$2&"'!J"&ROW()))), INDIRECT("'"&Mercados!$H$2&"'!G"&ROW()) - INDIRECT("'"&Mercados!$H$2&"'!J"&ROW()), "") ->  | AC144: D | AF144: =INDIRECT("'" & Mercados!$H$2 & "'!S" & ROW()) -> 0 | AG144: =INDIRECT("'" & Mercados!$H$2 & "'!t" & ROW()) -> 0 | AH144: 0
Y145: =INDIRECT("'" & Mercados!$H$2 & "'!D" & ROW()) -> 0 | Z145: =INDIRECT("'" & Mercados!$H$2 & "'!E" & ROW()) -> 0 | AA145: =IF(AND(ISNUMBER(INDIRECT("'"&Mercados!$H$2&"'!F"&ROW())), ISNUMBER(INDIRECT("'"&Mercados!$H$2&"'!I"&ROW()))), INDIRECT("'"&Mercados!$H$2&"'!F"&ROW()) - INDIRECT("'"&Mercados!$H$2&"'!I"&ROW()), "") ->  | AB145: =IF(AND(ISNUMBER(INDIRECT("'"&Mercados!$H$2&"'!G"&ROW())), ISNUMBER(INDIRECT("'"&Mercados!$H$2&"'!J"&ROW()))), INDIRECT("'"&Mercados!$H$2&"'!G"&ROW()) - INDIRECT("'"&Mercados!$H$2&"'!J"&ROW()), "") ->  | AC145: D | AF145: =INDIRECT("'" & Mercados!$H$2 & "'!S" & ROW()) -> 0 | AG145: =INDIRECT("'" & Mercados!$H$2 & "'!t" & ROW()) -> 0 | AH145: 0
Y146: =INDIRECT("'" & Mercados!$H$2 & "'!D" & ROW()) -> 0 | Z146: =INDIRECT("'" & Mercados!$H$2 & "'!E" & ROW()) -> 0 | AA146: =IF(AND(ISNUMBER(INDIRECT("'"&Mercados!$H$2&"'!F"&ROW())), ISNUMBER(INDIRECT("'"&Mercados!$H$2&"'!I"&ROW()))), INDIRECT("'"&Mercados!$H$2&"'!F"&ROW()) - INDIRECT("'"&Mercados!$H$2&"'!I"&ROW()), "") ->  | AB146: =IF(AND(ISNUMBER(INDIRECT("'"&Mercados!$H$2&"'!G"&ROW())), ISNUMBER(INDIRECT("'"&Mercados!$H$2&"'!J"&ROW()))), INDIRECT("'"&Mercados!$H$2&"'!G"&ROW()) - INDIRECT("'"&Mercados!$H$2&"'!J"&ROW()), "") ->  | AC146: D | AF146: =INDIRECT("'" & Mercados!$H$2 & "'!S" & ROW()) -> 0 | AG146: =INDIRECT("'" & Mercados!$H$2 & "'!t" & ROW()) -> 0 | AH146: 0
Y147: =INDIRECT("'" & Mercados!$H$2 & "'!D" & ROW()) -> 0 | Z147: =INDIRECT("'" & Mercados!$H$2 & "'!E" & ROW()) -> 0 | AA147: =IF(AND(ISNUMBER(INDIRECT("'"&Mercados!$H$2&"'!F"&ROW())), ISNUMBER(INDIRECT("'"&Mercados!$H$2&"'!I"&ROW()))), INDIRECT("'"&Mercados!$H$2&"'!F"&ROW()) - INDIRECT("'"&Mercados!$H$2&"'!I"&ROW()), "") ->  | AB147: =IF(AND(ISNUMBER(INDIRECT("'"&Mercados!$H$2&"'!G"&ROW())), ISNUMBER(INDIRECT("'"&Mercados!$H$2&"'!J"&ROW()))), INDIRECT("'"&Mercados!$H$2&"'!G"&ROW()) - INDIRECT("'"&Mercados!$H$2&"'!J"&ROW()), "") ->  | AC147: D | AF147: =INDIRECT("'" & Mercados!$H$2 & "'!S" & ROW()) -> 0 | AG147: =INDIRECT("'" & Mercados!$H$2 & "'!t" & ROW()) -> 0 | AH147: 0
Y148: =INDIRECT("'" & Mercados!$H$2 & "'!D" & ROW()) -> 0 | Z148: =INDIRECT("'" & Mercados!$H$2 & "'!E" & ROW()) -> 0 | AA148: =IF(AND(ISNUMBER(INDIRECT("'"&Mercados!$H$2&"'!F"&ROW())), ISNUMBER(INDIRECT("'"&Mercados!$H$2&"'!I"&ROW()))), INDIRECT("'"&Mercados!$H$2&"'!F"&ROW()) - INDIRECT("'"&Mercados!$H$2&"'!I"&ROW()), "") ->  | AB148: =IF(AND(ISNUMBER(INDIRECT("'"&Mercados!$H$2&"'!G"&ROW())), ISNUMBER(INDIRECT("'"&Mercados!$H$2&"'!J"&ROW()))), INDIRECT("'"&Mercados!$H$2&"'!G"&ROW()) - INDIRECT("'"&Mercados!$H$2&"'!J"&ROW()), "") ->  | AC148: D | AF148: =INDIRECT("'" & Mercados!$H$2 & "'!S" & ROW()) -> 0 | AG148: =INDIRECT("'" & Mercados!$H$2 & "'!t" & ROW()) -> 0 | AH148: 0
Y149: =INDIRECT("'" & Mercados!$H$2 & "'!D" & ROW()) -> 0 | Z149: =INDIRECT("'" & Mercados!$H$2 & "'!E" & ROW()) -> 0 | AA149: =IF(AND(ISNUMBER(INDIRECT("'"&Mercados!$H$2&"'!F"&ROW())), ISNUMBER(INDIRECT("'"&Mercados!$H$2&"'!I"&ROW()))), INDIRECT("'"&Mercados!$H$2&"'!F"&ROW()) - INDIRECT("'"&Mercados!$H$2&"'!I"&ROW()), "") ->  | AB149: =IF(AND(ISNUMBER(INDIRECT("'"&Mercados!$H$2&"'!G"&ROW())), ISNUMBER(INDIRECT("'"&Mercados!$H$2&"'!J"&ROW()))), INDIRECT("'"&Mercados!$H$2&"'!G"&ROW()) - INDIRECT("'"&Mercados!$H$2&"'!J"&ROW()), "") ->  | AC149: D | AF149: =INDIRECT("'" & Mercados!$H$2 & "'!S" & ROW()) -> 0 | AG149: =INDIRECT("'" & Mercados!$H$2 & "'!t" & ROW()) -> 0 | AH149: 0
Y150: =INDIRECT("'" & Mercados!$H$2 & "'!D" & ROW()) -> 0 | Z150: =INDIRECT("'" & Mercados!$H$2 & "'!E" & ROW()) -> 0 | AA150: =IF(AND(ISNUMBER(INDIRECT("'"&Mercados!$H$2&"'!F"&ROW())), ISNUMBER(INDIRECT("'"&Mercados!$H$2&"'!I"&ROW()))), INDIRECT("'"&Mercados!$H$2&"'!F"&ROW()) - INDIRECT("'"&Mercados!$H$2&"'!I"&ROW()), "") ->  | AB150: =IF(AND(ISNUMBER(INDIRECT("'"&Mercados!$H$2&"'!G"&ROW())), ISNUMBER(INDIRECT("'"&Mercados!$H$2&"'!J"&ROW()))), INDIRECT("'"&Mercados!$H$2&"'!G"&ROW()) - INDIRECT("'"&Mercados!$H$2&"'!J"&ROW()), "") ->  | AC150: D | AF150: =INDIRECT("'" & Mercados!$H$2 & "'!S" & ROW()) -> 0 | AG150: =INDIRECT("'" & Mercados!$H$2 & "'!t" & ROW()) -> 0 | AH150: 0
Y151: =INDIRECT("'" & Mercados!$H$2 & "'!D" & ROW()) -> 0 | Z151: =INDIRECT("'" & Mercados!$H$2 & "'!E" & ROW()) -> 0 | AA151: =IF(AND(ISNUMBER(INDIRECT("'"&Mercados!$H$2&"'!F"&ROW())), ISNUMBER(INDIRECT("'"&Mercados!$H$2&"'!I"&ROW()))), INDIRECT("'"&Mercados!$H$2&"'!F"&ROW()) - INDIRECT("'"&Mercados!$H$2&"'!I"&ROW()), "") ->  | AB151: =IF(AND(ISNUMBER(INDIRECT("'"&Mercados!$H$2&"'!G"&ROW())), ISNUMBER(INDIRECT("'"&Mercados!$H$2&"'!J"&ROW()))), INDIRECT("'"&Mercados!$H$2&"'!G"&ROW()) - INDIRECT("'"&Mercados!$H$2&"'!J"&ROW()), "") ->  | AC151: D | AF151: =INDIRECT("'" & Mercados!$H$2 & "'!S" & ROW()) -> 0 | AG151: =INDIRECT("'" & Mercados!$H$2 & "'!t" & ROW()) -> 0 | AH151: 0
Y152: =INDIRECT("'" & Mercados!$H$2 & "'!D" & ROW()) -> 0 | Z152: =INDIRECT("'" & Mercados!$H$2 & "'!E" & ROW()) -> 0 | AA152: =IF(AND(ISNUMBER(INDIRECT("'"&Mercados!$H$2&"'!F"&ROW())), ISNUMBER(INDIRECT("'"&Mercados!$H$2&"'!I"&ROW()))), INDIRECT("'"&Mercados!$H$2&"'!F"&ROW()) - INDIRECT("'"&Mercados!$H$2&"'!I"&ROW()), "") ->  | AB152: =IF(AND(ISNUMBER(INDIRECT("'"&Mercados!$H$2&"'!G"&ROW())), ISNUMBER(INDIRECT("'"&Mercados!$H$2&"'!J"&ROW()))), INDIRECT("'"&Mercados!$H$2&"'!G"&ROW()) - INDIRECT("'"&Mercados!$H$2&"'!J"&ROW()), "") ->  | AC152: D | AF152: =INDIRECT("'" & Mercados!$H$2 & "'!S" & ROW()) -> 0 | AG152: =INDIRECT("'" & Mercados!$H$2 & "'!t" & ROW()) -> 0 | AH152: 0
Y153: =INDIRECT("'" & Mercados!$H$2 & "'!D" & ROW()) -> 0 | Z153: =INDIRECT("'" & Mercados!$H$2 & "'!E" & ROW()) -> 0 | AA153: =IF(AND(ISNUMBER(INDIRECT("'"&Mercados!$H$2&"'!F"&ROW())), ISNUMBER(INDIRECT("'"&Mercados!$H$2&"'!I"&ROW()))), INDIRECT("'"&Mercados!$H$2&"'!F"&ROW()) - INDIRECT("'"&Mercados!$H$2&"'!I"&ROW()), "") ->  | AB153: =IF(AND(ISNUMBER(INDIRECT("'"&Mercados!$H$2&"'!G"&ROW())), ISNUMBER(INDIRECT("'"&Mercados!$H$2&"'!J"&ROW()))), INDIRECT("'"&Mercados!$H$2&"'!G"&ROW()) - INDIRECT("'"&Mercados!$H$2&"'!J"&ROW()), "") ->  | AC153: D | AF153: =INDIRECT("'" & Mercados!$H$2 & "'!S" & ROW()) -> 0 | AG153: =INDIRECT("'" & Mercados!$H$2 & "'!t" & ROW()) -> 0 | AH153: 0
Y154: =INDIRECT("'" & Mercados!$H$2 & "'!D" & ROW()) -> 0 | Z154: =INDIRECT("'" & Mercados!$H$2 & "'!E" & ROW()) -> 0 | AA154: =IF(AND(ISNUMBER(INDIRECT("'"&Mercados!$H$2&"'!F"&ROW())), ISNUMBER(INDIRECT("'"&Mercados!$H$2&"'!I"&ROW()))), INDIRECT("'"&Mercados!$H$2&"'!F"&ROW()) - INDIRECT("'"&Mercados!$H$2&"'!I"&ROW()), "") ->  | AB154: =IF(AND(ISNUMBER(INDIRECT("'"&Mercados!$H$2&"'!G"&ROW())), ISNUMBER(INDIRECT("'"&Mercados!$H$2&"'!J"&ROW()))), INDIRECT("'"&Mercados!$H$2&"'!G"&ROW()) - INDIRECT("'"&Mercados!$H$2&"'!J"&ROW()), "") ->  | AC154: D | AF154: =INDIRECT("'" & Mercados!$H$2 & "'!S" & ROW()) -> 0 | AG154: =INDIRECT("'" & Mercados!$H$2 & "'!t" & ROW()) -> 0 | AH154: 0
Y155: =INDIRECT("'" & Mercados!$H$2 & "'!D" & ROW()) -> 0 | Z155: =INDIRECT("'" & Mercados!$H$2 & "'!E" & ROW()) -> 0 | AA155: =IF(AND(ISNUMBER(INDIRECT("'"&Mercados!$H$2&"'!F"&ROW())), ISNUMBER(INDIRECT("'"&Mercados!$H$2&"'!I"&ROW()))), INDIRECT("'"&Mercados!$H$2&"'!F"&ROW()) - INDIRECT("'"&Mercados!$H$2&"'!I"&ROW()), "") ->  | AB155: =IF(AND(ISNUMBER(INDIRECT("'"&Mercados!$H$2&"'!G"&ROW())), ISNUMBER(INDIRECT("'"&Mercados!$H$2&"'!J"&ROW()))), INDIRECT("'"&Mercados!$H$2&"'!G"&ROW()) - INDIRECT("'"&Mercados!$H$2&"'!J"&ROW()), "") ->  | AC155: D | AF155: =INDIRECT("'" & Mercados!$H$2 & "'!S" & ROW()) -> 0 | AG155: =INDIRECT("'" & Mercados!$H$2 & "'!t" & ROW()) -> 0 | AH155: 0
Y156: =INDIRECT("'" & Mercados!$H$2 & "'!D" & ROW()) -> 0 | Z156: =INDIRECT("'" & Mercados!$H$2 & "'!E" & ROW()) -> 0 | AA156: =IF(AND(ISNUMBER(INDIRECT("'"&Mercados!$H$2&"'!F"&ROW())), ISNUMBER(INDIRECT("'"&Mercados!$H$2&"'!I"&ROW()))), INDIRECT("'"&Mercados!$H$2&"'!F"&ROW()) - INDIRECT("'"&Mercados!$H$2&"'!I"&ROW()), "") ->  | AB156: =IF(AND(ISNUMBER(INDIRECT("'"&Mercados!$H$2&"'!G"&ROW())), ISNUMBER(INDIRECT("'"&Mercados!$H$2&"'!J"&ROW()))), INDIRECT("'"&Mercados!$H$2&"'!G"&ROW()) - INDIRECT("'"&Mercados!$H$2&"'!J"&ROW()), "") ->  | AC156: D | AF156: =INDIRECT("'" & Mercados!$H$2 & "'!S" & ROW()) -> 0 | AG156: =INDIRECT("'" & Mercados!$H$2 & "'!t" & ROW()) -> 0 | AH156: 0
Y157: =INDIRECT("'" & Mercados!$H$2 & "'!D" & ROW()) -> 0 | Z157: =INDIRECT("'" & Mercados!$H$2 & "'!E" & ROW()) -> 0 | AA157: =IF(AND(ISNUMBER(INDIRECT("'"&Mercados!$H$2&"'!F"&ROW())), ISNUMBER(INDIRECT("'"&Mercados!$H$2&"'!I"&ROW()))), INDIRECT("'"&Mercados!$H$2&"'!F"&ROW()) - INDIRECT("'"&Mercados!$H$2&"'!I"&ROW()), "") ->  | AB157: =IF(AND(ISNUMBER(INDIRECT("'"&Mercados!$H$2&"'!G"&ROW())), ISNUMBER(INDIRECT("'"&Mercados!$H$2&"'!J"&ROW()))), INDIRECT("'"&Mercados!$H$2&"'!G"&ROW()) - INDIRECT("'"&Mercados!$H$2&"'!J"&ROW()), "") ->  | AC157: D | AF157: =INDIRECT("'" & Mercados!$H$2 & "'!S" & ROW()) -> 0 | AG157: =INDIRECT("'" & Mercados!$H$2 & "'!t" & ROW()) -> 0 | AH157: 0
Y158: =INDIRECT("'" & Mercados!$H$2 & "'!D" & ROW()) -> 0 | Z158: =INDIRECT("'" & Mercados!$H$2 & "'!E" & ROW()) -> 0 | AA158: =IF(AND(ISNUMBER(INDIRECT("'"&Mercados!$H$2&"'!F"&ROW())), ISNUMBER(INDIRECT("'"&Mercados!$H$2&"'!I"&ROW()))), INDIRECT("'"&Mercados!$H$2&"'!F"&ROW()) - INDIRECT("'"&Mercados!$H$2&"'!I"&ROW()), "") ->  | AB158: =IF(AND(ISNUMBER(INDIRECT("'"&Mercados!$H$2&"'!G"&ROW())), ISNUMBER(INDIRECT("'"&Mercados!$H$2&"'!J"&ROW()))), INDIRECT("'"&Mercados!$H$2&"'!G"&ROW()) - INDIRECT("'"&Mercados!$H$2&"'!J"&ROW()), "") ->  | AC158: D | AF158: =INDIRECT("'" & Mercados!$H$2 & "'!S" & ROW()) -> 0 | AG158: =INDIRECT("'" & Mercados!$H$2 & "'!t" & ROW()) -> 0 | AH158: 0
Y159: =INDIRECT("'" & Mercados!$H$2 & "'!D" & ROW()) -> 0 | Z159: =INDIRECT("'" & Mercados!$H$2 & "'!E" & ROW()) -> 0 | AA159: =IF(AND(ISNUMBER(INDIRECT("'"&Mercados!$H$2&"'!F"&ROW())), ISNUMBER(INDIRECT("'"&Mercados!$H$2&"'!I"&ROW()))), INDIRECT("'"&Mercados!$H$2&"'!F"&ROW()) - INDIRECT("'"&Mercados!$H$2&"'!I"&ROW()), "") ->  | AB159: =IF(AND(ISNUMBER(INDIRECT("'"&Mercados!$H$2&"'!G"&ROW())), ISNUMBER(INDIRECT("'"&Mercados!$H$2&"'!J"&ROW()))), INDIRECT("'"&Mercados!$H$2&"'!G"&ROW()) - INDIRECT("'"&Mercados!$H$2&"'!J"&ROW()), "") ->  | AC159: D | AF159: =INDIRECT("'" & Mercados!$H$2 & "'!S" & ROW()) -> 0 | AG159: =INDIRECT("'" & Mercados!$H$2 & "'!t" & ROW()) -> 0 | AH159: 0
Y160: =INDIRECT("'" & Mercados!$H$2 & "'!D" & ROW()) -> 0 | Z160: =INDIRECT("'" & Mercados!$H$2 & "'!E" & ROW()) -> 0 | AA160: =IF(AND(ISNUMBER(INDIRECT("'"&Mercados!$H$2&"'!F"&ROW())), ISNUMBER(INDIRECT("'"&Mercados!$H$2&"'!I"&ROW()))), INDIRECT("'"&Mercados!$H$2&"'!F"&ROW()) - INDIRECT("'"&Mercados!$H$2&"'!I"&ROW()), "") ->  | AB160: =IF(AND(ISNUMBER(INDIRECT("'"&Mercados!$H$2&"'!G"&ROW())), ISNUMBER(INDIRECT("'"&Mercados!$H$2&"'!J"&ROW()))), INDIRECT("'"&Mercados!$H$2&"'!G"&ROW()) - INDIRECT("'"&Mercados!$H$2&"'!J"&ROW()), "") ->  | AC160: D | AF160: =INDIRECT("'" & Mercados!$H$2 & "'!S" & ROW()) -> 0 | AG160: =INDIRECT("'" & Mercados!$H$2 & "'!t" & ROW()) -> 0 | AH160: 0
Y161: =INDIRECT("'" & Mercados!$H$2 & "'!D" & ROW()) -> 0 | Z161: =INDIRECT("'" & Mercados!$H$2 & "'!E" & ROW()) -> 0 | AA161: =IF(AND(ISNUMBER(INDIRECT("'"&Mercados!$H$2&"'!F"&ROW())), ISNUMBER(INDIRECT("'"&Mercados!$H$2&"'!I"&ROW()))), INDIRECT("'"&Mercados!$H$2&"'!F"&ROW()) - INDIRECT("'"&Mercados!$H$2&"'!I"&ROW()), "") ->  | AB161: =IF(AND(ISNUMBER(INDIRECT("'"&Mercados!$H$2&"'!G"&ROW())), ISNUMBER(INDIRECT("'"&Mercados!$H$2&"'!J"&ROW()))), INDIRECT("'"&Mercados!$H$2&"'!G"&ROW()) - INDIRECT("'"&Mercados!$H$2&"'!J"&ROW()), "") ->  | AC161: D | AF161: =INDIRECT("'" & Mercados!$H$2 & "'!S" & ROW()) -> 0 | AG161: =INDIRECT("'" & Mercados!$H$2 & "'!t" & ROW()) -> 0 | AH161: 0
Y162: =INDIRECT("'" & Mercados!$H$2 & "'!D" & ROW()) -> 0 | Z162: =INDIRECT("'" & Mercados!$H$2 & "'!E" & ROW()) -> 0 | AA162: =IF(AND(ISNUMBER(INDIRECT("'"&Mercados!$H$2&"'!F"&ROW())), ISNUMBER(INDIRECT("'"&Mercados!$H$2&"'!I"&ROW()))), INDIRECT("'"&Mercados!$H$2&"'!F"&ROW()) - INDIRECT("'"&Mercados!$H$2&"'!I"&ROW()), "") ->  | AB162: =IF(AND(ISNUMBER(INDIRECT("'"&Mercados!$H$2&"'!G"&ROW())), ISNUMBER(INDIRECT("'"&Mercados!$H$2&"'!J"&ROW()))), INDIRECT("'"&Mercados!$H$2&"'!G"&ROW()) - INDIRECT("'"&Mercados!$H$2&"'!J"&ROW()), "") ->  | AC162: D | AF162: =INDIRECT("'" & Mercados!$H$2 & "'!S" & ROW()) -> 0 | AG162: =INDIRECT("'" & Mercados!$H$2 & "'!t" & ROW()) -> 0 | AH162: 0
Y163: =INDIRECT("'" & Mercados!$H$2 & "'!D" & ROW()) -> 0 | Z163: =INDIRECT("'" & Mercados!$H$2 & "'!E" & ROW()) -> 0 | AA163: =IF(AND(ISNUMBER(INDIRECT("'"&Mercados!$H$2&"'!F"&ROW())), ISNUMBER(INDIRECT("'"&Mercados!$H$2&"'!I"&ROW()))), INDIRECT("'"&Mercados!$H$2&"'!F"&ROW()) - INDIRECT("'"&Mercados!$H$2&"'!I"&ROW()), "") ->  | AB163: =IF(AND(ISNUMBER(INDIRECT("'"&Mercados!$H$2&"'!G"&ROW())), ISNUMBER(INDIRECT("'"&Mercados!$H$2&"'!J"&ROW()))), INDIRECT("'"&Mercados!$H$2&"'!G"&ROW()) - INDIRECT("'"&Mercados!$H$2&"'!J"&ROW()), "") ->  | AC163: D | AF163: =INDIRECT("'" & Mercados!$H$2 & "'!S" & ROW()) -> 0 | AG163: =INDIRECT("'" & Mercados!$H$2 & "'!t" & ROW()) -> 0 | AH163: 0
